Workbook

Sheet Journal (hidden)
A1: Дата открытия | B1: Дата закрытия | C1: Время открытия1 | D1: Время закрытия | E1: Тикер | F1: Направление | G1: Цена открытия | H1: Цена закрытия | I1: Объем
A2: 2013-05-02 | B2: 2013-05-02 | C2: 11:28:43 | D2: 11:39:11 | E2: SPN | F2: S | G2: 26.98 | H2: 26.93 | I2: 100
A3: 2013-05-02 | C3: 11:28:43 | E3: SPN | F3: S | G3: 26.98 | I3: 100

Sheet Данные
A1: Net | B1: № | C1: Дата откр. | D1: Время откр. | E1: Дата закр. | F1: Время закр. | G1: Инструмент | H1: Направление сделки | I1: Цена откр. | J1: Цена закр. | K1: кол-во | L1: Cвод по сделке | M1: Способ входа в позицию | N1: Способ выхода из позиции | O1: Ошибки входа | P1: Ошибки выхода | Q1: Оценка трейда | R1: Стратегия | S1: Комментарий | T1: Изменение депозита | U1: Депозит | V1: Комиссия всего | W1: Сумма открытия | X1: Сумма закрытия | Y1: P\L GroSS | Z1: P\L Net | AA1: Начальная сумма (GroSS) | AB1: Начальная сумма (Net) | AC1: Конечная сумма (GroSS) | AD1: Конечная сумма (Net) | AE1: День недели | AF1: Часы | AG1: Биржа | AH1: Сектор | AI1: Индустрия | AJ1: Секунд в сделке | AK1: Минут в сделке (Интрадей) | AL1: Рабочих дней в сделке (Среднесрок) | AM1: Диапазон входа | AN1: Net плюс | AO1: Net минус | AP1: Год | AQ1: Месяц | AR1: Неделя | AS1: Депозит по дням | AT1: Пополнение депозита | AU1: Общая доходность, % | AV1: Доходность в сделке | AW1: Открытие дня | AX1: Закрытие дня | AY1: Диапазон цены | AZ1: МаксМинДней | BA1: TradeS | BB1: Profit | BC1: LoSS | BD1: NuLL | BE1: Объем для диграммы | BF1: Prop % | BG1: P&L Net Real | BH1: Prop Net | BI1: ∑ = P\L Net | BJ1: ∑ = Prop Net | BK1: ∑ = P&L Net Real | BL1: ∑ = Shers
A2: =IF(C2=0,"",Z2) -> 14.64 | B2: =IF(C2=O140,"",1) -> 1 | C2: 2013-06-12 | D2: 13:41:00 | E2: 2013-06-12 | F2: 14:26:00 | G2: MCRS | H2: Sell | I2: 42 | J2: 41.85 | K2: 100 | L2: =IF(C2=0,"",TEXT(C2,"ДД.ММ.ГГ")&" "&G2& " "&H2) -> 12.06.13 MCRS Sell | M2: отбой от уровня | N2: Limit Close | O2: Все правильно | P2: Не пошла | Q2: 5 | R2: Отбой от уровня | T2: 0 | U2: =Z2+T2 -> 14.64 | V2: =IF(C2=0,"",K2/Служебный!$N$17*Служебный!$O$17*2) -> 0.36 | W2: =IF(C2=0,"",(I2*K2)) -> 4200 | X2: =IF(C2=0,"",(J2*K2)) -> 4185 | Y2: =IF(H2="Sell",ROUND(W2-X2,2),IF(H2="Buy",ROUND(X2-W2,2),"")) -> 15 | Z2: =IF(C2=0,"",Y2-V2) -> 14.64 | AA2: 0 | AB2: 0 | AC2: =IF(C2=0,"",AA2+Y2) -> 15 | AD2: =IF(C2=0,"",AB2+Z2) -> 14.64 | AE2: =IF(C2=0,"",VLOOKUP(WEEKDAY(C2,2),Служебный!K$4:L$10,2)) -> ср | AF2: =IF(C2=0,"",TEXT((HOUR(D2)),0)&"-"&TEXT(HOUR(D2)+1,0)) -> 13-14 | AG2: =IF(C2=0,"",VLOOKUP(G2,Служебный!B:G,6,)) -> NASDAQ | AH2: =IF(C2=0,"",VLOOKUP(G2,Служебный!B:G,3,FALSE)) -> Technology | AI2: =IF(C2=0,"",VLOOKUP(G2,Служебный!B:G,4,FALSE)) -> Application Software | AJ2: =IF(OR(C2=0,D2=0,E2=0,F2=0),"",ROUND(((E2+F2)-(C2+D2))*86400,0)) -> 2700 | AK2: =IF(OR(E2=0,C2=0,AJ2=0),"",IF(E2>C2,"Среднесрок",FLOOR((AJ2/60),0.1))) -> 45 | AL2: =IF(OR(E2=0,C2=0),"",IF(E2=C2,"Интрадей",NETWORKDAYS(C2,E2))) -> Интрадей | AM2: =IF(C2=0,"",IF(D2<Служебный!$P$3,"Раньше открытия",IF(D2>Служебный!$P$6,"Позже закрытия",IF(D2<Служебный!$P$4,Служебный!$N$4,IF(D2<Служебный!$P$5,Служебный!$N$5,Служебный!$N$6))))) -> 13:00 - 16:00 | AN2: =IF(Z2<=0,"",Z2) -> 14.64 | AO2: =IF(Z2>=0,"",Z2) ->  | AP2: =IF(C2=0,"",YEAR(C2)) -> 2013 | AQ2: =IF(C2=0,"",TEXT(C2,"ММММ")) -> Июнь | AR2: =IF(C2=0,"",WEEKNUM(C2)) -> 24 | AS2: =IF(AX2="","",U2) -> 14.64 | AT2: =T2 -> 0 | AU2: =IF(OR(U2="",AT2=""),"",IFERROR(100*(U2-AT2)/AT2,"Заполните депозит")) -> Заполните депозит | AV2: =IF(U2="","",IFERROR(100*(U2-T2)/T2,"Заполните депозит")) -> Заполните депозит | AW2: =IF(OR(C1=0,C2=0),"",IF(C2=C1,"",AB2)) -> 0 | AX2: =IF(OR(C1=0,C2=0),"",IF(C2=C3,"",AD2)) -> 14.64 | AY2: =IF(I2="","",CEILING(I2,5)) -> 45 | AZ2: 0 | BA2: =IF(OR(C1=0,C2=0),"",IF(C2=C1,"",COUNTIF(C:C,C2))) -> 1 | BB2: =IF(OR(C1=0,C2=0),"",IF(C2=C1,"",COUNTIFS(C:C,C2,Y:Y,">0"))) -> 1 | BC2: =IF(OR(C1=0,C2=0),"",IF(C2=C1,"",COUNTIFS(C:C,C2,Y:Y,"<0"))) -> 0 | BD2: =IF(OR(C1=0,C2=0),"",IF(C2=C1,"",COUNTIFS(C:C,C2,Y:Y,"=0"))) -> 0 | BE2: =IF(BA2="","",SUMIFS($K$2:$K$77777,$C$2:$C$77777,$C2)) -> 100 | BF2: 80 | BG2: =Z2*BF2% -> 11.712 | BH2: =Z2-BG2 -> 2.928 | BI2: =SUM(Z2:Z7777) ->  | BJ2: =SUMIF(BH2:BH7777,">0") -> 2.928 | BK2: =BI2-BJ2 ->  | BL2: =SUM(K2:K7777)*2 -> 1200
A3: -16.08 | B3: =IF(C3=0,"",B2+1) -> 2 | C3: 2013-07-09 | D3: 13:25:00 | E3: 2013-07-09 | F3: 13:29:00 | G3: NEM | H3: Sell | I3: 26.99 | J3: 27.04 | K3: 300 | L3: =IF(C3=0,"",TEXT(C3,"ДД.ММ.ГГ")&" "&G3& " "&H3) -> 09.07.13 NEM Sell | M3: отбой от уровня | N3: стоп лосс | O3: Не соблюдал правила | P3: Все правильно | Q3: 2 | R3: Отбой от уровня | U3: =IF(Z3="","",Z3+T3+U2) -> -1.44 | V3: =IF(C3=0,"",K3/Служебный!$N$17*Служебный!$O$17*2) -> 1.08 | W3: 8097 | X3: 8112 | Y3: =IF(H3="Sell",ROUND(W3-X3,2),IF(H3="Buy",ROUND(X3-W3,2),"")) -> -15 | Z3: -16.08 | AA3: =IF(C3=0,"",AA2+Y2) -> 15 | AB3: =IF(C3=0,"",AB2+Z2) -> 14.64 | AC3: 0 | AD3: -1.44 | AE3: =IF(C3=0,"",VLOOKUP(WEEKDAY(C3,2),Служебный!K$4:L$10,2)) -> вт | AF3: 13-14 | AG3: =IF(C3=0,"",VLOOKUP(G3,Служебный!B:G,6,)) -> NYSE | AH3: =IF(C3=0,"",VLOOKUP(G3,Служебный!B:G,3,FALSE)) -> Basic Materials | AI3: =IF(C3=0,"",VLOOKUP(G3,Служебный!B:G,4,FALSE)) -> Gold | AJ3: 240 | AK3: 4 | AL3: Интрадей | AM3: =IF(C3=0,"",IF(D3<Служебный!$P$3,"Раньше открытия",IF(D3>Служебный!$P$6,"Позже закрытия",IF(D3<Служебный!$P$4,Служебный!$N$4,IF(D3<Служебный!$P$5,Служебный!$N$5,Служебный!$N$6))))) -> 13:00 - 16:00 | AO3: -16.08 | AP3: 2013 | AQ3: Июль | AR3: 28 | AS3: -1.44 | AT3: =IF(U3="","",AT2+T3) -> 0 | AU3: Заполните депозит | AV3: =IF(U3="","",IFERROR(100*(U3-U2-T3)/(U2+T3),"Заполните депозит")) -> -109.8360656 | AW3: 14.64 | AX3: -1.44 | AY3: 30 | AZ3: =IF(C3=0,"",IF(AX3="",AZ2,IF(SUMIF(C:C,C3,Z:Z)<0,IF(AZ2<0,AZ2-1,-1),IF(AZ2>0,AZ2+1,1)))) -> -1 | BA3: =IF(OR(C2=0,C3=0),"",IF(C3=C2,"",COUNTIF(C:C,C3))) -> 1 | BB3: 0 | BC3: 1 | BD3: 0 | BE3: =IF(BA3="","",SUMIFS($K$2:$K$77777,$C$2:$C$77777,$C3)) -> 300 | BF3: 80 | BG3: =Z3*BF3% -> -12.864 | BH3: =Z3-BG3 -> -3.216
B4: =IF(C4=0,"",B3+1) -> 3 | C4: 2015-02-26 | D4: 12:45:00 | E4: 2015-02-26 | F4: 14:46:00 | G4: BOOT | H4: b | I4: 23.53 | J4: 0.3111111111 | K4: 200 | L4: 26.02.15 BOOT b | M4: отбой от уровня | N4: стоп лосс | O4: другое | P4: другое | Q4: 2 | R4: Отбой от уровня | U4: =IF(Z4="","",Z4+T4+U3) ->  | V4: =IF(C4=0,"",K4/Служебный!$N$17*Служебный!$O$17*2) -> 0.72 | X4: 62.22222222 | Y4: =IF(H4="Sell",ROUND(W4-X4,2),IF(H4="Buy",ROUND(X4-W4,2),"")) ->  | AA4: =IF(C4=0,"",AA3+Y3) -> 0 | AB4: =IF(C4=0,"",AB3+Z3) -> -1.44 | AE4: =IF(C4=0,"",VLOOKUP(WEEKDAY(C4,2),Служебный!K$4:L$10,2)) -> чт | AF4: 12-13 | AG4: =IF(C4=0,"",VLOOKUP(G4,Служебный!B:G,6,)) -> NASDAQ | AH4: =IF(C4=0,"",VLOOKUP(G4,Служебный!B:G,3,FALSE)) -> Consumer Goods | AI4: =IF(C4=0,"",VLOOKUP(G4,Служебный!B:G,4,FALSE)) -> Textile - Apparel Footwear & Accessories | AJ4: 7260 | AK4: 121 | AL4: Интрадей | AM4: =IF(C4=0,"",IF(D4<Служебный!$P$3,"Раньше открытия",IF(D4>Служебный!$P$6,"Позже закрытия",IF(D4<Служебный!$P$4,Служебный!$N$4,IF(D4<Служебный!$P$5,Служебный!$N$5,Служебный!$N$6))))) -> 11:00 - 13:00 (обед) | AP4: 2015 | AQ4: Февраль | AR4: 9 | AT4: =IF(U4="","",AT3+T4) ->  | AV4: =IF(U4="","",IFERROR(100*(U4-U3-T4)/(U3+T4),"Заполните депозит")) ->  | AW4: =IF(OR(C3=0,C4=0),"",IF(C4=C3,"",AB4)) -> -1.44 | AX4: =IF(OR(C3=0,C4=0),"",IF(C4=C5,"",AD4)) ->  | AZ4: =IF(C4=0,"",IF(AX4="",AZ3,IF(SUMIF(C:C,C4,Z:Z)<0,IF(AZ3<0,AZ3-1,-1),IF(AZ3>0,AZ3+1,1)))) ->  | BA4: =IF(OR(C3=0,C4=0),"",IF(C4=C3,"",COUNTIF(C:C,C4))) -> 1 | BB4: =IF(OR(C3=0,C4=0),"",IF(C4=C3,"",COUNTIFS(C:C,C4,Y:Y,">0"))) -> 0 | BC4: =IF(OR(C3=0,C4=0),"",IF(C4=C3,"",COUNTIFS(C:C,C4,Y:Y,"<0"))) -> 0 | BD4: =IF(OR(C3=0,C4=0),"",IF(C4=C3,"",COUNTIFS(C:C,C4,Y:Y,"=0"))) -> 0 | BE4: =IF(BA4="","",SUMIFS($K$2:$K$77777,$C$2:$C$77777,$C4)) -> 200 | BF4: 80
V5: =IF(C5=0,"",K5/Служебный!$N$17*Служебный!$O$17*2) ->  | AE5: =IF(C5=0,"",VLOOKUP(WEEKDAY(C5,2),Служебный!K$4:L$10,2)) ->  | AG5: =IF(C5=0,"",VLOOKUP(G5,Служебный!B:G,6,)) ->  | AH5: =IF(C5=0,"",VLOOKUP(G5,Служебный!B:G,3,FALSE)) ->  | AI5: =IF(C5=0,"",VLOOKUP(G5,Служебный!B:G,4,FALSE)) ->  | AM5: =IF(C5=0,"",IF(D5<Служебный!$P$3,"Раньше открытия",IF(D5>Служебный!$P$6,"Позже закрытия",IF(D5<Служебный!$P$4,Служебный!$N$4,IF(D5<Служебный!$P$5,Служебный!$N$5,Служебный!$N$6))))) ->  | AZ5: =IF(C5=0,"",IF(AX5="",AZ4,IF(SUMIF(C:C,C5,Z:Z)<0,IF(AZ4<0,AZ4-1,-1),IF(AZ4>0,AZ4+1,1)))) ->  | BA5: =IF(OR(C4=0,C5=0),"",IF(C5=C4,"",COUNTIF(C:C,C5))) ->  | BB5: =IF(OR(C4=0,C5=0),"",IF(C5=C4,"",COUNTIFS(C:C,C5,Y:Y,">0"))) ->  | BC5: =IF(OR(C4=0,C5=0),"",IF(C5=C4,"",COUNTIFS(C:C,C5,Y:Y,"<0"))) ->  | BD5: =IF(OR(C4=0,C5=0),"",IF(C5=C4,"",COUNTIFS(C:C,C5,Y:Y,"=0"))) ->  | BE5: =IF(BA5="","",SUMIFS($K$2:$K$77777,$C$2:$C$77777,$C5)) ->  | BF5: 80
V6: =IF(C6=0,"",K6/Служебный!$N$17*Служебный!$O$17*2) ->  | AE6: =IF(C6=0,"",VLOOKUP(WEEKDAY(C6,2),Служебный!K$4:L$10,2)) ->  | AG6: =IF(C6=0,"",VLOOKUP(G6,Служебный!B:G,6,)) ->  | AH6: =IF(C6=0,"",VLOOKUP(G6,Служебный!B:G,3,FALSE)) ->  | AI6: =IF(C6=0,"",VLOOKUP(G6,Служебный!B:G,4,FALSE)) ->  | AM6: =IF(C6=0,"",IF(D6<Служебный!$P$3,"Раньше открытия",IF(D6>Служебный!$P$6,"Позже закрытия",IF(D6<Служебный!$P$4,Служебный!$N$4,IF(D6<Служебный!$P$5,Служебный!$N$5,Служебный!$N$6))))) ->  | AZ6: =IF(C6=0,"",IF(AX6="",AZ5,IF(SUMIF(C:C,C6,Z:Z)<0,IF(AZ5<0,AZ5-1,-1),IF(AZ5>0,AZ5+1,1)))) ->  | BA6: =IF(OR(C5=0,C6=0),"",IF(C6=C5,"",COUNTIF(C:C,C6))) ->  | BB6: =IF(OR(C5=0,C6=0),"",IF(C6=C5,"",COUNTIFS(C:C,C6,Y:Y,">0"))) ->  | BC6: =IF(OR(C5=0,C6=0),"",IF(C6=C5,"",COUNTIFS(C:C,C6,Y:Y,"<0"))) ->  | BD6: =IF(OR(C5=0,C6=0),"",IF(C6=C5,"",COUNTIFS(C:C,C6,Y:Y,"=0"))) ->  | BE6: =IF(BA6="","",SUMIFS($K$2:$K$77777,$C$2:$C$77777,$C6)) ->  | BF6: 80
V7: =IF(C7=0,"",K7/Служебный!$N$17*Служебный!$O$17*2) ->  | AE7: =IF(C7=0,"",VLOOKUP(WEEKDAY(C7,2),Служебный!K$4:L$10,2)) ->  | AG7: =IF(C7=0,"",VLOOKUP(G7,Служебный!B:G,6,)) ->  | AH7: =IF(C7=0,"",VLOOKUP(G7,Служебный!B:G,3,FALSE)) ->  | AI7: =IF(C7=0,"",VLOOKUP(G7,Служебный!B:G,4,FALSE)) ->  | AM7: =IF(C7=0,"",IF(D7<Служебный!$P$3,"Раньше открытия",IF(D7>Служебный!$P$6,"Позже закрытия",IF(D7<Служебный!$P$4,Служебный!$N$4,IF(D7<Служебный!$P$5,Служебный!$N$5,Служебный!$N$6))))) ->  | AZ7: =IF(C7=0,"",IF(AX7="",AZ6,IF(SUMIF(C:C,C7,Z:Z)<0,IF(AZ6<0,AZ6-1,-1),IF(AZ6>0,AZ6+1,1)))) ->  | BA7: =IF(OR(C6=0,C7=0),"",IF(C7=C6,"",COUNTIF(C:C,C7))) ->  | BB7: =IF(OR(C6=0,C7=0),"",IF(C7=C6,"",COUNTIFS(C:C,C7,Y:Y,">0"))) ->  | BC7: =IF(OR(C6=0,C7=0),"",IF(C7=C6,"",COUNTIFS(C:C,C7,Y:Y,"<0"))) ->  | BD7: =IF(OR(C6=0,C7=0),"",IF(C7=C6,"",COUNTIFS(C:C,C7,Y:Y,"=0"))) ->  | BE7: =IF(BA7="","",SUMIFS($K$2:$K$77777,$C$2:$C$77777,$C7)) ->  | BF7: 80
V8: =IF(C8=0,"",K8/Служебный!$N$17*Служебный!$O$17*2) ->  | AE8: =IF(C8=0,"",VLOOKUP(WEEKDAY(C8,2),Служебный!K$4:L$10,2)) ->  | AG8: =IF(C8=0,"",VLOOKUP(G8,Служебный!B:G,6,)) ->  | AH8: =IF(C8=0,"",VLOOKUP(G8,Служебный!B:G,3,FALSE)) ->  | AI8: =IF(C8=0,"",VLOOKUP(G8,Служебный!B:G,4,FALSE)) ->  | AM8: =IF(C8=0,"",IF(D8<Служебный!$P$3,"Раньше открытия",IF(D8>Служебный!$P$6,"Позже закрытия",IF(D8<Служебный!$P$4,Служебный!$N$4,IF(D8<Служебный!$P$5,Служебный!$N$5,Служебный!$N$6))))) ->  | AZ8: =IF(C8=0,"",IF(AX8="",AZ7,IF(SUMIF(C:C,C8,Z:Z)<0,IF(AZ7<0,AZ7-1,-1),IF(AZ7>0,AZ7+1,1)))) ->  | BA8: =IF(OR(C7=0,C8=0),"",IF(C8=C7,"",COUNTIF(C:C,C8))) ->  | BB8: =IF(OR(C7=0,C8=0),"",IF(C8=C7,"",COUNTIFS(C:C,C8,Y:Y,">0"))) ->  | BC8: =IF(OR(C7=0,C8=0),"",IF(C8=C7,"",COUNTIFS(C:C,C8,Y:Y,"<0"))) ->  | BD8: =IF(OR(C7=0,C8=0),"",IF(C8=C7,"",COUNTIFS(C:C,C8,Y:Y,"=0"))) ->  | BE8: =IF(BA8="","",SUMIFS($K$2:$K$77777,$C$2:$C$77777,$C8)) ->  | BF8: 80
V9: =IF(C9=0,"",K9/Служебный!$N$17*Служебный!$O$17*2) ->  | AE9: =IF(C9=0,"",VLOOKUP(WEEKDAY(C9,2),Служебный!K$4:L$10,2)) ->  | AG9: =IF(C9=0,"",VLOOKUP(G9,Служебный!B:G,6,)) ->  | AH9: =IF(C9=0,"",VLOOKUP(G9,Служебный!B:G,3,FALSE)) ->  | AI9: =IF(C9=0,"",VLOOKUP(G9,Служебный!B:G,4,FALSE)) ->  | AM9: =IF(C9=0,"",IF(D9<Служебный!$P$3,"Раньше открытия",IF(D9>Служебный!$P$6,"Позже закрытия",IF(D9<Служебный!$P$4,Служебный!$N$4,IF(D9<Служебный!$P$5,Служебный!$N$5,Служебный!$N$6))))) ->  | AU9: =IF(OR(U9="",AT9=""),"",IFERROR(100*(U9-AT9)/AT9,"Заполните депозит")) ->  | AV9: =IF(U9="","",IFERROR(100*(U9-U8-T9)/(U8+T9),"Заполните депозит")) ->  | AZ9: =IF(C9=0,"",IF(AX9="",AZ8,IF(SUMIF(C:C,C9,Z:Z)<0,IF(AZ8<0,AZ8-1,-1),IF(AZ8>0,AZ8+1,1)))) ->  | BA9: =IF(OR(C8=0,C9=0),"",IF(C9=C8,"",COUNTIF(C:C,C9))) ->  | BB9: =IF(OR(C8=0,C9=0),"",IF(C9=C8,"",COUNTIFS(C:C,C9,Y:Y,">0"))) ->  | BC9: =IF(OR(C8=0,C9=0),"",IF(C9=C8,"",COUNTIFS(C:C,C9,Y:Y,"<0"))) ->  | BD9: =IF(OR(C8=0,C9=0),"",IF(C9=C8,"",COUNTIFS(C:C,C9,Y:Y,"=0"))) ->  | BE9: =IF(BA9="","",SUMIFS($K$2:$K$77777,$C$2:$C$77777,$C9)) ->  | BF9: 80
V10: =IF(C10=0,"",K10/Служебный!$N$17*Служебный!$O$17*2) ->  | AE10: =IF(C10=0,"",VLOOKUP(WEEKDAY(C10,2),Служебный!K$4:L$10,2)) ->  | AG10: =IF(C10=0,"",VLOOKUP(G10,Служебный!B:G,6,)) ->  | AH10: =IF(C10=0,"",VLOOKUP(G10,Служебный!B:G,3,FALSE)) ->  | AI10: =IF(C10=0,"",VLOOKUP(G10,Служебный!B:G,4,FALSE)) ->  | AM10: =IF(C10=0,"",IF(D10<Служебный!$P$3,"Раньше открытия",IF(D10>Служебный!$P$6,"Позже закрытия",IF(D10<Служебный!$P$4,Служебный!$N$4,IF(D10<Служебный!$P$5,Служебный!$N$5,Служебный!$N$6))))) ->  | AZ10: =IF(C10=0,"",IF(AX10="",AZ9,IF(SUMIF(C:C,C10,Z:Z)<0,IF(AZ9<0,AZ9-1,-1),IF(AZ9>0,AZ9+1,1)))) ->  | BA10: =IF(OR(C9=0,C10=0),"",IF(C10=C9,"",COUNTIF(C:C,C10))) ->  | BB10: =IF(OR(C9=0,C10=0),"",IF(C10=C9,"",COUNTIFS(C:C,C10,Y:Y,">0"))) ->  | BC10: =IF(OR(C9=0,C10=0),"",IF(C10=C9,"",COUNTIFS(C:C,C10,Y:Y,"<0"))) ->  | BD10: =IF(OR(C9=0,C10=0),"",IF(C10=C9,"",COUNTIFS(C:C,C10,Y:Y,"=0"))) ->  | BE10: =IF(BA10="","",SUMIFS($K$2:$K$77777,$C$2:$C$77777,$C10)) ->  | BF10: 80
V11: =IF(C11=0,"",K11/Служебный!$N$17*Служебный!$O$17*2) ->  | AE11: =IF(C11=0,"",VLOOKUP(WEEKDAY(C11,2),Служебный!K$4:L$10,2)) ->  | AG11: =IF(C11=0,"",VLOOKUP(G11,Служебный!B:G,6,)) ->  | AH11: =IF(C11=0,"",VLOOKUP(G11,Служебный!B:G,3,FALSE)) ->  | AI11: =IF(C11=0,"",VLOOKUP(G11,Служебный!B:G,4,FALSE)) ->  | AM11: =IF(C11=0,"",IF(D11<Служебный!$P$3,"Раньше открытия",IF(D11>Служебный!$P$6,"Позже закрытия",IF(D11<Служебный!$P$4,Служебный!$N$4,IF(D11<Служебный!$P$5,Служебный!$N$5,Служебный!$N$6))))) ->  | AZ11: =IF(C11=0,"",IF(AX11="",AZ10,IF(SUMIF(C:C,C11,Z:Z)<0,IF(AZ10<0,AZ10-1,-1),IF(AZ10>0,AZ10+1,1)))) ->  | BA11: =IF(OR(C10=0,C11=0),"",IF(C11=C10,"",COUNTIF(C:C,C11))) ->  | BB11: =IF(OR(C10=0,C11=0),"",IF(C11=C10,"",COUNTIFS(C:C,C11,Y:Y,">0"))) ->  | BC11: =IF(OR(C10=0,C11=0),"",IF(C11=C10,"",COUNTIFS(C:C,C11,Y:Y,"<0"))) ->  | BD11: =IF(OR(C10=0,C11=0),"",IF(C11=C10,"",COUNTIFS(C:C,C11,Y:Y,"=0"))) ->  | BE11: =IF(BA11="","",SUMIFS($K$2:$K$77777,$C$2:$C$77777,$C11)) ->  | BF11: 80
V12: =IF(C12=0,"",K12/Служебный!$N$17*Служебный!$O$17*2) ->  | AE12: =IF(C12=0,"",VLOOKUP(WEEKDAY(C12,2),Служебный!K$4:L$10,2)) ->  | AG12: =IF(C12=0,"",VLOOKUP(G12,Служебный!B:G,6,)) ->  | AH12: =IF(C12=0,"",VLOOKUP(G12,Служебный!B:G,3,FALSE)) ->  | AI12: =IF(C12=0,"",VLOOKUP(G12,Служебный!B:G,4,FALSE)) ->  | AM12: =IF(C12=0,"",IF(D12<Служебный!$P$3,"Раньше открытия",IF(D12>Служебный!$P$6,"Позже закрытия",IF(D12<Служебный!$P$4,Служебный!$N$4,IF(D12<Служебный!$P$5,Служебный!$N$5,Служебный!$N$6))))) ->  | AZ12: =IF(C12=0,"",IF(AX12="",AZ11,IF(SUMIF(C:C,C12,Z:Z)<0,IF(AZ11<0,AZ11-1,-1),IF(AZ11>0,AZ11+1,1)))) ->  | BA12: =IF(OR(C11=0,C12=0),"",IF(C12=C11,"",COUNTIF(C:C,C12))) ->  | BB12: =IF(OR(C11=0,C12=0),"",IF(C12=C11,"",COUNTIFS(C:C,C12,Y:Y,">0"))) ->  | BC12: =IF(OR(C11=0,C12=0),"",IF(C12=C11,"",COUNTIFS(C:C,C12,Y:Y,"<0"))) ->  | BD12: =IF(OR(C11=0,C12=0),"",IF(C12=C11,"",COUNTIFS(C:C,C12,Y:Y,"=0"))) ->  | BE12: =IF(BA12="","",SUMIFS($K$2:$K$77777,$C$2:$C$77777,$C12)) ->  | BF12: 80
V13: =IF(C13=0,"",K13/Служебный!$N$17*Служебный!$O$17*2) ->  | AE13: =IF(C13=0,"",VLOOKUP(WEEKDAY(C13,2),Служебный!K$4:L$10,2)) ->  | AG13: =IF(C13=0,"",VLOOKUP(G13,Служебный!B:G,6,)) ->  | AH13: =IF(C13=0,"",VLOOKUP(G13,Служебный!B:G,3,FALSE)) ->  | AI13: =IF(C13=0,"",VLOOKUP(G13,Служебный!B:G,4,FALSE)) ->  | AM13: =IF(C13=0,"",IF(D13<Служебный!$P$3,"Раньше открытия",IF(D13>Служебный!$P$6,"Позже закрытия",IF(D13<Служебный!$P$4,Служебный!$N$4,IF(D13<Служебный!$P$5,Служебный!$N$5,Служебный!$N$6))))) ->  | AZ13: =IF(C13=0,"",IF(AX13="",AZ12,IF(SUMIF(C:C,C13,Z:Z)<0,IF(AZ12<0,AZ12-1,-1),IF(AZ12>0,AZ12+1,1)))) ->  | BA13: =IF(OR(C12=0,C13=0),"",IF(C13=C12,"",COUNTIF(C:C,C13))) ->  | BB13: =IF(OR(C12=0,C13=0),"",IF(C13=C12,"",COUNTIFS(C:C,C13,Y:Y,">0"))) ->  | BC13: =IF(OR(C12=0,C13=0),"",IF(C13=C12,"",COUNTIFS(C:C,C13,Y:Y,"<0"))) ->  | BD13: =IF(OR(C12=0,C13=0),"",IF(C13=C12,"",COUNTIFS(C:C,C13,Y:Y,"=0"))) ->  | BE13: =IF(BA13="","",SUMIFS($K$2:$K$77777,$C$2:$C$77777,$C13)) ->  | BF13: 80
V14: =IF(C14=0,"",K14/Служебный!$N$17*Служебный!$O$17*2) ->  | AE14: =IF(C14=0,"",VLOOKUP(WEEKDAY(C14,2),Служебный!K$4:L$10,2)) ->  | AG14: =IF(C14=0,"",VLOOKUP(G14,Служебный!B:G,6,)) ->  | AH14: =IF(C14=0,"",VLOOKUP(G14,Служебный!B:G,3,FALSE)) ->  | AI14: =IF(C14=0,"",VLOOKUP(G14,Служебный!B:G,4,FALSE)) ->  | AM14: =IF(C14=0,"",IF(D14<Служебный!$P$3,"Раньше открытия",IF(D14>Служебный!$P$6,"Позже закрытия",IF(D14<Служебный!$P$4,Служебный!$N$4,IF(D14<Служебный!$P$5,Служебный!$N$5,Служебный!$N$6))))) ->  | AZ14: =IF(C14=0,"",IF(AX14="",AZ13,IF(SUMIF(C:C,C14,Z:Z)<0,IF(AZ13<0,AZ13-1,-1),IF(AZ13>0,AZ13+1,1)))) ->  | BA14: =IF(OR(C13=0,C14=0),"",IF(C14=C13,"",COUNTIF(C:C,C14))) ->  | BB14: =IF(OR(C13=0,C14=0),"",IF(C14=C13,"",COUNTIFS(C:C,C14,Y:Y,">0"))) ->  | BC14: =IF(OR(C13=0,C14=0),"",IF(C14=C13,"",COUNTIFS(C:C,C14,Y:Y,"<0"))) ->  | BD14: =IF(OR(C13=0,C14=0),"",IF(C14=C13,"",COUNTIFS(C:C,C14,Y:Y,"=0"))) ->  | BE14: =IF(BA14="","",SUMIFS($K$2:$K$77777,$C$2:$C$77777,$C14)) ->  | BF14: 80
V15: =IF(C15=0,"",K15/Служебный!$N$17*Служебный!$O$17*2) ->  | AE15: =IF(C15=0,"",VLOOKUP(WEEKDAY(C15,2),Служебный!K$4:L$10,2)) ->  | AG15: =IF(C15=0,"",VLOOKUP(G15,Служебный!B:G,6,)) ->  | AH15: =IF(C15=0,"",VLOOKUP(G15,Служебный!B:G,3,FALSE)) ->  | AI15: =IF(C15=0,"",VLOOKUP(G15,Служебный!B:G,4,FALSE)) ->  | AM15: =IF(C15=0,"",IF(D15<Служебный!$P$3,"Раньше открытия",IF(D15>Служебный!$P$6,"Позже закрытия",IF(D15<Служебный!$P$4,Служебный!$N$4,IF(D15<Служебный!$P$5,Служебный!$N$5,Служебный!$N$6))))) ->  | AZ15: =IF(C15=0,"",IF(AX15="",AZ14,IF(SUMIF(C:C,C15,Z:Z)<0,IF(AZ14<0,AZ14-1,-1),IF(AZ14>0,AZ14+1,1)))) ->  | BA15: =IF(OR(C14=0,C15=0),"",IF(C15=C14,"",COUNTIF(C:C,C15))) ->  | BB15: =IF(OR(C14=0,C15=0),"",IF(C15=C14,"",COUNTIFS(C:C,C15,Y:Y,">0"))) ->  | BC15: =IF(OR(C14=0,C15=0),"",IF(C15=C14,"",COUNTIFS(C:C,C15,Y:Y,"<0"))) ->  | BD15: =IF(OR(C14=0,C15=0),"",IF(C15=C14,"",COUNTIFS(C:C,C15,Y:Y,"=0"))) ->  | BE15: =IF(BA15="","",SUMIFS($K$2:$K$77777,$C$2:$C$77777,$C15)) ->  | BF15: 80
U16: =IF(Z16="","",Z16+T16+U15) ->  | V16: =IF(C16=0,"",K16/Служебный!$N$17*Служебный!$O$17*2) ->  | W16: =IF(C16=0,"",(I16*K16)) ->  | X16: =IF(C16=0,"",(J16*K16)) ->  | Z16: =IF(C16=0,"",Y16-V16) ->  | AA16: =IF(C16=0,"",AA15+Y15) ->  | AB16: =IF(C16=0,"",AB15+Z15) ->  | AC16: =IF(C16=0,"",AA16+Y16) ->  | AD16: =IF(C16=0,"",AB16+Z16) ->  | AE16: =IF(C16=0,"",VLOOKUP(WEEKDAY(C16,2),Служебный!K$4:L$10,2)) ->  | AG16: =IF(C16=0,"",VLOOKUP(G16,Служебный!B:G,6,)) ->  | AH16: =IF(C16=0,"",VLOOKUP(G16,Служебный!B:G,3,FALSE)) ->  | AI16: =IF(C16=0,"",VLOOKUP(G16,Служебный!B:G,4,FALSE)) ->  | AM16: =IF(C16=0,"",IF(D16<Служебный!$P$3,"Раньше открытия",IF(D16>Служебный!$P$6,"Позже закрытия",IF(D16<Служебный!$P$4,Служебный!$N$4,IF(D16<Служебный!$P$5,Служебный!$N$5,Служебный!$N$6))))) ->  | AZ16: =IF(C16=0,"",IF(AX16="",AZ15,IF(SUMIF(C:C,C16,Z:Z)<0,IF(AZ15<0,AZ15-1,-1),IF(AZ15>0,AZ15+1,1)))) ->  | BA16: =IF(OR(C15=0,C16=0),"",IF(C16=C15,"",COUNTIF(C:C,C16))) ->  | BB16: =IF(OR(C15=0,C16=0),"",IF(C16=C15,"",COUNTIFS(C:C,C16,Y:Y,">0"))) ->  | BC16: =IF(OR(C15=0,C16=0),"",IF(C16=C15,"",COUNTIFS(C:C,C16,Y:Y,"<0"))) ->  | BD16: =IF(OR(C15=0,C16=0),"",IF(C16=C15,"",COUNTIFS(C:C,C16,Y:Y,"=0"))) ->  | BE16: =IF(BA16="","",SUMIFS($K$2:$K$77777,$C$2:$C$77777,$C16)) ->  | BF16: 80
V17: =IF(C17=0,"",K17/Служебный!$N$17*Служебный!$O$17*2) ->  | AE17: =IF(C17=0,"",VLOOKUP(WEEKDAY(C17,2),Служебный!K$4:L$10,2)) ->  | AG17: =IF(C17=0,"",VLOOKUP(G17,Служебный!B:G,6,)) ->  | AH17: =IF(C17=0,"",VLOOKUP(G17,Служебный!B:G,3,FALSE)) ->  | AI17: =IF(C17=0,"",VLOOKUP(G17,Служебный!B:G,4,FALSE)) ->  | AM17: =IF(C17=0,"",IF(D17<Служебный!$P$3,"Раньше открытия",IF(D17>Служебный!$P$6,"Позже закрытия",IF(D17<Служебный!$P$4,Служебный!$N$4,IF(D17<Служебный!$P$5,Служебный!$N$5,Служебный!$N$6))))) ->  | AZ17: =IF(C17=0,"",IF(AX17="",AZ16,IF(SUMIF(C:C,C17,Z:Z)<0,IF(AZ16<0,AZ16-1,-1),IF(AZ16>0,AZ16+1,1)))) ->  | BA17: =IF(OR(C16=0,C17=0),"",IF(C17=C16,"",COUNTIF(C:C,C17))) ->  | BB17: =IF(OR(C16=0,C17=0),"",IF(C17=C16,"",COUNTIFS(C:C,C17,Y:Y,">0"))) ->  | BC17: =IF(OR(C16=0,C17=0),"",IF(C17=C16,"",COUNTIFS(C:C,C17,Y:Y,"<0"))) ->  | BD17: =IF(OR(C16=0,C17=0),"",IF(C17=C16,"",COUNTIFS(C:C,C17,Y:Y,"=0"))) ->  | BE17: =IF(BA17="","",SUMIFS($K$2:$K$77777,$C$2:$C$77777,$C17)) ->  | BF17: 80
V18: =IF(C18=0,"",K18/Служебный!$N$17*Служебный!$O$17*2) ->  | AE18: =IF(C18=0,"",VLOOKUP(WEEKDAY(C18,2),Служебный!K$4:L$10,2)) ->  | AF18: =IF(C18=0,"",TEXT((HOUR(D18)),0)&"-"&TEXT(HOUR(D18)+1,0)) ->  | AG18: =IF(C18=0,"",VLOOKUP(G18,Служебный!B:G,6,)) ->  | AH18: =IF(C18=0,"",VLOOKUP(G18,Служебный!B:G,3,FALSE)) ->  | AI18: =IF(C18=0,"",VLOOKUP(G18,Служебный!B:G,4,FALSE)) ->  | AJ18: =IF(OR(C18=0,D18=0,E18=0,F18=0),"",ROUND(((E18+F18)-(C18+D18))*86400,0)) ->  | AL18: =IF(OR(E18=0,C18=0),"",IF(E18=C18,"Интрадей",NETWORKDAYS(C18,E18))) ->  | AM18: =IF(C18=0,"",IF(D18<Служебный!$P$3,"Раньше открытия",IF(D18>Служебный!$P$6,"Позже закрытия",IF(D18<Служебный!$P$4,Служебный!$N$4,IF(D18<Служебный!$P$5,Служебный!$N$5,Служебный!$N$6))))) ->  | AN18: =IF(Z18<=0,"",Z18) ->  | AO18: =IF(Z18>=0,"",Z18) ->  | AP18: =IF(C18=0,"",YEAR(C18)) ->  | AQ18: =IF(C18=0,"",TEXT(C18,"ММММ")) ->  | AR18: =IF(C18=0,"",WEEKNUM(C18)) ->  | AS18: =IF(AX18="","",U18) ->  | AY18: =IF(I18="","",CEILING(I18,5)) ->  | AZ18: =IF(C18=0,"",IF(AX18="",AZ17,IF(SUMIF(C:C,C18,Z:Z)<0,IF(AZ17<0,AZ17-1,-1),IF(AZ17>0,AZ17+1,1)))) ->  | BA18: =IF(OR(C17=0,C18=0),"",IF(C18=C17,"",COUNTIF(C:C,C18))) ->  | BB18: =IF(OR(C17=0,C18=0),"",IF(C18=C17,"",COUNTIFS(C:C,C18,Y:Y,">0"))) ->  | BC18: =IF(OR(C17=0,C18=0),"",IF(C18=C17,"",COUNTIFS(C:C,C18,Y:Y,"<0"))) ->  | BD18: =IF(OR(C17=0,C18=0),"",IF(C18=C17,"",COUNTIFS(C:C,C18,Y:Y,"=0"))) ->  | BE18: =IF(BA18="","",SUMIFS($K$2:$K$77777,$C$2:$C$77777,$C18)) ->  | BF18: 80
V19: =IF(C19=0,"",K19/Служебный!$N$17*Служебный!$O$17*2) ->  | AE19: =IF(C19=0,"",VLOOKUP(WEEKDAY(C19,2),Служебный!K$4:L$10,2)) ->  | AF19: =IF(C19=0,"",TEXT((HOUR(D19)),0)&"-"&TEXT(HOUR(D19)+1,0)) ->  | AG19: =IF(C19=0,"",VLOOKUP(G19,Служебный!B:G,6,)) ->  | AH19: =IF(C19=0,"",VLOOKUP(G19,Служебный!B:G,3,FALSE)) ->  | AI19: =IF(C19=0,"",VLOOKUP(G19,Служебный!B:G,4,FALSE)) ->  | AJ19: =IF(OR(C19=0,D19=0,E19=0,F19=0),"",ROUND(((E19+F19)-(C19+D19))*86400,0)) ->  | AL19: =IF(OR(E19=0,C19=0),"",IF(E19=C19,"Интрадей",NETWORKDAYS(C19,E19))) ->  | AM19: =IF(C19=0,"",IF(D19<Служебный!$P$3,"Раньше открытия",IF(D19>Служебный!$P$6,"Позже закрытия",IF(D19<Служебный!$P$4,Служебный!$N$4,IF(D19<Служебный!$P$5,Служебный!$N$5,Служебный!$N$6))))) ->  | AN19: =IF(Z19<=0,"",Z19) ->  | AO19: =IF(Z19>=0,"",Z19) ->  | AP19: =IF(C19=0,"",YEAR(C19)) ->  | AQ19: =IF(C19=0,"",TEXT(C19,"ММММ")) ->  | AR19: =IF(C19=0,"",WEEKNUM(C19)) ->  | AS19: =IF(AX19="","",U19) ->  | AY19: =IF(I19="","",CEILING(I19,5)) ->  | AZ19: =IF(C19=0,"",IF(AX19="",AZ18,IF(SUMIF(C:C,C19,Z:Z)<0,IF(AZ18<0,AZ18-1,-1),IF(AZ18>0,AZ18+1,1)))) ->  | BA19: =IF(OR(C18=0,C19=0),"",IF(C19=C18,"",COUNTIF(C:C,C19))) ->  | BB19: =IF(OR(C18=0,C19=0),"",IF(C19=C18,"",COUNTIFS(C:C,C19,Y:Y,">0"))) ->  | BC19: =IF(OR(C18=0,C19=0),"",IF(C19=C18,"",COUNTIFS(C:C,C19,Y:Y,"<0"))) ->  | BD19: =IF(OR(C18=0,C19=0),"",IF(C19=C18,"",COUNTIFS(C:C,C19,Y:Y,"=0"))) ->  | BE19: =IF(BA19="","",SUMIFS($K$2:$K$77777,$C$2:$C$77777,$C19)) ->  | BF19: 80
V20: =IF(C20=0,"",K20/Служебный!$N$17*Служебный!$O$17*2) ->  | AE20: =IF(C20=0,"",VLOOKUP(WEEKDAY(C20,2),Служебный!K$4:L$10,2)) ->  | AG20: =IF(C20=0,"",VLOOKUP(G20,Служебный!B:G,6,)) ->  | AH20: =IF(C20=0,"",VLOOKUP(G20,Служебный!B:G,3,FALSE)) ->  | AI20: =IF(C20=0,"",VLOOKUP(G20,Служебный!B:G,4,FALSE)) ->  | AM20: =IF(C20=0,"",IF(D20<Служебный!$P$3,"Раньше открытия",IF(D20>Служебный!$P$6,"Позже закрытия",IF(D20<Служебный!$P$4,Служебный!$N$4,IF(D20<Служебный!$P$5,Служебный!$N$5,Служебный!$N$6))))) ->  | AZ20: =IF(C20=0,"",IF(AX20="",AZ19,IF(SUMIF(C:C,C20,Z:Z)<0,IF(AZ19<0,AZ19-1,-1),IF(AZ19>0,AZ19+1,1)))) ->  | BA20: =IF(OR(C19=0,C20=0),"",IF(C20=C19,"",COUNTIF(C:C,C20))) ->  | BB20: =IF(OR(C19=0,C20=0),"",IF(C20=C19,"",COUNTIFS(C:C,C20,Y:Y,">0"))) ->  | BC20: =IF(OR(C19=0,C20=0),"",IF(C20=C19,"",COUNTIFS(C:C,C20,Y:Y,"<0"))) ->  | BD20: =IF(OR(C19=0,C20=0),"",IF(C20=C19,"",COUNTIFS(C:C,C20,Y:Y,"=0"))) ->  | BE20: =IF(BA20="","",SUMIFS($K$2:$K$77777,$C$2:$C$77777,$C20)) ->  | BF20: 80
U21: =IF(Z21="","",Z21+T21+U20) ->  | V21: =IF(C21=0,"",K21/Служебный!$N$17*Служебный!$O$17*2) ->  | AE21: =IF(C21=0,"",VLOOKUP(WEEKDAY(C21,2),Служебный!K$4:L$10,2)) ->  | AG21: =IF(C21=0,"",VLOOKUP(G21,Служебный!B:G,6,)) ->  | AH21: =IF(C21=0,"",VLOOKUP(G21,Служебный!B:G,3,FALSE)) ->  | AI21: =IF(C21=0,"",VLOOKUP(G21,Служебный!B:G,4,FALSE)) ->  | AM21: =IF(C21=0,"",IF(D21<Служебный!$P$3,"Раньше открытия",IF(D21>Служебный!$P$6,"Позже закрытия",IF(D21<Служебный!$P$4,Служебный!$N$4,IF(D21<Служебный!$P$5,Служебный!$N$5,Служебный!$N$6))))) ->  | AZ21: =IF(C21=0,"",IF(AX21="",AZ20,IF(SUMIF(C:C,C21,Z:Z)<0,IF(AZ20<0,AZ20-1,-1),IF(AZ20>0,AZ20+1,1)))) ->  | BA21: =IF(OR(C20=0,C21=0),"",IF(C21=C20,"",COUNTIF(C:C,C21))) ->  | BB21: =IF(OR(C20=0,C21=0),"",IF(C21=C20,"",COUNTIFS(C:C,C21,Y:Y,">0"))) ->  | BC21: =IF(OR(C20=0,C21=0),"",IF(C21=C20,"",COUNTIFS(C:C,C21,Y:Y,"<0"))) ->  | BD21: =IF(OR(C20=0,C21=0),"",IF(C21=C20,"",COUNTIFS(C:C,C21,Y:Y,"=0"))) ->  | BE21: =IF(BA21="","",SUMIFS($K$2:$K$77777,$C$2:$C$77777,$C21)) ->  | BF21: 80
V22: =IF(C22=0,"",K22/Служебный!$N$17*Служебный!$O$17*2) ->  | AE22: =IF(C22=0,"",VLOOKUP(WEEKDAY(C22,2),Служебный!K$4:L$10,2)) ->  | AG22: =IF(C22=0,"",VLOOKUP(G22,Служебный!B:G,6,)) ->  | AH22: =IF(C22=0,"",VLOOKUP(G22,Служебный!B:G,3,FALSE)) ->  | AI22: =IF(C22=0,"",VLOOKUP(G22,Служебный!B:G,4,FALSE)) ->  | AM22: =IF(C22=0,"",IF(D22<Служебный!$P$3,"Раньше открытия",IF(D22>Служебный!$P$6,"Позже закрытия",IF(D22<Служебный!$P$4,Служебный!$N$4,IF(D22<Служебный!$P$5,Служебный!$N$5,Служебный!$N$6))))) ->  | AZ22: =IF(C22=0,"",IF(AX22="",AZ21,IF(SUMIF(C:C,C22,Z:Z)<0,IF(AZ21<0,AZ21-1,-1),IF(AZ21>0,AZ21+1,1)))) ->  | BA22: =IF(OR(C21=0,C22=0),"",IF(C22=C21,"",COUNTIF(C:C,C22))) ->  | BB22: =IF(OR(C21=0,C22=0),"",IF(C22=C21,"",COUNTIFS(C:C,C22,Y:Y,">0"))) ->  | BC22: =IF(OR(C21=0,C22=0),"",IF(C22=C21,"",COUNTIFS(C:C,C22,Y:Y,"<0"))) ->  | BD22: =IF(OR(C21=0,C22=0),"",IF(C22=C21,"",COUNTIFS(C:C,C22,Y:Y,"=0"))) ->  | BE22: =IF(BA22="","",SUMIFS($K$2:$K$77777,$C$2:$C$77777,$C22)) ->  | BF22: 80
V23: =IF(C23=0,"",K23/Служебный!$N$17*Служебный!$O$17*2) ->  | AE23: =IF(C23=0,"",VLOOKUP(WEEKDAY(C23,2),Служебный!K$4:L$10,2)) ->  | AG23: =IF(C23=0,"",VLOOKUP(G23,Служебный!B:G,6,)) ->  | AH23: =IF(C23=0,"",VLOOKUP(G23,Служебный!B:G,3,FALSE)) ->  | AI23: =IF(C23=0,"",VLOOKUP(G23,Служебный!B:G,4,FALSE)) ->  | AM23: =IF(C23=0,"",IF(D23<Служебный!$P$3,"Раньше открытия",IF(D23>Служебный!$P$6,"Позже закрытия",IF(D23<Служебный!$P$4,Служебный!$N$4,IF(D23<Служебный!$P$5,Служебный!$N$5,Служебный!$N$6))))) ->  | AT23: =IF(U23="","",AT22+T23) ->  | AZ23: =IF(C23=0,"",IF(AX23="",AZ22,IF(SUMIF(C:C,C23,Z:Z)<0,IF(AZ22<0,AZ22-1,-1),IF(AZ22>0,AZ22+1,1)))) ->  | BA23: =IF(OR(C22=0,C23=0),"",IF(C23=C22,"",COUNTIF(C:C,C23))) ->  | BB23: =IF(OR(C22=0,C23=0),"",IF(C23=C22,"",COUNTIFS(C:C,C23,Y:Y,">0"))) ->  | BC23: =IF(OR(C22=0,C23=0),"",IF(C23=C22,"",COUNTIFS(C:C,C23,Y:Y,"<0"))) ->  | BD23: =IF(OR(C22=0,C23=0),"",IF(C23=C22,"",COUNTIFS(C:C,C23,Y:Y,"=0"))) ->  | BE23: =IF(BA23="","",SUMIFS($K$2:$K$77777,$C$2:$C$77777,$C23)) ->  | BF23: 80
V24: =IF(C24=0,"",K24/Служебный!$N$17*Служебный!$O$17*2) ->  | AE24: =IF(C24=0,"",VLOOKUP(WEEKDAY(C24,2),Служебный!K$4:L$10,2)) ->  | AG24: =IF(C24=0,"",VLOOKUP(G24,Служебный!B:G,6,)) ->  | AH24: =IF(C24=0,"",VLOOKUP(G24,Служебный!B:G,3,FALSE)) ->  | AI24: =IF(C24=0,"",VLOOKUP(G24,Служебный!B:G,4,FALSE)) ->  | AM24: =IF(C24=0,"",IF(D24<Служебный!$P$3,"Раньше открытия",IF(D24>Служебный!$P$6,"Позже закрытия",IF(D24<Служебный!$P$4,Служебный!$N$4,IF(D24<Служебный!$P$5,Служебный!$N$5,Служебный!$N$6))))) ->  | AZ24: =IF(C24=0,"",IF(AX24="",AZ23,IF(SUMIF(C:C,C24,Z:Z)<0,IF(AZ23<0,AZ23-1,-1),IF(AZ23>0,AZ23+1,1)))) ->  | BA24: =IF(OR(C23=0,C24=0),"",IF(C24=C23,"",COUNTIF(C:C,C24))) ->  | BB24: =IF(OR(C23=0,C24=0),"",IF(C24=C23,"",COUNTIFS(C:C,C24,Y:Y,">0"))) ->  | BC24: =IF(OR(C23=0,C24=0),"",IF(C24=C23,"",COUNTIFS(C:C,C24,Y:Y,"<0"))) ->  | BD24: =IF(OR(C23=0,C24=0),"",IF(C24=C23,"",COUNTIFS(C:C,C24,Y:Y,"=0"))) ->  | BE24: =IF(BA24="","",SUMIFS($K$2:$K$77777,$C$2:$C$77777,$C24)) ->  | BF24: 80
V25: =IF(C25=0,"",K25/Служебный!$N$17*Служебный!$O$17*2) ->  | AE25: =IF(C25=0,"",VLOOKUP(WEEKDAY(C25,2),Служебный!K$4:L$10,2)) ->  | AG25: =IF(C25=0,"",VLOOKUP(G25,Служебный!B:G,6,)) ->  | AH25: =IF(C25=0,"",VLOOKUP(G25,Служебный!B:G,3,FALSE)) ->  | AI25: =IF(C25=0,"",VLOOKUP(G25,Служебный!B:G,4,FALSE)) ->  | AM25: =IF(C25=0,"",IF(D25<Служебный!$P$3,"Раньше открытия",IF(D25>Служебный!$P$6,"Позже закрытия",IF(D25<Служебный!$P$4,Служебный!$N$4,IF(D25<Служебный!$P$5,Служебный!$N$5,Служебный!$N$6))))) ->  | AZ25: =IF(C25=0,"",IF(AX25="",AZ24,IF(SUMIF(C:C,C25,Z:Z)<0,IF(AZ24<0,AZ24-1,-1),IF(AZ24>0,AZ24+1,1)))) ->  | BA25: =IF(OR(C24=0,C25=0),"",IF(C25=C24,"",COUNTIF(C:C,C25))) ->  | BB25: =IF(OR(C24=0,C25=0),"",IF(C25=C24,"",COUNTIFS(C:C,C25,Y:Y,">0"))) ->  | BC25: =IF(OR(C24=0,C25=0),"",IF(C25=C24,"",COUNTIFS(C:C,C25,Y:Y,"<0"))) ->  | BD25: =IF(OR(C24=0,C25=0),"",IF(C25=C24,"",COUNTIFS(C:C,C25,Y:Y,"=0"))) ->  | BE25: =IF(BA25="","",SUMIFS($K$2:$K$77777,$C$2:$C$77777,$C25)) ->  | BF25: 80
V26: =IF(C26=0,"",K26/Служебный!$N$17*Служебный!$O$17*2) ->  | AE26: =IF(C26=0,"",VLOOKUP(WEEKDAY(C26,2),Служебный!K$4:L$10,2)) ->  | AG26: =IF(C26=0,"",VLOOKUP(G26,Служебный!B:G,6,)) ->  | AH26: =IF(C26=0,"",VLOOKUP(G26,Служебный!B:G,3,FALSE)) ->  | AI26: =IF(C26=0,"",VLOOKUP(G26,Служебный!B:G,4,FALSE)) ->  | AM26: =IF(C26=0,"",IF(D26<Служебный!$P$3,"Раньше открытия",IF(D26>Служебный!$P$6,"Позже закрытия",IF(D26<Служебный!$P$4,Служебный!$N$4,IF(D26<Служебный!$P$5,Служебный!$N$5,Служебный!$N$6))))) ->  | AZ26: =IF(C26=0,"",IF(AX26="",AZ25,IF(SUMIF(C:C,C26,Z:Z)<0,IF(AZ25<0,AZ25-1,-1),IF(AZ25>0,AZ25+1,1)))) ->  | BA26: =IF(OR(C25=0,C26=0),"",IF(C26=C25,"",COUNTIF(C:C,C26))) ->  | BB26: =IF(OR(C25=0,C26=0),"",IF(C26=C25,"",COUNTIFS(C:C,C26,Y:Y,">0"))) ->  | BC26: =IF(OR(C25=0,C26=0),"",IF(C26=C25,"",COUNTIFS(C:C,C26,Y:Y,"<0"))) ->  | BD26: =IF(OR(C25=0,C26=0),"",IF(C26=C25,"",COUNTIFS(C:C,C26,Y:Y,"=0"))) ->  | BE26: =IF(BA26="","",SUMIFS($K$2:$K$77777,$C$2:$C$77777,$C26)) ->  | BF26: 80
V27: =IF(C27=0,"",K27/Служебный!$N$17*Служебный!$O$17*2) ->  | AE27: =IF(C27=0,"",VLOOKUP(WEEKDAY(C27,2),Служебный!K$4:L$10,2)) ->  | AG27: =IF(C27=0,"",VLOOKUP(G27,Служебный!B:G,6,)) ->  | AH27: =IF(C27=0,"",VLOOKUP(G27,Служебный!B:G,3,FALSE)) ->  | AI27: =IF(C27=0,"",VLOOKUP(G27,Служебный!B:G,4,FALSE)) ->  | AM27: =IF(C27=0,"",IF(D27<Служебный!$P$3,"Раньше открытия",IF(D27>Служебный!$P$6,"Позже закрытия",IF(D27<Служебный!$P$4,Служебный!$N$4,IF(D27<Служебный!$P$5,Служебный!$N$5,Служебный!$N$6))))) ->  | AZ27: =IF(C27=0,"",IF(AX27="",AZ26,IF(SUMIF(C:C,C27,Z:Z)<0,IF(AZ26<0,AZ26-1,-1),IF(AZ26>0,AZ26+1,1)))) ->  | BA27: =IF(OR(C26=0,C27=0),"",IF(C27=C26,"",COUNTIF(C:C,C27))) ->  | BB27: =IF(OR(C26=0,C27=0),"",IF(C27=C26,"",COUNTIFS(C:C,C27,Y:Y,">0"))) ->  | BC27: =IF(OR(C26=0,C27=0),"",IF(C27=C26,"",COUNTIFS(C:C,C27,Y:Y,"<0"))) ->  | BD27: =IF(OR(C26=0,C27=0),"",IF(C27=C26,"",COUNTIFS(C:C,C27,Y:Y,"=0"))) ->  | BE27: =IF(BA27="","",SUMIFS($K$2:$K$77777,$C$2:$C$77777,$C27)) ->  | BF27: 80
V28: =IF(C28=0,"",K28/Служебный!$N$17*Служебный!$O$17*2) ->  | AE28: =IF(C28=0,"",VLOOKUP(WEEKDAY(C28,2),Служебный!K$4:L$10,2)) ->  | AG28: =IF(C28=0,"",VLOOKUP(G28,Служебный!B:G,6,)) ->  | AH28: =IF(C28=0,"",VLOOKUP(G28,Служебный!B:G,3,FALSE)) ->  | AI28: =IF(C28=0,"",VLOOKUP(G28,Служебный!B:G,4,FALSE)) ->  | AM28: =IF(C28=0,"",IF(D28<Служебный!$P$3,"Раньше открытия",IF(D28>Служебный!$P$6,"Позже закрытия",IF(D28<Служебный!$P$4,Служебный!$N$4,IF(D28<Служебный!$P$5,Служебный!$N$5,Служебный!$N$6))))) ->  | AZ28: =IF(C28=0,"",IF(AX28="",AZ27,IF(SUMIF(C:C,C28,Z:Z)<0,IF(AZ27<0,AZ27-1,-1),IF(AZ27>0,AZ27+1,1)))) ->  | BA28: =IF(OR(C27=0,C28=0),"",IF(C28=C27,"",COUNTIF(C:C,C28))) ->  | BB28: =IF(OR(C27=0,C28=0),"",IF(C28=C27,"",COUNTIFS(C:C,C28,Y:Y,">0"))) ->  | BC28: =IF(OR(C27=0,C28=0),"",IF(C28=C27,"",COUNTIFS(C:C,C28,Y:Y,"<0"))) ->  | BD28: =IF(OR(C27=0,C28=0),"",IF(C28=C27,"",COUNTIFS(C:C,C28,Y:Y,"=0"))) ->  | BE28: =IF(BA28="","",SUMIFS($K$2:$K$77777,$C$2:$C$77777,$C28)) ->  | BF28: 80
V29: =IF(C29=0,"",K29/Служебный!$N$17*Служебный!$O$17*2) ->  | AE29: =IF(C29=0,"",VLOOKUP(WEEKDAY(C29,2),Служебный!K$4:L$10,2)) ->  | AG29: =IF(C29=0,"",VLOOKUP(G29,Служебный!B:G,6,)) ->  | AH29: =IF(C29=0,"",VLOOKUP(G29,Служебный!B:G,3,FALSE)) ->  | AI29: =IF(C29=0,"",VLOOKUP(G29,Служебный!B:G,4,FALSE)) ->  | AM29: =IF(C29=0,"",IF(D29<Служебный!$P$3,"Раньше открытия",IF(D29>Служебный!$P$6,"Позже закрытия",IF(D29<Служебный!$P$4,Служебный!$N$4,IF(D29<Служебный!$P$5,Служебный!$N$5,Служебный!$N$6))))) ->  | AZ29: =IF(C29=0,"",IF(AX29="",AZ28,IF(SUMIF(C:C,C29,Z:Z)<0,IF(AZ28<0,AZ28-1,-1),IF(AZ28>0,AZ28+1,1)))) ->  | BA29: =IF(OR(C28=0,C29=0),"",IF(C29=C28,"",COUNTIF(C:C,C29))) ->  | BB29: =IF(OR(C28=0,C29=0),"",IF(C29=C28,"",COUNTIFS(C:C,C29,Y:Y,">0"))) ->  | BC29: =IF(OR(C28=0,C29=0),"",IF(C29=C28,"",COUNTIFS(C:C,C29,Y:Y,"<0"))) ->  | BD29: =IF(OR(C28=0,C29=0),"",IF(C29=C28,"",COUNTIFS(C:C,C29,Y:Y,"=0"))) ->  | BE29: =IF(BA29="","",SUMIFS($K$2:$K$77777,$C$2:$C$77777,$C29)) ->  | BF29: 80
V30: =IF(C30=0,"",K30/Служебный!$N$17*Служебный!$O$17*2) ->  | AE30: =IF(C30=0,"",VLOOKUP(WEEKDAY(C30,2),Служебный!K$4:L$10,2)) ->  | AG30: =IF(C30=0,"",VLOOKUP(G30,Служебный!B:G,6,)) ->  | AH30: =IF(C30=0,"",VLOOKUP(G30,Служебный!B:G,3,FALSE)) ->  | AI30: =IF(C30=0,"",VLOOKUP(G30,Служебный!B:G,4,FALSE)) ->  | AM30: =IF(C30=0,"",IF(D30<Служебный!$P$3,"Раньше открытия",IF(D30>Служебный!$P$6,"Позже закрытия",IF(D30<Служебный!$P$4,Служебный!$N$4,IF(D30<Служебный!$P$5,Служебный!$N$5,Служебный!$N$6))))) ->  | AZ30: =IF(C30=0,"",IF(AX30="",AZ29,IF(SUMIF(C:C,C30,Z:Z)<0,IF(AZ29<0,AZ29-1,-1),IF(AZ29>0,AZ29+1,1)))) ->  | BA30: =IF(OR(C29=0,C30=0),"",IF(C30=C29,"",COUNTIF(C:C,C30))) ->  | BB30: =IF(OR(C29=0,C30=0),"",IF(C30=C29,"",COUNTIFS(C:C,C30,Y:Y,">0"))) ->  | BC30: =IF(OR(C29=0,C30=0),"",IF(C30=C29,"",COUNTIFS(C:C,C30,Y:Y,"<0"))) ->  | BD30: =IF(OR(C29=0,C30=0),"",IF(C30=C29,"",COUNTIFS(C:C,C30,Y:Y,"=0"))) ->  | BE30: =IF(BA30="","",SUMIFS($K$2:$K$77777,$C$2:$C$77777,$C30)) ->  | BF30: 80
V31: =IF(C31=0,"",K31/Служебный!$N$17*Служебный!$O$17*2) ->  | AE31: =IF(C31=0,"",VLOOKUP(WEEKDAY(C31,2),Служебный!K$4:L$10,2)) ->  | AG31: =IF(C31=0,"",VLOOKUP(G31,Служебный!B:G,6,)) ->  | AH31: =IF(C31=0,"",VLOOKUP(G31,Служебный!B:G,3,FALSE)) ->  | AI31: =IF(C31=0,"",VLOOKUP(G31,Служебный!B:G,4,FALSE)) ->  | AM31: =IF(C31=0,"",IF(D31<Служебный!$P$3,"Раньше открытия",IF(D31>Служебный!$P$6,"Позже закрытия",IF(D31<Служебный!$P$4,Служебный!$N$4,IF(D31<Служебный!$P$5,Служебный!$N$5,Служебный!$N$6))))) ->  | AZ31: =IF(C31=0,"",IF(AX31="",AZ30,IF(SUMIF(C:C,C31,Z:Z)<0,IF(AZ30<0,AZ30-1,-1),IF(AZ30>0,AZ30+1,1)))) ->  | BA31: =IF(OR(C30=0,C31=0),"",IF(C31=C30,"",COUNTIF(C:C,C31))) ->  | BB31: =IF(OR(C30=0,C31=0),"",IF(C31=C30,"",COUNTIFS(C:C,C31,Y:Y,">0"))) ->  | BC31: =IF(OR(C30=0,C31=0),"",IF(C31=C30,"",COUNTIFS(C:C,C31,Y:Y,"<0"))) ->  | BD31: =IF(OR(C30=0,C31=0),"",IF(C31=C30,"",COUNTIFS(C:C,C31,Y:Y,"=0"))) ->  | BE31: =IF(BA31="","",SUMIFS($K$2:$K$77777,$C$2:$C$77777,$C31)) ->  | BF31: 80
V32: =IF(C32=0,"",K32/Служебный!$N$17*Служебный!$O$17*2) ->  | AE32: =IF(C32=0,"",VLOOKUP(WEEKDAY(C32,2),Служебный!K$4:L$10,2)) ->  | AG32: =IF(C32=0,"",VLOOKUP(G32,Служебный!B:G,6,)) ->  | AH32: =IF(C32=0,"",VLOOKUP(G32,Служебный!B:G,3,FALSE)) ->  | AI32: =IF(C32=0,"",VLOOKUP(G32,Служебный!B:G,4,FALSE)) ->  | AM32: =IF(C32=0,"",IF(D32<Служебный!$P$3,"Раньше открытия",IF(D32>Служебный!$P$6,"Позже закрытия",IF(D32<Служебный!$P$4,Служебный!$N$4,IF(D32<Служебный!$P$5,Служебный!$N$5,Служебный!$N$6))))) ->  | AZ32: =IF(C32=0,"",IF(AX32="",AZ31,IF(SUMIF(C:C,C32,Z:Z)<0,IF(AZ31<0,AZ31-1,-1),IF(AZ31>0,AZ31+1,1)))) ->  | BA32: =IF(OR(C31=0,C32=0),"",IF(C32=C31,"",COUNTIF(C:C,C32))) ->  | BB32: =IF(OR(C31=0,C32=0),"",IF(C32=C31,"",COUNTIFS(C:C,C32,Y:Y,">0"))) ->  | BC32: =IF(OR(C31=0,C32=0),"",IF(C32=C31,"",COUNTIFS(C:C,C32,Y:Y,"<0"))) ->  | BD32: =IF(OR(C31=0,C32=0),"",IF(C32=C31,"",COUNTIFS(C:C,C32,Y:Y,"=0"))) ->  | BE32: =IF(BA32="","",SUMIFS($K$2:$K$77777,$C$2:$C$77777,$C32)) ->  | BF32: 80
V33: =IF(C33=0,"",K33/Служебный!$N$17*Служебный!$O$17*2) ->  | AE33: =IF(C33=0,"",VLOOKUP(WEEKDAY(C33,2),Служебный!K$4:L$10,2)) ->  | AG33: =IF(C33=0,"",VLOOKUP(G33,Служебный!B:G,6,)) ->  | AH33: =IF(C33=0,"",VLOOKUP(G33,Служебный!B:G,3,FALSE)) ->  | AI33: =IF(C33=0,"",VLOOKUP(G33,Служебный!B:G,4,FALSE)) ->  | AM33: =IF(C33=0,"",IF(D33<Служебный!$P$3,"Раньше открытия",IF(D33>Служебный!$P$6,"Позже закрытия",IF(D33<Служебный!$P$4,Служебный!$N$4,IF(D33<Служебный!$P$5,Служебный!$N$5,Служебный!$N$6))))) ->  | AZ33: =IF(C33=0,"",IF(AX33="",AZ32,IF(SUMIF(C:C,C33,Z:Z)<0,IF(AZ32<0,AZ32-1,-1),IF(AZ32>0,AZ32+1,1)))) ->  | BA33: =IF(OR(C32=0,C33=0),"",IF(C33=C32,"",COUNTIF(C:C,C33))) ->  | BB33: =IF(OR(C32=0,C33=0),"",IF(C33=C32,"",COUNTIFS(C:C,C33,Y:Y,">0"))) ->  | BC33: =IF(OR(C32=0,C33=0),"",IF(C33=C32,"",COUNTIFS(C:C,C33,Y:Y,"<0"))) ->  | BD33: =IF(OR(C32=0,C33=0),"",IF(C33=C32,"",COUNTIFS(C:C,C33,Y:Y,"=0"))) ->  | BE33: =IF(BA33="","",SUMIFS($K$2:$K$77777,$C$2:$C$77777,$C33)) ->  | BF33: 80
V34: =IF(C34=0,"",K34/Служебный!$N$17*Служебный!$O$17*2) ->  | AE34: =IF(C34=0,"",VLOOKUP(WEEKDAY(C34,2),Служебный!K$4:L$10,2)) ->  | AG34: =IF(C34=0,"",VLOOKUP(G34,Служебный!B:G,6,)) ->  | AH34: =IF(C34=0,"",VLOOKUP(G34,Служебный!B:G,3,FALSE)) ->  | AI34: =IF(C34=0,"",VLOOKUP(G34,Служебный!B:G,4,FALSE)) ->  | AM34: =IF(C34=0,"",IF(D34<Служебный!$P$3,"Раньше открытия",IF(D34>Служебный!$P$6,"Позже закрытия",IF(D34<Служебный!$P$4,Служебный!$N$4,IF(D34<Служебный!$P$5,Служебный!$N$5,Служебный!$N$6))))) ->  | AZ34: =IF(C34=0,"",IF(AX34="",AZ33,IF(SUMIF(C:C,C34,Z:Z)<0,IF(AZ33<0,AZ33-1,-1),IF(AZ33>0,AZ33+1,1)))) ->  | BA34: =IF(OR(C33=0,C34=0),"",IF(C34=C33,"",COUNTIF(C:C,C34))) ->  | BB34: =IF(OR(C33=0,C34=0),"",IF(C34=C33,"",COUNTIFS(C:C,C34,Y:Y,">0"))) ->  | BC34: =IF(OR(C33=0,C34=0),"",IF(C34=C33,"",COUNTIFS(C:C,C34,Y:Y,"<0"))) ->  | BD34: =IF(OR(C33=0,C34=0),"",IF(C34=C33,"",COUNTIFS(C:C,C34,Y:Y,"=0"))) ->  | BE34: =IF(BA34="","",SUMIFS($K$2:$K$77777,$C$2:$C$77777,$C34)) ->  | BF34: 80
V35: =IF(C35=0,"",K35/Служебный!$N$17*Служебный!$O$17*2) ->  | AE35: =IF(C35=0,"",VLOOKUP(WEEKDAY(C35,2),Служебный!K$4:L$10,2)) ->  | AG35: =IF(C35=0,"",VLOOKUP(G35,Служебный!B:G,6,)) ->  | AH35: =IF(C35=0,"",VLOOKUP(G35,Служебный!B:G,3,FALSE)) ->  | AI35: =IF(C35=0,"",VLOOKUP(G35,Служебный!B:G,4,FALSE)) ->  | AM35: =IF(C35=0,"",IF(D35<Служебный!$P$3,"Раньше открытия",IF(D35>Служебный!$P$6,"Позже закрытия",IF(D35<Служебный!$P$4,Служебный!$N$4,IF(D35<Служебный!$P$5,Служебный!$N$5,Служебный!$N$6))))) ->  | AZ35: =IF(C35=0,"",IF(AX35="",AZ34,IF(SUMIF(C:C,C35,Z:Z)<0,IF(AZ34<0,AZ34-1,-1),IF(AZ34>0,AZ34+1,1)))) ->  | BA35: =IF(OR(C34=0,C35=0),"",IF(C35=C34,"",COUNTIF(C:C,C35))) ->  | BB35: =IF(OR(C34=0,C35=0),"",IF(C35=C34,"",COUNTIFS(C:C,C35,Y:Y,">0"))) ->  | BC35: =IF(OR(C34=0,C35=0),"",IF(C35=C34,"",COUNTIFS(C:C,C35,Y:Y,"<0"))) ->  | BD35: =IF(OR(C34=0,C35=0),"",IF(C35=C34,"",COUNTIFS(C:C,C35,Y:Y,"=0"))) ->  | BE35: =IF(BA35="","",SUMIFS($K$2:$K$77777,$C$2:$C$77777,$C35)) ->  | BF35: 80
V36: =IF(C36=0,"",K36/Служебный!$N$17*Служебный!$O$17*2) ->  | AE36: =IF(C36=0,"",VLOOKUP(WEEKDAY(C36,2),Служебный!K$4:L$10,2)) ->  | AG36: =IF(C36=0,"",VLOOKUP(G36,Служебный!B:G,6,)) ->  | AH36: =IF(C36=0,"",VLOOKUP(G36,Служебный!B:G,3,FALSE)) ->  | AI36: =IF(C36=0,"",VLOOKUP(G36,Служебный!B:G,4,FALSE)) ->  | AM36: =IF(C36=0,"",IF(D36<Служебный!$P$3,"Раньше открытия",IF(D36>Служебный!$P$6,"Позже закрытия",IF(D36<Служебный!$P$4,Служебный!$N$4,IF(D36<Служебный!$P$5,Служебный!$N$5,Служебный!$N$6))))) ->  | AZ36: =IF(C36=0,"",IF(AX36="",AZ35,IF(SUMIF(C:C,C36,Z:Z)<0,IF(AZ35<0,AZ35-1,-1),IF(AZ35>0,AZ35+1,1)))) ->  | BA36: =IF(OR(C35=0,C36=0),"",IF(C36=C35,"",COUNTIF(C:C,C36))) ->  | BB36: =IF(OR(C35=0,C36=0),"",IF(C36=C35,"",COUNTIFS(C:C,C36,Y:Y,">0"))) ->  | BC36: =IF(OR(C35=0,C36=0),"",IF(C36=C35,"",COUNTIFS(C:C,C36,Y:Y,"<0"))) ->  | BD36: =IF(OR(C35=0,C36=0),"",IF(C36=C35,"",COUNTIFS(C:C,C36,Y:Y,"=0"))) ->  | BE36: =IF(BA36="","",SUMIFS($K$2:$K$77777,$C$2:$C$77777,$C36)) ->  | BF36: 80
V37: =IF(C37=0,"",K37/Служебный!$N$17*Служебный!$O$17*2) ->  | AE37: =IF(C37=0,"",VLOOKUP(WEEKDAY(C37,2),Служебный!K$4:L$10,2)) ->  | AG37: =IF(C37=0,"",VLOOKUP(G37,Служебный!B:G,6,)) ->  | AH37: =IF(C37=0,"",VLOOKUP(G37,Служебный!B:G,3,FALSE)) ->  | AI37: =IF(C37=0,"",VLOOKUP(G37,Служебный!B:G,4,FALSE)) ->  | AM37: =IF(C37=0,"",IF(D37<Служебный!$P$3,"Раньше открытия",IF(D37>Служебный!$P$6,"Позже закрытия",IF(D37<Служебный!$P$4,Служебный!$N$4,IF(D37<Служебный!$P$5,Служебный!$N$5,Служебный!$N$6))))) ->  | AZ37: =IF(C37=0,"",IF(AX37="",AZ36,IF(SUMIF(C:C,C37,Z:Z)<0,IF(AZ36<0,AZ36-1,-1),IF(AZ36>0,AZ36+1,1)))) ->  | BA37: =IF(OR(C36=0,C37=0),"",IF(C37=C36,"",COUNTIF(C:C,C37))) ->  | BB37: =IF(OR(C36=0,C37=0),"",IF(C37=C36,"",COUNTIFS(C:C,C37,Y:Y,">0"))) ->  | BC37: =IF(OR(C36=0,C37=0),"",IF(C37=C36,"",COUNTIFS(C:C,C37,Y:Y,"<0"))) ->  | BD37: =IF(OR(C36=0,C37=0),"",IF(C37=C36,"",COUNTIFS(C:C,C37,Y:Y,"=0"))) ->  | BE37: =IF(BA37="","",SUMIFS($K$2:$K$77777,$C$2:$C$77777,$C37)) ->  | BF37: 80
V38: =IF(C38=0,"",K38/Служебный!$N$17*Служебный!$O$17*2) ->  | AE38: =IF(C38=0,"",VLOOKUP(WEEKDAY(C38,2),Служебный!K$4:L$10,2)) ->  | AG38: =IF(C38=0,"",VLOOKUP(G38,Служебный!B:G,6,)) ->  | AH38: =IF(C38=0,"",VLOOKUP(G38,Служебный!B:G,3,FALSE)) ->  | AI38: =IF(C38=0,"",VLOOKUP(G38,Служебный!B:G,4,FALSE)) ->  | AM38: =IF(C38=0,"",IF(D38<Служебный!$P$3,"Раньше открытия",IF(D38>Служебный!$P$6,"Позже закрытия",IF(D38<Служебный!$P$4,Служебный!$N$4,IF(D38<Служебный!$P$5,Служебный!$N$5,Служебный!$N$6))))) ->  | AZ38: =IF(C38=0,"",IF(AX38="",AZ37,IF(SUMIF(C:C,C38,Z:Z)<0,IF(AZ37<0,AZ37-1,-1),IF(AZ37>0,AZ37+1,1)))) ->  | BA38: =IF(OR(C37=0,C38=0),"",IF(C38=C37,"",COUNTIF(C:C,C38))) ->  | BB38: =IF(OR(C37=0,C38=0),"",IF(C38=C37,"",COUNTIFS(C:C,C38,Y:Y,">0"))) ->  | BC38: =IF(OR(C37=0,C38=0),"",IF(C38=C37,"",COUNTIFS(C:C,C38,Y:Y,"<0"))) ->  | BD38: =IF(OR(C37=0,C38=0),"",IF(C38=C37,"",COUNTIFS(C:C,C38,Y:Y,"=0"))) ->  | BE38: =IF(BA38="","",SUMIFS($K$2:$K$77777,$C$2:$C$77777,$C38)) ->  | BF38: 80
V39: =IF(C39=0,"",K39/Служебный!$N$17*Служебный!$O$17*2) ->  | AE39: =IF(C39=0,"",VLOOKUP(WEEKDAY(C39,2),Служебный!K$4:L$10,2)) ->  | AG39: =IF(C39=0,"",VLOOKUP(G39,Служебный!B:G,6,)) ->  | AH39: =IF(C39=0,"",VLOOKUP(G39,Служебный!B:G,3,FALSE)) ->  | AI39: =IF(C39=0,"",VLOOKUP(G39,Служебный!B:G,4,FALSE)) ->  | AM39: =IF(C39=0,"",IF(D39<Служебный!$P$3,"Раньше открытия",IF(D39>Служебный!$P$6,"Позже закрытия",IF(D39<Служебный!$P$4,Служебный!$N$4,IF(D39<Служебный!$P$5,Служебный!$N$5,Служебный!$N$6))))) ->  | AZ39: =IF(C39=0,"",IF(AX39="",AZ38,IF(SUMIF(C:C,C39,Z:Z)<0,IF(AZ38<0,AZ38-1,-1),IF(AZ38>0,AZ38+1,1)))) ->  | BA39: =IF(OR(C38=0,C39=0),"",IF(C39=C38,"",COUNTIF(C:C,C39))) ->  | BB39: =IF(OR(C38=0,C39=0),"",IF(C39=C38,"",COUNTIFS(C:C,C39,Y:Y,">0"))) ->  | BC39: =IF(OR(C38=0,C39=0),"",IF(C39=C38,"",COUNTIFS(C:C,C39,Y:Y,"<0"))) ->  | BD39: =IF(OR(C38=0,C39=0),"",IF(C39=C38,"",COUNTIFS(C:C,C39,Y:Y,"=0"))) ->  | BE39: =IF(BA39="","",SUMIFS($K$2:$K$77777,$C$2:$C$77777,$C39)) ->  | BF39: 80
V40: =IF(C40=0,"",K40/Служебный!$N$17*Служебный!$O$17*2) ->  | AE40: =IF(C40=0,"",VLOOKUP(WEEKDAY(C40,2),Служебный!K$4:L$10,2)) ->  | AG40: =IF(C40=0,"",VLOOKUP(G40,Служебный!B:G,6,)) ->  | AH40: =IF(C40=0,"",VLOOKUP(G40,Служебный!B:G,3,FALSE)) ->  | AI40: =IF(C40=0,"",VLOOKUP(G40,Служебный!B:G,4,FALSE)) ->  | AM40: =IF(C40=0,"",IF(D40<Служебный!$P$3,"Раньше открытия",IF(D40>Служебный!$P$6,"Позже закрытия",IF(D40<Служебный!$P$4,Служебный!$N$4,IF(D40<Служебный!$P$5,Служебный!$N$5,Служебный!$N$6))))) ->  | AZ40: =IF(C40=0,"",IF(AX40="",AZ39,IF(SUMIF(C:C,C40,Z:Z)<0,IF(AZ39<0,AZ39-1,-1),IF(AZ39>0,AZ39+1,1)))) ->  | BA40: =IF(OR(C39=0,C40=0),"",IF(C40=C39,"",COUNTIF(C:C,C40))) ->  | BB40: =IF(OR(C39=0,C40=0),"",IF(C40=C39,"",COUNTIFS(C:C,C40,Y:Y,">0"))) ->  | BC40: =IF(OR(C39=0,C40=0),"",IF(C40=C39,"",COUNTIFS(C:C,C40,Y:Y,"<0"))) ->  | BD40: =IF(OR(C39=0,C40=0),"",IF(C40=C39,"",COUNTIFS(C:C,C40,Y:Y,"=0"))) ->  | BE40: =IF(BA40="","",SUMIFS($K$2:$K$77777,$C$2:$C$77777,$C40)) ->  | BF40: 80
V41: =IF(C41=0,"",K41/Служебный!$N$17*Служебный!$O$17*2) ->  | AE41: =IF(C41=0,"",VLOOKUP(WEEKDAY(C41,2),Служебный!K$4:L$10,2)) ->  | AG41: =IF(C41=0,"",VLOOKUP(G41,Служебный!B:G,6,)) ->  | AH41: =IF(C41=0,"",VLOOKUP(G41,Служебный!B:G,3,FALSE)) ->  | AI41: =IF(C41=0,"",VLOOKUP(G41,Служебный!B:G,4,FALSE)) ->  | AM41: =IF(C41=0,"",IF(D41<Служебный!$P$3,"Раньше открытия",IF(D41>Служебный!$P$6,"Позже закрытия",IF(D41<Служебный!$P$4,Служебный!$N$4,IF(D41<Служебный!$P$5,Служебный!$N$5,Служебный!$N$6))))) ->  | AZ41: =IF(C41=0,"",IF(AX41="",AZ40,IF(SUMIF(C:C,C41,Z:Z)<0,IF(AZ40<0,AZ40-1,-1),IF(AZ40>0,AZ40+1,1)))) ->  | BA41: =IF(OR(C40=0,C41=0),"",IF(C41=C40,"",COUNTIF(C:C,C41))) ->  | BB41: =IF(OR(C40=0,C41=0),"",IF(C41=C40,"",COUNTIFS(C:C,C41,Y:Y,">0"))) ->  | BC41: =IF(OR(C40=0,C41=0),"",IF(C41=C40,"",COUNTIFS(C:C,C41,Y:Y,"<0"))) ->  | BD41: =IF(OR(C40=0,C41=0),"",IF(C41=C40,"",COUNTIFS(C:C,C41,Y:Y,"=0"))) ->  | BE41: =IF(BA41="","",SUMIFS($K$2:$K$77777,$C$2:$C$77777,$C41)) ->  | BF41: 80
V42: =IF(C42=0,"",K42/Служебный!$N$17*Служебный!$O$17*2) ->  | AE42: =IF(C42=0,"",VLOOKUP(WEEKDAY(C42,2),Служебный!K$4:L$10,2)) ->  | AG42: =IF(C42=0,"",VLOOKUP(G42,Служебный!B:G,6,)) ->  | AH42: =IF(C42=0,"",VLOOKUP(G42,Служебный!B:G,3,FALSE)) ->  | AI42: =IF(C42=0,"",VLOOKUP(G42,Служебный!B:G,4,FALSE)) ->  | AM42: =IF(C42=0,"",IF(D42<Служебный!$P$3,"Раньше открытия",IF(D42>Служебный!$P$6,"Позже закрытия",IF(D42<Служебный!$P$4,Служебный!$N$4,IF(D42<Служебный!$P$5,Служебный!$N$5,Служебный!$N$6))))) ->  | AZ42: =IF(C42=0,"",IF(AX42="",AZ41,IF(SUMIF(C:C,C42,Z:Z)<0,IF(AZ41<0,AZ41-1,-1),IF(AZ41>0,AZ41+1,1)))) ->  | BA42: =IF(OR(C41=0,C42=0),"",IF(C42=C41,"",COUNTIF(C:C,C42))) ->  | BB42: =IF(OR(C41=0,C42=0),"",IF(C42=C41,"",COUNTIFS(C:C,C42,Y:Y,">0"))) ->  | BC42: =IF(OR(C41=0,C42=0),"",IF(C42=C41,"",COUNTIFS(C:C,C42,Y:Y,"<0"))) ->  | BD42: =IF(OR(C41=0,C42=0),"",IF(C42=C41,"",COUNTIFS(C:C,C42,Y:Y,"=0"))) ->  | BE42: =IF(BA42="","",SUMIFS($K$2:$K$77777,$C$2:$C$77777,$C42)) ->  | BF42: 80
V43: =IF(C43=0,"",K43/Служебный!$N$17*Служебный!$O$17*2) ->  | AE43: =IF(C43=0,"",VLOOKUP(WEEKDAY(C43,2),Служебный!K$4:L$10,2)) ->  | AG43: =IF(C43=0,"",VLOOKUP(G43,Служебный!B:G,6,)) ->  | AH43: =IF(C43=0,"",VLOOKUP(G43,Служебный!B:G,3,FALSE)) ->  | AI43: =IF(C43=0,"",VLOOKUP(G43,Служебный!B:G,4,FALSE)) ->  | AM43: =IF(C43=0,"",IF(D43<Служебный!$P$3,"Раньше открытия",IF(D43>Служебный!$P$6,"Позже закрытия",IF(D43<Служебный!$P$4,Служебный!$N$4,IF(D43<Служебный!$P$5,Служебный!$N$5,Служебный!$N$6))))) ->  | AZ43: =IF(C43=0,"",IF(AX43="",AZ42,IF(SUMIF(C:C,C43,Z:Z)<0,IF(AZ42<0,AZ42-1,-1),IF(AZ42>0,AZ42+1,1)))) ->  | BA43: =IF(OR(C42=0,C43=0),"",IF(C43=C42,"",COUNTIF(C:C,C43))) ->  | BB43: =IF(OR(C42=0,C43=0),"",IF(C43=C42,"",COUNTIFS(C:C,C43,Y:Y,">0"))) ->  | BC43: =IF(OR(C42=0,C43=0),"",IF(C43=C42,"",COUNTIFS(C:C,C43,Y:Y,"<0"))) ->  | BD43: =IF(OR(C42=0,C43=0),"",IF(C43=C42,"",COUNTIFS(C:C,C43,Y:Y,"=0"))) ->  | BE43: =IF(BA43="","",SUMIFS($K$2:$K$77777,$C$2:$C$77777,$C43)) ->  | BF43: 80
V44: =IF(C44=0,"",K44/Служебный!$N$17*Служебный!$O$17*2) ->  | AE44: =IF(C44=0,"",VLOOKUP(WEEKDAY(C44,2),Служебный!K$4:L$10,2)) ->  | AG44: =IF(C44=0,"",VLOOKUP(G44,Служебный!B:G,6,)) ->  | AH44: =IF(C44=0,"",VLOOKUP(G44,Служебный!B:G,3,FALSE)) ->  | AI44: =IF(C44=0,"",VLOOKUP(G44,Служебный!B:G,4,FALSE)) ->  | AM44: =IF(C44=0,"",IF(D44<Служебный!$P$3,"Раньше открытия",IF(D44>Служебный!$P$6,"Позже закрытия",IF(D44<Служебный!$P$4,Служебный!$N$4,IF(D44<Служебный!$P$5,Служебный!$N$5,Служебный!$N$6))))) ->  | AZ44: =IF(C44=0,"",IF(AX44="",AZ43,IF(SUMIF(C:C,C44,Z:Z)<0,IF(AZ43<0,AZ43-1,-1),IF(AZ43>0,AZ43+1,1)))) ->  | BA44: =IF(OR(C43=0,C44=0),"",IF(C44=C43,"",COUNTIF(C:C,C44))) ->  | BB44: =IF(OR(C43=0,C44=0),"",IF(C44=C43,"",COUNTIFS(C:C,C44,Y:Y,">0"))) ->  | BC44: =IF(OR(C43=0,C44=0),"",IF(C44=C43,"",COUNTIFS(C:C,C44,Y:Y,"<0"))) ->  | BD44: =IF(OR(C43=0,C44=0),"",IF(C44=C43,"",COUNTIFS(C:C,C44,Y:Y,"=0"))) ->  | BE44: =IF(BA44="","",SUMIFS($K$2:$K$77777,$C$2:$C$77777,$C44)) ->  | BF44: 80
V45: =IF(C45=0,"",K45/Служебный!$N$17*Служебный!$O$17*2) ->  | AE45: =IF(C45=0,"",VLOOKUP(WEEKDAY(C45,2),Служебный!K$4:L$10,2)) ->  | AG45: =IF(C45=0,"",VLOOKUP(G45,Служебный!B:G,6,)) ->  | AH45: =IF(C45=0,"",VLOOKUP(G45,Служебный!B:G,3,FALSE)) ->  | AI45: =IF(C45=0,"",VLOOKUP(G45,Служебный!B:G,4,FALSE)) ->  | AM45: =IF(C45=0,"",IF(D45<Служебный!$P$3,"Раньше открытия",IF(D45>Служебный!$P$6,"Позже закрытия",IF(D45<Служебный!$P$4,Служебный!$N$4,IF(D45<Служебный!$P$5,Служебный!$N$5,Служебный!$N$6))))) ->  | AZ45: =IF(C45=0,"",IF(AX45="",AZ44,IF(SUMIF(C:C,C45,Z:Z)<0,IF(AZ44<0,AZ44-1,-1),IF(AZ44>0,AZ44+1,1)))) ->  | BA45: =IF(OR(C44=0,C45=0),"",IF(C45=C44,"",COUNTIF(C:C,C45))) ->  | BB45: =IF(OR(C44=0,C45=0),"",IF(C45=C44,"",COUNTIFS(C:C,C45,Y:Y,">0"))) ->  | BC45: =IF(OR(C44=0,C45=0),"",IF(C45=C44,"",COUNTIFS(C:C,C45,Y:Y,"<0"))) ->  | BD45: =IF(OR(C44=0,C45=0),"",IF(C45=C44,"",COUNTIFS(C:C,C45,Y:Y,"=0"))) ->  | BE45: =IF(BA45="","",SUMIFS($K$2:$K$77777,$C$2:$C$77777,$C45)) ->  | BF45: 80
V46: =IF(C46=0,"",K46/Служебный!$N$17*Служебный!$O$17*2) ->  | AE46: =IF(C46=0,"",VLOOKUP(WEEKDAY(C46,2),Служебный!K$4:L$10,2)) ->  | AG46: =IF(C46=0,"",VLOOKUP(G46,Служебный!B:G,6,)) ->  | AH46: =IF(C46=0,"",VLOOKUP(G46,Служебный!B:G,3,FALSE)) ->  | AI46: =IF(C46=0,"",VLOOKUP(G46,Служебный!B:G,4,FALSE)) ->  | AM46: =IF(C46=0,"",IF(D46<Служебный!$P$3,"Раньше открытия",IF(D46>Служебный!$P$6,"Позже закрытия",IF(D46<Служебный!$P$4,Служебный!$N$4,IF(D46<Служебный!$P$5,Служебный!$N$5,Служебный!$N$6))))) ->  | AZ46: =IF(C46=0,"",IF(AX46="",AZ45,IF(SUMIF(C:C,C46,Z:Z)<0,IF(AZ45<0,AZ45-1,-1),IF(AZ45>0,AZ45+1,1)))) ->  | BA46: =IF(OR(C45=0,C46=0),"",IF(C46=C45,"",COUNTIF(C:C,C46))) ->  | BB46: =IF(OR(C45=0,C46=0),"",IF(C46=C45,"",COUNTIFS(C:C,C46,Y:Y,">0"))) ->  | BC46: =IF(OR(C45=0,C46=0),"",IF(C46=C45,"",COUNTIFS(C:C,C46,Y:Y,"<0"))) ->  | BD46: =IF(OR(C45=0,C46=0),"",IF(C46=C45,"",COUNTIFS(C:C,C46,Y:Y,"=0"))) ->  | BE46: =IF(BA46="","",SUMIFS($K$2:$K$77777,$C$2:$C$77777,$C46)) ->  | BF46: 80
V47: =IF(C47=0,"",K47/Служебный!$N$17*Служебный!$O$17*2) ->  | AE47: =IF(C47=0,"",VLOOKUP(WEEKDAY(C47,2),Служебный!K$4:L$10,2)) ->  | AG47: =IF(C47=0,"",VLOOKUP(G47,Служебный!B:G,6,)) ->  | AH47: =IF(C47=0,"",VLOOKUP(G47,Служебный!B:G,3,FALSE)) ->  | AI47: =IF(C47=0,"",VLOOKUP(G47,Служебный!B:G,4,FALSE)) ->  | AM47: =IF(C47=0,"",IF(D47<Служебный!$P$3,"Раньше открытия",IF(D47>Служебный!$P$6,"Позже закрытия",IF(D47<Служебный!$P$4,Служебный!$N$4,IF(D47<Служебный!$P$5,Служебный!$N$5,Служебный!$N$6))))) ->  | AZ47: =IF(C47=0,"",IF(AX47="",AZ46,IF(SUMIF(C:C,C47,Z:Z)<0,IF(AZ46<0,AZ46-1,-1),IF(AZ46>0,AZ46+1,1)))) ->  | BA47: =IF(OR(C46=0,C47=0),"",IF(C47=C46,"",COUNTIF(C:C,C47))) ->  | BB47: =IF(OR(C46=0,C47=0),"",IF(C47=C46,"",COUNTIFS(C:C,C47,Y:Y,">0"))) ->  | BC47: =IF(OR(C46=0,C47=0),"",IF(C47=C46,"",COUNTIFS(C:C,C47,Y:Y,"<0"))) ->  | BD47: =IF(OR(C46=0,C47=0),"",IF(C47=C46,"",COUNTIFS(C:C,C47,Y:Y,"=0"))) ->  | BE47: =IF(BA47="","",SUMIFS($K$2:$K$77777,$C$2:$C$77777,$C47)) ->  | BF47: 80
V48: =IF(C48=0,"",K48/Служебный!$N$17*Служебный!$O$17*2) ->  | AE48: =IF(C48=0,"",VLOOKUP(WEEKDAY(C48,2),Служебный!K$4:L$10,2)) ->  | AG48: =IF(C48=0,"",VLOOKUP(G48,Служебный!B:G,6,)) ->  | AH48: =IF(C48=0,"",VLOOKUP(G48,Служебный!B:G,3,FALSE)) ->  | AI48: =IF(C48=0,"",VLOOKUP(G48,Служебный!B:G,4,FALSE)) ->  | AM48: =IF(C48=0,"",IF(D48<Служебный!$P$3,"Раньше открытия",IF(D48>Служебный!$P$6,"Позже закрытия",IF(D48<Служебный!$P$4,Служебный!$N$4,IF(D48<Служебный!$P$5,Служебный!$N$5,Служебный!$N$6))))) ->  | AZ48: =IF(C48=0,"",IF(AX48="",AZ47,IF(SUMIF(C:C,C48,Z:Z)<0,IF(AZ47<0,AZ47-1,-1),IF(AZ47>0,AZ47+1,1)))) ->  | BA48: =IF(OR(C47=0,C48=0),"",IF(C48=C47,"",COUNTIF(C:C,C48))) ->  | BB48: =IF(OR(C47=0,C48=0),"",IF(C48=C47,"",COUNTIFS(C:C,C48,Y:Y,">0"))) ->  | BC48: =IF(OR(C47=0,C48=0),"",IF(C48=C47,"",COUNTIFS(C:C,C48,Y:Y,"<0"))) ->  | BD48: =IF(OR(C47=0,C48=0),"",IF(C48=C47,"",COUNTIFS(C:C,C48,Y:Y,"=0"))) ->  | BE48: =IF(BA48="","",SUMIFS($K$2:$K$77777,$C$2:$C$77777,$C48)) ->  | BF48: 80
V49: =IF(C49=0,"",K49/Служебный!$N$17*Служебный!$O$17*2) ->  | AE49: =IF(C49=0,"",VLOOKUP(WEEKDAY(C49,2),Служебный!K$4:L$10,2)) ->  | AG49: =IF(C49=0,"",VLOOKUP(G49,Служебный!B:G,6,)) ->  | AH49: =IF(C49=0,"",VLOOKUP(G49,Служебный!B:G,3,FALSE)) ->  | AI49: =IF(C49=0,"",VLOOKUP(G49,Служебный!B:G,4,FALSE)) ->  | AM49: =IF(C49=0,"",IF(D49<Служебный!$P$3,"Раньше открытия",IF(D49>Служебный!$P$6,"Позже закрытия",IF(D49<Служебный!$P$4,Служебный!$N$4,IF(D49<Служебный!$P$5,Служебный!$N$5,Служебный!$N$6))))) ->  | AZ49: =IF(C49=0,"",IF(AX49="",AZ48,IF(SUMIF(C:C,C49,Z:Z)<0,IF(AZ48<0,AZ48-1,-1),IF(AZ48>0,AZ48+1,1)))) ->  | BA49: =IF(OR(C48=0,C49=0),"",IF(C49=C48,"",COUNTIF(C:C,C49))) ->  | BB49: =IF(OR(C48=0,C49=0),"",IF(C49=C48,"",COUNTIFS(C:C,C49,Y:Y,">0"))) ->  | BC49: =IF(OR(C48=0,C49=0),"",IF(C49=C48,"",COUNTIFS(C:C,C49,Y:Y,"<0"))) ->  | BD49: =IF(OR(C48=0,C49=0),"",IF(C49=C48,"",COUNTIFS(C:C,C49,Y:Y,"=0"))) ->  | BE49: =IF(BA49="","",SUMIFS($K$2:$K$77777,$C$2:$C$77777,$C49)) ->  | BF49: 80
V50: =IF(C50=0,"",K50/Служебный!$N$17*Служебный!$O$17*2) ->  | AE50: =IF(C50=0,"",VLOOKUP(WEEKDAY(C50,2),Служебный!K$4:L$10,2)) ->  | AG50: =IF(C50=0,"",VLOOKUP(G50,Служебный!B:G,6,)) ->  | AH50: =IF(C50=0,"",VLOOKUP(G50,Служебный!B:G,3,FALSE)) ->  | AI50: =IF(C50=0,"",VLOOKUP(G50,Служебный!B:G,4,FALSE)) ->  | AM50: =IF(C50=0,"",IF(D50<Служебный!$P$3,"Раньше открытия",IF(D50>Служебный!$P$6,"Позже закрытия",IF(D50<Служебный!$P$4,Служебный!$N$4,IF(D50<Служебный!$P$5,Служебный!$N$5,Служебный!$N$6))))) ->  | AZ50: =IF(C50=0,"",IF(AX50="",AZ49,IF(SUMIF(C:C,C50,Z:Z)<0,IF(AZ49<0,AZ49-1,-1),IF(AZ49>0,AZ49+1,1)))) ->  | BA50: =IF(OR(C49=0,C50=0),"",IF(C50=C49,"",COUNTIF(C:C,C50))) ->  | BB50: =IF(OR(C49=0,C50=0),"",IF(C50=C49,"",COUNTIFS(C:C,C50,Y:Y,">0"))) ->  | BC50: =IF(OR(C49=0,C50=0),"",IF(C50=C49,"",COUNTIFS(C:C,C50,Y:Y,"<0"))) ->  | BD50: =IF(OR(C49=0,C50=0),"",IF(C50=C49,"",COUNTIFS(C:C,C50,Y:Y,"=0"))) ->  | BE50: =IF(BA50="","",SUMIFS($K$2:$K$77777,$C$2:$C$77777,$C50)) ->  | BF50: 80
V51: =IF(C51=0,"",K51/Служебный!$N$17*Служебный!$O$17*2) ->  | AE51: =IF(C51=0,"",VLOOKUP(WEEKDAY(C51,2),Служебный!K$4:L$10,2)) ->  | AG51: =IF(C51=0,"",VLOOKUP(G51,Служебный!B:G,6,)) ->  | AH51: =IF(C51=0,"",VLOOKUP(G51,Служебный!B:G,3,FALSE)) ->  | AI51: =IF(C51=0,"",VLOOKUP(G51,Служебный!B:G,4,FALSE)) ->  | AM51: =IF(C51=0,"",IF(D51<Служебный!$P$3,"Раньше открытия",IF(D51>Служебный!$P$6,"Позже закрытия",IF(D51<Служебный!$P$4,Служебный!$N$4,IF(D51<Служебный!$P$5,Служебный!$N$5,Служебный!$N$6))))) ->  | AZ51: =IF(C51=0,"",IF(AX51="",AZ50,IF(SUMIF(C:C,C51,Z:Z)<0,IF(AZ50<0,AZ50-1,-1),IF(AZ50>0,AZ50+1,1)))) ->  | BA51: =IF(OR(C50=0,C51=0),"",IF(C51=C50,"",COUNTIF(C:C,C51))) ->  | BB51: =IF(OR(C50=0,C51=0),"",IF(C51=C50,"",COUNTIFS(C:C,C51,Y:Y,">0"))) ->  | BC51: =IF(OR(C50=0,C51=0),"",IF(C51=C50,"",COUNTIFS(C:C,C51,Y:Y,"<0"))) ->  | BD51: =IF(OR(C50=0,C51=0),"",IF(C51=C50,"",COUNTIFS(C:C,C51,Y:Y,"=0"))) ->  | BE51: =IF(BA51="","",SUMIFS($K$2:$K$77777,$C$2:$C$77777,$C51)) ->  | BF51: 80
V52: =IF(C52=0,"",K52/Служебный!$N$17*Служебный!$O$17*2) ->  | Y52: =IF(H52="Sell",ROUND(W52-X52,2),IF(H52="Buy",ROUND(X52-W52,2),"")) ->  | Z52: =IF(C52=0,"",Y52-V52) ->  | AE52: =IF(C52=0,"",VLOOKUP(WEEKDAY(C52,2),Служебный!K$4:L$10,2)) ->  | AG52: =IF(C52=0,"",VLOOKUP(G52,Служебный!B:G,6,)) ->  | AH52: =IF(C52=0,"",VLOOKUP(G52,Служебный!B:G,3,FALSE)) ->  | AI52: =IF(C52=0,"",VLOOKUP(G52,Служебный!B:G,4,FALSE)) ->  | AM52: =IF(C52=0,"",IF(D52<Служебный!$P$3,"Раньше открытия",IF(D52>Служебный!$P$6,"Позже закрытия",IF(D52<Служебный!$P$4,Служебный!$N$4,IF(D52<Служебный!$P$5,Служебный!$N$5,Служебный!$N$6))))) ->  | AZ52: =IF(C52=0,"",IF(AX52="",AZ51,IF(SUMIF(C:C,C52,Z:Z)<0,IF(AZ51<0,AZ51-1,-1),IF(AZ51>0,AZ51+1,1)))) ->  | BA52: =IF(OR(C51=0,C52=0),"",IF(C52=C51,"",COUNTIF(C:C,C52))) ->  | BB52: =IF(OR(C51=0,C52=0),"",IF(C52=C51,"",COUNTIFS(C:C,C52,Y:Y,">0"))) ->  | BC52: =IF(OR(C51=0,C52=0),"",IF(C52=C51,"",COUNTIFS(C:C,C52,Y:Y,"<0"))) ->  | BD52: =IF(OR(C51=0,C52=0),"",IF(C52=C51,"",COUNTIFS(C:C,C52,Y:Y,"=0"))) ->  | BE52: =IF(BA52="","",SUMIFS($K$2:$K$77777,$C$2:$C$77777,$C52)) ->  | BF52: 80
V53: =IF(C53=0,"",K53/Служебный!$N$17*Служебный!$O$17*2) ->  | AE53: =IF(C53=0,"",VLOOKUP(WEEKDAY(C53,2),Служебный!K$4:L$10,2)) ->  | AG53: =IF(C53=0,"",VLOOKUP(G53,Служебный!B:G,6,)) ->  | AH53: =IF(C53=0,"",VLOOKUP(G53,Служебный!B:G,3,FALSE)) ->  | AI53: =IF(C53=0,"",VLOOKUP(G53,Служебный!B:G,4,FALSE)) ->  | AM53: =IF(C53=0,"",IF(D53<Служебный!$P$3,"Раньше открытия",IF(D53>Служебный!$P$6,"Позже закрытия",IF(D53<Служебный!$P$4,Служебный!$N$4,IF(D53<Служебный!$P$5,Служебный!$N$5,Служебный!$N$6))))) ->  | AZ53: =IF(C53=0,"",IF(AX53="",AZ52,IF(SUMIF(C:C,C53,Z:Z)<0,IF(AZ52<0,AZ52-1,-1),IF(AZ52>0,AZ52+1,1)))) ->  | BA53: =IF(OR(C52=0,C53=0),"",IF(C53=C52,"",COUNTIF(C:C,C53))) ->  | BB53: =IF(OR(C52=0,C53=0),"",IF(C53=C52,"",COUNTIFS(C:C,C53,Y:Y,">0"))) ->  | BC53: =IF(OR(C52=0,C53=0),"",IF(C53=C52,"",COUNTIFS(C:C,C53,Y:Y,"<0"))) ->  | BD53: =IF(OR(C52=0,C53=0),"",IF(C53=C52,"",COUNTIFS(C:C,C53,Y:Y,"=0"))) ->  | BE53: =IF(BA53="","",SUMIFS($K$2:$K$77777,$C$2:$C$77777,$C53)) ->  | BF53: 80
V54: =IF(C54=0,"",K54/Служебный!$N$17*Служебный!$O$17*2) ->  | AE54: =IF(C54=0,"",VLOOKUP(WEEKDAY(C54,2),Служебный!K$4:L$10,2)) ->  | AG54: =IF(C54=0,"",VLOOKUP(G54,Служебный!B:G,6,)) ->  | AH54: =IF(C54=0,"",VLOOKUP(G54,Служебный!B:G,3,FALSE)) ->  | AI54: =IF(C54=0,"",VLOOKUP(G54,Служебный!B:G,4,FALSE)) ->  | AM54: =IF(C54=0,"",IF(D54<Служебный!$P$3,"Раньше открытия",IF(D54>Служебный!$P$6,"Позже закрытия",IF(D54<Служебный!$P$4,Служебный!$N$4,IF(D54<Служебный!$P$5,Служебный!$N$5,Служебный!$N$6))))) ->  | AZ54: =IF(C54=0,"",IF(AX54="",AZ53,IF(SUMIF(C:C,C54,Z:Z)<0,IF(AZ53<0,AZ53-1,-1),IF(AZ53>0,AZ53+1,1)))) ->  | BA54: =IF(OR(C53=0,C54=0),"",IF(C54=C53,"",COUNTIF(C:C,C54))) ->  | BB54: =IF(OR(C53=0,C54=0),"",IF(C54=C53,"",COUNTIFS(C:C,C54,Y:Y,">0"))) ->  | BC54: =IF(OR(C53=0,C54=0),"",IF(C54=C53,"",COUNTIFS(C:C,C54,Y:Y,"<0"))) ->  | BD54: =IF(OR(C53=0,C54=0),"",IF(C54=C53,"",COUNTIFS(C:C,C54,Y:Y,"=0"))) ->  | BE54: =IF(BA54="","",SUMIFS($K$2:$K$77777,$C$2:$C$77777,$C54)) ->  | BF54: 80
V55: =IF(C55=0,"",K55/Служебный!$N$17*Служебный!$O$17*2) ->  | AE55: =IF(C55=0,"",VLOOKUP(WEEKDAY(C55,2),Служебный!K$4:L$10,2)) ->  | AG55: =IF(C55=0,"",VLOOKUP(G55,Служебный!B:G,6,)) ->  | AH55: =IF(C55=0,"",VLOOKUP(G55,Служебный!B:G,3,FALSE)) ->  | AI55: =IF(C55=0,"",VLOOKUP(G55,Служебный!B:G,4,FALSE)) ->  | AM55: =IF(C55=0,"",IF(D55<Служебный!$P$3,"Раньше открытия",IF(D55>Служебный!$P$6,"Позже закрытия",IF(D55<Служебный!$P$4,Служебный!$N$4,IF(D55<Служебный!$P$5,Служебный!$N$5,Служебный!$N$6))))) ->  | AZ55: =IF(C55=0,"",IF(AX55="",AZ54,IF(SUMIF(C:C,C55,Z:Z)<0,IF(AZ54<0,AZ54-1,-1),IF(AZ54>0,AZ54+1,1)))) ->  | BA55: =IF(OR(C54=0,C55=0),"",IF(C55=C54,"",COUNTIF(C:C,C55))) ->  | BB55: =IF(OR(C54=0,C55=0),"",IF(C55=C54,"",COUNTIFS(C:C,C55,Y:Y,">0"))) ->  | BC55: =IF(OR(C54=0,C55=0),"",IF(C55=C54,"",COUNTIFS(C:C,C55,Y:Y,"<0"))) ->  | BD55: =IF(OR(C54=0,C55=0),"",IF(C55=C54,"",COUNTIFS(C:C,C55,Y:Y,"=0"))) ->  | BE55: =IF(BA55="","",SUMIFS($K$2:$K$77777,$C$2:$C$77777,$C55)) ->  | BF55: 80
V56: =IF(C56=0,"",K56/Служебный!$N$17*Служебный!$O$17*2) ->  | AE56: =IF(C56=0,"",VLOOKUP(WEEKDAY(C56,2),Служебный!K$4:L$10,2)) ->  | AG56: =IF(C56=0,"",VLOOKUP(G56,Служебный!B:G,6,)) ->  | AH56: =IF(C56=0,"",VLOOKUP(G56,Служебный!B:G,3,FALSE)) ->  | AI56: =IF(C56=0,"",VLOOKUP(G56,Служебный!B:G,4,FALSE)) ->  | AM56: =IF(C56=0,"",IF(D56<Служебный!$P$3,"Раньше открытия",IF(D56>Служебный!$P$6,"Позже закрытия",IF(D56<Служебный!$P$4,Служебный!$N$4,IF(D56<Служебный!$P$5,Служебный!$N$5,Служебный!$N$6))))) ->  | AZ56: =IF(C56=0,"",IF(AX56="",AZ55,IF(SUMIF(C:C,C56,Z:Z)<0,IF(AZ55<0,AZ55-1,-1),IF(AZ55>0,AZ55+1,1)))) ->  | BA56: =IF(OR(C55=0,C56=0),"",IF(C56=C55,"",COUNTIF(C:C,C56))) ->  | BB56: =IF(OR(C55=0,C56=0),"",IF(C56=C55,"",COUNTIFS(C:C,C56,Y:Y,">0"))) ->  | BC56: =IF(OR(C55=0,C56=0),"",IF(C56=C55,"",COUNTIFS(C:C,C56,Y:Y,"<0"))) ->  | BD56: =IF(OR(C55=0,C56=0),"",IF(C56=C55,"",COUNTIFS(C:C,C56,Y:Y,"=0"))) ->  | BE56: =IF(BA56="","",SUMIFS($K$2:$K$77777,$C$2:$C$77777,$C56)) ->  | BF56: 80
B57: =IF(C57=0,"",B56+1) ->  | V57: =IF(C57=0,"",K57/Служебный!$N$17*Служебный!$O$17*2) ->  | AE57: =IF(C57=0,"",VLOOKUP(WEEKDAY(C57,2),Служебный!K$4:L$10,2)) ->  | AG57: =IF(C57=0,"",VLOOKUP(G57,Служебный!B:G,6,)) ->  | AH57: =IF(C57=0,"",VLOOKUP(G57,Служебный!B:G,3,FALSE)) ->  | AI57: =IF(C57=0,"",VLOOKUP(G57,Служебный!B:G,4,FALSE)) ->  | AM57: =IF(C57=0,"",IF(D57<Служебный!$P$3,"Раньше открытия",IF(D57>Служебный!$P$6,"Позже закрытия",IF(D57<Служебный!$P$4,Служебный!$N$4,IF(D57<Служебный!$P$5,Служебный!$N$5,Служебный!$N$6))))) ->  | AZ57: =IF(C57=0,"",IF(AX57="",AZ56,IF(SUMIF(C:C,C57,Z:Z)<0,IF(AZ56<0,AZ56-1,-1),IF(AZ56>0,AZ56+1,1)))) ->  | BA57: =IF(OR(C56=0,C57=0),"",IF(C57=C56,"",COUNTIF(C:C,C57))) ->  | BB57: =IF(OR(C56=0,C57=0),"",IF(C57=C56,"",COUNTIFS(C:C,C57,Y:Y,">0"))) ->  | BC57: =IF(OR(C56=0,C57=0),"",IF(C57=C56,"",COUNTIFS(C:C,C57,Y:Y,"<0"))) ->  | BD57: =IF(OR(C56=0,C57=0),"",IF(C57=C56,"",COUNTIFS(C:C,C57,Y:Y,"=0"))) ->  | BE57: =IF(BA57="","",SUMIFS($K$2:$K$77777,$C$2:$C$77777,$C57)) ->  | BF57: 80
V58: =IF(C58=0,"",K58/Служебный!$N$17*Служебный!$O$17*2) ->  | AE58: =IF(C58=0,"",VLOOKUP(WEEKDAY(C58,2),Служебный!K$4:L$10,2)) ->  | AG58: =IF(C58=0,"",VLOOKUP(G58,Служебный!B:G,6,)) ->  | AH58: =IF(C58=0,"",VLOOKUP(G58,Служебный!B:G,3,FALSE)) ->  | AI58: =IF(C58=0,"",VLOOKUP(G58,Служебный!B:G,4,FALSE)) ->  | AM58: =IF(C58=0,"",IF(D58<Служебный!$P$3,"Раньше открытия",IF(D58>Служебный!$P$6,"Позже закрытия",IF(D58<Служебный!$P$4,Служебный!$N$4,IF(D58<Служебный!$P$5,Служебный!$N$5,Служебный!$N$6))))) ->  | AZ58: =IF(C58=0,"",IF(AX58="",AZ57,IF(SUMIF(C:C,C58,Z:Z)<0,IF(AZ57<0,AZ57-1,-1),IF(AZ57>0,AZ57+1,1)))) ->  | BA58: =IF(OR(C57=0,C58=0),"",IF(C58=C57,"",COUNTIF(C:C,C58))) ->  | BB58: =IF(OR(C57=0,C58=0),"",IF(C58=C57,"",COUNTIFS(C:C,C58,Y:Y,">0"))) ->  | BC58: =IF(OR(C57=0,C58=0),"",IF(C58=C57,"",COUNTIFS(C:C,C58,Y:Y,"<0"))) ->  | BD58: =IF(OR(C57=0,C58=0),"",IF(C58=C57,"",COUNTIFS(C:C,C58,Y:Y,"=0"))) ->  | BE58: =IF(BA58="","",SUMIFS($K$2:$K$77777,$C$2:$C$77777,$C58)) ->  | BF58: 80
B59: =IF(C59=0,"",B58+1) ->  | V59: =IF(C59=0,"",K59/Служебный!$N$17*Служебный!$O$17*2) ->  | AE59: =IF(C59=0,"",VLOOKUP(WEEKDAY(C59,2),Служебный!K$4:L$10,2)) ->  | AG59: =IF(C59=0,"",VLOOKUP(G59,Служебный!B:G,6,)) ->  | AH59: =IF(C59=0,"",VLOOKUP(G59,Служебный!B:G,3,FALSE)) ->  | AI59: =IF(C59=0,"",VLOOKUP(G59,Служебный!B:G,4,FALSE)) ->  | AM59: =IF(C59=0,"",IF(D59<Служебный!$P$3,"Раньше открытия",IF(D59>Служебный!$P$6,"Позже закрытия",IF(D59<Служебный!$P$4,Служебный!$N$4,IF(D59<Служебный!$P$5,Служебный!$N$5,Служебный!$N$6))))) ->  | AZ59: =IF(C59=0,"",IF(AX59="",AZ58,IF(SUMIF(C:C,C59,Z:Z)<0,IF(AZ58<0,AZ58-1,-1),IF(AZ58>0,AZ58+1,1)))) ->  | BA59: =IF(OR(C58=0,C59=0),"",IF(C59=C58,"",COUNTIF(C:C,C59))) ->  | BB59: =IF(OR(C58=0,C59=0),"",IF(C59=C58,"",COUNTIFS(C:C,C59,Y:Y,">0"))) ->  | BC59: =IF(OR(C58=0,C59=0),"",IF(C59=C58,"",COUNTIFS(C:C,C59,Y:Y,"<0"))) ->  | BD59: =IF(OR(C58=0,C59=0),"",IF(C59=C58,"",COUNTIFS(C:C,C59,Y:Y,"=0"))) ->  | BE59: =IF(BA59="","",SUMIFS($K$2:$K$77777,$C$2:$C$77777,$C59)) ->  | BF59: 80
A60: =IF(C60=0,"",Z60) ->  | B60: =IF(C60=0,"",B59+1) ->  | V60: =IF(C60=0,"",K60/Служебный!$N$17*Служебный!$O$17*2) ->  | AE60: =IF(C60=0,"",VLOOKUP(WEEKDAY(C60,2),Служебный!K$4:L$10,2)) ->  | AG60: =IF(C60=0,"",VLOOKUP(G60,Служебный!B:G,6,)) ->  | AH60: =IF(C60=0,"",VLOOKUP(G60,Служебный!B:G,3,FALSE)) ->  | AI60: =IF(C60=0,"",VLOOKUP(G60,Служебный!B:G,4,FALSE)) ->  | AM60: =IF(C60=0,"",IF(D60<Служебный!$P$3,"Раньше открытия",IF(D60>Служебный!$P$6,"Позже закрытия",IF(D60<Служебный!$P$4,Служебный!$N$4,IF(D60<Служебный!$P$5,Служебный!$N$5,Служебный!$N$6))))) ->  | AZ60: =IF(C60=0,"",IF(AX60="",AZ59,IF(SUMIF(C:C,C60,Z:Z)<0,IF(AZ59<0,AZ59-1,-1),IF(AZ59>0,AZ59+1,1)))) ->  | BA60: =IF(OR(C59=0,C60=0),"",IF(C60=C59,"",COUNTIF(C:C,C60))) ->  | BB60: =IF(OR(C59=0,C60=0),"",IF(C60=C59,"",COUNTIFS(C:C,C60,Y:Y,">0"))) ->  | BC60: =IF(OR(C59=0,C60=0),"",IF(C60=C59,"",COUNTIFS(C:C,C60,Y:Y,"<0"))) ->  | BD60: =IF(OR(C59=0,C60=0),"",IF(C60=C59,"",COUNTIFS(C:C,C60,Y:Y,"=0"))) ->  | BE60: =IF(BA60="","",SUMIFS($K$2:$K$77777,$C$2:$C$77777,$C60)) ->  | BF60: 80
B61: =IF(C61=0,"",B60+1) ->  | V61: =IF(C61=0,"",K61/Служебный!$N$17*Служебный!$O$17*2) ->  | AE61: =IF(C61=0,"",VLOOKUP(WEEKDAY(C61,2),Служебный!K$4:L$10,2)) ->  | AG61: =IF(C61=0,"",VLOOKUP(G61,Служебный!B:G,6,)) ->  | AH61: =IF(C61=0,"",VLOOKUP(G61,Служебный!B:G,3,FALSE)) ->  | AI61: =IF(C61=0,"",VLOOKUP(G61,Служебный!B:G,4,FALSE)) ->  | AM61: =IF(C61=0,"",IF(D61<Служебный!$P$3,"Раньше открытия",IF(D61>Служебный!$P$6,"Позже закрытия",IF(D61<Служебный!$P$4,Служебный!$N$4,IF(D61<Служебный!$P$5,Служебный!$N$5,Служебный!$N$6))))) ->  | AZ61: =IF(C61=0,"",IF(AX61="",AZ60,IF(SUMIF(C:C,C61,Z:Z)<0,IF(AZ60<0,AZ60-1,-1),IF(AZ60>0,AZ60+1,1)))) ->  | BA61: =IF(OR(C60=0,C61=0),"",IF(C61=C60,"",COUNTIF(C:C,C61))) ->  | BB61: =IF(OR(C60=0,C61=0),"",IF(C61=C60,"",COUNTIFS(C:C,C61,Y:Y,">0"))) ->  | BC61: =IF(OR(C60=0,C61=0),"",IF(C61=C60,"",COUNTIFS(C:C,C61,Y:Y,"<0"))) ->  | BD61: =IF(OR(C60=0,C61=0),"",IF(C61=C60,"",COUNTIFS(C:C,C61,Y:Y,"=0"))) ->  | BE61: =IF(BA61="","",SUMIFS($K$2:$K$77777,$C$2:$C$77777,$C61)) ->  | BF61: 80
V62: =IF(C62=0,"",K62/Служебный!$N$17*Служебный!$O$17*2) ->  | AE62: =IF(C62=0,"",VLOOKUP(WEEKDAY(C62,2),Служебный!K$4:L$10,2)) ->  | AG62: =IF(C62=0,"",VLOOKUP(G62,Служебный!B:G,6,)) ->  | AH62: =IF(C62=0,"",VLOOKUP(G62,Служебный!B:G,3,FALSE)) ->  | AI62: =IF(C62=0,"",VLOOKUP(G62,Служебный!B:G,4,FALSE)) ->  | AM62: =IF(C62=0,"",IF(D62<Служебный!$P$3,"Раньше открытия",IF(D62>Служебный!$P$6,"Позже закрытия",IF(D62<Служебный!$P$4,Служебный!$N$4,IF(D62<Служебный!$P$5,Служебный!$N$5,Служебный!$N$6))))) ->  | AZ62: =IF(C62=0,"",IF(AX62="",AZ61,IF(SUMIF(C:C,C62,Z:Z)<0,IF(AZ61<0,AZ61-1,-1),IF(AZ61>0,AZ61+1,1)))) ->  | BA62: =IF(OR(C61=0,C62=0),"",IF(C62=C61,"",COUNTIF(C:C,C62))) ->  | BB62: =IF(OR(C61=0,C62=0),"",IF(C62=C61,"",COUNTIFS(C:C,C62,Y:Y,">0"))) ->  | BC62: =IF(OR(C61=0,C62=0),"",IF(C62=C61,"",COUNTIFS(C:C,C62,Y:Y,"<0"))) ->  | BD62: =IF(OR(C61=0,C62=0),"",IF(C62=C61,"",COUNTIFS(C:C,C62,Y:Y,"=0"))) ->  | BE62: =IF(BA62="","",SUMIFS($K$2:$K$77777,$C$2:$C$77777,$C62)) ->  | BF62: 80
V63: =IF(C63=0,"",K63/Служебный!$N$17*Служебный!$O$17*2) ->  | AE63: =IF(C63=0,"",VLOOKUP(WEEKDAY(C63,2),Служебный!K$4:L$10,2)) ->  | AG63: =IF(C63=0,"",VLOOKUP(G63,Служебный!B:G,6,)) ->  | AH63: =IF(C63=0,"",VLOOKUP(G63,Служебный!B:G,3,FALSE)) ->  | AI63: =IF(C63=0,"",VLOOKUP(G63,Служебный!B:G,4,FALSE)) ->  | AM63: =IF(C63=0,"",IF(D63<Служебный!$P$3,"Раньше открытия",IF(D63>Служебный!$P$6,"Позже закрытия",IF(D63<Служебный!$P$4,Служебный!$N$4,IF(D63<Служебный!$P$5,Служебный!$N$5,Служебный!$N$6))))) ->  | AZ63: =IF(C63=0,"",IF(AX63="",AZ62,IF(SUMIF(C:C,C63,Z:Z)<0,IF(AZ62<0,AZ62-1,-1),IF(AZ62>0,AZ62+1,1)))) ->  | BA63: =IF(OR(C62=0,C63=0),"",IF(C63=C62,"",COUNTIF(C:C,C63))) ->  | BB63: =IF(OR(C62=0,C63=0),"",IF(C63=C62,"",COUNTIFS(C:C,C63,Y:Y,">0"))) ->  | BC63: =IF(OR(C62=0,C63=0),"",IF(C63=C62,"",COUNTIFS(C:C,C63,Y:Y,"<0"))) ->  | BD63: =IF(OR(C62=0,C63=0),"",IF(C63=C62,"",COUNTIFS(C:C,C63,Y:Y,"=0"))) ->  | BE63: =IF(BA63="","",SUMIFS($K$2:$K$77777,$C$2:$C$77777,$C63)) ->  | BF63: 80
B64: =IF(C64=0,"",B63+1) ->  | V64: =IF(C64=0,"",K64/Служебный!$N$17*Служебный!$O$17*2) ->  | AE64: =IF(C64=0,"",VLOOKUP(WEEKDAY(C64,2),Служебный!K$4:L$10,2)) ->  | AG64: =IF(C64=0,"",VLOOKUP(G64,Служебный!B:G,6,)) ->  | AH64: =IF(C64=0,"",VLOOKUP(G64,Служебный!B:G,3,FALSE)) ->  | AI64: =IF(C64=0,"",VLOOKUP(G64,Служебный!B:G,4,FALSE)) ->  | AM64: =IF(C64=0,"",IF(D64<Служебный!$P$3,"Раньше открытия",IF(D64>Служебный!$P$6,"Позже закрытия",IF(D64<Служебный!$P$4,Служебный!$N$4,IF(D64<Служебный!$P$5,Служебный!$N$5,Служебный!$N$6))))) ->  | AZ64: =IF(C64=0,"",IF(AX64="",AZ63,IF(SUMIF(C:C,C64,Z:Z)<0,IF(AZ63<0,AZ63-1,-1),IF(AZ63>0,AZ63+1,1)))) ->  | BA64: =IF(OR(C63=0,C64=0),"",IF(C64=C63,"",COUNTIF(C:C,C64))) ->  | BB64: =IF(OR(C63=0,C64=0),"",IF(C64=C63,"",COUNTIFS(C:C,C64,Y:Y,">0"))) ->  | BC64: =IF(OR(C63=0,C64=0),"",IF(C64=C63,"",COUNTIFS(C:C,C64,Y:Y,"<0"))) ->  | BD64: =IF(OR(C63=0,C64=0),"",IF(C64=C63,"",COUNTIFS(C:C,C64,Y:Y,"=0"))) ->  | BE64: =IF(BA64="","",SUMIFS($K$2:$K$77777,$C$2:$C$77777,$C64)) ->  | BF64: 80
V65: =IF(C65=0,"",K65/Служебный!$N$17*Служебный!$O$17*2) ->  | AE65: =IF(C65=0,"",VLOOKUP(WEEKDAY(C65,2),Служебный!K$4:L$10,2)) ->  | AG65: =IF(C65=0,"",VLOOKUP(G65,Служебный!B:G,6,)) ->  | AH65: =IF(C65=0,"",VLOOKUP(G65,Служебный!B:G,3,FALSE)) ->  | AI65: =IF(C65=0,"",VLOOKUP(G65,Служебный!B:G,4,FALSE)) ->  | AM65: =IF(C65=0,"",IF(D65<Служебный!$P$3,"Раньше открытия",IF(D65>Служебный!$P$6,"Позже закрытия",IF(D65<Служебный!$P$4,Служебный!$N$4,IF(D65<Служебный!$P$5,Служебный!$N$5,Служебный!$N$6))))) ->  | AZ65: =IF(C65=0,"",IF(AX65="",AZ64,IF(SUMIF(C:C,C65,Z:Z)<0,IF(AZ64<0,AZ64-1,-1),IF(AZ64>0,AZ64+1,1)))) ->  | BA65: =IF(OR(C64=0,C65=0),"",IF(C65=C64,"",COUNTIF(C:C,C65))) ->  | BB65: =IF(OR(C64=0,C65=0),"",IF(C65=C64,"",COUNTIFS(C:C,C65,Y:Y,">0"))) ->  | BC65: =IF(OR(C64=0,C65=0),"",IF(C65=C64,"",COUNTIFS(C:C,C65,Y:Y,"<0"))) ->  | BD65: =IF(OR(C64=0,C65=0),"",IF(C65=C64,"",COUNTIFS(C:C,C65,Y:Y,"=0"))) ->  | BE65: =IF(BA65="","",SUMIFS($K$2:$K$77777,$C$2:$C$77777,$C65)) ->  | BF65: 80
A66: =IF(C66=0,"",Z66) ->  | V66: =IF(C66=0,"",K66/Служебный!$N$17*Служебный!$O$17*2) ->  | W66: =IF(C66=0,"",(I66*K66)) ->  | X66: =IF(C66=0,"",(J66*K66)) ->  | AC66: =IF(C66=0,"",AA66+Y66) ->  | AD66: =IF(C66=0,"",AB66+Z66) ->  | AE66: =IF(C66=0,"",VLOOKUP(WEEKDAY(C66,2),Служебный!K$4:L$10,2)) ->  | AG66: =IF(C66=0,"",VLOOKUP(G66,Служебный!B:G,6,)) ->  | AH66: =IF(C66=0,"",VLOOKUP(G66,Служебный!B:G,3,FALSE)) ->  | AI66: =IF(C66=0,"",VLOOKUP(G66,Служебный!B:G,4,FALSE)) ->  | AK66: =IF(OR(E66=0,C66=0,AJ66=0),"",IF(E66>C66,"Среднесрок",FLOOR((AJ66/60),0.1))) ->  | AM66: =IF(C66=0,"",IF(D66<Служебный!$P$3,"Раньше открытия",IF(D66>Служебный!$P$6,"Позже закрытия",IF(D66<Служебный!$P$4,Служебный!$N$4,IF(D66<Служебный!$P$5,Служебный!$N$5,Служебный!$N$6))))) ->  | AW66: =IF(OR(C65=0,C66=0),"",IF(C66=C65,"",AB66)) ->  | AX66: =IF(OR(C65=0,C66=0),"",IF(C66=C67,"",AD66)) ->  | AZ66: =IF(C66=0,"",IF(AX66="",AZ65,IF(SUMIF(C:C,C66,Z:Z)<0,IF(AZ65<0,AZ65-1,-1),IF(AZ65>0,AZ65+1,1)))) ->  | BA66: =IF(OR(C65=0,C66=0),"",IF(C66=C65,"",COUNTIF(C:C,C66))) ->  | BB66: =IF(OR(C65=0,C66=0),"",IF(C66=C65,"",COUNTIFS(C:C,C66,Y:Y,">0"))) ->  | BC66: =IF(OR(C65=0,C66=0),"",IF(C66=C65,"",COUNTIFS(C:C,C66,Y:Y,"<0"))) ->  | BD66: =IF(OR(C65=0,C66=0),"",IF(C66=C65,"",COUNTIFS(C:C,C66,Y:Y,"=0"))) ->  | BE66: =IF(BA66="","",SUMIFS($K$2:$K$77777,$C$2:$C$77777,$C66)) ->  | BF66: 80
L67: =IF(C67=0,"",TEXT(C67,"ДД.ММ.ГГ")&" "&G67& " "&H67) ->  | V67: =IF(C67=0,"",K67/Служебный!$N$17*Служебный!$O$17*2) ->  | AA67: =IF(C67=0,"",AA66+Y66) ->  | AB67: =IF(C67=0,"",AB66+Z66) ->  | AE67: =IF(C67=0,"",VLOOKUP(WEEKDAY(C67,2),Служебный!K$4:L$10,2)) ->  | AG67: =IF(C67=0,"",VLOOKUP(G67,Служебный!B:G,6,)) ->  | AH67: =IF(C67=0,"",VLOOKUP(G67,Служебный!B:G,3,FALSE)) ->  | AI67: =IF(C67=0,"",VLOOKUP(G67,Служебный!B:G,4,FALSE)) ->  | AM67: =IF(C67=0,"",IF(D67<Служебный!$P$3,"Раньше открытия",IF(D67>Служебный!$P$6,"Позже закрытия",IF(D67<Служебный!$P$4,Служебный!$N$4,IF(D67<Служебный!$P$5,Служебный!$N$5,Служебный!$N$6))))) ->  | AZ67: =IF(C67=0,"",IF(AX67="",AZ66,IF(SUMIF(C:C,C67,Z:Z)<0,IF(AZ66<0,AZ66-1,-1),IF(AZ66>0,AZ66+1,1)))) ->  | BA67: =IF(OR(C66=0,C67=0),"",IF(C67=C66,"",COUNTIF(C:C,C67))) ->  | BB67: =IF(OR(C66=0,C67=0),"",IF(C67=C66,"",COUNTIFS(C:C,C67,Y:Y,">0"))) ->  | BC67: =IF(OR(C66=0,C67=0),"",IF(C67=C66,"",COUNTIFS(C:C,C67,Y:Y,"<0"))) ->  | BD67: =IF(OR(C66=0,C67=0),"",IF(C67=C66,"",COUNTIFS(C:C,C67,Y:Y,"=0"))) ->  | BE67: =IF(BA67="","",SUMIFS($K$2:$K$77777,$C$2:$C$77777,$C67)) ->  | BF67: 80 | BG67: =Z67*BF67% ->  | BH67: =Z67-BG67 -> 
V68: =IF(C68=0,"",K68/Служебный!$N$17*Служебный!$O$17*2) ->  | AE68: =IF(C68=0,"",VLOOKUP(WEEKDAY(C68,2),Служебный!K$4:L$10,2)) ->  | AG68: =IF(C68=0,"",VLOOKUP(G68,Служебный!B:G,6,)) ->  | AH68: =IF(C68=0,"",VLOOKUP(G68,Служебный!B:G,3,FALSE)) ->  | AI68: =IF(C68=0,"",VLOOKUP(G68,Служебный!B:G,4,FALSE)) ->  | AM68: =IF(C68=0,"",IF(D68<Служебный!$P$3,"Раньше открытия",IF(D68>Служебный!$P$6,"Позже закрытия",IF(D68<Служебный!$P$4,Служебный!$N$4,IF(D68<Служебный!$P$5,Служебный!$N$5,Служебный!$N$6))))) ->  | AZ68: =IF(C68=0,"",IF(AX68="",AZ67,IF(SUMIF(C:C,C68,Z:Z)<0,IF(AZ67<0,AZ67-1,-1),IF(AZ67>0,AZ67+1,1)))) ->  | BA68: =IF(OR(C67=0,C68=0),"",IF(C68=C67,"",COUNTIF(C:C,C68))) ->  | BB68: =IF(OR(C67=0,C68=0),"",IF(C68=C67,"",COUNTIFS(C:C,C68,Y:Y,">0"))) ->  | BC68: =IF(OR(C67=0,C68=0),"",IF(C68=C67,"",COUNTIFS(C:C,C68,Y:Y,"<0"))) ->  | BD68: =IF(OR(C67=0,C68=0),"",IF(C68=C67,"",COUNTIFS(C:C,C68,Y:Y,"=0"))) ->  | BE68: =IF(BA68="","",SUMIFS($K$2:$K$77777,$C$2:$C$77777,$C68)) ->  | BF68: 80
V69: =IF(C69=0,"",K69/Служебный!$N$17*Служебный!$O$17*2) ->  | AE69: =IF(C69=0,"",VLOOKUP(WEEKDAY(C69,2),Служебный!K$4:L$10,2)) ->  | AG69: =IF(C69=0,"",VLOOKUP(G69,Служебный!B:G,6,)) ->  | AH69: =IF(C69=0,"",VLOOKUP(G69,Служебный!B:G,3,FALSE)) ->  | AI69: =IF(C69=0,"",VLOOKUP(G69,Служебный!B:G,4,FALSE)) ->  | AM69: =IF(C69=0,"",IF(D69<Служебный!$P$3,"Раньше открытия",IF(D69>Служебный!$P$6,"Позже закрытия",IF(D69<Служебный!$P$4,Служебный!$N$4,IF(D69<Служебный!$P$5,Служебный!$N$5,Служебный!$N$6))))) ->  | AZ69: =IF(C69=0,"",IF(AX69="",AZ68,IF(SUMIF(C:C,C69,Z:Z)<0,IF(AZ68<0,AZ68-1,-1),IF(AZ68>0,AZ68+1,1)))) ->  | BA69: =IF(OR(C68=0,C69=0),"",IF(C69=C68,"",COUNTIF(C:C,C69))) ->  | BB69: =IF(OR(C68=0,C69=0),"",IF(C69=C68,"",COUNTIFS(C:C,C69,Y:Y,">0"))) ->  | BC69: =IF(OR(C68=0,C69=0),"",IF(C69=C68,"",COUNTIFS(C:C,C69,Y:Y,"<0"))) ->  | BD69: =IF(OR(C68=0,C69=0),"",IF(C69=C68,"",COUNTIFS(C:C,C69,Y:Y,"=0"))) ->  | BE69: =IF(BA69="","",SUMIFS($K$2:$K$77777,$C$2:$C$77777,$C69)) ->  | BF69: 80
V70: =IF(C70=0,"",K70/Служебный!$N$17*Служебный!$O$17*2) ->  | AE70: =IF(C70=0,"",VLOOKUP(WEEKDAY(C70,2),Служебный!K$4:L$10,2)) ->  | AG70: =IF(C70=0,"",VLOOKUP(G70,Служебный!B:G,6,)) ->  | AH70: =IF(C70=0,"",VLOOKUP(G70,Служебный!B:G,3,FALSE)) ->  | AI70: =IF(C70=0,"",VLOOKUP(G70,Служебный!B:G,4,FALSE)) ->  | AM70: =IF(C70=0,"",IF(D70<Служебный!$P$3,"Раньше открытия",IF(D70>Служебный!$P$6,"Позже закрытия",IF(D70<Служебный!$P$4,Служебный!$N$4,IF(D70<Служебный!$P$5,Служебный!$N$5,Служебный!$N$6))))) ->  | AZ70: =IF(C70=0,"",IF(AX70="",AZ69,IF(SUMIF(C:C,C70,Z:Z)<0,IF(AZ69<0,AZ69-1,-1),IF(AZ69>0,AZ69+1,1)))) ->  | BA70: =IF(OR(C69=0,C70=0),"",IF(C70=C69,"",COUNTIF(C:C,C70))) ->  | BB70: =IF(OR(C69=0,C70=0),"",IF(C70=C69,"",COUNTIFS(C:C,C70,Y:Y,">0"))) ->  | BC70: =IF(OR(C69=0,C70=0),"",IF(C70=C69,"",COUNTIFS(C:C,C70,Y:Y,"<0"))) ->  | BD70: =IF(OR(C69=0,C70=0),"",IF(C70=C69,"",COUNTIFS(C:C,C70,Y:Y,"=0"))) ->  | BE70: =IF(BA70="","",SUMIFS($K$2:$K$77777,$C$2:$C$77777,$C70)) ->  | BF70: 80
V71: =IF(C71=0,"",K71/Служебный!$N$17*Служебный!$O$17*2) ->  | AE71: =IF(C71=0,"",VLOOKUP(WEEKDAY(C71,2),Служебный!K$4:L$10,2)) ->  | AG71: =IF(C71=0,"",VLOOKUP(G71,Служебный!B:G,6,)) ->  | AH71: =IF(C71=0,"",VLOOKUP(G71,Служебный!B:G,3,FALSE)) ->  | AI71: =IF(C71=0,"",VLOOKUP(G71,Служебный!B:G,4,FALSE)) ->  | AM71: =IF(C71=0,"",IF(D71<Служебный!$P$3,"Раньше открытия",IF(D71>Служебный!$P$6,"Позже закрытия",IF(D71<Служебный!$P$4,Служебный!$N$4,IF(D71<Служебный!$P$5,Служебный!$N$5,Служебный!$N$6))))) ->  | AZ71: =IF(C71=0,"",IF(AX71="",AZ70,IF(SUMIF(C:C,C71,Z:Z)<0,IF(AZ70<0,AZ70-1,-1),IF(AZ70>0,AZ70+1,1)))) ->  | BA71: =IF(OR(C70=0,C71=0),"",IF(C71=C70,"",COUNTIF(C:C,C71))) ->  | BB71: =IF(OR(C70=0,C71=0),"",IF(C71=C70,"",COUNTIFS(C:C,C71,Y:Y,">0"))) ->  | BC71: =IF(OR(C70=0,C71=0),"",IF(C71=C70,"",COUNTIFS(C:C,C71,Y:Y,"<0"))) ->  | BD71: =IF(OR(C70=0,C71=0),"",IF(C71=C70,"",COUNTIFS(C:C,C71,Y:Y,"=0"))) ->  | BE71: =IF(BA71="","",SUMIFS($K$2:$K$77777,$C$2:$C$77777,$C71)) ->  | BF71: 80
V72: =IF(C72=0,"",K72/Служебный!$N$17*Служебный!$O$17*2) ->  | AE72: =IF(C72=0,"",VLOOKUP(WEEKDAY(C72,2),Служебный!K$4:L$10,2)) ->  | AG72: =IF(C72=0,"",VLOOKUP(G72,Служебный!B:G,6,)) ->  | AH72: =IF(C72=0,"",VLOOKUP(G72,Служебный!B:G,3,FALSE)) ->  | AI72: =IF(C72=0,"",VLOOKUP(G72,Служебный!B:G,4,FALSE)) ->  | AM72: =IF(C72=0,"",IF(D72<Служебный!$P$3,"Раньше открытия",IF(D72>Служебный!$P$6,"Позже закрытия",IF(D72<Служебный!$P$4,Служебный!$N$4,IF(D72<Служебный!$P$5,Служебный!$N$5,Служебный!$N$6))))) ->  | AT72: =IF(U72="","",AT71+T72) ->  | AU72: =IF(OR(U72="",AT72=""),"",IFERROR(100*(U72-AT72)/AT72,"Заполните депозит")) ->  | AV72: =IF(U72="","",IFERROR(100*(U72-U71-T72)/(U71+T72),"Заполните депозит")) ->  | AZ72: =IF(C72=0,"",IF(AX72="",AZ71,IF(SUMIF(C:C,C72,Z:Z)<0,IF(AZ71<0,AZ71-1,-1),IF(AZ71>0,AZ71+1,1)))) ->  | BA72: =IF(OR(C71=0,C72=0),"",IF(C72=C71,"",COUNTIF(C:C,C72))) ->  | BB72: =IF(OR(C71=0,C72=0),"",IF(C72=C71,"",COUNTIFS(C:C,C72,Y:Y,">0"))) ->  | BC72: =IF(OR(C71=0,C72=0),"",IF(C72=C71,"",COUNTIFS(C:C,C72,Y:Y,"<0"))) ->  | BD72: =IF(OR(C71=0,C72=0),"",IF(C72=C71,"",COUNTIFS(C:C,C72,Y:Y,"=0"))) ->  | BE72: =IF(BA72="","",SUMIFS($K$2:$K$77777,$C$2:$C$77777,$C72)) ->  | BF72: 80
V73: =IF(C73=0,"",K73/Служебный!$N$17*Служебный!$O$17*2) ->  | AE73: =IF(C73=0,"",VLOOKUP(WEEKDAY(C73,2),Служебный!K$4:L$10,2)) ->  | AG73: =IF(C73=0,"",VLOOKUP(G73,Служебный!B:G,6,)) ->  | AH73: =IF(C73=0,"",VLOOKUP(G73,Служебный!B:G,3,FALSE)) ->  | AI73: =IF(C73=0,"",VLOOKUP(G73,Служебный!B:G,4,FALSE)) ->  | AM73: =IF(C73=0,"",IF(D73<Служебный!$P$3,"Раньше открытия",IF(D73>Служебный!$P$6,"Позже закрытия",IF(D73<Служебный!$P$4,Служебный!$N$4,IF(D73<Служебный!$P$5,Служебный!$N$5,Служебный!$N$6))))) ->  | AZ73: =IF(C73=0,"",IF(AX73="",AZ72,IF(SUMIF(C:C,C73,Z:Z)<0,IF(AZ72<0,AZ72-1,-1),IF(AZ72>0,AZ72+1,1)))) ->  | BA73: =IF(OR(C72=0,C73=0),"",IF(C73=C72,"",COUNTIF(C:C,C73))) ->  | BB73: =IF(OR(C72=0,C73=0),"",IF(C73=C72,"",COUNTIFS(C:C,C73,Y:Y,">0"))) ->  | BC73: =IF(OR(C72=0,C73=0),"",IF(C73=C72,"",COUNTIFS(C:C,C73,Y:Y,"<0"))) ->  | BD73: =IF(OR(C72=0,C73=0),"",IF(C73=C72,"",COUNTIFS(C:C,C73,Y:Y,"=0"))) ->  | BE73: =IF(BA73="","",SUMIFS($K$2:$K$77777,$C$2:$C$77777,$C73)) ->  | BF73: 80
V74: =IF(C74=0,"",K74/Служебный!$N$17*Служебный!$O$17*2) ->  | AE74: =IF(C74=0,"",VLOOKUP(WEEKDAY(C74,2),Служебный!K$4:L$10,2)) ->  | AG74: =IF(C74=0,"",VLOOKUP(G74,Служебный!B:G,6,)) ->  | AH74: =IF(C74=0,"",VLOOKUP(G74,Служебный!B:G,3,FALSE)) ->  | AI74: =IF(C74=0,"",VLOOKUP(G74,Служебный!B:G,4,FALSE)) ->  | AM74: =IF(C74=0,"",IF(D74<Служебный!$P$3,"Раньше открытия",IF(D74>Служебный!$P$6,"Позже закрытия",IF(D74<Служебный!$P$4,Служебный!$N$4,IF(D74<Служебный!$P$5,Служебный!$N$5,Служебный!$N$6))))) ->  | AZ74: =IF(C74=0,"",IF(AX74="",AZ73,IF(SUMIF(C:C,C74,Z:Z)<0,IF(AZ73<0,AZ73-1,-1),IF(AZ73>0,AZ73+1,1)))) ->  | BA74: =IF(OR(C73=0,C74=0),"",IF(C74=C73,"",COUNTIF(C:C,C74))) ->  | BB74: =IF(OR(C73=0,C74=0),"",IF(C74=C73,"",COUNTIFS(C:C,C74,Y:Y,">0"))) ->  | BC74: =IF(OR(C73=0,C74=0),"",IF(C74=C73,"",COUNTIFS(C:C,C74,Y:Y,"<0"))) ->  | BD74: =IF(OR(C73=0,C74=0),"",IF(C74=C73,"",COUNTIFS(C:C,C74,Y:Y,"=0"))) ->  | BE74: =IF(BA74="","",SUMIFS($K$2:$K$77777,$C$2:$C$77777,$C74)) ->  | BF74: 80
V75: =IF(C75=0,"",K75/Служебный!$N$17*Служебный!$O$17*2) ->  | AE75: =IF(C75=0,"",VLOOKUP(WEEKDAY(C75,2),Служебный!K$4:L$10,2)) ->  | AG75: =IF(C75=0,"",VLOOKUP(G75,Служебный!B:G,6,)) ->  | AH75: =IF(C75=0,"",VLOOKUP(G75,Служебный!B:G,3,FALSE)) ->  | AI75: =IF(C75=0,"",VLOOKUP(G75,Служебный!B:G,4,FALSE)) ->  | AM75: =IF(C75=0,"",IF(D75<Служебный!$P$3,"Раньше открытия",IF(D75>Служебный!$P$6,"Позже закрытия",IF(D75<Служебный!$P$4,Служебный!$N$4,IF(D75<Служебный!$P$5,Служебный!$N$5,Служебный!$N$6))))) ->  | AZ75: =IF(C75=0,"",IF(AX75="",AZ74,IF(SUMIF(C:C,C75,Z:Z)<0,IF(AZ74<0,AZ74-1,-1),IF(AZ74>0,AZ74+1,1)))) ->  | BA75: =IF(OR(C74=0,C75=0),"",IF(C75=C74,"",COUNTIF(C:C,C75))) ->  | BB75: =IF(OR(C74=0,C75=0),"",IF(C75=C74,"",COUNTIFS(C:C,C75,Y:Y,">0"))) ->  | BC75: =IF(OR(C74=0,C75=0),"",IF(C75=C74,"",COUNTIFS(C:C,C75,Y:Y,"<0"))) ->  | BD75: =IF(OR(C74=0,C75=0),"",IF(C75=C74,"",COUNTIFS(C:C,C75,Y:Y,"=0"))) ->  | BE75: =IF(BA75="","",SUMIFS($K$2:$K$77777,$C$2:$C$77777,$C75)) ->  | BF75: 80
V76: =IF(C76=0,"",K76/Служебный!$N$17*Служебный!$O$17*2) ->  | AE76: =IF(C76=0,"",VLOOKUP(WEEKDAY(C76,2),Служебный!K$4:L$10,2)) ->  | AG76: =IF(C76=0,"",VLOOKUP(G76,Служебный!B:G,6,)) ->  | AH76: =IF(C76=0,"",VLOOKUP(G76,Служебный!B:G,3,FALSE)) ->  | AI76: =IF(C76=0,"",VLOOKUP(G76,Служебный!B:G,4,FALSE)) ->  | AM76: =IF(C76=0,"",IF(D76<Служебный!$P$3,"Раньше открытия",IF(D76>Служебный!$P$6,"Позже закрытия",IF(D76<Служебный!$P$4,Служебный!$N$4,IF(D76<Служебный!$P$5,Служебный!$N$5,Служебный!$N$6))))) ->  | AZ76: =IF(C76=0,"",IF(AX76="",AZ75,IF(SUMIF(C:C,C76,Z:Z)<0,IF(AZ75<0,AZ75-1,-1),IF(AZ75>0,AZ75+1,1)))) ->  | BA76: =IF(OR(C75=0,C76=0),"",IF(C76=C75,"",COUNTIF(C:C,C76))) ->  | BB76: =IF(OR(C75=0,C76=0),"",IF(C76=C75,"",COUNTIFS(C:C,C76,Y:Y,">0"))) ->  | BC76: =IF(OR(C75=0,C76=0),"",IF(C76=C75,"",COUNTIFS(C:C,C76,Y:Y,"<0"))) ->  | BD76: =IF(OR(C75=0,C76=0),"",IF(C76=C75,"",COUNTIFS(C:C,C76,Y:Y,"=0"))) ->  | BE76: =IF(BA76="","",SUMIFS($K$2:$K$77777,$C$2:$C$77777,$C76)) ->  | BF76: 80
V77: =IF(C77=0,"",K77/Служебный!$N$17*Служебный!$O$17*2) ->  | AE77: =IF(C77=0,"",VLOOKUP(WEEKDAY(C77,2),Служебный!K$4:L$10,2)) ->  | AG77: =IF(C77=0,"",VLOOKUP(G77,Служебный!B:G,6,)) ->  | AH77: =IF(C77=0,"",VLOOKUP(G77,Служебный!B:G,3,FALSE)) ->  | AI77: =IF(C77=0,"",VLOOKUP(G77,Служебный!B:G,4,FALSE)) ->  | AM77: =IF(C77=0,"",IF(D77<Служебный!$P$3,"Раньше открытия",IF(D77>Служебный!$P$6,"Позже закрытия",IF(D77<Служебный!$P$4,Служебный!$N$4,IF(D77<Служебный!$P$5,Служебный!$N$5,Служебный!$N$6))))) ->  | AZ77: =IF(C77=0,"",IF(AX77="",AZ76,IF(SUMIF(C:C,C77,Z:Z)<0,IF(AZ76<0,AZ76-1,-1),IF(AZ76>0,AZ76+1,1)))) ->  | BA77: =IF(OR(C76=0,C77=0),"",IF(C77=C76,"",COUNTIF(C:C,C77))) ->  | BB77: =IF(OR(C76=0,C77=0),"",IF(C77=C76,"",COUNTIFS(C:C,C77,Y:Y,">0"))) ->  | BC77: =IF(OR(C76=0,C77=0),"",IF(C77=C76,"",COUNTIFS(C:C,C77,Y:Y,"<0"))) ->  | BD77: =IF(OR(C76=0,C77=0),"",IF(C77=C76,"",COUNTIFS(C:C,C77,Y:Y,"=0"))) ->  | BE77: =IF(BA77="","",SUMIFS($K$2:$K$77777,$C$2:$C$77777,$C77)) ->  | BF77: 80
V78: =IF(C78=0,"",K78/Служебный!$N$17*Служебный!$O$17*2) ->  | AE78: =IF(C78=0,"",VLOOKUP(WEEKDAY(C78,2),Служебный!K$4:L$10,2)) ->  | AG78: =IF(C78=0,"",VLOOKUP(G78,Служебный!B:G,6,)) ->  | AH78: =IF(C78=0,"",VLOOKUP(G78,Служебный!B:G,3,FALSE)) ->  | AI78: =IF(C78=0,"",VLOOKUP(G78,Служебный!B:G,4,FALSE)) ->  | AM78: =IF(C78=0,"",IF(D78<Служебный!$P$3,"Раньше открытия",IF(D78>Служебный!$P$6,"Позже закрытия",IF(D78<Служебный!$P$4,Служебный!$N$4,IF(D78<Служебный!$P$5,Служебный!$N$5,Служебный!$N$6))))) ->  | AZ78: =IF(C78=0,"",IF(AX78="",AZ77,IF(SUMIF(C:C,C78,Z:Z)<0,IF(AZ77<0,AZ77-1,-1),IF(AZ77>0,AZ77+1,1)))) ->  | BA78: =IF(OR(C77=0,C78=0),"",IF(C78=C77,"",COUNTIF(C:C,C78))) ->  | BB78: =IF(OR(C77=0,C78=0),"",IF(C78=C77,"",COUNTIFS(C:C,C78,Y:Y,">0"))) ->  | BC78: =IF(OR(C77=0,C78=0),"",IF(C78=C77,"",COUNTIFS(C:C,C78,Y:Y,"<0"))) ->  | BD78: =IF(OR(C77=0,C78=0),"",IF(C78=C77,"",COUNTIFS(C:C,C78,Y:Y,"=0"))) ->  | BE78: =IF(BA78="","",SUMIFS($K$2:$K$77777,$C$2:$C$77777,$C78)) ->  | BF78: 80
V79: =IF(C79=0,"",K79/Служебный!$N$17*Служебный!$O$17*2) ->  | AE79: =IF(C79=0,"",VLOOKUP(WEEKDAY(C79,2),Служебный!K$4:L$10,2)) ->  | AG79: =IF(C79=0,"",VLOOKUP(G79,Служебный!B:G,6,)) ->  | AH79: =IF(C79=0,"",VLOOKUP(G79,Служебный!B:G,3,FALSE)) ->  | AI79: =IF(C79=0,"",VLOOKUP(G79,Служебный!B:G,4,FALSE)) ->  | AM79: =IF(C79=0,"",IF(D79<Служебный!$P$3,"Раньше открытия",IF(D79>Служебный!$P$6,"Позже закрытия",IF(D79<Служебный!$P$4,Служебный!$N$4,IF(D79<Служебный!$P$5,Служебный!$N$5,Служебный!$N$6))))) ->  | AZ79: =IF(C79=0,"",IF(AX79="",AZ78,IF(SUMIF(C:C,C79,Z:Z)<0,IF(AZ78<0,AZ78-1,-1),IF(AZ78>0,AZ78+1,1)))) ->  | BA79: =IF(OR(C78=0,C79=0),"",IF(C79=C78,"",COUNTIF(C:C,C79))) ->  | BB79: =IF(OR(C78=0,C79=0),"",IF(C79=C78,"",COUNTIFS(C:C,C79,Y:Y,">0"))) ->  | BC79: =IF(OR(C78=0,C79=0),"",IF(C79=C78,"",COUNTIFS(C:C,C79,Y:Y,"<0"))) ->  | BD79: =IF(OR(C78=0,C79=0),"",IF(C79=C78,"",COUNTIFS(C:C,C79,Y:Y,"=0"))) ->  | BE79: =IF(BA79="","",SUMIFS($K$2:$K$77777,$C$2:$C$77777,$C79)) ->  | BF79: 80
V80: =IF(C80=0,"",K80/Служебный!$N$17*Служебный!$O$17*2) ->  | AE80: =IF(C80=0,"",VLOOKUP(WEEKDAY(C80,2),Служебный!K$4:L$10,2)) ->  | AG80: =IF(C80=0,"",VLOOKUP(G80,Служебный!B:G,6,)) ->  | AH80: =IF(C80=0,"",VLOOKUP(G80,Служебный!B:G,3,FALSE)) ->  | AI80: =IF(C80=0,"",VLOOKUP(G80,Служебный!B:G,4,FALSE)) ->  | AM80: =IF(C80=0,"",IF(D80<Служебный!$P$3,"Раньше открытия",IF(D80>Служебный!$P$6,"Позже закрытия",IF(D80<Служебный!$P$4,Служебный!$N$4,IF(D80<Служебный!$P$5,Служебный!$N$5,Служебный!$N$6))))) ->  | AZ80: =IF(C80=0,"",IF(AX80="",AZ79,IF(SUMIF(C:C,C80,Z:Z)<0,IF(AZ79<0,AZ79-1,-1),IF(AZ79>0,AZ79+1,1)))) ->  | BA80: =IF(OR(C79=0,C80=0),"",IF(C80=C79,"",COUNTIF(C:C,C80))) ->  | BB80: =IF(OR(C79=0,C80=0),"",IF(C80=C79,"",COUNTIFS(C:C,C80,Y:Y,">0"))) ->  | BC80: =IF(OR(C79=0,C80=0),"",IF(C80=C79,"",COUNTIFS(C:C,C80,Y:Y,"<0"))) ->  | BD80: =IF(OR(C79=0,C80=0),"",IF(C80=C79,"",COUNTIFS(C:C,C80,Y:Y,"=0"))) ->  | BE80: =IF(BA80="","",SUMIFS($K$2:$K$77777,$C$2:$C$77777,$C80)) ->  | BF80: 80
V81: =IF(C81=0,"",K81/Служебный!$N$17*Служебный!$O$17*2) ->  | AE81: =IF(C81=0,"",VLOOKUP(WEEKDAY(C81,2),Служебный!K$4:L$10,2)) ->  | AG81: =IF(C81=0,"",VLOOKUP(G81,Служебный!B:G,6,)) ->  | AH81: =IF(C81=0,"",VLOOKUP(G81,Служебный!B:G,3,FALSE)) ->  | AI81: =IF(C81=0,"",VLOOKUP(G81,Служебный!B:G,4,FALSE)) ->  | AM81: =IF(C81=0,"",IF(D81<Служебный!$P$3,"Раньше открытия",IF(D81>Служебный!$P$6,"Позже закрытия",IF(D81<Служебный!$P$4,Служебный!$N$4,IF(D81<Служебный!$P$5,Служебный!$N$5,Служебный!$N$6))))) ->  | AZ81: =IF(C81=0,"",IF(AX81="",AZ80,IF(SUMIF(C:C,C81,Z:Z)<0,IF(AZ80<0,AZ80-1,-1),IF(AZ80>0,AZ80+1,1)))) ->  | BA81: =IF(OR(C80=0,C81=0),"",IF(C81=C80,"",COUNTIF(C:C,C81))) ->  | BB81: =IF(OR(C80=0,C81=0),"",IF(C81=C80,"",COUNTIFS(C:C,C81,Y:Y,">0"))) ->  | BC81: =IF(OR(C80=0,C81=0),"",IF(C81=C80,"",COUNTIFS(C:C,C81,Y:Y,"<0"))) ->  | BD81: =IF(OR(C80=0,C81=0),"",IF(C81=C80,"",COUNTIFS(C:C,C81,Y:Y,"=0"))) ->  | BE81: =IF(BA81="","",SUMIFS($K$2:$K$77777,$C$2:$C$77777,$C81)) ->  | BF81: 80
V82: =IF(C82=0,"",K82/Служебный!$N$17*Служебный!$O$17*2) ->  | AE82: =IF(C82=0,"",VLOOKUP(WEEKDAY(C82,2),Служебный!K$4:L$10,2)) ->  | AG82: =IF(C82=0,"",VLOOKUP(G82,Служебный!B:G,6,)) ->  | AH82: =IF(C82=0,"",VLOOKUP(G82,Служебный!B:G,3,FALSE)) ->  | AI82: =IF(C82=0,"",VLOOKUP(G82,Служебный!B:G,4,FALSE)) ->  | AM82: =IF(C82=0,"",IF(D82<Служебный!$P$3,"Раньше открытия",IF(D82>Служебный!$P$6,"Позже закрытия",IF(D82<Служебный!$P$4,Служебный!$N$4,IF(D82<Служебный!$P$5,Служебный!$N$5,Служебный!$N$6))))) ->  | AZ82: =IF(C82=0,"",IF(AX82="",AZ81,IF(SUMIF(C:C,C82,Z:Z)<0,IF(AZ81<0,AZ81-1,-1),IF(AZ81>0,AZ81+1,1)))) ->  | BA82: =IF(OR(C81=0,C82=0),"",IF(C82=C81,"",COUNTIF(C:C,C82))) ->  | BB82: =IF(OR(C81=0,C82=0),"",IF(C82=C81,"",COUNTIFS(C:C,C82,Y:Y,">0"))) ->  | BC82: =IF(OR(C81=0,C82=0),"",IF(C82=C81,"",COUNTIFS(C:C,C82,Y:Y,"<0"))) ->  | BD82: =IF(OR(C81=0,C82=0),"",IF(C82=C81,"",COUNTIFS(C:C,C82,Y:Y,"=0"))) ->  | BE82: =IF(BA82="","",SUMIFS($K$2:$K$77777,$C$2:$C$77777,$C82)) ->  | BF82: 80
U83: =IF(Z83="","",Z83+T83+U82) ->  | V83: =IF(C83=0,"",K83/Служебный!$N$17*Служебный!$O$17*2) ->  | AE83: =IF(C83=0,"",VLOOKUP(WEEKDAY(C83,2),Служебный!K$4:L$10,2)) ->  | AF83: =IF(C83=0,"",TEXT((HOUR(D83)),0)&"-"&TEXT(HOUR(D83)+1,0)) ->  | AG83: =IF(C83=0,"",VLOOKUP(G83,Служебный!B:G,6,)) ->  | AH83: =IF(C83=0,"",VLOOKUP(G83,Служебный!B:G,3,FALSE)) ->  | AI83: =IF(C83=0,"",VLOOKUP(G83,Служебный!B:G,4,FALSE)) ->  | AJ83: =IF(OR(C83=0,D83=0,E83=0,F83=0),"",ROUND(((E83+F83)-(C83+D83))*86400,0)) ->  | AL83: =IF(OR(E83=0,C83=0),"",IF(E83=C83,"Интрадей",NETWORKDAYS(C83,E83))) ->  | AM83: =IF(C83=0,"",IF(D83<Служебный!$P$3,"Раньше открытия",IF(D83>Служебный!$P$6,"Позже закрытия",IF(D83<Служебный!$P$4,Служебный!$N$4,IF(D83<Служебный!$P$5,Служебный!$N$5,Служебный!$N$6))))) ->  | AN83: =IF(Z83<=0,"",Z83) ->  | AO83: =IF(Z83>=0,"",Z83) ->  | AP83: =IF(C83=0,"",YEAR(C83)) ->  | AQ83: =IF(C83=0,"",TEXT(C83,"ММММ")) ->  | AR83: =IF(C83=0,"",WEEKNUM(C83)) ->  | AS83: =IF(AX83="","",U83) ->  | AY83: =IF(I83="","",CEILING(I83,5)) ->  | AZ83: =IF(C83=0,"",IF(AX83="",AZ82,IF(SUMIF(C:C,C83,Z:Z)<0,IF(AZ82<0,AZ82-1,-1),IF(AZ82>0,AZ82+1,1)))) ->  | BA83: =IF(OR(C82=0,C83=0),"",IF(C83=C82,"",COUNTIF(C:C,C83))) ->  | BB83: =IF(OR(C82=0,C83=0),"",IF(C83=C82,"",COUNTIFS(C:C,C83,Y:Y,">0"))) ->  | BC83: =IF(OR(C82=0,C83=0),"",IF(C83=C82,"",COUNTIFS(C:C,C83,Y:Y,"<0"))) ->  | BD83: =IF(OR(C82=0,C83=0),"",IF(C83=C82,"",COUNTIFS(C:C,C83,Y:Y,"=0"))) ->  | BE83: =IF(BA83="","",SUMIFS($K$2:$K$77777,$C$2:$C$77777,$C83)) ->  | BF83: 80
V84: =IF(C84=0,"",K84/Служебный!$N$17*Служебный!$O$17*2) ->  | AE84: =IF(C84=0,"",VLOOKUP(WEEKDAY(C84,2),Служебный!K$4:L$10,2)) ->  | AG84: =IF(C84=0,"",VLOOKUP(G84,Служебный!B:G,6,)) ->  | AH84: =IF(C84=0,"",VLOOKUP(G84,Служебный!B:G,3,FALSE)) ->  | AI84: =IF(C84=0,"",VLOOKUP(G84,Служебный!B:G,4,FALSE)) ->  | AM84: =IF(C84=0,"",IF(D84<Служебный!$P$3,"Раньше открытия",IF(D84>Служебный!$P$6,"Позже закрытия",IF(D84<Служебный!$P$4,Служебный!$N$4,IF(D84<Служебный!$P$5,Служебный!$N$5,Служебный!$N$6))))) ->  | AZ84: =IF(C84=0,"",IF(AX84="",AZ83,IF(SUMIF(C:C,C84,Z:Z)<0,IF(AZ83<0,AZ83-1,-1),IF(AZ83>0,AZ83+1,1)))) ->  | BA84: =IF(OR(C83=0,C84=0),"",IF(C84=C83,"",COUNTIF(C:C,C84))) ->  | BB84: =IF(OR(C83=0,C84=0),"",IF(C84=C83,"",COUNTIFS(C:C,C84,Y:Y,">0"))) ->  | BC84: =IF(OR(C83=0,C84=0),"",IF(C84=C83,"",COUNTIFS(C:C,C84,Y:Y,"<0"))) ->  | BD84: =IF(OR(C83=0,C84=0),"",IF(C84=C83,"",COUNTIFS(C:C,C84,Y:Y,"=0"))) ->  | BE84: =IF(BA84="","",SUMIFS($K$2:$K$77777,$C$2:$C$77777,$C84)) ->  | BF84: 80
V85: =IF(C85=0,"",K85/Служебный!$N$17*Служебный!$O$17*2) ->  | AE85: =IF(C85=0,"",VLOOKUP(WEEKDAY(C85,2),Служебный!K$4:L$10,2)) ->  | AG85: =IF(C85=0,"",VLOOKUP(G85,Служебный!B:G,6,)) ->  | AH85: =IF(C85=0,"",VLOOKUP(G85,Служебный!B:G,3,FALSE)) ->  | AI85: =IF(C85=0,"",VLOOKUP(G85,Служебный!B:G,4,FALSE)) ->  | AM85: =IF(C85=0,"",IF(D85<Служебный!$P$3,"Раньше открытия",IF(D85>Служебный!$P$6,"Позже закрытия",IF(D85<Служебный!$P$4,Служебный!$N$4,IF(D85<Служебный!$P$5,Служебный!$N$5,Служебный!$N$6))))) ->  | AZ85: =IF(C85=0,"",IF(AX85="",AZ84,IF(SUMIF(C:C,C85,Z:Z)<0,IF(AZ84<0,AZ84-1,-1),IF(AZ84>0,AZ84+1,1)))) ->  | BA85: =IF(OR(C84=0,C85=0),"",IF(C85=C84,"",COUNTIF(C:C,C85))) ->  | BB85: =IF(OR(C84=0,C85=0),"",IF(C85=C84,"",COUNTIFS(C:C,C85,Y:Y,">0"))) ->  | BC85: =IF(OR(C84=0,C85=0),"",IF(C85=C84,"",COUNTIFS(C:C,C85,Y:Y,"<0"))) ->  | BD85: =IF(OR(C84=0,C85=0),"",IF(C85=C84,"",COUNTIFS(C:C,C85,Y:Y,"=0"))) ->  | BE85: =IF(BA85="","",SUMIFS($K$2:$K$77777,$C$2:$C$77777,$C85)) ->  | BF85: 80 | BH85: =Z85-BG85 -> 
V86: =IF(C86=0,"",K86/Служебный!$N$17*Служебный!$O$17*2) ->  | AE86: =IF(C86=0,"",VLOOKUP(WEEKDAY(C86,2),Служебный!K$4:L$10,2)) ->  | AG86: =IF(C86=0,"",VLOOKUP(G86,Служебный!B:G,6,)) ->  | AH86: =IF(C86=0,"",VLOOKUP(G86,Служебный!B:G,3,FALSE)) ->  | AI86: =IF(C86=0,"",VLOOKUP(G86,Служебный!B:G,4,FALSE)) ->  | AM86: =IF(C86=0,"",IF(D86<Служебный!$P$3,"Раньше открытия",IF(D86>Служебный!$P$6,"Позже закрытия",IF(D86<Служебный!$P$4,Служебный!$N$4,IF(D86<Служебный!$P$5,Служебный!$N$5,Служебный!$N$6))))) ->  | AZ86: =IF(C86=0,"",IF(AX86="",AZ85,IF(SUMIF(C:C,C86,Z:Z)<0,IF(AZ85<0,AZ85-1,-1),IF(AZ85>0,AZ85+1,1)))) ->  | BA86: =IF(OR(C85=0,C86=0),"",IF(C86=C85,"",COUNTIF(C:C,C86))) ->  | BB86: =IF(OR(C85=0,C86=0),"",IF(C86=C85,"",COUNTIFS(C:C,C86,Y:Y,">0"))) ->  | BC86: =IF(OR(C85=0,C86=0),"",IF(C86=C85,"",COUNTIFS(C:C,C86,Y:Y,"<0"))) ->  | BD86: =IF(OR(C85=0,C86=0),"",IF(C86=C85,"",COUNTIFS(C:C,C86,Y:Y,"=0"))) ->  | BE86: =IF(BA86="","",SUMIFS($K$2:$K$77777,$C$2:$C$77777,$C86)) ->  | BF86: 80 | BG86: =Z86*BF86% ->  | BH86: =Z86-BG86 -> 
V87: =IF(C87=0,"",K87/Служебный!$N$17*Служебный!$O$17*2) ->  | AE87: =IF(C87=0,"",VLOOKUP(WEEKDAY(C87,2),Служебный!K$4:L$10,2)) ->  | AG87: =IF(C87=0,"",VLOOKUP(G87,Служебный!B:G,6,)) ->  | AH87: =IF(C87=0,"",VLOOKUP(G87,Служебный!B:G,3,FALSE)) ->  | AI87: =IF(C87=0,"",VLOOKUP(G87,Служебный!B:G,4,FALSE)) ->  | AM87: =IF(C87=0,"",IF(D87<Служебный!$P$3,"Раньше открытия",IF(D87>Служебный!$P$6,"Позже закрытия",IF(D87<Служебный!$P$4,Служебный!$N$4,IF(D87<Служебный!$P$5,Служебный!$N$5,Служебный!$N$6))))) ->  | AZ87: =IF(C87=0,"",IF(AX87="",AZ86,IF(SUMIF(C:C,C87,Z:Z)<0,IF(AZ86<0,AZ86-1,-1),IF(AZ86>0,AZ86+1,1)))) ->  | BA87: =IF(OR(C86=0,C87=0),"",IF(C87=C86,"",COUNTIF(C:C,C87))) ->  | BB87: =IF(OR(C86=0,C87=0),"",IF(C87=C86,"",COUNTIFS(C:C,C87,Y:Y,">0"))) ->  | BC87: =IF(OR(C86=0,C87=0),"",IF(C87=C86,"",COUNTIFS(C:C,C87,Y:Y,"<0"))) ->  | BD87: =IF(OR(C86=0,C87=0),"",IF(C87=C86,"",COUNTIFS(C:C,C87,Y:Y,"=0"))) ->  | BE87: =IF(BA87="","",SUMIFS($K$2:$K$77777,$C$2:$C$77777,$C87)) ->  | BF87: 80 | BG87: =Z87*BF87% ->  | BH87: =Z87-BG87 -> 
V88: =IF(C88=0,"",K88/Служебный!$N$17*Служебный!$O$17*2) ->  | AE88: =IF(C88=0,"",VLOOKUP(WEEKDAY(C88,2),Служебный!K$4:L$10,2)) ->  | AG88: =IF(C88=0,"",VLOOKUP(G88,Служебный!B:G,6,)) ->  | AH88: =IF(C88=0,"",VLOOKUP(G88,Служебный!B:G,3,FALSE)) ->  | AI88: =IF(C88=0,"",VLOOKUP(G88,Служебный!B:G,4,FALSE)) ->  | AM88: =IF(C88=0,"",IF(D88<Служебный!$P$3,"Раньше открытия",IF(D88>Служебный!$P$6,"Позже закрытия",IF(D88<Служебный!$P$4,Служебный!$N$4,IF(D88<Служебный!$P$5,Служебный!$N$5,Служебный!$N$6))))) ->  | AZ88: =IF(C88=0,"",IF(AX88="",AZ87,IF(SUMIF(C:C,C88,Z:Z)<0,IF(AZ87<0,AZ87-1,-1),IF(AZ87>0,AZ87+1,1)))) ->  | BA88: =IF(OR(C87=0,C88=0),"",IF(C88=C87,"",COUNTIF(C:C,C88))) ->  | BB88: =IF(OR(C87=0,C88=0),"",IF(C88=C87,"",COUNTIFS(C:C,C88,Y:Y,">0"))) ->  | BC88: =IF(OR(C87=0,C88=0),"",IF(C88=C87,"",COUNTIFS(C:C,C88,Y:Y,"<0"))) ->  | BD88: =IF(OR(C87=0,C88=0),"",IF(C88=C87,"",COUNTIFS(C:C,C88,Y:Y,"=0"))) ->  | BE88: =IF(BA88="","",SUMIFS($K$2:$K$77777,$C$2:$C$77777,$C88)) ->  | BF88: 80
V89: =IF(C89=0,"",K89/Служебный!$N$17*Служебный!$O$17*2) ->  | AE89: =IF(C89=0,"",VLOOKUP(WEEKDAY(C89,2),Служебный!K$4:L$10,2)) ->  | AG89: =IF(C89=0,"",VLOOKUP(G89,Служебный!B:G,6,)) ->  | AH89: =IF(C89=0,"",VLOOKUP(G89,Служебный!B:G,3,FALSE)) ->  | AI89: =IF(C89=0,"",VLOOKUP(G89,Служебный!B:G,4,FALSE)) ->  | AM89: =IF(C89=0,"",IF(D89<Служебный!$P$3,"Раньше открытия",IF(D89>Служебный!$P$6,"Позже закрытия",IF(D89<Служебный!$P$4,Служебный!$N$4,IF(D89<Служебный!$P$5,Служебный!$N$5,Служебный!$N$6))))) ->  | AZ89: =IF(C89=0,"",IF(AX89="",AZ88,IF(SUMIF(C:C,C89,Z:Z)<0,IF(AZ88<0,AZ88-1,-1),IF(AZ88>0,AZ88+1,1)))) ->  | BA89: =IF(OR(C88=0,C89=0),"",IF(C89=C88,"",COUNTIF(C:C,C89))) ->  | BB89: =IF(OR(C88=0,C89=0),"",IF(C89=C88,"",COUNTIFS(C:C,C89,Y:Y,">0"))) ->  | BC89: =IF(OR(C88=0,C89=0),"",IF(C89=C88,"",COUNTIFS(C:C,C89,Y:Y,"<0"))) ->  | BD89: =IF(OR(C88=0,C89=0),"",IF(C89=C88,"",COUNTIFS(C:C,C89,Y:Y,"=0"))) ->  | BE89: =IF(BA89="","",SUMIFS($K$2:$K$77777,$C$2:$C$77777,$C89)) ->  | BF89: 80 | BG89: =Z89*BF89% ->  | BH89: =Z89-BG89 -> 
V90: =IF(C90=0,"",K90/Служебный!$N$17*Служебный!$O$17*2) ->  | AE90: =IF(C90=0,"",VLOOKUP(WEEKDAY(C90,2),Служебный!K$4:L$10,2)) ->  | AG90: =IF(C90=0,"",VLOOKUP(G90,Служебный!B:G,6,)) ->  | AH90: =IF(C90=0,"",VLOOKUP(G90,Служебный!B:G,3,FALSE)) ->  | AI90: =IF(C90=0,"",VLOOKUP(G90,Служебный!B:G,4,FALSE)) ->  | AM90: =IF(C90=0,"",IF(D90<Служебный!$P$3,"Раньше открытия",IF(D90>Служебный!$P$6,"Позже закрытия",IF(D90<Служебный!$P$4,Служебный!$N$4,IF(D90<Служебный!$P$5,Служебный!$N$5,Служебный!$N$6))))) ->  | AZ90: =IF(C90=0,"",IF(AX90="",AZ89,IF(SUMIF(C:C,C90,Z:Z)<0,IF(AZ89<0,AZ89-1,-1),IF(AZ89>0,AZ89+1,1)))) ->  | BA90: =IF(OR(C89=0,C90=0),"",IF(C90=C89,"",COUNTIF(C:C,C90))) ->  | BB90: =IF(OR(C89=0,C90=0),"",IF(C90=C89,"",COUNTIFS(C:C,C90,Y:Y,">0"))) ->  | BC90: =IF(OR(C89=0,C90=0),"",IF(C90=C89,"",COUNTIFS(C:C,C90,Y:Y,"<0"))) ->  | BD90: =IF(OR(C89=0,C90=0),"",IF(C90=C89,"",COUNTIFS(C:C,C90,Y:Y,"=0"))) ->  | BE90: =IF(BA90="","",SUMIFS($K$2:$K$77777,$C$2:$C$77777,$C90)) ->  | BF90: 80
V91: =IF(C91=0,"",K91/Служебный!$N$17*Служебный!$O$17*2) ->  | AE91: =IF(C91=0,"",VLOOKUP(WEEKDAY(C91,2),Служебный!K$4:L$10,2)) ->  | AG91: =IF(C91=0,"",VLOOKUP(G91,Служебный!B:G,6,)) ->  | AH91: =IF(C91=0,"",VLOOKUP(G91,Служебный!B:G,3,FALSE)) ->  | AI91: =IF(C91=0,"",VLOOKUP(G91,Служебный!B:G,4,FALSE)) ->  | AM91: =IF(C91=0,"",IF(D91<Служебный!$P$3,"Раньше открытия",IF(D91>Служебный!$P$6,"Позже закрытия",IF(D91<Служебный!$P$4,Служебный!$N$4,IF(D91<Служебный!$P$5,Служебный!$N$5,Служебный!$N$6))))) ->  | AZ91: =IF(C91=0,"",IF(AX91="",AZ90,IF(SUMIF(C:C,C91,Z:Z)<0,IF(AZ90<0,AZ90-1,-1),IF(AZ90>0,AZ90+1,1)))) ->  | BA91: =IF(OR(C90=0,C91=0),"",IF(C91=C90,"",COUNTIF(C:C,C91))) ->  | BB91: =IF(OR(C90=0,C91=0),"",IF(C91=C90,"",COUNTIFS(C:C,C91,Y:Y,">0"))) ->  | BC91: =IF(OR(C90=0,C91=0),"",IF(C91=C90,"",COUNTIFS(C:C,C91,Y:Y,"<0"))) ->  | BD91: =IF(OR(C90=0,C91=0),"",IF(C91=C90,"",COUNTIFS(C:C,C91,Y:Y,"=0"))) ->  | BE91: =IF(BA91="","",SUMIFS($K$2:$K$77777,$C$2:$C$77777,$C91)) ->  | BF91: 80 | BG91: =Z91*BF91% ->  | BH91: =Z91-BG91 -> 
V92: =IF(C92=0,"",K92/Служебный!$N$17*Служебный!$O$17*2) ->  | AE92: =IF(C92=0,"",VLOOKUP(WEEKDAY(C92,2),Служебный!K$4:L$10,2)) ->  | AG92: =IF(C92=0,"",VLOOKUP(G92,Служебный!B:G,6,)) ->  | AH92: =IF(C92=0,"",VLOOKUP(G92,Служебный!B:G,3,FALSE)) ->  | AI92: =IF(C92=0,"",VLOOKUP(G92,Служебный!B:G,4,FALSE)) ->  | AM92: =IF(C92=0,"",IF(D92<Служебный!$P$3,"Раньше открытия",IF(D92>Служебный!$P$6,"Позже закрытия",IF(D92<Служебный!$P$4,Служебный!$N$4,IF(D92<Служебный!$P$5,Служебный!$N$5,Служебный!$N$6))))) ->  | AZ92: =IF(C92=0,"",IF(AX92="",AZ91,IF(SUMIF(C:C,C92,Z:Z)<0,IF(AZ91<0,AZ91-1,-1),IF(AZ91>0,AZ91+1,1)))) ->  | BA92: =IF(OR(C91=0,C92=0),"",IF(C92=C91,"",COUNTIF(C:C,C92))) ->  | BB92: =IF(OR(C91=0,C92=0),"",IF(C92=C91,"",COUNTIFS(C:C,C92,Y:Y,">0"))) ->  | BC92: =IF(OR(C91=0,C92=0),"",IF(C92=C91,"",COUNTIFS(C:C,C92,Y:Y,"<0"))) ->  | BD92: =IF(OR(C91=0,C92=0),"",IF(C92=C91,"",COUNTIFS(C:C,C92,Y:Y,"=0"))) ->  | BE92: =IF(BA92="","",SUMIFS($K$2:$K$77777,$C$2:$C$77777,$C92)) ->  | BF92: 80
V93: =IF(C93=0,"",K93/Служебный!$N$17*Служебный!$O$17*2) ->  | AE93: =IF(C93=0,"",VLOOKUP(WEEKDAY(C93,2),Служебный!K$4:L$10,2)) ->  | AG93: =IF(C93=0,"",VLOOKUP(G93,Служебный!B:G,6,)) ->  | AH93: =IF(C93=0,"",VLOOKUP(G93,Служебный!B:G,3,FALSE)) ->  | AI93: =IF(C93=0,"",VLOOKUP(G93,Служебный!B:G,4,FALSE)) ->  | AM93: =IF(C93=0,"",IF(D93<Служебный!$P$3,"Раньше открытия",IF(D93>Служебный!$P$6,"Позже закрытия",IF(D93<Служебный!$P$4,Служебный!$N$4,IF(D93<Служебный!$P$5,Служебный!$N$5,Служебный!$N$6))))) ->  | AZ93: =IF(C93=0,"",IF(AX93="",AZ92,IF(SUMIF(C:C,C93,Z:Z)<0,IF(AZ92<0,AZ92-1,-1),IF(AZ92>0,AZ92+1,1)))) ->  | BA93: =IF(OR(C92=0,C93=0),"",IF(C93=C92,"",COUNTIF(C:C,C93))) ->  | BB93: =IF(OR(C92=0,C93=0),"",IF(C93=C92,"",COUNTIFS(C:C,C93,Y:Y,">0"))) ->  | BC93: =IF(OR(C92=0,C93=0),"",IF(C93=C92,"",COUNTIFS(C:C,C93,Y:Y,"<0"))) ->  | BD93: =IF(OR(C92=0,C93=0),"",IF(C93=C92,"",COUNTIFS(C:C,C93,Y:Y,"=0"))) ->  | BE93: =IF(BA93="","",SUMIFS($K$2:$K$77777,$C$2:$C$77777,$C93)) ->  | BF93: 80 | BG93: =Z93*BF93% ->  | BH93: =Z93-BG93 -> 
V94: =IF(C94=0,"",K94/Служебный!$N$17*Служебный!$O$17*2) ->  | AE94: =IF(C94=0,"",VLOOKUP(WEEKDAY(C94,2),Служебный!K$4:L$10,2)) ->  | AG94: =IF(C94=0,"",VLOOKUP(G94,Служебный!B:G,6,)) ->  | AH94: =IF(C94=0,"",VLOOKUP(G94,Служебный!B:G,3,FALSE)) ->  | AI94: =IF(C94=0,"",VLOOKUP(G94,Служебный!B:G,4,FALSE)) ->  | AM94: =IF(C94=0,"",IF(D94<Служебный!$P$3,"Раньше открытия",IF(D94>Служебный!$P$6,"Позже закрытия",IF(D94<Служебный!$P$4,Служебный!$N$4,IF(D94<Служебный!$P$5,Служебный!$N$5,Служебный!$N$6))))) ->  | AZ94: =IF(C94=0,"",IF(AX94="",AZ93,IF(SUMIF(C:C,C94,Z:Z)<0,IF(AZ93<0,AZ93-1,-1),IF(AZ93>0,AZ93+1,1)))) ->  | BA94: =IF(OR(C93=0,C94=0),"",IF(C94=C93,"",COUNTIF(C:C,C94))) ->  | BB94: =IF(OR(C93=0,C94=0),"",IF(C94=C93,"",COUNTIFS(C:C,C94,Y:Y,">0"))) ->  | BC94: =IF(OR(C93=0,C94=0),"",IF(C94=C93,"",COUNTIFS(C:C,C94,Y:Y,"<0"))) ->  | BD94: =IF(OR(C93=0,C94=0),"",IF(C94=C93,"",COUNTIFS(C:C,C94,Y:Y,"=0"))) ->  | BE94: =IF(BA94="","",SUMIFS($K$2:$K$77777,$C$2:$C$77777,$C94)) ->  | BF94: 80 | BG94: =Z94*BF94% ->  | BH94: =Z94-BG94 -> 
V95: =IF(C95=0,"",K95/Служебный!$N$17*Служебный!$O$17*2) ->  | AE95: =IF(C95=0,"",VLOOKUP(WEEKDAY(C95,2),Служебный!K$4:L$10,2)) ->  | AG95: =IF(C95=0,"",VLOOKUP(G95,Служебный!B:G,6,)) ->  | AH95: =IF(C95=0,"",VLOOKUP(G95,Служебный!B:G,3,FALSE)) ->  | AI95: =IF(C95=0,"",VLOOKUP(G95,Служебный!B:G,4,FALSE)) ->  | AM95: =IF(C95=0,"",IF(D95<Служебный!$P$3,"Раньше открытия",IF(D95>Служебный!$P$6,"Позже закрытия",IF(D95<Служебный!$P$4,Служебный!$N$4,IF(D95<Служебный!$P$5,Служебный!$N$5,Служебный!$N$6))))) ->  | AZ95: =IF(C95=0,"",IF(AX95="",AZ94,IF(SUMIF(C:C,C95,Z:Z)<0,IF(AZ94<0,AZ94-1,-1),IF(AZ94>0,AZ94+1,1)))) ->  | BA95: =IF(OR(C94=0,C95=0),"",IF(C95=C94,"",COUNTIF(C:C,C95))) ->  | BB95: =IF(OR(C94=0,C95=0),"",IF(C95=C94,"",COUNTIFS(C:C,C95,Y:Y,">0"))) ->  | BC95: =IF(OR(C94=0,C95=0),"",IF(C95=C94,"",COUNTIFS(C:C,C95,Y:Y,"<0"))) ->  | BD95: =IF(OR(C94=0,C95=0),"",IF(C95=C94,"",COUNTIFS(C:C,C95,Y:Y,"=0"))) ->  | BE95: =IF(BA95="","",SUMIFS($K$2:$K$77777,$C$2:$C$77777,$C95)) ->  | BF95: 80
V96: =IF(C96=0,"",K96/Служебный!$N$17*Служебный!$O$17*2) ->  | AE96: =IF(C96=0,"",VLOOKUP(WEEKDAY(C96,2),Служебный!K$4:L$10,2)) ->  | AG96: =IF(C96=0,"",VLOOKUP(G96,Служебный!B:G,6,)) ->  | AH96: =IF(C96=0,"",VLOOKUP(G96,Служебный!B:G,3,FALSE)) ->  | AI96: =IF(C96=0,"",VLOOKUP(G96,Служебный!B:G,4,FALSE)) ->  | AM96: =IF(C96=0,"",IF(D96<Служебный!$P$3,"Раньше открытия",IF(D96>Служебный!$P$6,"Позже закрытия",IF(D96<Служебный!$P$4,Служебный!$N$4,IF(D96<Служебный!$P$5,Служебный!$N$5,Служебный!$N$6))))) ->  | AZ96: =IF(C96=0,"",IF(AX96="",AZ95,IF(SUMIF(C:C,C96,Z:Z)<0,IF(AZ95<0,AZ95-1,-1),IF(AZ95>0,AZ95+1,1)))) ->  | BA96: =IF(OR(C95=0,C96=0),"",IF(C96=C95,"",COUNTIF(C:C,C96))) ->  | BB96: =IF(OR(C95=0,C96=0),"",IF(C96=C95,"",COUNTIFS(C:C,C96,Y:Y,">0"))) ->  | BC96: =IF(OR(C95=0,C96=0),"",IF(C96=C95,"",COUNTIFS(C:C,C96,Y:Y,"<0"))) ->  | BD96: =IF(OR(C95=0,C96=0),"",IF(C96=C95,"",COUNTIFS(C:C,C96,Y:Y,"=0"))) ->  | BE96: =IF(BA96="","",SUMIFS($K$2:$K$77777,$C$2:$C$77777,$C96)) ->  | BF96: 80
V97: =IF(C97=0,"",K97/Служебный!$N$17*Служебный!$O$17*2) ->  | AE97: =IF(C97=0,"",VLOOKUP(WEEKDAY(C97,2),Служебный!K$4:L$10,2)) ->  | AG97: =IF(C97=0,"",VLOOKUP(G97,Служебный!B:G,6,)) ->  | AH97: =IF(C97=0,"",VLOOKUP(G97,Служебный!B:G,3,FALSE)) ->  | AI97: =IF(C97=0,"",VLOOKUP(G97,Служебный!B:G,4,FALSE)) ->  | AM97: =IF(C97=0,"",IF(D97<Служебный!$P$3,"Раньше открытия",IF(D97>Служебный!$P$6,"Позже закрытия",IF(D97<Служебный!$P$4,Служебный!$N$4,IF(D97<Служебный!$P$5,Служебный!$N$5,Служебный!$N$6))))) ->  | AZ97: =IF(C97=0,"",IF(AX97="",AZ96,IF(SUMIF(C:C,C97,Z:Z)<0,IF(AZ96<0,AZ96-1,-1),IF(AZ96>0,AZ96+1,1)))) ->  | BA97: =IF(OR(C96=0,C97=0),"",IF(C97=C96,"",COUNTIF(C:C,C97))) ->  | BB97: =IF(OR(C96=0,C97=0),"",IF(C97=C96,"",COUNTIFS(C:C,C97,Y:Y,">0"))) ->  | BC97: =IF(OR(C96=0,C97=0),"",IF(C97=C96,"",COUNTIFS(C:C,C97,Y:Y,"<0"))) ->  | BD97: =IF(OR(C96=0,C97=0),"",IF(C97=C96,"",COUNTIFS(C:C,C97,Y:Y,"=0"))) ->  | BE97: =IF(BA97="","",SUMIFS($K$2:$K$77777,$C$2:$C$77777,$C97)) ->  | BF97: 80 | BG97: =Z97*BF97% ->  | BH97: =Z97-BG97 -> 
V98: =IF(C98=0,"",K98/Служебный!$N$17*Служебный!$O$17*2) ->  | AE98: =IF(C98=0,"",VLOOKUP(WEEKDAY(C98,2),Служебный!K$4:L$10,2)) ->  | AG98: =IF(C98=0,"",VLOOKUP(G98,Служебный!B:G,6,)) ->  | AH98: =IF(C98=0,"",VLOOKUP(G98,Служебный!B:G,3,FALSE)) ->  | AI98: =IF(C98=0,"",VLOOKUP(G98,Служебный!B:G,4,FALSE)) ->  | AM98: =IF(C98=0,"",IF(D98<Служебный!$P$3,"Раньше открытия",IF(D98>Служебный!$P$6,"Позже закрытия",IF(D98<Служебный!$P$4,Служебный!$N$4,IF(D98<Служебный!$P$5,Служебный!$N$5,Служебный!$N$6))))) ->  | AZ98: =IF(C98=0,"",IF(AX98="",AZ97,IF(SUMIF(C:C,C98,Z:Z)<0,IF(AZ97<0,AZ97-1,-1),IF(AZ97>0,AZ97+1,1)))) ->  | BA98: =IF(OR(C97=0,C98=0),"",IF(C98=C97,"",COUNTIF(C:C,C98))) ->  | BB98: =IF(OR(C97=0,C98=0),"",IF(C98=C97,"",COUNTIFS(C:C,C98,Y:Y,">0"))) ->  | BC98: =IF(OR(C97=0,C98=0),"",IF(C98=C97,"",COUNTIFS(C:C,C98,Y:Y,"<0"))) ->  | BD98: =IF(OR(C97=0,C98=0),"",IF(C98=C97,"",COUNTIFS(C:C,C98,Y:Y,"=0"))) ->  | BE98: =IF(BA98="","",SUMIFS($K$2:$K$77777,$C$2:$C$77777,$C98)) ->  | BF98: 80
V99: =IF(C99=0,"",K99/Служебный!$N$17*Служебный!$O$17*2) ->  | AE99: =IF(C99=0,"",VLOOKUP(WEEKDAY(C99,2),Служебный!K$4:L$10,2)) ->  | AG99: =IF(C99=0,"",VLOOKUP(G99,Служебный!B:G,6,)) ->  | AH99: =IF(C99=0,"",VLOOKUP(G99,Служебный!B:G,3,FALSE)) ->  | AI99: =IF(C99=0,"",VLOOKUP(G99,Служебный!B:G,4,FALSE)) ->  | AM99: =IF(C99=0,"",IF(D99<Служебный!$P$3,"Раньше открытия",IF(D99>Служебный!$P$6,"Позже закрытия",IF(D99<Служебный!$P$4,Служебный!$N$4,IF(D99<Служебный!$P$5,Служебный!$N$5,Служебный!$N$6))))) ->  | AZ99: =IF(C99=0,"",IF(AX99="",AZ98,IF(SUMIF(C:C,C99,Z:Z)<0,IF(AZ98<0,AZ98-1,-1),IF(AZ98>0,AZ98+1,1)))) ->  | BA99: =IF(OR(C98=0,C99=0),"",IF(C99=C98,"",COUNTIF(C:C,C99))) ->  | BB99: =IF(OR(C98=0,C99=0),"",IF(C99=C98,"",COUNTIFS(C:C,C99,Y:Y,">0"))) ->  | BC99: =IF(OR(C98=0,C99=0),"",IF(C99=C98,"",COUNTIFS(C:C,C99,Y:Y,"<0"))) ->  | BD99: =IF(OR(C98=0,C99=0),"",IF(C99=C98,"",COUNTIFS(C:C,C99,Y:Y,"=0"))) ->  | BE99: =IF(BA99="","",SUMIFS($K$2:$K$77777,$C$2:$C$77777,$C99)) ->  | BF99: 80
V100: =IF(C100=0,"",K100/Служебный!$N$17*Служебный!$O$17*2) ->  | AE100: =IF(C100=0,"",VLOOKUP(WEEKDAY(C100,2),Служебный!K$4:L$10,2)) ->  | AG100: =IF(C100=0,"",VLOOKUP(G100,Служебный!B:G,6,)) ->  | AH100: =IF(C100=0,"",VLOOKUP(G100,Служебный!B:G,3,FALSE)) ->  | AI100: =IF(C100=0,"",VLOOKUP(G100,Служебный!B:G,4,FALSE)) ->  | AM100: =IF(C100=0,"",IF(D100<Служебный!$P$3,"Раньше открытия",IF(D100>Служебный!$P$6,"Позже закрытия",IF(D100<Служебный!$P$4,Служебный!$N$4,IF(D100<Служебный!$P$5,Служебный!$N$5,Служебный!$N$6))))) ->  | AZ100: =IF(C100=0,"",IF(AX100="",AZ99,IF(SUMIF(C:C,C100,Z:Z)<0,IF(AZ99<0,AZ99-1,-1),IF(AZ99>0,AZ99+1,1)))) ->  | BA100: =IF(OR(C99=0,C100=0),"",IF(C100=C99,"",COUNTIF(C:C,C100))) ->  | BB100: =IF(OR(C99=0,C100=0),"",IF(C100=C99,"",COUNTIFS(C:C,C100,Y:Y,">0"))) ->  | BC100: =IF(OR(C99=0,C100=0),"",IF(C100=C99,"",COUNTIFS(C:C,C100,Y:Y,"<0"))) ->  | BD100: =IF(OR(C99=0,C100=0),"",IF(C100=C99,"",COUNTIFS(C:C,C100,Y:Y,"=0"))) ->  | BE100: =IF(BA100="","",SUMIFS($K$2:$K$77777,$C$2:$C$77777,$C100)) ->  | BF100: 80
V101: =IF(C101=0,"",K101/Служебный!$N$17*Служебный!$O$17*2) ->  | AE101: =IF(C101=0,"",VLOOKUP(WEEKDAY(C101,2),Служебный!K$4:L$10,2)) ->  | AG101: =IF(C101=0,"",VLOOKUP(G101,Служебный!B:G,6,)) ->  | AH101: =IF(C101=0,"",VLOOKUP(G101,Служебный!B:G,3,FALSE)) ->  | AI101: =IF(C101=0,"",VLOOKUP(G101,Служебный!B:G,4,FALSE)) ->  | AM101: =IF(C101=0,"",IF(D101<Служебный!$P$3,"Раньше открытия",IF(D101>Служебный!$P$6,"Позже закрытия",IF(D101<Служебный!$P$4,Служебный!$N$4,IF(D101<Служебный!$P$5,Служебный!$N$5,Служебный!$N$6))))) ->  | AZ101: =IF(C101=0,"",IF(AX101="",AZ100,IF(SUMIF(C:C,C101,Z:Z)<0,IF(AZ100<0,AZ100-1,-1),IF(AZ100>0,AZ100+1,1)))) ->  | BA101: =IF(OR(C100=0,C101=0),"",IF(C101=C100,"",COUNTIF(C:C,C101))) ->  | BB101: =IF(OR(C100=0,C101=0),"",IF(C101=C100,"",COUNTIFS(C:C,C101,Y:Y,">0"))) ->  | BC101: =IF(OR(C100=0,C101=0),"",IF(C101=C100,"",COUNTIFS(C:C,C101,Y:Y,"<0"))) ->  | BD101: =IF(OR(C100=0,C101=0),"",IF(C101=C100,"",COUNTIFS(C:C,C101,Y:Y,"=0"))) ->  | BE101: =IF(BA101="","",SUMIFS($K$2:$K$77777,$C$2:$C$77777,$C101)) ->  | BF101: 80
V102: =IF(C102=0,"",K102/Служебный!$N$17*Служебный!$O$17*2) ->  | AE102: =IF(C102=0,"",VLOOKUP(WEEKDAY(C102,2),Служебный!K$4:L$10,2)) ->  | AG102: =IF(C102=0,"",VLOOKUP(G102,Служебный!B:G,6,)) ->  | AH102: =IF(C102=0,"",VLOOKUP(G102,Служебный!B:G,3,FALSE)) ->  | AI102: =IF(C102=0,"",VLOOKUP(G102,Служебный!B:G,4,FALSE)) ->  | AM102: =IF(C102=0,"",IF(D102<Служебный!$P$3,"Раньше открытия",IF(D102>Служебный!$P$6,"Позже закрытия",IF(D102<Служебный!$P$4,Служебный!$N$4,IF(D102<Служебный!$P$5,Служебный!$N$5,Служебный!$N$6))))) ->  | AZ102: =IF(C102=0,"",IF(AX102="",AZ101,IF(SUMIF(C:C,C102,Z:Z)<0,IF(AZ101<0,AZ101-1,-1),IF(AZ101>0,AZ101+1,1)))) ->  | BA102: =IF(OR(C101=0,C102=0),"",IF(C102=C101,"",COUNTIF(C:C,C102))) ->  | BB102: =IF(OR(C101=0,C102=0),"",IF(C102=C101,"",COUNTIFS(C:C,C102,Y:Y,">0"))) ->  | BC102: =IF(OR(C101=0,C102=0),"",IF(C102=C101,"",COUNTIFS(C:C,C102,Y:Y,"<0"))) ->  | BD102: =IF(OR(C101=0,C102=0),"",IF(C102=C101,"",COUNTIFS(C:C,C102,Y:Y,"=0"))) ->  | BE102: =IF(BA102="","",SUMIFS($K$2:$K$77777,$C$2:$C$77777,$C102)) ->  | BF102: 80 | BG102: =Z102*BF102% ->  | BH102: =Z102-BG102 -> 
V103: =IF(C103=0,"",K103/Служебный!$N$17*Служебный!$O$17*2) ->  | AE103: =IF(C103=0,"",VLOOKUP(WEEKDAY(C103,2),Служебный!K$4:L$10,2)) ->  | AG103: =IF(C103=0,"",VLOOKUP(G103,Служебный!B:G,6,)) ->  | AH103: =IF(C103=0,"",VLOOKUP(G103,Служебный!B:G,3,FALSE)) ->  | AI103: =IF(C103=0,"",VLOOKUP(G103,Служебный!B:G,4,FALSE)) ->  | AM103: =IF(C103=0,"",IF(D103<Служебный!$P$3,"Раньше открытия",IF(D103>Служебный!$P$6,"Позже закрытия",IF(D103<Служебный!$P$4,Служебный!$N$4,IF(D103<Служебный!$P$5,Служебный!$N$5,Служебный!$N$6))))) ->  | AZ103: =IF(C103=0,"",IF(AX103="",AZ102,IF(SUMIF(C:C,C103,Z:Z)<0,IF(AZ102<0,AZ102-1,-1),IF(AZ102>0,AZ102+1,1)))) ->  | BA103: =IF(OR(C102=0,C103=0),"",IF(C103=C102,"",COUNTIF(C:C,C103))) ->  | BB103: =IF(OR(C102=0,C103=0),"",IF(C103=C102,"",COUNTIFS(C:C,C103,Y:Y,">0"))) ->  | BC103: =IF(OR(C102=0,C103=0),"",IF(C103=C102,"",COUNTIFS(C:C,C103,Y:Y,"<0"))) ->  | BD103: =IF(OR(C102=0,C103=0),"",IF(C103=C102,"",COUNTIFS(C:C,C103,Y:Y,"=0"))) ->  | BE103: =IF(BA103="","",SUMIFS($K$2:$K$77777,$C$2:$C$77777,$C103)) ->  | BF103: 80
V104: =IF(C104=0,"",K104/Служебный!$N$17*Служебный!$O$17*2) ->  | AE104: =IF(C104=0,"",VLOOKUP(WEEKDAY(C104,2),Служебный!K$4:L$10,2)) ->  | AG104: =IF(C104=0,"",VLOOKUP(G104,Служебный!B:G,6,)) ->  | AH104: =IF(C104=0,"",VLOOKUP(G104,Служебный!B:G,3,FALSE)) ->  | AI104: =IF(C104=0,"",VLOOKUP(G104,Служебный!B:G,4,FALSE)) ->  | AM104: =IF(C104=0,"",IF(D104<Служебный!$P$3,"Раньше открытия",IF(D104>Служебный!$P$6,"Позже закрытия",IF(D104<Служебный!$P$4,Служебный!$N$4,IF(D104<Служебный!$P$5,Служебный!$N$5,Служебный!$N$6))))) ->  | AZ104: =IF(C104=0,"",IF(AX104="",AZ103,IF(SUMIF(C:C,C104,Z:Z)<0,IF(AZ103<0,AZ103-1,-1),IF(AZ103>0,AZ103+1,1)))) ->  | BA104: =IF(OR(C103=0,C104=0),"",IF(C104=C103,"",COUNTIF(C:C,C104))) ->  | BB104: =IF(OR(C103=0,C104=0),"",IF(C104=C103,"",COUNTIFS(C:C,C104,Y:Y,">0"))) ->  | BC104: =IF(OR(C103=0,C104=0),"",IF(C104=C103,"",COUNTIFS(C:C,C104,Y:Y,"<0"))) ->  | BD104: =IF(OR(C103=0,C104=0),"",IF(C104=C103,"",COUNTIFS(C:C,C104,Y:Y,"=0"))) ->  | BE104: =IF(BA104="","",SUMIFS($K$2:$K$77777,$C$2:$C$77777,$C104)) ->  | BF104: 80
V105: =IF(C105=0,"",K105/Служебный!$N$17*Служебный!$O$17*2) ->  | AE105: =IF(C105=0,"",VLOOKUP(WEEKDAY(C105,2),Служебный!K$4:L$10,2)) ->  | AG105: =IF(C105=0,"",VLOOKUP(G105,Служебный!B:G,6,)) ->  | AH105: =IF(C105=0,"",VLOOKUP(G105,Служебный!B:G,3,FALSE)) ->  | AI105: =IF(C105=0,"",VLOOKUP(G105,Служебный!B:G,4,FALSE)) ->  | AM105: =IF(C105=0,"",IF(D105<Служебный!$P$3,"Раньше открытия",IF(D105>Служебный!$P$6,"Позже закрытия",IF(D105<Служебный!$P$4,Служебный!$N$4,IF(D105<Служебный!$P$5,Служебный!$N$5,Служебный!$N$6))))) ->  | AZ105: =IF(C105=0,"",IF(AX105="",AZ104,IF(SUMIF(C:C,C105,Z:Z)<0,IF(AZ104<0,AZ104-1,-1),IF(AZ104>0,AZ104+1,1)))) ->  | BA105: =IF(OR(C104=0,C105=0),"",IF(C105=C104,"",COUNTIF(C:C,C105))) ->  | BB105: =IF(OR(C104=0,C105=0),"",IF(C105=C104,"",COUNTIFS(C:C,C105,Y:Y,">0"))) ->  | BC105: =IF(OR(C104=0,C105=0),"",IF(C105=C104,"",COUNTIFS(C:C,C105,Y:Y,"<0"))) ->  | BD105: =IF(OR(C104=0,C105=0),"",IF(C105=C104,"",COUNTIFS(C:C,C105,Y:Y,"=0"))) ->  | BE105: =IF(BA105="","",SUMIFS($K$2:$K$77777,$C$2:$C$77777,$C105)) ->  | BF105: 80
V106: =IF(C106=0,"",K106/Служебный!$N$17*Служебный!$O$17*2) ->  | AE106: =IF(C106=0,"",VLOOKUP(WEEKDAY(C106,2),Служебный!K$4:L$10,2)) ->  | AG106: =IF(C106=0,"",VLOOKUP(G106,Служебный!B:G,6,)) ->  | AH106: =IF(C106=0,"",VLOOKUP(G106,Служебный!B:G,3,FALSE)) ->  | AI106: =IF(C106=0,"",VLOOKUP(G106,Служебный!B:G,4,FALSE)) ->  | AM106: =IF(C106=0,"",IF(D106<Служебный!$P$3,"Раньше открытия",IF(D106>Служебный!$P$6,"Позже закрытия",IF(D106<Служебный!$P$4,Служебный!$N$4,IF(D106<Служебный!$P$5,Служебный!$N$5,Служебный!$N$6))))) ->  | AZ106: =IF(C106=0,"",IF(AX106="",AZ105,IF(SUMIF(C:C,C106,Z:Z)<0,IF(AZ105<0,AZ105-1,-1),IF(AZ105>0,AZ105+1,1)))) ->  | BA106: =IF(OR(C105=0,C106=0),"",IF(C106=C105,"",COUNTIF(C:C,C106))) ->  | BB106: =IF(OR(C105=0,C106=0),"",IF(C106=C105,"",COUNTIFS(C:C,C106,Y:Y,">0"))) ->  | BC106: =IF(OR(C105=0,C106=0),"",IF(C106=C105,"",COUNTIFS(C:C,C106,Y:Y,"<0"))) ->  | BD106: =IF(OR(C105=0,C106=0),"",IF(C106=C105,"",COUNTIFS(C:C,C106,Y:Y,"=0"))) ->  | BE106: =IF(BA106="","",SUMIFS($K$2:$K$77777,$C$2:$C$77777,$C106)) ->  | BF106: 80
V107: =IF(C107=0,"",K107/Служебный!$N$17*Служебный!$O$17*2) ->  | AE107: =IF(C107=0,"",VLOOKUP(WEEKDAY(C107,2),Служебный!K$4:L$10,2)) ->  | AG107: =IF(C107=0,"",VLOOKUP(G107,Служебный!B:G,6,)) ->  | AH107: =IF(C107=0,"",VLOOKUP(G107,Служебный!B:G,3,FALSE)) ->  | AI107: =IF(C107=0,"",VLOOKUP(G107,Служебный!B:G,4,FALSE)) ->  | AM107: =IF(C107=0,"",IF(D107<Служебный!$P$3,"Раньше открытия",IF(D107>Служебный!$P$6,"Позже закрытия",IF(D107<Служебный!$P$4,Служебный!$N$4,IF(D107<Служебный!$P$5,Служебный!$N$5,Служебный!$N$6))))) ->  | AZ107: =IF(C107=0,"",IF(AX107="",AZ106,IF(SUMIF(C:C,C107,Z:Z)<0,IF(AZ106<0,AZ106-1,-1),IF(AZ106>0,AZ106+1,1)))) ->  | BA107: =IF(OR(C106=0,C107=0),"",IF(C107=C106,"",COUNTIF(C:C,C107))) ->  | BB107: =IF(OR(C106=0,C107=0),"",IF(C107=C106,"",COUNTIFS(C:C,C107,Y:Y,">0"))) ->  | BC107: =IF(OR(C106=0,C107=0),"",IF(C107=C106,"",COUNTIFS(C:C,C107,Y:Y,"<0"))) ->  | BD107: =IF(OR(C106=0,C107=0),"",IF(C107=C106,"",COUNTIFS(C:C,C107,Y:Y,"=0"))) ->  | BE107: =IF(BA107="","",SUMIFS($K$2:$K$77777,$C$2:$C$77777,$C107)) ->  | BF107: 80
V108: =IF(C108=0,"",K108/Служебный!$N$17*Служебный!$O$17*2) ->  | AE108: =IF(C108=0,"",VLOOKUP(WEEKDAY(C108,2),Служебный!K$4:L$10,2)) ->  | AG108: =IF(C108=0,"",VLOOKUP(G108,Служебный!B:G,6,)) ->  | AH108: =IF(C108=0,"",VLOOKUP(G108,Служебный!B:G,3,FALSE)) ->  | AI108: =IF(C108=0,"",VLOOKUP(G108,Служебный!B:G,4,FALSE)) ->  | AM108: =IF(C108=0,"",IF(D108<Служебный!$P$3,"Раньше открытия",IF(D108>Служебный!$P$6,"Позже закрытия",IF(D108<Служебный!$P$4,Служебный!$N$4,IF(D108<Служебный!$P$5,Служебный!$N$5,Служебный!$N$6))))) ->  | AZ108: =IF(C108=0,"",IF(AX108="",AZ107,IF(SUMIF(C:C,C108,Z:Z)<0,IF(AZ107<0,AZ107-1,-1),IF(AZ107>0,AZ107+1,1)))) ->  | BA108: =IF(OR(C107=0,C108=0),"",IF(C108=C107,"",COUNTIF(C:C,C108))) ->  | BB108: =IF(OR(C107=0,C108=0),"",IF(C108=C107,"",COUNTIFS(C:C,C108,Y:Y,">0"))) ->  | BC108: =IF(OR(C107=0,C108=0),"",IF(C108=C107,"",COUNTIFS(C:C,C108,Y:Y,"<0"))) ->  | BD108: =IF(OR(C107=0,C108=0),"",IF(C108=C107,"",COUNTIFS(C:C,C108,Y:Y,"=0"))) ->  | BE108: =IF(BA108="","",SUMIFS($K$2:$K$77777,$C$2:$C$77777,$C108)) ->  | BF108: 80 | BG108: =Z108*BF108% ->  | BH108: =Z108-BG108 -> 
V109: =IF(C109=0,"",K109/Служебный!$N$17*Служебный!$O$17*2) ->  | AE109: =IF(C109=0,"",VLOOKUP(WEEKDAY(C109,2),Служебный!K$4:L$10,2)) ->  | AG109: =IF(C109=0,"",VLOOKUP(G109,Служебный!B:G,6,)) ->  | AH109: =IF(C109=0,"",VLOOKUP(G109,Служебный!B:G,3,FALSE)) ->  | AI109: =IF(C109=0,"",VLOOKUP(G109,Служебный!B:G,4,FALSE)) ->  | AM109: =IF(C109=0,"",IF(D109<Служебный!$P$3,"Раньше открытия",IF(D109>Служебный!$P$6,"Позже закрытия",IF(D109<Служебный!$P$4,Служебный!$N$4,IF(D109<Служебный!$P$5,Служебный!$N$5,Служебный!$N$6))))) ->  | AZ109: =IF(C109=0,"",IF(AX109="",AZ108,IF(SUMIF(C:C,C109,Z:Z)<0,IF(AZ108<0,AZ108-1,-1),IF(AZ108>0,AZ108+1,1)))) ->  | BA109: =IF(OR(C108=0,C109=0),"",IF(C109=C108,"",COUNTIF(C:C,C109))) ->  | BB109: =IF(OR(C108=0,C109=0),"",IF(C109=C108,"",COUNTIFS(C:C,C109,Y:Y,">0"))) ->  | BC109: =IF(OR(C108=0,C109=0),"",IF(C109=C108,"",COUNTIFS(C:C,C109,Y:Y,"<0"))) ->  | BD109: =IF(OR(C108=0,C109=0),"",IF(C109=C108,"",COUNTIFS(C:C,C109,Y:Y,"=0"))) ->  | BE109: =IF(BA109="","",SUMIFS($K$2:$K$77777,$C$2:$C$77777,$C109)) ->  | BF109: 80
V110: =IF(C110=0,"",K110/Служебный!$N$17*Служебный!$O$17*2) ->  | AE110: =IF(C110=0,"",VLOOKUP(WEEKDAY(C110,2),Служебный!K$4:L$10,2)) ->  | AG110: =IF(C110=0,"",VLOOKUP(G110,Служебный!B:G,6,)) ->  | AH110: =IF(C110=0,"",VLOOKUP(G110,Служебный!B:G,3,FALSE)) ->  | AI110: =IF(C110=0,"",VLOOKUP(G110,Служебный!B:G,4,FALSE)) ->  | AM110: =IF(C110=0,"",IF(D110<Служебный!$P$3,"Раньше открытия",IF(D110>Служебный!$P$6,"Позже закрытия",IF(D110<Служебный!$P$4,Служебный!$N$4,IF(D110<Служебный!$P$5,Служебный!$N$5,Служебный!$N$6))))) ->  | AZ110: =IF(C110=0,"",IF(AX110="",AZ109,IF(SUMIF(C:C,C110,Z:Z)<0,IF(AZ109<0,AZ109-1,-1),IF(AZ109>0,AZ109+1,1)))) ->  | BA110: =IF(OR(C109=0,C110=0),"",IF(C110=C109,"",COUNTIF(C:C,C110))) ->  | BB110: =IF(OR(C109=0,C110=0),"",IF(C110=C109,"",COUNTIFS(C:C,C110,Y:Y,">0"))) ->  | BC110: =IF(OR(C109=0,C110=0),"",IF(C110=C109,"",COUNTIFS(C:C,C110,Y:Y,"<0"))) ->  | BD110: =IF(OR(C109=0,C110=0),"",IF(C110=C109,"",COUNTIFS(C:C,C110,Y:Y,"=0"))) ->  | BE110: =IF(BA110="","",SUMIFS($K$2:$K$77777,$C$2:$C$77777,$C110)) ->  | BF110: 80 | BG110: =Z110*BF110% ->  | BH110: =Z110-BG110 -> 
V111: =IF(C111=0,"",K111/Служебный!$N$17*Служебный!$O$17*2) ->  | AE111: =IF(C111=0,"",VLOOKUP(WEEKDAY(C111,2),Служебный!K$4:L$10,2)) ->  | AG111: =IF(C111=0,"",VLOOKUP(G111,Служебный!B:G,6,)) ->  | AH111: =IF(C111=0,"",VLOOKUP(G111,Служебный!B:G,3,FALSE)) ->  | AI111: =IF(C111=0,"",VLOOKUP(G111,Служебный!B:G,4,FALSE)) ->  | AM111: =IF(C111=0,"",IF(D111<Служебный!$P$3,"Раньше открытия",IF(D111>Служебный!$P$6,"Позже закрытия",IF(D111<Служебный!$P$4,Служебный!$N$4,IF(D111<Служебный!$P$5,Служебный!$N$5,Служебный!$N$6))))) ->  | AZ111: =IF(C111=0,"",IF(AX111="",AZ110,IF(SUMIF(C:C,C111,Z:Z)<0,IF(AZ110<0,AZ110-1,-1),IF(AZ110>0,AZ110+1,1)))) ->  | BA111: =IF(OR(C110=0,C111=0),"",IF(C111=C110,"",COUNTIF(C:C,C111))) ->  | BB111: =IF(OR(C110=0,C111=0),"",IF(C111=C110,"",COUNTIFS(C:C,C111,Y:Y,">0"))) ->  | BC111: =IF(OR(C110=0,C111=0),"",IF(C111=C110,"",COUNTIFS(C:C,C111,Y:Y,"<0"))) ->  | BD111: =IF(OR(C110=0,C111=0),"",IF(C111=C110,"",COUNTIFS(C:C,C111,Y:Y,"=0"))) ->  | BE111: =IF(BA111="","",SUMIFS($K$2:$K$77777,$C$2:$C$77777,$C111)) ->  | BF111: 80
V112: =IF(C112=0,"",K112/Служебный!$N$17*Служебный!$O$17*2) ->  | AE112: =IF(C112=0,"",VLOOKUP(WEEKDAY(C112,2),Служебный!K$4:L$10,2)) ->  | AG112: =IF(C112=0,"",VLOOKUP(G112,Служебный!B:G,6,)) ->  | AH112: =IF(C112=0,"",VLOOKUP(G112,Служебный!B:G,3,FALSE)) ->  | AI112: =IF(C112=0,"",VLOOKUP(G112,Служебный!B:G,4,FALSE)) ->  | AM112: =IF(C112=0,"",IF(D112<Служебный!$P$3,"Раньше открытия",IF(D112>Служебный!$P$6,"Позже закрытия",IF(D112<Служебный!$P$4,Служебный!$N$4,IF(D112<Служебный!$P$5,Служебный!$N$5,Служебный!$N$6))))) ->  | AZ112: =IF(C112=0,"",IF(AX112="",AZ111,IF(SUMIF(C:C,C112,Z:Z)<0,IF(AZ111<0,AZ111-1,-1),IF(AZ111>0,AZ111+1,1)))) ->  | BA112: =IF(OR(C111=0,C112=0),"",IF(C112=C111,"",COUNTIF(C:C,C112))) ->  | BB112: =IF(OR(C111=0,C112=0),"",IF(C112=C111,"",COUNTIFS(C:C,C112,Y:Y,">0"))) ->  | BC112: =IF(OR(C111=0,C112=0),"",IF(C112=C111,"",COUNTIFS(C:C,C112,Y:Y,"<0"))) ->  | BD112: =IF(OR(C111=0,C112=0),"",IF(C112=C111,"",COUNTIFS(C:C,C112,Y:Y,"=0"))) ->  | BE112: =IF(BA112="","",SUMIFS($K$2:$K$77777,$C$2:$C$77777,$C112)) ->  | BF112: 80
V113: =IF(C113=0,"",K113/Служебный!$N$17*Служебный!$O$17*2) ->  | AE113: =IF(C113=0,"",VLOOKUP(WEEKDAY(C113,2),Служебный!K$4:L$10,2)) ->  | AG113: =IF(C113=0,"",VLOOKUP(G113,Служебный!B:G,6,)) ->  | AH113: =IF(C113=0,"",VLOOKUP(G113,Служебный!B:G,3,FALSE)) ->  | AI113: =IF(C113=0,"",VLOOKUP(G113,Служебный!B:G,4,FALSE)) ->  | AM113: =IF(C113=0,"",IF(D113<Служебный!$P$3,"Раньше открытия",IF(D113>Служебный!$P$6,"Позже закрытия",IF(D113<Служебный!$P$4,Служебный!$N$4,IF(D113<Служебный!$P$5,Служебный!$N$5,Служебный!$N$6))))) ->  | AZ113: =IF(C113=0,"",IF(AX113="",AZ112,IF(SUMIF(C:C,C113,Z:Z)<0,IF(AZ112<0,AZ112-1,-1),IF(AZ112>0,AZ112+1,1)))) ->  | BA113: =IF(OR(C112=0,C113=0),"",IF(C113=C112,"",COUNTIF(C:C,C113))) ->  | BB113: =IF(OR(C112=0,C113=0),"",IF(C113=C112,"",COUNTIFS(C:C,C113,Y:Y,">0"))) ->  | BC113: =IF(OR(C112=0,C113=0),"",IF(C113=C112,"",COUNTIFS(C:C,C113,Y:Y,"<0"))) ->  | BD113: =IF(OR(C112=0,C113=0),"",IF(C113=C112,"",COUNTIFS(C:C,C113,Y:Y,"=0"))) ->  | BE113: =IF(BA113="","",SUMIFS($K$2:$K$77777,$C$2:$C$77777,$C113)) ->  | BF113: 80 | BG113: =Z113*BF113% ->  | BH113: =Z113-BG113 -> 
V114: =IF(C114=0,"",K114/Служебный!$N$17*Служебный!$O$17*2) ->  | AE114: =IF(C114=0,"",VLOOKUP(WEEKDAY(C114,2),Служебный!K$4:L$10,2)) ->  | AG114: =IF(C114=0,"",VLOOKUP(G114,Служебный!B:G,6,)) ->  | AH114: =IF(C114=0,"",VLOOKUP(G114,Служебный!B:G,3,FALSE)) ->  | AI114: =IF(C114=0,"",VLOOKUP(G114,Служебный!B:G,4,FALSE)) ->  | AM114: =IF(C114=0,"",IF(D114<Служебный!$P$3,"Раньше открытия",IF(D114>Служебный!$P$6,"Позже закрытия",IF(D114<Служебный!$P$4,Служебный!$N$4,IF(D114<Служебный!$P$5,Служебный!$N$5,Служебный!$N$6))))) ->  | AZ114: =IF(C114=0,"",IF(AX114="",AZ113,IF(SUMIF(C:C,C114,Z:Z)<0,IF(AZ113<0,AZ113-1,-1),IF(AZ113>0,AZ113+1,1)))) ->  | BA114: =IF(OR(C113=0,C114=0),"",IF(C114=C113,"",COUNTIF(C:C,C114))) ->  | BB114: =IF(OR(C113=0,C114=0),"",IF(C114=C113,"",COUNTIFS(C:C,C114,Y:Y,">0"))) ->  | BC114: =IF(OR(C113=0,C114=0),"",IF(C114=C113,"",COUNTIFS(C:C,C114,Y:Y,"<0"))) ->  | BD114: =IF(OR(C113=0,C114=0),"",IF(C114=C113,"",COUNTIFS(C:C,C114,Y:Y,"=0"))) ->  | BE114: =IF(BA114="","",SUMIFS($K$2:$K$77777,$C$2:$C$77777,$C114)) ->  | BF114: 80
V115: =IF(C115=0,"",K115/Служебный!$N$17*Служебный!$O$17*2) ->  | AE115: =IF(C115=0,"",VLOOKUP(WEEKDAY(C115,2),Служебный!K$4:L$10,2)) ->  | AG115: =IF(C115=0,"",VLOOKUP(G115,Служебный!B:G,6,)) ->  | AH115: =IF(C115=0,"",VLOOKUP(G115,Служебный!B:G,3,FALSE)) ->  | AI115: =IF(C115=0,"",VLOOKUP(G115,Служебный!B:G,4,FALSE)) ->  | AM115: =IF(C115=0,"",IF(D115<Служебный!$P$3,"Раньше открытия",IF(D115>Служебный!$P$6,"Позже закрытия",IF(D115<Служебный!$P$4,Служебный!$N$4,IF(D115<Служебный!$P$5,Служебный!$N$5,Служебный!$N$6))))) ->  | AZ115: =IF(C115=0,"",IF(AX115="",AZ114,IF(SUMIF(C:C,C115,Z:Z)<0,IF(AZ114<0,AZ114-1,-1),IF(AZ114>0,AZ114+1,1)))) ->  | BA115: =IF(OR(C114=0,C115=0),"",IF(C115=C114,"",COUNTIF(C:C,C115))) ->  | BB115: =IF(OR(C114=0,C115=0),"",IF(C115=C114,"",COUNTIFS(C:C,C115,Y:Y,">0"))) ->  | BC115: =IF(OR(C114=0,C115=0),"",IF(C115=C114,"",COUNTIFS(C:C,C115,Y:Y,"<0"))) ->  | BD115: =IF(OR(C114=0,C115=0),"",IF(C115=C114,"",COUNTIFS(C:C,C115,Y:Y,"=0"))) ->  | BE115: =IF(BA115="","",SUMIFS($K$2:$K$77777,$C$2:$C$77777,$C115)) ->  | BF115: 80
V116: =IF(C116=0,"",K116/Служебный!$N$17*Служебный!$O$17*2) ->  | Y116: =IF(H116="Sell",ROUND(W116-X116,2),IF(H116="Buy",ROUND(X116-W116,2),"")) ->  | Z116: =IF(C116=0,"",Y116-V116) ->  | AE116: =IF(C116=0,"",VLOOKUP(WEEKDAY(C116,2),Служебный!K$4:L$10,2)) ->  | AG116: =IF(C116=0,"",VLOOKUP(G116,Служебный!B:G,6,)) ->  | AH116: =IF(C116=0,"",VLOOKUP(G116,Служебный!B:G,3,FALSE)) ->  | AI116: =IF(C116=0,"",VLOOKUP(G116,Служебный!B:G,4,FALSE)) ->  | AM116: =IF(C116=0,"",IF(D116<Служебный!$P$3,"Раньше открытия",IF(D116>Служебный!$P$6,"Позже закрытия",IF(D116<Служебный!$P$4,Служебный!$N$4,IF(D116<Служебный!$P$5,Служебный!$N$5,Служебный!$N$6))))) ->  | AZ116: =IF(C116=0,"",IF(AX116="",AZ115,IF(SUMIF(C:C,C116,Z:Z)<0,IF(AZ115<0,AZ115-1,-1),IF(AZ115>0,AZ115+1,1)))) ->  | BA116: =IF(OR(C115=0,C116=0),"",IF(C116=C115,"",COUNTIF(C:C,C116))) ->  | BB116: =IF(OR(C115=0,C116=0),"",IF(C116=C115,"",COUNTIFS(C:C,C116,Y:Y,">0"))) ->  | BC116: =IF(OR(C115=0,C116=0),"",IF(C116=C115,"",COUNTIFS(C:C,C116,Y:Y,"<0"))) ->  | BD116: =IF(OR(C115=0,C116=0),"",IF(C116=C115,"",COUNTIFS(C:C,C116,Y:Y,"=0"))) ->  | BE116: =IF(BA116="","",SUMIFS($K$2:$K$77777,$C$2:$C$77777,$C116)) ->  | BF116: 80 | BG116: =Z116*BF116% ->  | BH116: =Z116-BG116 -> 
V117: =IF(C117=0,"",K117/Служебный!$N$17*Служебный!$O$17*2) ->  | AE117: =IF(C117=0,"",VLOOKUP(WEEKDAY(C117,2),Служебный!K$4:L$10,2)) ->  | AG117: =IF(C117=0,"",VLOOKUP(G117,Служебный!B:G,6,)) ->  | AH117: =IF(C117=0,"",VLOOKUP(G117,Служебный!B:G,3,FALSE)) ->  | AI117: =IF(C117=0,"",VLOOKUP(G117,Служебный!B:G,4,FALSE)) ->  | AM117: =IF(C117=0,"",IF(D117<Служебный!$P$3,"Раньше открытия",IF(D117>Служебный!$P$6,"Позже закрытия",IF(D117<Служебный!$P$4,Служебный!$N$4,IF(D117<Служебный!$P$5,Служебный!$N$5,Служебный!$N$6))))) ->  | AZ117: =IF(C117=0,"",IF(AX117="",AZ116,IF(SUMIF(C:C,C117,Z:Z)<0,IF(AZ116<0,AZ116-1,-1),IF(AZ116>0,AZ116+1,1)))) ->  | BA117: =IF(OR(C116=0,C117=0),"",IF(C117=C116,"",COUNTIF(C:C,C117))) ->  | BB117: =IF(OR(C116=0,C117=0),"",IF(C117=C116,"",COUNTIFS(C:C,C117,Y:Y,">0"))) ->  | BC117: =IF(OR(C116=0,C117=0),"",IF(C117=C116,"",COUNTIFS(C:C,C117,Y:Y,"<0"))) ->  | BD117: =IF(OR(C116=0,C117=0),"",IF(C117=C116,"",COUNTIFS(C:C,C117,Y:Y,"=0"))) ->  | BE117: =IF(BA117="","",SUMIFS($K$2:$K$77777,$C$2:$C$77777,$C117)) ->  | BF117: 80
V118: =IF(C118=0,"",K118/Служебный!$N$17*Служебный!$O$17*2) ->  | AE118: =IF(C118=0,"",VLOOKUP(WEEKDAY(C118,2),Служебный!K$4:L$10,2)) ->  | AG118: =IF(C118=0,"",VLOOKUP(G118,Служебный!B:G,6,)) ->  | AH118: =IF(C118=0,"",VLOOKUP(G118,Служебный!B:G,3,FALSE)) ->  | AI118: =IF(C118=0,"",VLOOKUP(G118,Служебный!B:G,4,FALSE)) ->  | AM118: =IF(C118=0,"",IF(D118<Служебный!$P$3,"Раньше открытия",IF(D118>Служебный!$P$6,"Позже закрытия",IF(D118<Служебный!$P$4,Служебный!$N$4,IF(D118<Служебный!$P$5,Служебный!$N$5,Служебный!$N$6))))) ->  | AZ118: =IF(C118=0,"",IF(AX118="",AZ117,IF(SUMIF(C:C,C118,Z:Z)<0,IF(AZ117<0,AZ117-1,-1),IF(AZ117>0,AZ117+1,1)))) ->  | BA118: =IF(OR(C117=0,C118=0),"",IF(C118=C117,"",COUNTIF(C:C,C118))) ->  | BB118: =IF(OR(C117=0,C118=0),"",IF(C118=C117,"",COUNTIFS(C:C,C118,Y:Y,">0"))) ->  | BC118: =IF(OR(C117=0,C118=0),"",IF(C118=C117,"",COUNTIFS(C:C,C118,Y:Y,"<0"))) ->  | BD118: =IF(OR(C117=0,C118=0),"",IF(C118=C117,"",COUNTIFS(C:C,C118,Y:Y,"=0"))) ->  | BE118: =IF(BA118="","",SUMIFS($K$2:$K$77777,$C$2:$C$77777,$C118)) ->  | BF118: 80 | BG118: =Z118*BF118% ->  | BH118: =Z118-BG118 -> 
V119: =IF(C119=0,"",K119/Служебный!$N$17*Служебный!$O$17*2) ->  | AE119: =IF(C119=0,"",VLOOKUP(WEEKDAY(C119,2),Служебный!K$4:L$10,2)) ->  | AG119: =IF(C119=0,"",VLOOKUP(G119,Служебный!B:G,6,)) ->  | AH119: =IF(C119=0,"",VLOOKUP(G119,Служебный!B:G,3,FALSE)) ->  | AI119: =IF(C119=0,"",VLOOKUP(G119,Служебный!B:G,4,FALSE)) ->  | AM119: =IF(C119=0,"",IF(D119<Служебный!$P$3,"Раньше открытия",IF(D119>Служебный!$P$6,"Позже закрытия",IF(D119<Служебный!$P$4,Служебный!$N$4,IF(D119<Служебный!$P$5,Служебный!$N$5,Служебный!$N$6))))) ->  | AZ119: =IF(C119=0,"",IF(AX119="",AZ118,IF(SUMIF(C:C,C119,Z:Z)<0,IF(AZ118<0,AZ118-1,-1),IF(AZ118>0,AZ118+1,1)))) ->  | BA119: =IF(OR(C118=0,C119=0),"",IF(C119=C118,"",COUNTIF(C:C,C119))) ->  | BB119: =IF(OR(C118=0,C119=0),"",IF(C119=C118,"",COUNTIFS(C:C,C119,Y:Y,">0"))) ->  | BC119: =IF(OR(C118=0,C119=0),"",IF(C119=C118,"",COUNTIFS(C:C,C119,Y:Y,"<0"))) ->  | BD119: =IF(OR(C118=0,C119=0),"",IF(C119=C118,"",COUNTIFS(C:C,C119,Y:Y,"=0"))) ->  | BE119: =IF(BA119="","",SUMIFS($K$2:$K$77777,$C$2:$C$77777,$C119)) ->  | BF119: 80 | BG119: =Z119*BF119% ->  | BH119: =Z119-BG119 -> 
V120: =IF(C120=0,"",K120/Служебный!$N$17*Служебный!$O$17*2) ->  | AE120: =IF(C120=0,"",VLOOKUP(WEEKDAY(C120,2),Служебный!K$4:L$10,2)) ->  | AG120: =IF(C120=0,"",VLOOKUP(G120,Служебный!B:G,6,)) ->  | AH120: =IF(C120=0,"",VLOOKUP(G120,Служебный!B:G,3,FALSE)) ->  | AI120: =IF(C120=0,"",VLOOKUP(G120,Служебный!B:G,4,FALSE)) ->  | AM120: =IF(C120=0,"",IF(D120<Служебный!$P$3,"Раньше открытия",IF(D120>Служебный!$P$6,"Позже закрытия",IF(D120<Служебный!$P$4,Служебный!$N$4,IF(D120<Служебный!$P$5,Служебный!$N$5,Служебный!$N$6))))) ->  | AZ120: =IF(C120=0,"",IF(AX120="",AZ119,IF(SUMIF(C:C,C120,Z:Z)<0,IF(AZ119<0,AZ119-1,-1),IF(AZ119>0,AZ119+1,1)))) ->  | BA120: =IF(OR(C119=0,C120=0),"",IF(C120=C119,"",COUNTIF(C:C,C120))) ->  | BB120: =IF(OR(C119=0,C120=0),"",IF(C120=C119,"",COUNTIFS(C:C,C120,Y:Y,">0"))) ->  | BC120: =IF(OR(C119=0,C120=0),"",IF(C120=C119,"",COUNTIFS(C:C,C120,Y:Y,"<0"))) ->  | BD120: =IF(OR(C119=0,C120=0),"",IF(C120=C119,"",COUNTIFS(C:C,C120,Y:Y,"=0"))) ->  | BE120: =IF(BA120="","",SUMIFS($K$2:$K$77777,$C$2:$C$77777,$C120)) ->  | BF120: 80 | BG120: =Z120*BF120% ->  | BH120: =Z120-BG120 -> 
V121: =IF(C121=0,"",K121/Служебный!$N$17*Служебный!$O$17*2) ->  | AE121: =IF(C121=0,"",VLOOKUP(WEEKDAY(C121,2),Служебный!K$4:L$10,2)) ->  | AG121: =IF(C121=0,"",VLOOKUP(G121,Служебный!B:G,6,)) ->  | AH121: =IF(C121=0,"",VLOOKUP(G121,Служебный!B:G,3,FALSE)) ->  | AI121: =IF(C121=0,"",VLOOKUP(G121,Служебный!B:G,4,FALSE)) ->  | AM121: =IF(C121=0,"",IF(D121<Служебный!$P$3,"Раньше открытия",IF(D121>Служебный!$P$6,"Позже закрытия",IF(D121<Служебный!$P$4,Служебный!$N$4,IF(D121<Служебный!$P$5,Служебный!$N$5,Служебный!$N$6))))) ->  | AZ121: =IF(C121=0,"",IF(AX121="",AZ120,IF(SUMIF(C:C,C121,Z:Z)<0,IF(AZ120<0,AZ120-1,-1),IF(AZ120>0,AZ120+1,1)))) ->  | BA121: =IF(OR(C120=0,C121=0),"",IF(C121=C120,"",COUNTIF(C:C,C121))) ->  | BB121: =IF(OR(C120=0,C121=0),"",IF(C121=C120,"",COUNTIFS(C:C,C121,Y:Y,">0"))) ->  | BC121: =IF(OR(C120=0,C121=0),"",IF(C121=C120,"",COUNTIFS(C:C,C121,Y:Y,"<0"))) ->  | BD121: =IF(OR(C120=0,C121=0),"",IF(C121=C120,"",COUNTIFS(C:C,C121,Y:Y,"=0"))) ->  | BE121: =IF(BA121="","",SUMIFS($K$2:$K$77777,$C$2:$C$77777,$C121)) ->  | BF121: 80
V122: =IF(C122=0,"",K122/Служебный!$N$17*Служебный!$O$17*2) ->  | AE122: =IF(C122=0,"",VLOOKUP(WEEKDAY(C122,2),Служебный!K$4:L$10,2)) ->  | AG122: =IF(C122=0,"",VLOOKUP(G122,Служебный!B:G,6,)) ->  | AH122: =IF(C122=0,"",VLOOKUP(G122,Служебный!B:G,3,FALSE)) ->  | AI122: =IF(C122=0,"",VLOOKUP(G122,Служебный!B:G,4,FALSE)) ->  | AM122: =IF(C122=0,"",IF(D122<Служебный!$P$3,"Раньше открытия",IF(D122>Служебный!$P$6,"Позже закрытия",IF(D122<Служебный!$P$4,Служебный!$N$4,IF(D122<Служебный!$P$5,Служебный!$N$5,Служебный!$N$6))))) ->  | AZ122: =IF(C122=0,"",IF(AX122="",AZ121,IF(SUMIF(C:C,C122,Z:Z)<0,IF(AZ121<0,AZ121-1,-1),IF(AZ121>0,AZ121+1,1)))) ->  | BA122: =IF(OR(C121=0,C122=0),"",IF(C122=C121,"",COUNTIF(C:C,C122))) ->  | BB122: =IF(OR(C121=0,C122=0),"",IF(C122=C121,"",COUNTIFS(C:C,C122,Y:Y,">0"))) ->  | BC122: =IF(OR(C121=0,C122=0),"",IF(C122=C121,"",COUNTIFS(C:C,C122,Y:Y,"<0"))) ->  | BD122: =IF(OR(C121=0,C122=0),"",IF(C122=C121,"",COUNTIFS(C:C,C122,Y:Y,"=0"))) ->  | BE122: =IF(BA122="","",SUMIFS($K$2:$K$77777,$C$2:$C$77777,$C122)) ->  | BF122: 80
V123: =IF(C123=0,"",K123/Служебный!$N$17*Служебный!$O$17*2) ->  | AE123: =IF(C123=0,"",VLOOKUP(WEEKDAY(C123,2),Служебный!K$4:L$10,2)) ->  | AG123: =IF(C123=0,"",VLOOKUP(G123,Служебный!B:G,6,)) ->  | AH123: =IF(C123=0,"",VLOOKUP(G123,Служебный!B:G,3,FALSE)) ->  | AI123: =IF(C123=0,"",VLOOKUP(G123,Служебный!B:G,4,FALSE)) ->  | AM123: =IF(C123=0,"",IF(D123<Служебный!$P$3,"Раньше открытия",IF(D123>Служебный!$P$6,"Позже закрытия",IF(D123<Служебный!$P$4,Служебный!$N$4,IF(D123<Служебный!$P$5,Служебный!$N$5,Служебный!$N$6))))) ->  | AZ123: =IF(C123=0,"",IF(AX123="",AZ122,IF(SUMIF(C:C,C123,Z:Z)<0,IF(AZ122<0,AZ122-1,-1),IF(AZ122>0,AZ122+1,1)))) ->  | BA123: =IF(OR(C122=0,C123=0),"",IF(C123=C122,"",COUNTIF(C:C,C123))) ->  | BB123: =IF(OR(C122=0,C123=0),"",IF(C123=C122,"",COUNTIFS(C:C,C123,Y:Y,">0"))) ->  | BC123: =IF(OR(C122=0,C123=0),"",IF(C123=C122,"",COUNTIFS(C:C,C123,Y:Y,"<0"))) ->  | BD123: =IF(OR(C122=0,C123=0),"",IF(C123=C122,"",COUNTIFS(C:C,C123,Y:Y,"=0"))) ->  | BE123: =IF(BA123="","",SUMIFS($K$2:$K$77777,$C$2:$C$77777,$C123)) ->  | BF123: 80
V124: =IF(C124=0,"",K124/Служебный!$N$17*Служебный!$O$17*2) ->  | AE124: =IF(C124=0,"",VLOOKUP(WEEKDAY(C124,2),Служебный!K$4:L$10,2)) ->  | AG124: =IF(C124=0,"",VLOOKUP(G124,Служебный!B:G,6,)) ->  | AH124: =IF(C124=0,"",VLOOKUP(G124,Служебный!B:G,3,FALSE)) ->  | AI124: =IF(C124=0,"",VLOOKUP(G124,Служебный!B:G,4,FALSE)) ->  | AM124: =IF(C124=0,"",IF(D124<Служебный!$P$3,"Раньше открытия",IF(D124>Служебный!$P$6,"Позже закрытия",IF(D124<Служебный!$P$4,Служебный!$N$4,IF(D124<Служебный!$P$5,Служебный!$N$5,Служебный!$N$6))))) ->  | AZ124: =IF(C124=0,"",IF(AX124="",AZ123,IF(SUMIF(C:C,C124,Z:Z)<0,IF(AZ123<0,AZ123-1,-1),IF(AZ123>0,AZ123+1,1)))) ->  | BA124: =IF(OR(C123=0,C124=0),"",IF(C124=C123,"",COUNTIF(C:C,C124))) ->  | BB124: =IF(OR(C123=0,C124=0),"",IF(C124=C123,"",COUNTIFS(C:C,C124,Y:Y,">0"))) ->  | BC124: =IF(OR(C123=0,C124=0),"",IF(C124=C123,"",COUNTIFS(C:C,C124,Y:Y,"<0"))) ->  | BD124: =IF(OR(C123=0,C124=0),"",IF(C124=C123,"",COUNTIFS(C:C,C124,Y:Y,"=0"))) ->  | BE124: =IF(BA124="","",SUMIFS($K$2:$K$77777,$C$2:$C$77777,$C124)) ->  | BF124: 80
B125: =IF(C125=0,"",B124+1) ->  | V125: =IF(C125=0,"",K125/Служебный!$N$17*Служебный!$O$17*2) ->  | AE125: =IF(C125=0,"",VLOOKUP(WEEKDAY(C125,2),Служебный!K$4:L$10,2)) ->  | AG125: =IF(C125=0,"",VLOOKUP(G125,Служебный!B:G,6,)) ->  | AH125: =IF(C125=0,"",VLOOKUP(G125,Служебный!B:G,3,FALSE)) ->  | AI125: =IF(C125=0,"",VLOOKUP(G125,Служебный!B:G,4,FALSE)) ->  | AM125: =IF(C125=0,"",IF(D125<Служебный!$P$3,"Раньше открытия",IF(D125>Служебный!$P$6,"Позже закрытия",IF(D125<Служебный!$P$4,Служебный!$N$4,IF(D125<Служебный!$P$5,Служебный!$N$5,Служебный!$N$6))))) ->  | AZ125: =IF(C125=0,"",IF(AX125="",AZ124,IF(SUMIF(C:C,C125,Z:Z)<0,IF(AZ124<0,AZ124-1,-1),IF(AZ124>0,AZ124+1,1)))) ->  | BA125: =IF(OR(C124=0,C125=0),"",IF(C125=C124,"",COUNTIF(C:C,C125))) ->  | BB125: =IF(OR(C124=0,C125=0),"",IF(C125=C124,"",COUNTIFS(C:C,C125,Y:Y,">0"))) ->  | BC125: =IF(OR(C124=0,C125=0),"",IF(C125=C124,"",COUNTIFS(C:C,C125,Y:Y,"<0"))) ->  | BD125: =IF(OR(C124=0,C125=0),"",IF(C125=C124,"",COUNTIFS(C:C,C125,Y:Y,"=0"))) ->  | BE125: =IF(BA125="","",SUMIFS($K$2:$K$77777,$C$2:$C$77777,$C125)) ->  | BF125: 80
V126: =IF(C126=0,"",K126/Служебный!$N$17*Служебный!$O$17*2) ->  | AE126: =IF(C126=0,"",VLOOKUP(WEEKDAY(C126,2),Служебный!K$4:L$10,2)) ->  | AG126: =IF(C126=0,"",VLOOKUP(G126,Служебный!B:G,6,)) ->  | AH126: =IF(C126=0,"",VLOOKUP(G126,Служебный!B:G,3,FALSE)) ->  | AI126: =IF(C126=0,"",VLOOKUP(G126,Служебный!B:G,4,FALSE)) ->  | AM126: =IF(C126=0,"",IF(D126<Служебный!$P$3,"Раньше открытия",IF(D126>Служебный!$P$6,"Позже закрытия",IF(D126<Служебный!$P$4,Служебный!$N$4,IF(D126<Служебный!$P$5,Служебный!$N$5,Служебный!$N$6))))) ->  | AZ126: =IF(C126=0,"",IF(AX126="",AZ125,IF(SUMIF(C:C,C126,Z:Z)<0,IF(AZ125<0,AZ125-1,-1),IF(AZ125>0,AZ125+1,1)))) ->  | BA126: =IF(OR(C125=0,C126=0),"",IF(C126=C125,"",COUNTIF(C:C,C126))) ->  | BB126: =IF(OR(C125=0,C126=0),"",IF(C126=C125,"",COUNTIFS(C:C,C126,Y:Y,">0"))) ->  | BC126: =IF(OR(C125=0,C126=0),"",IF(C126=C125,"",COUNTIFS(C:C,C126,Y:Y,"<0"))) ->  | BD126: =IF(OR(C125=0,C126=0),"",IF(C126=C125,"",COUNTIFS(C:C,C126,Y:Y,"=0"))) ->  | BE126: =IF(BA126="","",SUMIFS($K$2:$K$77777,$C$2:$C$77777,$C126)) ->  | BF126: 80 | BG126: =Z126*BF126% ->  | BH126: =Z126-BG126 -> 
V127: =IF(C127=0,"",K127/Служебный!$N$17*Служебный!$O$17*2) ->  | AE127: =IF(C127=0,"",VLOOKUP(WEEKDAY(C127,2),Служебный!K$4:L$10,2)) ->  | AG127: =IF(C127=0,"",VLOOKUP(G127,Служебный!B:G,6,)) ->  | AH127: =IF(C127=0,"",VLOOKUP(G127,Служебный!B:G,3,FALSE)) ->  | AI127: =IF(C127=0,"",VLOOKUP(G127,Служебный!B:G,4,FALSE)) ->  | AM127: =IF(C127=0,"",IF(D127<Служебный!$P$3,"Раньше открытия",IF(D127>Служебный!$P$6,"Позже закрытия",IF(D127<Служебный!$P$4,Служебный!$N$4,IF(D127<Служебный!$P$5,Служебный!$N$5,Служебный!$N$6))))) ->  | AZ127: =IF(C127=0,"",IF(AX127="",AZ126,IF(SUMIF(C:C,C127,Z:Z)<0,IF(AZ126<0,AZ126-1,-1),IF(AZ126>0,AZ126+1,1)))) ->  | BA127: =IF(OR(C126=0,C127=0),"",IF(C127=C126,"",COUNTIF(C:C,C127))) ->  | BB127: =IF(OR(C126=0,C127=0),"",IF(C127=C126,"",COUNTIFS(C:C,C127,Y:Y,">0"))) ->  | BC127: =IF(OR(C126=0,C127=0),"",IF(C127=C126,"",COUNTIFS(C:C,C127,Y:Y,"<0"))) ->  | BD127: =IF(OR(C126=0,C127=0),"",IF(C127=C126,"",COUNTIFS(C:C,C127,Y:Y,"=0"))) ->  | BE127: =IF(BA127="","",SUMIFS($K$2:$K$77777,$C$2:$C$77777,$C127)) ->  | BF127: 80
V128: =IF(C128=0,"",K128/Служебный!$N$17*Служебный!$O$17*2) ->  | AE128: =IF(C128=0,"",VLOOKUP(WEEKDAY(C128,2),Служебный!K$4:L$10,2)) ->  | AG128: =IF(C128=0,"",VLOOKUP(G128,Служебный!B:G,6,)) ->  | AH128: =IF(C128=0,"",VLOOKUP(G128,Служебный!B:G,3,FALSE)) ->  | AI128: =IF(C128=0,"",VLOOKUP(G128,Служебный!B:G,4,FALSE)) ->  | AM128: =IF(C128=0,"",IF(D128<Служебный!$P$3,"Раньше открытия",IF(D128>Служебный!$P$6,"Позже закрытия",IF(D128<Служебный!$P$4,Служебный!$N$4,IF(D128<Служебный!$P$5,Служебный!$N$5,Служебный!$N$6))))) ->  | AZ128: =IF(C128=0,"",IF(AX128="",AZ127,IF(SUMIF(C:C,C128,Z:Z)<0,IF(AZ127<0,AZ127-1,-1),IF(AZ127>0,AZ127+1,1)))) ->  | BA128: =IF(OR(C127=0,C128=0),"",IF(C128=C127,"",COUNTIF(C:C,C128))) ->  | BB128: =IF(OR(C127=0,C128=0),"",IF(C128=C127,"",COUNTIFS(C:C,C128,Y:Y,">0"))) ->  | BC128: =IF(OR(C127=0,C128=0),"",IF(C128=C127,"",COUNTIFS(C:C,C128,Y:Y,"<0"))) ->  | BD128: =IF(OR(C127=0,C128=0),"",IF(C128=C127,"",COUNTIFS(C:C,C128,Y:Y,"=0"))) ->  | BE128: =IF(BA128="","",SUMIFS($K$2:$K$77777,$C$2:$C$77777,$C128)) ->  | BF128: 80
V129: =IF(C129=0,"",K129/Служебный!$N$17*Служебный!$O$17*2) ->  | AE129: =IF(C129=0,"",VLOOKUP(WEEKDAY(C129,2),Служебный!K$4:L$10,2)) ->  | AG129: =IF(C129=0,"",VLOOKUP(G129,Служебный!B:G,6,)) ->  | AH129: =IF(C129=0,"",VLOOKUP(G129,Служебный!B:G,3,FALSE)) ->  | AI129: =IF(C129=0,"",VLOOKUP(G129,Служебный!B:G,4,FALSE)) ->  | AM129: =IF(C129=0,"",IF(D129<Служебный!$P$3,"Раньше открытия",IF(D129>Служебный!$P$6,"Позже закрытия",IF(D129<Служебный!$P$4,Служебный!$N$4,IF(D129<Служебный!$P$5,Служебный!$N$5,Служебный!$N$6))))) ->  | AZ129: =IF(C129=0,"",IF(AX129="",AZ128,IF(SUMIF(C:C,C129,Z:Z)<0,IF(AZ128<0,AZ128-1,-1),IF(AZ128>0,AZ128+1,1)))) ->  | BA129: =IF(OR(C128=0,C129=0),"",IF(C129=C128,"",COUNTIF(C:C,C129))) ->  | BB129: =IF(OR(C128=0,C129=0),"",IF(C129=C128,"",COUNTIFS(C:C,C129,Y:Y,">0"))) ->  | BC129: =IF(OR(C128=0,C129=0),"",IF(C129=C128,"",COUNTIFS(C:C,C129,Y:Y,"<0"))) ->  | BD129: =IF(OR(C128=0,C129=0),"",IF(C129=C128,"",COUNTIFS(C:C,C129,Y:Y,"=0"))) ->  | BE129: =IF(BA129="","",SUMIFS($K$2:$K$77777,$C$2:$C$77777,$C129)) ->  | BF129: 80
A130: =IF(C130=0,"",Z130) ->  | V130: =IF(C130=0,"",K130/Служебный!$N$17*Служебный!$O$17*2) ->  | W130: =IF(C130=0,"",(I130*K130)) ->  | X130: =IF(C130=0,"",(J130*K130)) ->  | AC130: =IF(C130=0,"",AA130+Y130) ->  | AD130: =IF(C130=0,"",AB130+Z130) ->  | AE130: =IF(C130=0,"",VLOOKUP(WEEKDAY(C130,2),Служебный!K$4:L$10,2)) ->  | AG130: =IF(C130=0,"",VLOOKUP(G130,Служебный!B:G,6,)) ->  | AH130: =IF(C130=0,"",VLOOKUP(G130,Служебный!B:G,3,FALSE)) ->  | AI130: =IF(C130=0,"",VLOOKUP(G130,Служебный!B:G,4,FALSE)) ->  | AK130: =IF(OR(E130=0,C130=0,AJ130=0),"",IF(E130>C130,"Среднесрок",FLOOR((AJ130/60),0.1))) ->  | AM130: =IF(C130=0,"",IF(D130<Служебный!$P$3,"Раньше открытия",IF(D130>Служебный!$P$6,"Позже закрытия",IF(D130<Служебный!$P$4,Служебный!$N$4,IF(D130<Служебный!$P$5,Служебный!$N$5,Служебный!$N$6))))) ->  | AW130: =IF(OR(C129=0,C130=0),"",IF(C130=C129,"",AB130)) ->  | AX130: =IF(OR(C129=0,C130=0),"",IF(C130=C131,"",AD130)) ->  | AZ130: =IF(C130=0,"",IF(AX130="",AZ129,IF(SUMIF(C:C,C130,Z:Z)<0,IF(AZ129<0,AZ129-1,-1),IF(AZ129>0,AZ129+1,1)))) ->  | BA130: =IF(OR(C129=0,C130=0),"",IF(C130=C129,"",COUNTIF(C:C,C130))) ->  | BB130: =IF(OR(C129=0,C130=0),"",IF(C130=C129,"",COUNTIFS(C:C,C130,Y:Y,">0"))) ->  | BC130: =IF(OR(C129=0,C130=0),"",IF(C130=C129,"",COUNTIFS(C:C,C130,Y:Y,"<0"))) ->  | BD130: =IF(OR(C129=0,C130=0),"",IF(C130=C129,"",COUNTIFS(C:C,C130,Y:Y,"=0"))) ->  | BE130: =IF(BA130="","",SUMIFS($K$2:$K$77777,$C$2:$C$77777,$C130)) ->  | BF130: 80 | BG130: =Z130*BF130% ->  | BH130: =Z130-BG130 -> 
A131: =IF(C131=0,"",Z131) ->  | L131: =IF(C131=0,"",TEXT(C131,"ДД.ММ.ГГ")&" "&G131& " "&H131) ->  | V131: =IF(C131=0,"",K131/Служебный!$N$17*Служебный!$O$17*2) ->  | AA131: =IF(C131=0,"",AA130+Y130) ->  | AB131: =IF(C131=0,"",AB130+Z130) ->  | AE131: =IF(C131=0,"",VLOOKUP(WEEKDAY(C131,2),Служебный!K$4:L$10,2)) ->  | AG131: =IF(C131=0,"",VLOOKUP(G131,Служебный!B:G,6,)) ->  | AH131: =IF(C131=0,"",VLOOKUP(G131,Служебный!B:G,3,FALSE)) ->  | AI131: =IF(C131=0,"",VLOOKUP(G131,Служебный!B:G,4,FALSE)) ->  | AM131: =IF(C131=0,"",IF(D131<Служебный!$P$3,"Раньше открытия",IF(D131>Служебный!$P$6,"Позже закрытия",IF(D131<Служебный!$P$4,Служебный!$N$4,IF(D131<Служебный!$P$5,Служебный!$N$5,Служебный!$N$6))))) ->  | AZ131: =IF(C131=0,"",IF(AX131="",AZ130,IF(SUMIF(C:C,C131,Z:Z)<0,IF(AZ130<0,AZ130-1,-1),IF(AZ130>0,AZ130+1,1)))) ->  | BA131: =IF(OR(C130=0,C131=0),"",IF(C131=C130,"",COUNTIF(C:C,C131))) ->  | BB131: =IF(OR(C130=0,C131=0),"",IF(C131=C130,"",COUNTIFS(C:C,C131,Y:Y,">0"))) ->  | BC131: =IF(OR(C130=0,C131=0),"",IF(C131=C130,"",COUNTIFS(C:C,C131,Y:Y,"<0"))) ->  | BD131: =IF(OR(C130=0,C131=0),"",IF(C131=C130,"",COUNTIFS(C:C,C131,Y:Y,"=0"))) ->  | BE131: =IF(BA131="","",SUMIFS($K$2:$K$77777,$C$2:$C$77777,$C131)) ->  | BF131: 80
V132: =IF(C132=0,"",K132/Служебный!$N$17*Служебный!$O$17*2) ->  | AE132: =IF(C132=0,"",VLOOKUP(WEEKDAY(C132,2),Служебный!K$4:L$10,2)) ->  | AG132: =IF(C132=0,"",VLOOKUP(G132,Служебный!B:G,6,)) ->  | AH132: =IF(C132=0,"",VLOOKUP(G132,Служебный!B:G,3,FALSE)) ->  | AI132: =IF(C132=0,"",VLOOKUP(G132,Служебный!B:G,4,FALSE)) ->  | AM132: =IF(C132=0,"",IF(D132<Служебный!$P$3,"Раньше открытия",IF(D132>Служебный!$P$6,"Позже закрытия",IF(D132<Служебный!$P$4,Служебный!$N$4,IF(D132<Служебный!$P$5,Служебный!$N$5,Служебный!$N$6))))) ->  | AZ132: =IF(C132=0,"",IF(AX132="",AZ131,IF(SUMIF(C:C,C132,Z:Z)<0,IF(AZ131<0,AZ131-1,-1),IF(AZ131>0,AZ131+1,1)))) ->  | BA132: =IF(OR(C131=0,C132=0),"",IF(C132=C131,"",COUNTIF(C:C,C132))) ->  | BB132: =IF(OR(C131=0,C132=0),"",IF(C132=C131,"",COUNTIFS(C:C,C132,Y:Y,">0"))) ->  | BC132: =IF(OR(C131=0,C132=0),"",IF(C132=C131,"",COUNTIFS(C:C,C132,Y:Y,"<0"))) ->  | BD132: =IF(OR(C131=0,C132=0),"",IF(C132=C131,"",COUNTIFS(C:C,C132,Y:Y,"=0"))) ->  | BE132: =IF(BA132="","",SUMIFS($K$2:$K$77777,$C$2:$C$77777,$C132)) ->  | BF132: 80
V133: =IF(C133=0,"",K133/Служебный!$N$17*Служебный!$O$17*2) ->  | AE133: =IF(C133=0,"",VLOOKUP(WEEKDAY(C133,2),Служебный!K$4:L$10,2)) ->  | AG133: =IF(C133=0,"",VLOOKUP(G133,Служебный!B:G,6,)) ->  | AH133: =IF(C133=0,"",VLOOKUP(G133,Служебный!B:G,3,FALSE)) ->  | AI133: =IF(C133=0,"",VLOOKUP(G133,Служебный!B:G,4,FALSE)) ->  | AM133: =IF(C133=0,"",IF(D133<Служебный!$P$3,"Раньше открытия",IF(D133>Служебный!$P$6,"Позже закрытия",IF(D133<Служебный!$P$4,Служебный!$N$4,IF(D133<Служебный!$P$5,Служебный!$N$5,Служебный!$N$6))))) ->  | AZ133: =IF(C133=0,"",IF(AX133="",AZ132,IF(SUMIF(C:C,C133,Z:Z)<0,IF(AZ132<0,AZ132-1,-1),IF(AZ132>0,AZ132+1,1)))) ->  | BA133: =IF(OR(C132=0,C133=0),"",IF(C133=C132,"",COUNTIF(C:C,C133))) ->  | BB133: =IF(OR(C132=0,C133=0),"",IF(C133=C132,"",COUNTIFS(C:C,C133,Y:Y,">0"))) ->  | BC133: =IF(OR(C132=0,C133=0),"",IF(C133=C132,"",COUNTIFS(C:C,C133,Y:Y,"<0"))) ->  | BD133: =IF(OR(C132=0,C133=0),"",IF(C133=C132,"",COUNTIFS(C:C,C133,Y:Y,"=0"))) ->  | BE133: =IF(BA133="","",SUMIFS($K$2:$K$77777,$C$2:$C$77777,$C133)) ->  | BF133: 80
V134: =IF(C134=0,"",K134/Служебный!$N$17*Служебный!$O$17*2) ->  | AE134: =IF(C134=0,"",VLOOKUP(WEEKDAY(C134,2),Служебный!K$4:L$10,2)) ->  | AG134: =IF(C134=0,"",VLOOKUP(G134,Служебный!B:G,6,)) ->  | AH134: =IF(C134=0,"",VLOOKUP(G134,Служебный!B:G,3,FALSE)) ->  | AI134: =IF(C134=0,"",VLOOKUP(G134,Служебный!B:G,4,FALSE)) ->  | AM134: =IF(C134=0,"",IF(D134<Служебный!$P$3,"Раньше открытия",IF(D134>Служебный!$P$6,"Позже закрытия",IF(D134<Служебный!$P$4,Служебный!$N$4,IF(D134<Служебный!$P$5,Служебный!$N$5,Служебный!$N$6))))) ->  | AZ134: =IF(C134=0,"",IF(AX134="",AZ133,IF(SUMIF(C:C,C134,Z:Z)<0,IF(AZ133<0,AZ133-1,-1),IF(AZ133>0,AZ133+1,1)))) ->  | BA134: =IF(OR(C133=0,C134=0),"",IF(C134=C133,"",COUNTIF(C:C,C134))) ->  | BB134: =IF(OR(C133=0,C134=0),"",IF(C134=C133,"",COUNTIFS(C:C,C134,Y:Y,">0"))) ->  | BC134: =IF(OR(C133=0,C134=0),"",IF(C134=C133,"",COUNTIFS(C:C,C134,Y:Y,"<0"))) ->  | BD134: =IF(OR(C133=0,C134=0),"",IF(C134=C133,"",COUNTIFS(C:C,C134,Y:Y,"=0"))) ->  | BE134: =IF(BA134="","",SUMIFS($K$2:$K$77777,$C$2:$C$77777,$C134)) ->  | BF134: 80
V135: =IF(C135=0,"",K135/Служебный!$N$17*Служебный!$O$17*2) ->  | AE135: =IF(C135=0,"",VLOOKUP(WEEKDAY(C135,2),Служебный!K$4:L$10,2)) ->  | AG135: =IF(C135=0,"",VLOOKUP(G135,Служебный!B:G,6,)) ->  | AH135: =IF(C135=0,"",VLOOKUP(G135,Служебный!B:G,3,FALSE)) ->  | AI135: =IF(C135=0,"",VLOOKUP(G135,Служебный!B:G,4,FALSE)) ->  | AM135: =IF(C135=0,"",IF(D135<Служебный!$P$3,"Раньше открытия",IF(D135>Служебный!$P$6,"Позже закрытия",IF(D135<Служебный!$P$4,Служебный!$N$4,IF(D135<Служебный!$P$5,Служебный!$N$5,Служебный!$N$6))))) ->  | AZ135: =IF(C135=0,"",IF(AX135="",AZ134,IF(SUMIF(C:C,C135,Z:Z)<0,IF(AZ134<0,AZ134-1,-1),IF(AZ134>0,AZ134+1,1)))) ->  | BA135: =IF(OR(C134=0,C135=0),"",IF(C135=C134,"",COUNTIF(C:C,C135))) ->  | BB135: =IF(OR(C134=0,C135=0),"",IF(C135=C134,"",COUNTIFS(C:C,C135,Y:Y,">0"))) ->  | BC135: =IF(OR(C134=0,C135=0),"",IF(C135=C134,"",COUNTIFS(C:C,C135,Y:Y,"<0"))) ->  | BD135: =IF(OR(C134=0,C135=0),"",IF(C135=C134,"",COUNTIFS(C:C,C135,Y:Y,"=0"))) ->  | BE135: =IF(BA135="","",SUMIFS($K$2:$K$77777,$C$2:$C$77777,$C135)) ->  | BF135: 80
V136: =IF(C136=0,"",K136/Служебный!$N$17*Служебный!$O$17*2) ->  | AE136: =IF(C136=0,"",VLOOKUP(WEEKDAY(C136,2),Служебный!K$4:L$10,2)) ->  | AG136: =IF(C136=0,"",VLOOKUP(G136,Служебный!B:G,6,)) ->  | AH136: =IF(C136=0,"",VLOOKUP(G136,Служебный!B:G,3,FALSE)) ->  | AI136: =IF(C136=0,"",VLOOKUP(G136,Служебный!B:G,4,FALSE)) ->  | AM136: =IF(C136=0,"",IF(D136<Служебный!$P$3,"Раньше открытия",IF(D136>Служебный!$P$6,"Позже закрытия",IF(D136<Служебный!$P$4,Служебный!$N$4,IF(D136<Служебный!$P$5,Служебный!$N$5,Служебный!$N$6))))) ->  | AT136: =IF(U136="","",AT135+T136) ->  | AU136: =IF(OR(U136="",AT136=""),"",IFERROR(100*(U136-AT136)/AT136,"Заполните депозит")) ->  | AV136: =IF(U136="","",IFERROR(100*(U136-U135-T136)/(U135+T136),"Заполните депозит")) ->  | AZ136: =IF(C136=0,"",IF(AX136="",AZ135,IF(SUMIF(C:C,C136,Z:Z)<0,IF(AZ135<0,AZ135-1,-1),IF(AZ135>0,AZ135+1,1)))) ->  | BA136: =IF(OR(C135=0,C136=0),"",IF(C136=C135,"",COUNTIF(C:C,C136))) ->  | BB136: =IF(OR(C135=0,C136=0),"",IF(C136=C135,"",COUNTIFS(C:C,C136,Y:Y,">0"))) ->  | BC136: =IF(OR(C135=0,C136=0),"",IF(C136=C135,"",COUNTIFS(C:C,C136,Y:Y,"<0"))) ->  | BD136: =IF(OR(C135=0,C136=0),"",IF(C136=C135,"",COUNTIFS(C:C,C136,Y:Y,"=0"))) ->  | BE136: =IF(BA136="","",SUMIFS($K$2:$K$77777,$C$2:$C$77777,$C136)) ->  | BF136: 80
V137: =IF(C137=0,"",K137/Служебный!$N$17*Служебный!$O$17*2) ->  | AE137: =IF(C137=0,"",VLOOKUP(WEEKDAY(C137,2),Служебный!K$4:L$10,2)) ->  | AG137: =IF(C137=0,"",VLOOKUP(G137,Служебный!B:G,6,)) ->  | AH137: =IF(C137=0,"",VLOOKUP(G137,Служебный!B:G,3,FALSE)) ->  | AI137: =IF(C137=0,"",VLOOKUP(G137,Служебный!B:G,4,FALSE)) ->  | AM137: =IF(C137=0,"",IF(D137<Служебный!$P$3,"Раньше открытия",IF(D137>Служебный!$P$6,"Позже закрытия",IF(D137<Служебный!$P$4,Служебный!$N$4,IF(D137<Служебный!$P$5,Служебный!$N$5,Служебный!$N$6))))) ->  | AZ137: =IF(C137=0,"",IF(AX137="",AZ136,IF(SUMIF(C:C,C137,Z:Z)<0,IF(AZ136<0,AZ136-1,-1),IF(AZ136>0,AZ136+1,1)))) ->  | BA137: =IF(OR(C136=0,C137=0),"",IF(C137=C136,"",COUNTIF(C:C,C137))) ->  | BB137: =IF(OR(C136=0,C137=0),"",IF(C137=C136,"",COUNTIFS(C:C,C137,Y:Y,">0"))) ->  | BC137: =IF(OR(C136=0,C137=0),"",IF(C137=C136,"",COUNTIFS(C:C,C137,Y:Y,"<0"))) ->  | BD137: =IF(OR(C136=0,C137=0),"",IF(C137=C136,"",COUNTIFS(C:C,C137,Y:Y,"=0"))) ->  | BE137: =IF(BA137="","",SUMIFS($K$2:$K$77777,$C$2:$C$77777,$C137)) ->  | BF137: 80
V138: =IF(C138=0,"",K138/Служебный!$N$17*Служебный!$O$17*2) ->  | AE138: =IF(C138=0,"",VLOOKUP(WEEKDAY(C138,2),Служебный!K$4:L$10,2)) ->  | AG138: =IF(C138=0,"",VLOOKUP(G138,Служебный!B:G,6,)) ->  | AH138: =IF(C138=0,"",VLOOKUP(G138,Служебный!B:G,3,FALSE)) ->  | AI138: =IF(C138=0,"",VLOOKUP(G138,Служебный!B:G,4,FALSE)) ->  | AM138: =IF(C138=0,"",IF(D138<Служебный!$P$3,"Раньше открытия",IF(D138>Служебный!$P$6,"Позже закрытия",IF(D138<Служебный!$P$4,Служебный!$N$4,IF(D138<Служебный!$P$5,Служебный!$N$5,Служебный!$N$6))))) ->  | AZ138: =IF(C138=0,"",IF(AX138="",AZ137,IF(SUMIF(C:C,C138,Z:Z)<0,IF(AZ137<0,AZ137-1,-1),IF(AZ137>0,AZ137+1,1)))) ->  | BA138: =IF(OR(C137=0,C138=0),"",IF(C138=C137,"",COUNTIF(C:C,C138))) ->  | BB138: =IF(OR(C137=0,C138=0),"",IF(C138=C137,"",COUNTIFS(C:C,C138,Y:Y,">0"))) ->  | BC138: =IF(OR(C137=0,C138=0),"",IF(C138=C137,"",COUNTIFS(C:C,C138,Y:Y,"<0"))) ->  | BD138: =IF(OR(C137=0,C138=0),"",IF(C138=C137,"",COUNTIFS(C:C,C138,Y:Y,"=0"))) ->  | BE138: =IF(BA138="","",SUMIFS($K$2:$K$77777,$C$2:$C$77777,$C138)) ->  | BF138: 80 | BG138: =Z138*BF138% ->  | BH138: =Z138-BG138 -> 
V139: =IF(C139=0,"",K139/Служебный!$N$17*Служебный!$O$17*2) ->  | AE139: =IF(C139=0,"",VLOOKUP(WEEKDAY(C139,2),Служебный!K$4:L$10,2)) ->  | AG139: =IF(C139=0,"",VLOOKUP(G139,Служебный!B:G,6,)) ->  | AH139: =IF(C139=0,"",VLOOKUP(G139,Служебный!B:G,3,FALSE)) ->  | AI139: =IF(C139=0,"",VLOOKUP(G139,Служебный!B:G,4,FALSE)) ->  | AM139: =IF(C139=0,"",IF(D139<Служебный!$P$3,"Раньше открытия",IF(D139>Служебный!$P$6,"Позже закрытия",IF(D139<Служебный!$P$4,Служебный!$N$4,IF(D139<Служебный!$P$5,Служебный!$N$5,Служебный!$N$6))))) ->  | AZ139: =IF(C139=0,"",IF(AX139="",AZ138,IF(SUMIF(C:C,C139,Z:Z)<0,IF(AZ138<0,AZ138-1,-1),IF(AZ138>0,AZ138+1,1)))) ->  | BA139: =IF(OR(C138=0,C139=0),"",IF(C139=C138,"",COUNTIF(C:C,C139))) ->  | BB139: =IF(OR(C138=0,C139=0),"",IF(C139=C138,"",COUNTIFS(C:C,C139,Y:Y,">0"))) ->  | BC139: =IF(OR(C138=0,C139=0),"",IF(C139=C138,"",COUNTIFS(C:C,C139,Y:Y,"<0"))) ->  | BD139: =IF(OR(C138=0,C139=0),"",IF(C139=C138,"",COUNTIFS(C:C,C139,Y:Y,"=0"))) ->  | BE139: =IF(BA139="","",SUMIFS($K$2:$K$77777,$C$2:$C$77777,$C139)) ->  | BF139: 80
V140: =IF(C140=0,"",K140/Служебный!$N$17*Служебный!$O$17*2) ->  | AE140: =IF(C140=0,"",VLOOKUP(WEEKDAY(C140,2),Служебный!K$4:L$10,2)) ->  | AG140: =IF(C140=0,"",VLOOKUP(G140,Служебный!B:G,6,)) ->  | AH140: =IF(C140=0,"",VLOOKUP(G140,Служебный!B:G,3,FALSE)) ->  | AI140: =IF(C140=0,"",VLOOKUP(G140,Служебный!B:G,4,FALSE)) ->  | AM140: =IF(C140=0,"",IF(D140<Служебный!$P$3,"Раньше открытия",IF(D140>Служебный!$P$6,"Позже закрытия",IF(D140<Служебный!$P$4,Служебный!$N$4,IF(D140<Служебный!$P$5,Служебный!$N$5,Служебный!$N$6))))) ->  | AZ140: =IF(C140=0,"",IF(AX140="",AZ139,IF(SUMIF(C:C,C140,Z:Z)<0,IF(AZ139<0,AZ139-1,-1),IF(AZ139>0,AZ139+1,1)))) ->  | BA140: =IF(OR(C139=0,C140=0),"",IF(C140=C139,"",COUNTIF(C:C,C140))) ->  | BB140: =IF(OR(C139=0,C140=0),"",IF(C140=C139,"",COUNTIFS(C:C,C140,Y:Y,">0"))) ->  | BC140: =IF(OR(C139=0,C140=0),"",IF(C140=C139,"",COUNTIFS(C:C,C140,Y:Y,"<0"))) ->  | BD140: =IF(OR(C139=0,C140=0),"",IF(C140=C139,"",COUNTIFS(C:C,C140,Y:Y,"=0"))) ->  | BE140: =IF(BA140="","",SUMIFS($K$2:$K$77777,$C$2:$C$77777,$C140)) ->  | BF140: 80
V141: =IF(C141=0,"",K141/Служебный!$N$17*Служебный!$O$17*2) ->  | AE141: =IF(C141=0,"",VLOOKUP(WEEKDAY(C141,2),Служебный!K$4:L$10,2)) ->  | AG141: =IF(C141=0,"",VLOOKUP(G141,Служебный!B:G,6,)) ->  | AH141: =IF(C141=0,"",VLOOKUP(G141,Служебный!B:G,3,FALSE)) ->  | AI141: =IF(C141=0,"",VLOOKUP(G141,Служебный!B:G,4,FALSE)) ->  | AM141: =IF(C141=0,"",IF(D141<Служебный!$P$3,"Раньше открытия",IF(D141>Служебный!$P$6,"Позже закрытия",IF(D141<Служебный!$P$4,Служебный!$N$4,IF(D141<Служебный!$P$5,Служебный!$N$5,Служебный!$N$6))))) ->  | AZ141: =IF(C141=0,"",IF(AX141="",AZ140,IF(SUMIF(C:C,C141,Z:Z)<0,IF(AZ140<0,AZ140-1,-1),IF(AZ140>0,AZ140+1,1)))) ->  | BA141: =IF(OR(C140=0,C141=0),"",IF(C141=C140,"",COUNTIF(C:C,C141))) ->  | BB141: =IF(OR(C140=0,C141=0),"",IF(C141=C140,"",COUNTIFS(C:C,C141,Y:Y,">0"))) ->  | BC141: =IF(OR(C140=0,C141=0),"",IF(C141=C140,"",COUNTIFS(C:C,C141,Y:Y,"<0"))) ->  | BD141: =IF(OR(C140=0,C141=0),"",IF(C141=C140,"",COUNTIFS(C:C,C141,Y:Y,"=0"))) ->  | BE141: =IF(BA141="","",SUMIFS($K$2:$K$77777,$C$2:$C$77777,$C141)) ->  | BF141: 80
V142: =IF(C142=0,"",K142/Служебный!$N$17*Служебный!$O$17*2) ->  | AE142: =IF(C142=0,"",VLOOKUP(WEEKDAY(C142,2),Служебный!K$4:L$10,2)) ->  | AG142: =IF(C142=0,"",VLOOKUP(G142,Служебный!B:G,6,)) ->  | AH142: =IF(C142=0,"",VLOOKUP(G142,Служебный!B:G,3,FALSE)) ->  | AI142: =IF(C142=0,"",VLOOKUP(G142,Служебный!B:G,4,FALSE)) ->  | AM142: =IF(C142=0,"",IF(D142<Служебный!$P$3,"Раньше открытия",IF(D142>Служебный!$P$6,"Позже закрытия",IF(D142<Служебный!$P$4,Служебный!$N$4,IF(D142<Служебный!$P$5,Служебный!$N$5,Служебный!$N$6))))) ->  | AZ142: =IF(C142=0,"",IF(AX142="",AZ141,IF(SUMIF(C:C,C142,Z:Z)<0,IF(AZ141<0,AZ141-1,-1),IF(AZ141>0,AZ141+1,1)))) ->  | BA142: =IF(OR(C141=0,C142=0),"",IF(C142=C141,"",COUNTIF(C:C,C142))) ->  | BB142: =IF(OR(C141=0,C142=0),"",IF(C142=C141,"",COUNTIFS(C:C,C142,Y:Y,">0"))) ->  | BC142: =IF(OR(C141=0,C142=0),"",IF(C142=C141,"",COUNTIFS(C:C,C142,Y:Y,"<0"))) ->  | BD142: =IF(OR(C141=0,C142=0),"",IF(C142=C141,"",COUNTIFS(C:C,C142,Y:Y,"=0"))) ->  | BE142: =IF(BA142="","",SUMIFS($K$2:$K$77777,$C$2:$C$77777,$C142)) ->  | BF142: 80
V143: =IF(C143=0,"",K143/Служебный!$N$17*Служебный!$O$17*2) ->  | AE143: =IF(C143=0,"",VLOOKUP(WEEKDAY(C143,2),Служебный!K$4:L$10,2)) ->  | AG143: =IF(C143=0,"",VLOOKUP(G143,Служебный!B:G,6,)) ->  | AH143: =IF(C143=0,"",VLOOKUP(G143,Служебный!B:G,3,FALSE)) ->  | AI143: =IF(C143=0,"",VLOOKUP(G143,Служебный!B:G,4,FALSE)) ->  | AM143: =IF(C143=0,"",IF(D143<Служебный!$P$3,"Раньше открытия",IF(D143>Служебный!$P$6,"Позже закрытия",IF(D143<Служебный!$P$4,Служебный!$N$4,IF(D143<Служебный!$P$5,Служебный!$N$5,Служебный!$N$6))))) ->  | AZ143: =IF(C143=0,"",IF(AX143="",AZ142,IF(SUMIF(C:C,C143,Z:Z)<0,IF(AZ142<0,AZ142-1,-1),IF(AZ142>0,AZ142+1,1)))) ->  | BA143: =IF(OR(C142=0,C143=0),"",IF(C143=C142,"",COUNTIF(C:C,C143))) ->  | BB143: =IF(OR(C142=0,C143=0),"",IF(C143=C142,"",COUNTIFS(C:C,C143,Y:Y,">0"))) ->  | BC143: =IF(OR(C142=0,C143=0),"",IF(C143=C142,"",COUNTIFS(C:C,C143,Y:Y,"<0"))) ->  | BD143: =IF(OR(C142=0,C143=0),"",IF(C143=C142,"",COUNTIFS(C:C,C143,Y:Y,"=0"))) ->  | BE143: =IF(BA143="","",SUMIFS($K$2:$K$77777,$C$2:$C$77777,$C143)) ->  | BF143: 80 | BG143: =Z143*BF143% ->  | BH143: =Z143-BG143 -> 
V144: =IF(C144=0,"",K144/Служебный!$N$17*Служебный!$O$17*2) ->  | AE144: =IF(C144=0,"",VLOOKUP(WEEKDAY(C144,2),Служебный!K$4:L$10,2)) ->  | AG144: =IF(C144=0,"",VLOOKUP(G144,Служебный!B:G,6,)) ->  | AH144: =IF(C144=0,"",VLOOKUP(G144,Служебный!B:G,3,FALSE)) ->  | AI144: =IF(C144=0,"",VLOOKUP(G144,Служебный!B:G,4,FALSE)) ->  | AM144: =IF(C144=0,"",IF(D144<Служебный!$P$3,"Раньше открытия",IF(D144>Служебный!$P$6,"Позже закрытия",IF(D144<Служебный!$P$4,Служебный!$N$4,IF(D144<Служебный!$P$5,Служебный!$N$5,Служебный!$N$6))))) ->  | AZ144: =IF(C144=0,"",IF(AX144="",AZ143,IF(SUMIF(C:C,C144,Z:Z)<0,IF(AZ143<0,AZ143-1,-1),IF(AZ143>0,AZ143+1,1)))) ->  | BA144: =IF(OR(C143=0,C144=0),"",IF(C144=C143,"",COUNTIF(C:C,C144))) ->  | BB144: =IF(OR(C143=0,C144=0),"",IF(C144=C143,"",COUNTIFS(C:C,C144,Y:Y,">0"))) ->  | BC144: =IF(OR(C143=0,C144=0),"",IF(C144=C143,"",COUNTIFS(C:C,C144,Y:Y,"<0"))) ->  | BD144: =IF(OR(C143=0,C144=0),"",IF(C144=C143,"",COUNTIFS(C:C,C144,Y:Y,"=0"))) ->  | BE144: =IF(BA144="","",SUMIFS($K$2:$K$77777,$C$2:$C$77777,$C144)) ->  | BF144: 80
V145: =IF(C145=0,"",K145/Служебный!$N$17*Служебный!$O$17*2) ->  | AE145: =IF(C145=0,"",VLOOKUP(WEEKDAY(C145,2),Служебный!K$4:L$10,2)) ->  | AG145: =IF(C145=0,"",VLOOKUP(G145,Служебный!B:G,6,)) ->  | AH145: =IF(C145=0,"",VLOOKUP(G145,Служебный!B:G,3,FALSE)) ->  | AI145: =IF(C145=0,"",VLOOKUP(G145,Служебный!B:G,4,FALSE)) ->  | AM145: =IF(C145=0,"",IF(D145<Служебный!$P$3,"Раньше открытия",IF(D145>Служебный!$P$6,"Позже закрытия",IF(D145<Служебный!$P$4,Служебный!$N$4,IF(D145<Служебный!$P$5,Служебный!$N$5,Служебный!$N$6))))) ->  | AZ145: =IF(C145=0,"",IF(AX145="",AZ144,IF(SUMIF(C:C,C145,Z:Z)<0,IF(AZ144<0,AZ144-1,-1),IF(AZ144>0,AZ144+1,1)))) ->  | BA145: =IF(OR(C144=0,C145=0),"",IF(C145=C144,"",COUNTIF(C:C,C145))) ->  | BB145: =IF(OR(C144=0,C145=0),"",IF(C145=C144,"",COUNTIFS(C:C,C145,Y:Y,">0"))) ->  | BC145: =IF(OR(C144=0,C145=0),"",IF(C145=C144,"",COUNTIFS(C:C,C145,Y:Y,"<0"))) ->  | BD145: =IF(OR(C144=0,C145=0),"",IF(C145=C144,"",COUNTIFS(C:C,C145,Y:Y,"=0"))) ->  | BE145: =IF(BA145="","",SUMIFS($K$2:$K$77777,$C$2:$C$77777,$C145)) ->  | BF145: 80
V146: =IF(C146=0,"",K146/Служебный!$N$17*Служебный!$O$17*2) ->  | AE146: =IF(C146=0,"",VLOOKUP(WEEKDAY(C146,2),Служебный!K$4:L$10,2)) ->  | AG146: =IF(C146=0,"",VLOOKUP(G146,Служебный!B:G,6,)) ->  | AH146: =IF(C146=0,"",VLOOKUP(G146,Служебный!B:G,3,FALSE)) ->  | AI146: =IF(C146=0,"",VLOOKUP(G146,Служебный!B:G,4,FALSE)) ->  | AM146: =IF(C146=0,"",IF(D146<Служебный!$P$3,"Раньше открытия",IF(D146>Служебный!$P$6,"Позже закрытия",IF(D146<Служебный!$P$4,Служебный!$N$4,IF(D146<Служебный!$P$5,Служебный!$N$5,Служебный!$N$6))))) ->  | AZ146: =IF(C146=0,"",IF(AX146="",AZ145,IF(SUMIF(C:C,C146,Z:Z)<0,IF(AZ145<0,AZ145-1,-1),IF(AZ145>0,AZ145+1,1)))) ->  | BA146: =IF(OR(C145=0,C146=0),"",IF(C146=C145,"",COUNTIF(C:C,C146))) ->  | BB146: =IF(OR(C145=0,C146=0),"",IF(C146=C145,"",COUNTIFS(C:C,C146,Y:Y,">0"))) ->  | BC146: =IF(OR(C145=0,C146=0),"",IF(C146=C145,"",COUNTIFS(C:C,C146,Y:Y,"<0"))) ->  | BD146: =IF(OR(C145=0,C146=0),"",IF(C146=C145,"",COUNTIFS(C:C,C146,Y:Y,"=0"))) ->  | BE146: =IF(BA146="","",SUMIFS($K$2:$K$77777,$C$2:$C$77777,$C146)) ->  | BF146: 80 | BG146: =Z146*BF146% ->  | BH146: =Z146-BG146 -> 
U147: =IF(Z147="","",Z147+T147+U146) ->  | V147: =IF(C147=0,"",K147/Служебный!$N$17*Служебный!$O$17*2) ->  | AE147: =IF(C147=0,"",VLOOKUP(WEEKDAY(C147,2),Служебный!K$4:L$10,2)) ->  | AF147: =IF(C147=0,"",TEXT((HOUR(D147)),0)&"-"&TEXT(HOUR(D147)+1,0)) ->  | AG147: =IF(C147=0,"",VLOOKUP(G147,Служебный!B:G,6,)) ->  | AH147: =IF(C147=0,"",VLOOKUP(G147,Служебный!B:G,3,FALSE)) ->  | AI147: =IF(C147=0,"",VLOOKUP(G147,Служебный!B:G,4,FALSE)) ->  | AJ147: =IF(OR(C147=0,D147=0,E147=0,F147=0),"",ROUND(((E147+F147)-(C147+D147))*86400,0)) ->  | AL147: =IF(OR(E147=0,C147=0),"",IF(E147=C147,"Интрадей",NETWORKDAYS(C147,E147))) ->  | AM147: =IF(C147=0,"",IF(D147<Служебный!$P$3,"Раньше открытия",IF(D147>Служебный!$P$6,"Позже закрытия",IF(D147<Служебный!$P$4,Служебный!$N$4,IF(D147<Служебный!$P$5,Служебный!$N$5,Служебный!$N$6))))) ->  | AN147: =IF(Z147<=0,"",Z147) ->  | AO147: =IF(Z147>=0,"",Z147) ->  | AP147: =IF(C147=0,"",YEAR(C147)) ->  | AQ147: =IF(C147=0,"",TEXT(C147,"ММММ")) ->  | AR147: =IF(C147=0,"",WEEKNUM(C147)) ->  | AS147: =IF(AX147="","",U147) ->  | AY147: =IF(I147="","",CEILING(I147,5)) ->  | AZ147: =IF(C147=0,"",IF(AX147="",AZ146,IF(SUMIF(C:C,C147,Z:Z)<0,IF(AZ146<0,AZ146-1,-1),IF(AZ146>0,AZ146+1,1)))) ->  | BA147: =IF(OR(C146=0,C147=0),"",IF(C147=C146,"",COUNTIF(C:C,C147))) ->  | BB147: =IF(OR(C146=0,C147=0),"",IF(C147=C146,"",COUNTIFS(C:C,C147,Y:Y,">0"))) ->  | BC147: =IF(OR(C146=0,C147=0),"",IF(C147=C146,"",COUNTIFS(C:C,C147,Y:Y,"<0"))) ->  | BD147: =IF(OR(C146=0,C147=0),"",IF(C147=C146,"",COUNTIFS(C:C,C147,Y:Y,"=0"))) ->  | BE147: =IF(BA147="","",SUMIFS($K$2:$K$77777,$C$2:$C$77777,$C147)) ->  | BF147: 80
V148: =IF(C148=0,"",K148/Служебный!$N$17*Служебный!$O$17*2) ->  | AE148: =IF(C148=0,"",VLOOKUP(WEEKDAY(C148,2),Служебный!K$4:L$10,2)) ->  | AG148: =IF(C148=0,"",VLOOKUP(G148,Служебный!B:G,6,)) ->  | AH148: =IF(C148=0,"",VLOOKUP(G148,Служебный!B:G,3,FALSE)) ->  | AI148: =IF(C148=0,"",VLOOKUP(G148,Служебный!B:G,4,FALSE)) ->  | AM148: =IF(C148=0,"",IF(D148<Служебный!$P$3,"Раньше открытия",IF(D148>Служебный!$P$6,"Позже закрытия",IF(D148<Служебный!$P$4,Служебный!$N$4,IF(D148<Служебный!$P$5,Служебный!$N$5,Служебный!$N$6))))) ->  | AZ148: =IF(C148=0,"",IF(AX148="",AZ147,IF(SUMIF(C:C,C148,Z:Z)<0,IF(AZ147<0,AZ147-1,-1),IF(AZ147>0,AZ147+1,1)))) ->  | BA148: =IF(OR(C147=0,C148=0),"",IF(C148=C147,"",COUNTIF(C:C,C148))) ->  | BB148: =IF(OR(C147=0,C148=0),"",IF(C148=C147,"",COUNTIFS(C:C,C148,Y:Y,">0"))) ->  | BC148: =IF(OR(C147=0,C148=0),"",IF(C148=C147,"",COUNTIFS(C:C,C148,Y:Y,"<0"))) ->  | BD148: =IF(OR(C147=0,C148=0),"",IF(C148=C147,"",COUNTIFS(C:C,C148,Y:Y,"=0"))) ->  | BE148: =IF(BA148="","",SUMIFS($K$2:$K$77777,$C$2:$C$77777,$C148)) ->  | BF148: 80
V149: =IF(C149=0,"",K149/Служебный!$N$17*Служебный!$O$17*2) ->  | AE149: =IF(C149=0,"",VLOOKUP(WEEKDAY(C149,2),Служебный!K$4:L$10,2)) ->  | AG149: =IF(C149=0,"",VLOOKUP(G149,Служебный!B:G,6,)) ->  | AH149: =IF(C149=0,"",VLOOKUP(G149,Служебный!B:G,3,FALSE)) ->  | AI149: =IF(C149=0,"",VLOOKUP(G149,Служебный!B:G,4,FALSE)) ->  | AM149: =IF(C149=0,"",IF(D149<Служебный!$P$3,"Раньше открытия",IF(D149>Служебный!$P$6,"Позже закрытия",IF(D149<Служебный!$P$4,Служебный!$N$4,IF(D149<Служебный!$P$5,Служебный!$N$5,Служебный!$N$6))))) ->  | AZ149: =IF(C149=0,"",IF(AX149="",AZ148,IF(SUMIF(C:C,C149,Z:Z)<0,IF(AZ148<0,AZ148-1,-1),IF(AZ148>0,AZ148+1,1)))) ->  | BA149: =IF(OR(C148=0,C149=0),"",IF(C149=C148,"",COUNTIF(C:C,C149))) ->  | BB149: =IF(OR(C148=0,C149=0),"",IF(C149=C148,"",COUNTIFS(C:C,C149,Y:Y,">0"))) ->  | BC149: =IF(OR(C148=0,C149=0),"",IF(C149=C148,"",COUNTIFS(C:C,C149,Y:Y,"<0"))) ->  | BD149: =IF(OR(C148=0,C149=0),"",IF(C149=C148,"",COUNTIFS(C:C,C149,Y:Y,"=0"))) ->  | BE149: =IF(BA149="","",SUMIFS($K$2:$K$77777,$C$2:$C$77777,$C149)) ->  | BF149: 80
V150: =IF(C150=0,"",K150/Служебный!$N$17*Служебный!$O$17*2) ->  | AE150: =IF(C150=0,"",VLOOKUP(WEEKDAY(C150,2),Служебный!K$4:L$10,2)) ->  | AG150: =IF(C150=0,"",VLOOKUP(G150,Служебный!B:G,6,)) ->  | AH150: =IF(C150=0,"",VLOOKUP(G150,Служебный!B:G,3,FALSE)) ->  | AI150: =IF(C150=0,"",VLOOKUP(G150,Служебный!B:G,4,FALSE)) ->  | AM150: =IF(C150=0,"",IF(D150<Служебный!$P$3,"Раньше открытия",IF(D150>Служебный!$P$6,"Позже закрытия",IF(D150<Служебный!$P$4,Служебный!$N$4,IF(D150<Служебный!$P$5,Служебный!$N$5,Служебный!$N$6))))) ->  | AZ150: =IF(C150=0,"",IF(AX150="",AZ149,IF(SUMIF(C:C,C150,Z:Z)<0,IF(AZ149<0,AZ149-1,-1),IF(AZ149>0,AZ149+1,1)))) ->  | BA150: =IF(OR(C149=0,C150=0),"",IF(C150=C149,"",COUNTIF(C:C,C150))) ->  | BB150: =IF(OR(C149=0,C150=0),"",IF(C150=C149,"",COUNTIFS(C:C,C150,Y:Y,">0"))) ->  | BC150: =IF(OR(C149=0,C150=0),"",IF(C150=C149,"",COUNTIFS(C:C,C150,Y:Y,"<0"))) ->  | BD150: =IF(OR(C149=0,C150=0),"",IF(C150=C149,"",COUNTIFS(C:C,C150,Y:Y,"=0"))) ->  | BE150: =IF(BA150="","",SUMIFS($K$2:$K$77777,$C$2:$C$77777,$C150)) ->  | BF150: 80
V151: =IF(C151=0,"",K151/Служебный!$N$17*Служебный!$O$17*2) ->  | AE151: =IF(C151=0,"",VLOOKUP(WEEKDAY(C151,2),Служебный!K$4:L$10,2)) ->  | AG151: =IF(C151=0,"",VLOOKUP(G151,Служебный!B:G,6,)) ->  | AH151: =IF(C151=0,"",VLOOKUP(G151,Служебный!B:G,3,FALSE)) ->  | AI151: =IF(C151=0,"",VLOOKUP(G151,Служебный!B:G,4,FALSE)) ->  | AM151: =IF(C151=0,"",IF(D151<Служебный!$P$3,"Раньше открытия",IF(D151>Служебный!$P$6,"Позже закрытия",IF(D151<Служебный!$P$4,Служебный!$N$4,IF(D151<Служебный!$P$5,Служебный!$N$5,Служебный!$N$6))))) ->  | AZ151: =IF(C151=0,"",IF(AX151="",AZ150,IF(SUMIF(C:C,C151,Z:Z)<0,IF(AZ150<0,AZ150-1,-1),IF(AZ150>0,AZ150+1,1)))) ->  | BA151: =IF(OR(C150=0,C151=0),"",IF(C151=C150,"",COUNTIF(C:C,C151))) ->  | BB151: =IF(OR(C150=0,C151=0),"",IF(C151=C150,"",COUNTIFS(C:C,C151,Y:Y,">0"))) ->  | BC151: =IF(OR(C150=0,C151=0),"",IF(C151=C150,"",COUNTIFS(C:C,C151,Y:Y,"<0"))) ->  | BD151: =IF(OR(C150=0,C151=0),"",IF(C151=C150,"",COUNTIFS(C:C,C151,Y:Y,"=0"))) ->  | BE151: =IF(BA151="","",SUMIFS($K$2:$K$77777,$C$2:$C$77777,$C151)) ->  | BF151: 80 | BG151: =Z151*BF151% ->  | BH151: =Z151-BG151 -> 
V152: =IF(C152=0,"",K152/Служебный!$N$17*Служебный!$O$17*2) ->  | AE152: =IF(C152=0,"",VLOOKUP(WEEKDAY(C152,2),Служебный!K$4:L$10,2)) ->  | AG152: =IF(C152=0,"",VLOOKUP(G152,Служебный!B:G,6,)) ->  | AH152: =IF(C152=0,"",VLOOKUP(G152,Служебный!B:G,3,FALSE)) ->  | AI152: =IF(C152=0,"",VLOOKUP(G152,Служебный!B:G,4,FALSE)) ->  | AM152: =IF(C152=0,"",IF(D152<Служебный!$P$3,"Раньше открытия",IF(D152>Служебный!$P$6,"Позже закрытия",IF(D152<Служебный!$P$4,Служебный!$N$4,IF(D152<Служебный!$P$5,Служебный!$N$5,Служебный!$N$6))))) ->  | AZ152: =IF(C152=0,"",IF(AX152="",AZ151,IF(SUMIF(C:C,C152,Z:Z)<0,IF(AZ151<0,AZ151-1,-1),IF(AZ151>0,AZ151+1,1)))) ->  | BA152: =IF(OR(C151=0,C152=0),"",IF(C152=C151,"",COUNTIF(C:C,C152))) ->  | BB152: =IF(OR(C151=0,C152=0),"",IF(C152=C151,"",COUNTIFS(C:C,C152,Y:Y,">0"))) ->  | BC152: =IF(OR(C151=0,C152=0),"",IF(C152=C151,"",COUNTIFS(C:C,C152,Y:Y,"<0"))) ->  | BD152: =IF(OR(C151=0,C152=0),"",IF(C152=C151,"",COUNTIFS(C:C,C152,Y:Y,"=0"))) ->  | BE152: =IF(BA152="","",SUMIFS($K$2:$K$77777,$C$2:$C$77777,$C152)) ->  | BF152: 80
V153: =IF(C153=0,"",K153/Служебный!$N$17*Служебный!$O$17*2) ->  | AE153: =IF(C153=0,"",VLOOKUP(WEEKDAY(C153,2),Служебный!K$4:L$10,2)) ->  | AG153: =IF(C153=0,"",VLOOKUP(G153,Служебный!B:G,6,)) ->  | AH153: =IF(C153=0,"",VLOOKUP(G153,Служебный!B:G,3,FALSE)) ->  | AI153: =IF(C153=0,"",VLOOKUP(G153,Служебный!B:G,4,FALSE)) ->  | AM153: =IF(C153=0,"",IF(D153<Служебный!$P$3,"Раньше открытия",IF(D153>Служебный!$P$6,"Позже закрытия",IF(D153<Служебный!$P$4,Служебный!$N$4,IF(D153<Служебный!$P$5,Служебный!$N$5,Служебный!$N$6))))) ->  | AZ153: =IF(C153=0,"",IF(AX153="",AZ152,IF(SUMIF(C:C,C153,Z:Z)<0,IF(AZ152<0,AZ152-1,-1),IF(AZ152>0,AZ152+1,1)))) ->  | BA153: =IF(OR(C152=0,C153=0),"",IF(C153=C152,"",COUNTIF(C:C,C153))) ->  | BB153: =IF(OR(C152=0,C153=0),"",IF(C153=C152,"",COUNTIFS(C:C,C153,Y:Y,">0"))) ->  | BC153: =IF(OR(C152=0,C153=0),"",IF(C153=C152,"",COUNTIFS(C:C,C153,Y:Y,"<0"))) ->  | BD153: =IF(OR(C152=0,C153=0),"",IF(C153=C152,"",COUNTIFS(C:C,C153,Y:Y,"=0"))) ->  | BE153: =IF(BA153="","",SUMIFS($K$2:$K$77777,$C$2:$C$77777,$C153)) ->  | BF153: 80 | BG153: =Z153*BF153% ->  | BH153: =Z153-BG153 -> 
V154: =IF(C154=0,"",K154/Служебный!$N$17*Служебный!$O$17*2) ->  | AE154: =IF(C154=0,"",VLOOKUP(WEEKDAY(C154,2),Служебный!K$4:L$10,2)) ->  | AG154: =IF(C154=0,"",VLOOKUP(G154,Служебный!B:G,6,)) ->  | AH154: =IF(C154=0,"",VLOOKUP(G154,Служебный!B:G,3,FALSE)) ->  | AI154: =IF(C154=0,"",VLOOKUP(G154,Служебный!B:G,4,FALSE)) ->  | AM154: =IF(C154=0,"",IF(D154<Служебный!$P$3,"Раньше открытия",IF(D154>Служебный!$P$6,"Позже закрытия",IF(D154<Служебный!$P$4,Служебный!$N$4,IF(D154<Служебный!$P$5,Служебный!$N$5,Служебный!$N$6))))) ->  | AZ154: =IF(C154=0,"",IF(AX154="",AZ153,IF(SUMIF(C:C,C154,Z:Z)<0,IF(AZ153<0,AZ153-1,-1),IF(AZ153>0,AZ153+1,1)))) ->  | BA154: =IF(OR(C153=0,C154=0),"",IF(C154=C153,"",COUNTIF(C:C,C154))) ->  | BB154: =IF(OR(C153=0,C154=0),"",IF(C154=C153,"",COUNTIFS(C:C,C154,Y:Y,">0"))) ->  | BC154: =IF(OR(C153=0,C154=0),"",IF(C154=C153,"",COUNTIFS(C:C,C154,Y:Y,"<0"))) ->  | BD154: =IF(OR(C153=0,C154=0),"",IF(C154=C153,"",COUNTIFS(C:C,C154,Y:Y,"=0"))) ->  | BE154: =IF(BA154="","",SUMIFS($K$2:$K$77777,$C$2:$C$77777,$C154)) ->  | BF154: 80
V155: =IF(C155=0,"",K155/Служебный!$N$17*Служебный!$O$17*2) ->  | AE155: =IF(C155=0,"",VLOOKUP(WEEKDAY(C155,2),Служебный!K$4:L$10,2)) ->  | AG155: =IF(C155=0,"",VLOOKUP(G155,Служебный!B:G,6,)) ->  | AH155: =IF(C155=0,"",VLOOKUP(G155,Служебный!B:G,3,FALSE)) ->  | AI155: =IF(C155=0,"",VLOOKUP(G155,Служебный!B:G,4,FALSE)) ->  | AM155: =IF(C155=0,"",IF(D155<Служебный!$P$3,"Раньше открытия",IF(D155>Служебный!$P$6,"Позже закрытия",IF(D155<Служебный!$P$4,Служебный!$N$4,IF(D155<Служебный!$P$5,Служебный!$N$5,Служебный!$N$6))))) ->  | AZ155: =IF(C155=0,"",IF(AX155="",AZ154,IF(SUMIF(C:C,C155,Z:Z)<0,IF(AZ154<0,AZ154-1,-1),IF(AZ154>0,AZ154+1,1)))) ->  | BA155: =IF(OR(C154=0,C155=0),"",IF(C155=C154,"",COUNTIF(C:C,C155))) ->  | BB155: =IF(OR(C154=0,C155=0),"",IF(C155=C154,"",COUNTIFS(C:C,C155,Y:Y,">0"))) ->  | BC155: =IF(OR(C154=0,C155=0),"",IF(C155=C154,"",COUNTIFS(C:C,C155,Y:Y,"<0"))) ->  | BD155: =IF(OR(C154=0,C155=0),"",IF(C155=C154,"",COUNTIFS(C:C,C155,Y:Y,"=0"))) ->  | BE155: =IF(BA155="","",SUMIFS($K$2:$K$77777,$C$2:$C$77777,$C155)) ->  | BF155: 80
V156: =IF(C156=0,"",K156/Служебный!$N$17*Служебный!$O$17*2) ->  | AE156: =IF(C156=0,"",VLOOKUP(WEEKDAY(C156,2),Служебный!K$4:L$10,2)) ->  | AG156: =IF(C156=0,"",VLOOKUP(G156,Служебный!B:G,6,)) ->  | AH156: =IF(C156=0,"",VLOOKUP(G156,Служебный!B:G,3,FALSE)) ->  | AI156: =IF(C156=0,"",VLOOKUP(G156,Служебный!B:G,4,FALSE)) ->  | AM156: =IF(C156=0,"",IF(D156<Служебный!$P$3,"Раньше открытия",IF(D156>Служебный!$P$6,"Позже закрытия",IF(D156<Служебный!$P$4,Служебный!$N$4,IF(D156<Служебный!$P$5,Служебный!$N$5,Служебный!$N$6))))) ->  | AZ156: =IF(C156=0,"",IF(AX156="",AZ155,IF(SUMIF(C:C,C156,Z:Z)<0,IF(AZ155<0,AZ155-1,-1),IF(AZ155>0,AZ155+1,1)))) ->  | BA156: =IF(OR(C155=0,C156=0),"",IF(C156=C155,"",COUNTIF(C:C,C156))) ->  | BB156: =IF(OR(C155=0,C156=0),"",IF(C156=C155,"",COUNTIFS(C:C,C156,Y:Y,">0"))) ->  | BC156: =IF(OR(C155=0,C156=0),"",IF(C156=C155,"",COUNTIFS(C:C,C156,Y:Y,"<0"))) ->  | BD156: =IF(OR(C155=0,C156=0),"",IF(C156=C155,"",COUNTIFS(C:C,C156,Y:Y,"=0"))) ->  | BE156: =IF(BA156="","",SUMIFS($K$2:$K$77777,$C$2:$C$77777,$C156)) ->  | BF156: 80
V157: =IF(C157=0,"",K157/Служебный!$N$17*Служебный!$O$17*2) ->  | AE157: =IF(C157=0,"",VLOOKUP(WEEKDAY(C157,2),Служебный!K$4:L$10,2)) ->  | AG157: =IF(C157=0,"",VLOOKUP(G157,Служебный!B:G,6,)) ->  | AH157: =IF(C157=0,"",VLOOKUP(G157,Служебный!B:G,3,FALSE)) ->  | AI157: =IF(C157=0,"",VLOOKUP(G157,Служебный!B:G,4,FALSE)) ->  | AM157: =IF(C157=0,"",IF(D157<Служебный!$P$3,"Раньше открытия",IF(D157>Служебный!$P$6,"Позже закрытия",IF(D157<Служебный!$P$4,Служебный!$N$4,IF(D157<Служебный!$P$5,Служебный!$N$5,Служебный!$N$6))))) ->  | AZ157: =IF(C157=0,"",IF(AX157="",AZ156,IF(SUMIF(C:C,C157,Z:Z)<0,IF(AZ156<0,AZ156-1,-1),IF(AZ156>0,AZ156+1,1)))) ->  | BA157: =IF(OR(C156=0,C157=0),"",IF(C157=C156,"",COUNTIF(C:C,C157))) ->  | BB157: =IF(OR(C156=0,C157=0),"",IF(C157=C156,"",COUNTIFS(C:C,C157,Y:Y,">0"))) ->  | BC157: =IF(OR(C156=0,C157=0),"",IF(C157=C156,"",COUNTIFS(C:C,C157,Y:Y,"<0"))) ->  | BD157: =IF(OR(C156=0,C157=0),"",IF(C157=C156,"",COUNTIFS(C:C,C157,Y:Y,"=0"))) ->  | BE157: =IF(BA157="","",SUMIFS($K$2:$K$77777,$C$2:$C$77777,$C157)) ->  | BF157: 80 | BG157: =Z157*BF157% ->  | BH157: =Z157-BG157 -> 
V158: =IF(C158=0,"",K158/Служебный!$N$17*Служебный!$O$17*2) ->  | AE158: =IF(C158=0,"",VLOOKUP(WEEKDAY(C158,2),Служебный!K$4:L$10,2)) ->  | AG158: =IF(C158=0,"",VLOOKUP(G158,Служебный!B:G,6,)) ->  | AH158: =IF(C158=0,"",VLOOKUP(G158,Служебный!B:G,3,FALSE)) ->  | AI158: =IF(C158=0,"",VLOOKUP(G158,Служебный!B:G,4,FALSE)) ->  | AM158: =IF(C158=0,"",IF(D158<Служебный!$P$3,"Раньше открытия",IF(D158>Служебный!$P$6,"Позже закрытия",IF(D158<Служебный!$P$4,Служебный!$N$4,IF(D158<Служебный!$P$5,Служебный!$N$5,Служебный!$N$6))))) ->  | AZ158: =IF(C158=0,"",IF(AX158="",AZ157,IF(SUMIF(C:C,C158,Z:Z)<0,IF(AZ157<0,AZ157-1,-1),IF(AZ157>0,AZ157+1,1)))) ->  | BA158: =IF(OR(C157=0,C158=0),"",IF(C158=C157,"",COUNTIF(C:C,C158))) ->  | BB158: =IF(OR(C157=0,C158=0),"",IF(C158=C157,"",COUNTIFS(C:C,C158,Y:Y,">0"))) ->  | BC158: =IF(OR(C157=0,C158=0),"",IF(C158=C157,"",COUNTIFS(C:C,C158,Y:Y,"<0"))) ->  | BD158: =IF(OR(C157=0,C158=0),"",IF(C158=C157,"",COUNTIFS(C:C,C158,Y:Y,"=0"))) ->  | BE158: =IF(BA158="","",SUMIFS($K$2:$K$77777,$C$2:$C$77777,$C158)) ->  | BF158: 80
V159: =IF(C159=0,"",K159/Служебный!$N$17*Служебный!$O$17*2) ->  | AE159: =IF(C159=0,"",VLOOKUP(WEEKDAY(C159,2),Служебный!K$4:L$10,2)) ->  | AG159: =IF(C159=0,"",VLOOKUP(G159,Служебный!B:G,6,)) ->  | AH159: =IF(C159=0,"",VLOOKUP(G159,Служебный!B:G,3,FALSE)) ->  | AI159: =IF(C159=0,"",VLOOKUP(G159,Служебный!B:G,4,FALSE)) ->  | AM159: =IF(C159=0,"",IF(D159<Служебный!$P$3,"Раньше открытия",IF(D159>Служебный!$P$6,"Позже закрытия",IF(D159<Служебный!$P$4,Служебный!$N$4,IF(D159<Служебный!$P$5,Служебный!$N$5,Служебный!$N$6))))) ->  | AZ159: =IF(C159=0,"",IF(AX159="",AZ158,IF(SUMIF(C:C,C159,Z:Z)<0,IF(AZ158<0,AZ158-1,-1),IF(AZ158>0,AZ158+1,1)))) ->  | BA159: =IF(OR(C158=0,C159=0),"",IF(C159=C158,"",COUNTIF(C:C,C159))) ->  | BB159: =IF(OR(C158=0,C159=0),"",IF(C159=C158,"",COUNTIFS(C:C,C159,Y:Y,">0"))) ->  | BC159: =IF(OR(C158=0,C159=0),"",IF(C159=C158,"",COUNTIFS(C:C,C159,Y:Y,"<0"))) ->  | BD159: =IF(OR(C158=0,C159=0),"",IF(C159=C158,"",COUNTIFS(C:C,C159,Y:Y,"=0"))) ->  | BE159: =IF(BA159="","",SUMIFS($K$2:$K$77777,$C$2:$C$77777,$C159)) ->  | BF159: 80 | BG159: =Z159*BF159% ->  | BH159: =Z159-BG159 -> 
V160: =IF(C160=0,"",K160/Служебный!$N$17*Служебный!$O$17*2) ->  | AE160: =IF(C160=0,"",VLOOKUP(WEEKDAY(C160,2),Служебный!K$4:L$10,2)) ->  | AG160: =IF(C160=0,"",VLOOKUP(G160,Служебный!B:G,6,)) ->  | AH160: =IF(C160=0,"",VLOOKUP(G160,Служебный!B:G,3,FALSE)) ->  | AI160: =IF(C160=0,"",VLOOKUP(G160,Служебный!B:G,4,FALSE)) ->  | AM160: =IF(C160=0,"",IF(D160<Служебный!$P$3,"Раньше открытия",IF(D160>Служебный!$P$6,"Позже закрытия",IF(D160<Служебный!$P$4,Служебный!$N$4,IF(D160<Служебный!$P$5,Служебный!$N$5,Служебный!$N$6))))) ->  | AZ160: =IF(C160=0,"",IF(AX160="",AZ159,IF(SUMIF(C:C,C160,Z:Z)<0,IF(AZ159<0,AZ159-1,-1),IF(AZ159>0,AZ159+1,1)))) ->  | BA160: =IF(OR(C159=0,C160=0),"",IF(C160=C159,"",COUNTIF(C:C,C160))) ->  | BB160: =IF(OR(C159=0,C160=0),"",IF(C160=C159,"",COUNTIFS(C:C,C160,Y:Y,">0"))) ->  | BC160: =IF(OR(C159=0,C160=0),"",IF(C160=C159,"",COUNTIFS(C:C,C160,Y:Y,"<0"))) ->  | BD160: =IF(OR(C159=0,C160=0),"",IF(C160=C159,"",COUNTIFS(C:C,C160,Y:Y,"=0"))) ->  | BE160: =IF(BA160="","",SUMIFS($K$2:$K$77777,$C$2:$C$77777,$C160)) ->  | BF160: 80 | BG160: =Z160*BF160% ->  | BH160: =Z160-BG160 -> 
V161: =IF(C161=0,"",K161/Служебный!$N$17*Служебный!$O$17*2) ->  | AE161: =IF(C161=0,"",VLOOKUP(WEEKDAY(C161,2),Служебный!K$4:L$10,2)) ->  | AG161: =IF(C161=0,"",VLOOKUP(G161,Служебный!B:G,6,)) ->  | AH161: =IF(C161=0,"",VLOOKUP(G161,Служебный!B:G,3,FALSE)) ->  | AI161: =IF(C161=0,"",VLOOKUP(G161,Служебный!B:G,4,FALSE)) ->  | AM161: =IF(C161=0,"",IF(D161<Служебный!$P$3,"Раньше открытия",IF(D161>Служебный!$P$6,"Позже закрытия",IF(D161<Служебный!$P$4,Служебный!$N$4,IF(D161<Служебный!$P$5,Служебный!$N$5,Служебный!$N$6))))) ->  | AZ161: =IF(C161=0,"",IF(AX161="",AZ160,IF(SUMIF(C:C,C161,Z:Z)<0,IF(AZ160<0,AZ160-1,-1),IF(AZ160>0,AZ160+1,1)))) ->  | BA161: =IF(OR(C160=0,C161=0),"",IF(C161=C160,"",COUNTIF(C:C,C161))) ->  | BB161: =IF(OR(C160=0,C161=0),"",IF(C161=C160,"",COUNTIFS(C:C,C161,Y:Y,">0"))) ->  | BC161: =IF(OR(C160=0,C161=0),"",IF(C161=C160,"",COUNTIFS(C:C,C161,Y:Y,"<0"))) ->  | BD161: =IF(OR(C160=0,C161=0),"",IF(C161=C160,"",COUNTIFS(C:C,C161,Y:Y,"=0"))) ->  | BE161: =IF(BA161="","",SUMIFS($K$2:$K$77777,$C$2:$C$77777,$C161)) ->  | BF161: 80
V162: =IF(C162=0,"",K162/Служебный!$N$17*Служебный!$O$17*2) ->  | AE162: =IF(C162=0,"",VLOOKUP(WEEKDAY(C162,2),Служебный!K$4:L$10,2)) ->  | AG162: =IF(C162=0,"",VLOOKUP(G162,Служебный!B:G,6,)) ->  | AH162: =IF(C162=0,"",VLOOKUP(G162,Служебный!B:G,3,FALSE)) ->  | AI162: =IF(C162=0,"",VLOOKUP(G162,Служебный!B:G,4,FALSE)) ->  | AM162: =IF(C162=0,"",IF(D162<Служебный!$P$3,"Раньше открытия",IF(D162>Служебный!$P$6,"Позже закрытия",IF(D162<Служебный!$P$4,Служебный!$N$4,IF(D162<Служебный!$P$5,Служебный!$N$5,Служебный!$N$6))))) ->  | AZ162: =IF(C162=0,"",IF(AX162="",AZ161,IF(SUMIF(C:C,C162,Z:Z)<0,IF(AZ161<0,AZ161-1,-1),IF(AZ161>0,AZ161+1,1)))) ->  | BA162: =IF(OR(C161=0,C162=0),"",IF(C162=C161,"",COUNTIF(C:C,C162))) ->  | BB162: =IF(OR(C161=0,C162=0),"",IF(C162=C161,"",COUNTIFS(C:C,C162,Y:Y,">0"))) ->  | BC162: =IF(OR(C161=0,C162=0),"",IF(C162=C161,"",COUNTIFS(C:C,C162,Y:Y,"<0"))) ->  | BD162: =IF(OR(C161=0,C162=0),"",IF(C162=C161,"",COUNTIFS(C:C,C162,Y:Y,"=0"))) ->  | BE162: =IF(BA162="","",SUMIFS($K$2:$K$77777,$C$2:$C$77777,$C162)) ->  | BF162: 80
V163: =IF(C163=0,"",K163/Служебный!$N$17*Служебный!$O$17*2) ->  | AE163: =IF(C163=0,"",VLOOKUP(WEEKDAY(C163,2),Служебный!K$4:L$10,2)) ->  | AG163: =IF(C163=0,"",VLOOKUP(G163,Служебный!B:G,6,)) ->  | AH163: =IF(C163=0,"",VLOOKUP(G163,Служебный!B:G,3,FALSE)) ->  | AI163: =IF(C163=0,"",VLOOKUP(G163,Служебный!B:G,4,FALSE)) ->  | AM163: =IF(C163=0,"",IF(D163<Служебный!$P$3,"Раньше открытия",IF(D163>Служебный!$P$6,"Позже закрытия",IF(D163<Служебный!$P$4,Служебный!$N$4,IF(D163<Служебный!$P$5,Служебный!$N$5,Служебный!$N$6))))) ->  | AZ163: =IF(C163=0,"",IF(AX163="",AZ162,IF(SUMIF(C:C,C163,Z:Z)<0,IF(AZ162<0,AZ162-1,-1),IF(AZ162>0,AZ162+1,1)))) ->  | BA163: =IF(OR(C162=0,C163=0),"",IF(C163=C162,"",COUNTIF(C:C,C163))) ->  | BB163: =IF(OR(C162=0,C163=0),"",IF(C163=C162,"",COUNTIFS(C:C,C163,Y:Y,">0"))) ->  | BC163: =IF(OR(C162=0,C163=0),"",IF(C163=C162,"",COUNTIFS(C:C,C163,Y:Y,"<0"))) ->  | BD163: =IF(OR(C162=0,C163=0),"",IF(C163=C162,"",COUNTIFS(C:C,C163,Y:Y,"=0"))) ->  | BE163: =IF(BA163="","",SUMIFS($K$2:$K$77777,$C$2:$C$77777,$C163)) ->  | BF163: 80
V164: =IF(C164=0,"",K164/Служебный!$N$17*Служебный!$O$17*2) ->  | AE164: =IF(C164=0,"",VLOOKUP(WEEKDAY(C164,2),Служебный!K$4:L$10,2)) ->  | AG164: =IF(C164=0,"",VLOOKUP(G164,Служебный!B:G,6,)) ->  | AH164: =IF(C164=0,"",VLOOKUP(G164,Служебный!B:G,3,FALSE)) ->  | AI164: =IF(C164=0,"",VLOOKUP(G164,Служебный!B:G,4,FALSE)) ->  | AM164: =IF(C164=0,"",IF(D164<Служебный!$P$3,"Раньше открытия",IF(D164>Служебный!$P$6,"Позже закрытия",IF(D164<Служебный!$P$4,Служебный!$N$4,IF(D164<Служебный!$P$5,Служебный!$N$5,Служебный!$N$6))))) ->  | AZ164: =IF(C164=0,"",IF(AX164="",AZ163,IF(SUMIF(C:C,C164,Z:Z)<0,IF(AZ163<0,AZ163-1,-1),IF(AZ163>0,AZ163+1,1)))) ->  | BA164: =IF(OR(C163=0,C164=0),"",IF(C164=C163,"",COUNTIF(C:C,C164))) ->  | BB164: =IF(OR(C163=0,C164=0),"",IF(C164=C163,"",COUNTIFS(C:C,C164,Y:Y,">0"))) ->  | BC164: =IF(OR(C163=0,C164=0),"",IF(C164=C163,"",COUNTIFS(C:C,C164,Y:Y,"<0"))) ->  | BD164: =IF(OR(C163=0,C164=0),"",IF(C164=C163,"",COUNTIFS(C:C,C164,Y:Y,"=0"))) ->  | BE164: =IF(BA164="","",SUMIFS($K$2:$K$77777,$C$2:$C$77777,$C164)) ->  | BF164: 80
V165: =IF(C165=0,"",K165/Служебный!$N$17*Служебный!$O$17*2) ->  | AE165: =IF(C165=0,"",VLOOKUP(WEEKDAY(C165,2),Служебный!K$4:L$10,2)) ->  | AG165: =IF(C165=0,"",VLOOKUP(G165,Служебный!B:G,6,)) ->  | AH165: =IF(C165=0,"",VLOOKUP(G165,Служебный!B:G,3,FALSE)) ->  | AI165: =IF(C165=0,"",VLOOKUP(G165,Служебный!B:G,4,FALSE)) ->  | AM165: =IF(C165=0,"",IF(D165<Служебный!$P$3,"Раньше открытия",IF(D165>Служебный!$P$6,"Позже закрытия",IF(D165<Служебный!$P$4,Служебный!$N$4,IF(D165<Служебный!$P$5,Служебный!$N$5,Служебный!$N$6))))) ->  | AZ165: =IF(C165=0,"",IF(AX165="",AZ164,IF(SUMIF(C:C,C165,Z:Z)<0,IF(AZ164<0,AZ164-1,-1),IF(AZ164>0,AZ164+1,1)))) ->  | BA165: =IF(OR(C164=0,C165=0),"",IF(C165=C164,"",COUNTIF(C:C,C165))) ->  | BB165: =IF(OR(C164=0,C165=0),"",IF(C165=C164,"",COUNTIFS(C:C,C165,Y:Y,">0"))) ->  | BC165: =IF(OR(C164=0,C165=0),"",IF(C165=C164,"",COUNTIFS(C:C,C165,Y:Y,"<0"))) ->  | BD165: =IF(OR(C164=0,C165=0),"",IF(C165=C164,"",COUNTIFS(C:C,C165,Y:Y,"=0"))) ->  | BE165: =IF(BA165="","",SUMIFS($K$2:$K$77777,$C$2:$C$77777,$C165)) ->  | BF165: 80
V166: =IF(C166=0,"",K166/Служебный!$N$17*Служебный!$O$17*2) ->  | AE166: =IF(C166=0,"",VLOOKUP(WEEKDAY(C166,2),Служебный!K$4:L$10,2)) ->  | AG166: =IF(C166=0,"",VLOOKUP(G166,Служебный!B:G,6,)) ->  | AH166: =IF(C166=0,"",VLOOKUP(G166,Служебный!B:G,3,FALSE)) ->  | AI166: =IF(C166=0,"",VLOOKUP(G166,Служебный!B:G,4,FALSE)) ->  | AM166: =IF(C166=0,"",IF(D166<Служебный!$P$3,"Раньше открытия",IF(D166>Служебный!$P$6,"Позже закрытия",IF(D166<Служебный!$P$4,Служебный!$N$4,IF(D166<Служебный!$P$5,Служебный!$N$5,Служебный!$N$6))))) ->  | AZ166: =IF(C166=0,"",IF(AX166="",AZ165,IF(SUMIF(C:C,C166,Z:Z)<0,IF(AZ165<0,AZ165-1,-1),IF(AZ165>0,AZ165+1,1)))) ->  | BA166: =IF(OR(C165=0,C166=0),"",IF(C166=C165,"",COUNTIF(C:C,C166))) ->  | BB166: =IF(OR(C165=0,C166=0),"",IF(C166=C165,"",COUNTIFS(C:C,C166,Y:Y,">0"))) ->  | BC166: =IF(OR(C165=0,C166=0),"",IF(C166=C165,"",COUNTIFS(C:C,C166,Y:Y,"<0"))) ->  | BD166: =IF(OR(C165=0,C166=0),"",IF(C166=C165,"",COUNTIFS(C:C,C166,Y:Y,"=0"))) ->  | BE166: =IF(BA166="","",SUMIFS($K$2:$K$77777,$C$2:$C$77777,$C166)) ->  | BF166: 80 | BG166: =Z166*BF166% ->  | BH166: =Z166-BG166 -> 
V167: =IF(C167=0,"",K167/Служебный!$N$17*Служебный!$O$17*2) ->  | AE167: =IF(C167=0,"",VLOOKUP(WEEKDAY(C167,2),Служебный!K$4:L$10,2)) ->  | AG167: =IF(C167=0,"",VLOOKUP(G167,Служебный!B:G,6,)) ->  | AH167: =IF(C167=0,"",VLOOKUP(G167,Служебный!B:G,3,FALSE)) ->  | AI167: =IF(C167=0,"",VLOOKUP(G167,Служебный!B:G,4,FALSE)) ->  | AM167: =IF(C167=0,"",IF(D167<Служебный!$P$3,"Раньше открытия",IF(D167>Служебный!$P$6,"Позже закрытия",IF(D167<Служебный!$P$4,Служебный!$N$4,IF(D167<Служебный!$P$5,Служебный!$N$5,Служебный!$N$6))))) ->  | AZ167: =IF(C167=0,"",IF(AX167="",AZ166,IF(SUMIF(C:C,C167,Z:Z)<0,IF(AZ166<0,AZ166-1,-1),IF(AZ166>0,AZ166+1,1)))) ->  | BA167: =IF(OR(C166=0,C167=0),"",IF(C167=C166,"",COUNTIF(C:C,C167))) ->  | BB167: =IF(OR(C166=0,C167=0),"",IF(C167=C166,"",COUNTIFS(C:C,C167,Y:Y,">0"))) ->  | BC167: =IF(OR(C166=0,C167=0),"",IF(C167=C166,"",COUNTIFS(C:C,C167,Y:Y,"<0"))) ->  | BD167: =IF(OR(C166=0,C167=0),"",IF(C167=C166,"",COUNTIFS(C:C,C167,Y:Y,"=0"))) ->  | BE167: =IF(BA167="","",SUMIFS($K$2:$K$77777,$C$2:$C$77777,$C167)) ->  | BF167: 80
V168: =IF(C168=0,"",K168/Служебный!$N$17*Служебный!$O$17*2) ->  | AE168: =IF(C168=0,"",VLOOKUP(WEEKDAY(C168,2),Служебный!K$4:L$10,2)) ->  | AG168: =IF(C168=0,"",VLOOKUP(G168,Служебный!B:G,6,)) ->  | AH168: =IF(C168=0,"",VLOOKUP(G168,Служебный!B:G,3,FALSE)) ->  | AI168: =IF(C168=0,"",VLOOKUP(G168,Служебный!B:G,4,FALSE)) ->  | AM168: =IF(C168=0,"",IF(D168<Служебный!$P$3,"Раньше открытия",IF(D168>Служебный!$P$6,"Позже закрытия",IF(D168<Служебный!$P$4,Служебный!$N$4,IF(D168<Служебный!$P$5,Служебный!$N$5,Служебный!$N$6))))) ->  | AZ168: =IF(C168=0,"",IF(AX168="",AZ167,IF(SUMIF(C:C,C168,Z:Z)<0,IF(AZ167<0,AZ167-1,-1),IF(AZ167>0,AZ167+1,1)))) ->  | BA168: =IF(OR(C167=0,C168=0),"",IF(C168=C167,"",COUNTIF(C:C,C168))) ->  | BB168: =IF(OR(C167=0,C168=0),"",IF(C168=C167,"",COUNTIFS(C:C,C168,Y:Y,">0"))) ->  | BC168: =IF(OR(C167=0,C168=0),"",IF(C168=C167,"",COUNTIFS(C:C,C168,Y:Y,"<0"))) ->  | BD168: =IF(OR(C167=0,C168=0),"",IF(C168=C167,"",COUNTIFS(C:C,C168,Y:Y,"=0"))) ->  | BE168: =IF(BA168="","",SUMIFS($K$2:$K$77777,$C$2:$C$77777,$C168)) ->  | BF168: 80
V169: =IF(C169=0,"",K169/Служебный!$N$17*Служебный!$O$17*2) ->  | AE169: =IF(C169=0,"",VLOOKUP(WEEKDAY(C169,2),Служебный!K$4:L$10,2)) ->  | AG169: =IF(C169=0,"",VLOOKUP(G169,Служебный!B:G,6,)) ->  | AH169: =IF(C169=0,"",VLOOKUP(G169,Служебный!B:G,3,FALSE)) ->  | AI169: =IF(C169=0,"",VLOOKUP(G169,Служебный!B:G,4,FALSE)) ->  | AM169: =IF(C169=0,"",IF(D169<Служебный!$P$3,"Раньше открытия",IF(D169>Служебный!$P$6,"Позже закрытия",IF(D169<Служебный!$P$4,Служебный!$N$4,IF(D169<Служебный!$P$5,Служебный!$N$5,Служебный!$N$6))))) ->  | AZ169: =IF(C169=0,"",IF(AX169="",AZ168,IF(SUMIF(C:C,C169,Z:Z)<0,IF(AZ168<0,AZ168-1,-1),IF(AZ168>0,AZ168+1,1)))) ->  | BA169: =IF(OR(C168=0,C169=0),"",IF(C169=C168,"",COUNTIF(C:C,C169))) ->  | BB169: =IF(OR(C168=0,C169=0),"",IF(C169=C168,"",COUNTIFS(C:C,C169,Y:Y,">0"))) ->  | BC169: =IF(OR(C168=0,C169=0),"",IF(C169=C168,"",COUNTIFS(C:C,C169,Y:Y,"<0"))) ->  | BD169: =IF(OR(C168=0,C169=0),"",IF(C169=C168,"",COUNTIFS(C:C,C169,Y:Y,"=0"))) ->  | BE169: =IF(BA169="","",SUMIFS($K$2:$K$77777,$C$2:$C$77777,$C169)) ->  | BF169: 80 | BG169: =Z169*BF169% ->  | BH169: =Z169-BG169 -> 
V170: =IF(C170=0,"",K170/Служебный!$N$17*Служебный!$O$17*2) ->  | AE170: =IF(C170=0,"",VLOOKUP(WEEKDAY(C170,2),Служебный!K$4:L$10,2)) ->  | AG170: =IF(C170=0,"",VLOOKUP(G170,Служебный!B:G,6,)) ->  | AH170: =IF(C170=0,"",VLOOKUP(G170,Служебный!B:G,3,FALSE)) ->  | AI170: =IF(C170=0,"",VLOOKUP(G170,Служебный!B:G,4,FALSE)) ->  | AM170: =IF(C170=0,"",IF(D170<Служебный!$P$3,"Раньше открытия",IF(D170>Служебный!$P$6,"Позже закрытия",IF(D170<Служебный!$P$4,Служебный!$N$4,IF(D170<Служебный!$P$5,Служебный!$N$5,Служебный!$N$6))))) ->  | AZ170: =IF(C170=0,"",IF(AX170="",AZ169,IF(SUMIF(C:C,C170,Z:Z)<0,IF(AZ169<0,AZ169-1,-1),IF(AZ169>0,AZ169+1,1)))) ->  | BA170: =IF(OR(C169=0,C170=0),"",IF(C170=C169,"",COUNTIF(C:C,C170))) ->  | BB170: =IF(OR(C169=0,C170=0),"",IF(C170=C169,"",COUNTIFS(C:C,C170,Y:Y,">0"))) ->  | BC170: =IF(OR(C169=0,C170=0),"",IF(C170=C169,"",COUNTIFS(C:C,C170,Y:Y,"<0"))) ->  | BD170: =IF(OR(C169=0,C170=0),"",IF(C170=C169,"",COUNTIFS(C:C,C170,Y:Y,"=0"))) ->  | BE170: =IF(BA170="","",SUMIFS($K$2:$K$77777,$C$2:$C$77777,$C170)) ->  | BF170: 80 | BG170: =Z170*BF170% ->  | BH170: =Z170-BG170 -> 
V171: =IF(C171=0,"",K171/Служебный!$N$17*Служебный!$O$17*2) ->  | AE171: =IF(C171=0,"",VLOOKUP(WEEKDAY(C171,2),Служебный!K$4:L$10,2)) ->  | AG171: =IF(C171=0,"",VLOOKUP(G171,Служебный!B:G,6,)) ->  | AH171: =IF(C171=0,"",VLOOKUP(G171,Служебный!B:G,3,FALSE)) ->  | AI171: =IF(C171=0,"",VLOOKUP(G171,Служебный!B:G,4,FALSE)) ->  | AM171: =IF(C171=0,"",IF(D171<Служебный!$P$3,"Раньше открытия",IF(D171>Служебный!$P$6,"Позже закрытия",IF(D171<Служебный!$P$4,Служебный!$N$4,IF(D171<Служебный!$P$5,Служебный!$N$5,Служебный!$N$6))))) ->  | AZ171: =IF(C171=0,"",IF(AX171="",AZ170,IF(SUMIF(C:C,C171,Z:Z)<0,IF(AZ170<0,AZ170-1,-1),IF(AZ170>0,AZ170+1,1)))) ->  | BA171: =IF(OR(C170=0,C171=0),"",IF(C171=C170,"",COUNTIF(C:C,C171))) ->  | BB171: =IF(OR(C170=0,C171=0),"",IF(C171=C170,"",COUNTIFS(C:C,C171,Y:Y,">0"))) ->  | BC171: =IF(OR(C170=0,C171=0),"",IF(C171=C170,"",COUNTIFS(C:C,C171,Y:Y,"<0"))) ->  | BD171: =IF(OR(C170=0,C171=0),"",IF(C171=C170,"",COUNTIFS(C:C,C171,Y:Y,"=0"))) ->  | BE171: =IF(BA171="","",SUMIFS($K$2:$K$77777,$C$2:$C$77777,$C171)) ->  | BF171: 80 | BG171: =Z171*BF171% ->  | BH171: =Z171-BG171 -> 
V172: =IF(C172=0,"",K172/Служебный!$N$17*Служебный!$O$17*2) ->  | AE172: =IF(C172=0,"",VLOOKUP(WEEKDAY(C172,2),Служебный!K$4:L$10,2)) ->  | AG172: =IF(C172=0,"",VLOOKUP(G172,Служебный!B:G,6,)) ->  | AH172: =IF(C172=0,"",VLOOKUP(G172,Служебный!B:G,3,FALSE)) ->  | AI172: =IF(C172=0,"",VLOOKUP(G172,Служебный!B:G,4,FALSE)) ->  | AM172: =IF(C172=0,"",IF(D172<Служебный!$P$3,"Раньше открытия",IF(D172>Служебный!$P$6,"Позже закрытия",IF(D172<Служебный!$P$4,Служебный!$N$4,IF(D172<Служебный!$P$5,Служебный!$N$5,Служебный!$N$6))))) ->  | AZ172: =IF(C172=0,"",IF(AX172="",AZ171,IF(SUMIF(C:C,C172,Z:Z)<0,IF(AZ171<0,AZ171-1,-1),IF(AZ171>0,AZ171+1,1)))) ->  | BA172: =IF(OR(C171=0,C172=0),"",IF(C172=C171,"",COUNTIF(C:C,C172))) ->  | BB172: =IF(OR(C171=0,C172=0),"",IF(C172=C171,"",COUNTIFS(C:C,C172,Y:Y,">0"))) ->  | BC172: =IF(OR(C171=0,C172=0),"",IF(C172=C171,"",COUNTIFS(C:C,C172,Y:Y,"<0"))) ->  | BD172: =IF(OR(C171=0,C172=0),"",IF(C172=C171,"",COUNTIFS(C:C,C172,Y:Y,"=0"))) ->  | BE172: =K172 -> 0 | BF172: 80
V173: =IF(C173=0,"",K173/Служебный!$N$17*Служебный!$O$17*2) ->  | AE173: =IF(C173=0,"",VLOOKUP(WEEKDAY(C173,2),Служебный!K$4:L$10,2)) ->  | AG173: =IF(C173=0,"",VLOOKUP(G173,Служебный!B:G,6,)) ->  | AH173: =IF(C173=0,"",VLOOKUP(G173,Служебный!B:G,3,FALSE)) ->  | AI173: =IF(C173=0,"",VLOOKUP(G173,Служебный!B:G,4,FALSE)) ->  | AM173: =IF(C173=0,"",IF(D173<Служебный!$P$3,"Раньше открытия",IF(D173>Служебный!$P$6,"Позже закрытия",IF(D173<Служебный!$P$4,Служебный!$N$4,IF(D173<Служебный!$P$5,Служебный!$N$5,Служебный!$N$6))))) ->  | AZ173: =IF(C173=0,"",IF(AX173="",AZ172,IF(SUMIF(C:C,C173,Z:Z)<0,IF(AZ172<0,AZ172-1,-1),IF(AZ172>0,AZ172+1,1)))) ->  | BA173: =IF(OR(C172=0,C173=0),"",IF(C173=C172,"",COUNTIF(C:C,C173))) ->  | BB173: =IF(OR(C172=0,C173=0),"",IF(C173=C172,"",COUNTIFS(C:C,C173,Y:Y,">0"))) ->  | BC173: =IF(OR(C172=0,C173=0),"",IF(C173=C172,"",COUNTIFS(C:C,C173,Y:Y,"<0"))) ->  | BD173: =IF(OR(C172=0,C173=0),"",IF(C173=C172,"",COUNTIFS(C:C,C173,Y:Y,"=0"))) ->  | BE173: 0 | BF173: 80 | BG173: =Z173*BF173% ->  | BH173: =Z173-BG173 -> 
D174: =IF(C174=0,"",Journal!C174) ->  | E174: =IF(C174=0,"",Journal!B174) ->  | F174: =IF(C174=0,"",Journal!D174) ->  | G174: =IF(C174=0,"",Journal!E174) ->  | H174: =IF(C174=0,"",Journal!F174) ->  | I174: =IF(C174=0,"",Journal!G174) ->  | J174: =IF(C174=0,"",Journal!H174) ->  | K174: =IF(C174=0,"",Journal!I174) ->  | V174: =IF(C174=0,"",K174/Служебный!$N$17*Служебный!$O$17*2) ->  | AE174: =IF(C174=0,"",VLOOKUP(WEEKDAY(C174,2),Служебный!K$4:L$10,2)) ->  | AG174: =IF(C174=0,"",VLOOKUP(G174,Служебный!B:G,6,)) ->  | AH174: =IF(C174=0,"",VLOOKUP(G174,Служебный!B:G,3,FALSE)) ->  | AI174: =IF(C174=0,"",VLOOKUP(G174,Служебный!B:G,4,FALSE)) ->  | AM174: =IF(C174=0,"",IF(D174<Служебный!$P$3,"Раньше открытия",IF(D174>Служебный!$P$6,"Позже закрытия",IF(D174<Служебный!$P$4,Служебный!$N$4,IF(D174<Служебный!$P$5,Служебный!$N$5,Служебный!$N$6))))) ->  | AZ174: =IF(C174=0,"",IF(AX174="",AZ173,IF(SUMIF(C:C,C174,Z:Z)<0,IF(AZ173<0,AZ173-1,-1),IF(AZ173>0,AZ173+1,1)))) ->  | BA174: =IF(OR(C173=0,C174=0),"",IF(C174=C173,"",COUNTIF(C:C,C174))) ->  | BB174: =IF(OR(C173=0,C174=0),"",IF(C174=C173,"",COUNTIFS(C:C,C174,Y:Y,">0"))) ->  | BC174: =IF(OR(C173=0,C174=0),"",IF(C174=C173,"",COUNTIFS(C:C,C174,Y:Y,"<0"))) ->  | BD174: =IF(OR(C173=0,C174=0),"",IF(C174=C173,"",COUNTIFS(C:C,C174,Y:Y,"=0"))) -> 
D175: =IF(C175=0,"",Journal!C175) ->  | E175: =IF(C175=0,"",Journal!B175) ->  | F175: =IF(C175=0,"",Journal!D175) ->  | G175: =IF(C175=0,"",Journal!E175) ->  | H175: =IF(C175=0,"",Journal!F175) ->  | I175: =IF(C175=0,"",Journal!G175) ->  | J175: =IF(C175=0,"",Journal!H175) ->  | K175: =IF(C175=0,"",Journal!I175) ->  | V175: =IF(C175=0,"",K175/Служебный!$N$17*Служебный!$O$17*2) ->  | AE175: =IF(C175=0,"",VLOOKUP(WEEKDAY(C175,2),Служебный!K$4:L$10,2)) ->  | AG175: =IF(C175=0,"",VLOOKUP(G175,Служебный!B:G,6,)) ->  | AH175: =IF(C175=0,"",VLOOKUP(G175,Служебный!B:G,3,FALSE)) ->  | AI175: =IF(C175=0,"",VLOOKUP(G175,Служебный!B:G,4,FALSE)) ->  | AM175: =IF(C175=0,"",IF(D175<Служебный!$P$3,"Раньше открытия",IF(D175>Служебный!$P$6,"Позже закрытия",IF(D175<Служебный!$P$4,Служебный!$N$4,IF(D175<Служебный!$P$5,Служебный!$N$5,Служебный!$N$6))))) ->  | AT175: =IF(U175="","",AT174+T175) ->  | AU175: =IF(OR(U175="",AT175=""),"",IFERROR(100*(U175-AT175)/AT175,"Заполните депозит")) ->  | AV175: =IF(U175="","",IFERROR(100*(U175-U174-T175)/(U174+T175),"Заполните депозит")) ->  | AZ175: =IF(C175=0,"",IF(AX175="",AZ174,IF(SUMIF(C:C,C175,Z:Z)<0,IF(AZ174<0,AZ174-1,-1),IF(AZ174>0,AZ174+1,1)))) ->  | BA175: =IF(OR(C174=0,C175=0),"",IF(C175=C174,"",COUNTIF(C:C,C175))) ->  | BB175: =IF(OR(C174=0,C175=0),"",IF(C175=C174,"",COUNTIFS(C:C,C175,Y:Y,">0"))) ->  | BC175: =IF(OR(C174=0,C175=0),"",IF(C175=C174,"",COUNTIFS(C:C,C175,Y:Y,"<0"))) ->  | BD175: =IF(OR(C174=0,C175=0),"",IF(C175=C174,"",COUNTIFS(C:C,C175,Y:Y,"=0"))) -> 
D176: =IF(C176=0,"",Journal!C176) ->  | E176: =IF(C176=0,"",Journal!B176) ->  | F176: =IF(C176=0,"",Journal!D176) ->  | G176: =IF(C176=0,"",Journal!E176) ->  | H176: =IF(C176=0,"",Journal!F176) ->  | I176: =IF(C176=0,"",Journal!G176) ->  | J176: =IF(C176=0,"",Journal!H176) ->  | K176: =IF(C176=0,"",Journal!I176) ->  | V176: =IF(C176=0,"",K176/Служебный!$N$17*Служебный!$O$17*2) ->  | AE176: =IF(C176=0,"",VLOOKUP(WEEKDAY(C176,2),Служебный!K$4:L$10,2)) ->  | AG176: =IF(C176=0,"",VLOOKUP(G176,Служебный!B:G,6,)) ->  | AH176: =IF(C176=0,"",VLOOKUP(G176,Служебный!B:G,3,FALSE)) ->  | AI176: =IF(C176=0,"",VLOOKUP(G176,Служебный!B:G,4,FALSE)) ->  | AM176: =IF(C176=0,"",IF(D176<Служебный!$P$3,"Раньше открытия",IF(D176>Служебный!$P$6,"Позже закрытия",IF(D176<Служебный!$P$4,Служебный!$N$4,IF(D176<Служебный!$P$5,Служебный!$N$5,Служебный!$N$6))))) ->  | AZ176: =IF(C176=0,"",IF(AX176="",AZ175,IF(SUMIF(C:C,C176,Z:Z)<0,IF(AZ175<0,AZ175-1,-1),IF(AZ175>0,AZ175+1,1)))) ->  | BA176: =IF(OR(C175=0,C176=0),"",IF(C176=C175,"",COUNTIF(C:C,C176))) ->  | BB176: =IF(OR(C175=0,C176=0),"",IF(C176=C175,"",COUNTIFS(C:C,C176,Y:Y,">0"))) ->  | BC176: =IF(OR(C175=0,C176=0),"",IF(C176=C175,"",COUNTIFS(C:C,C176,Y:Y,"<0"))) ->  | BD176: =IF(OR(C175=0,C176=0),"",IF(C176=C175,"",COUNTIFS(C:C,C176,Y:Y,"=0"))) -> 
D177: =IF(C177=0,"",Journal!C177) ->  | E177: =IF(C177=0,"",Journal!B177) ->  | F177: =IF(C177=0,"",Journal!D177) ->  | G177: =IF(C177=0,"",Journal!E177) ->  | H177: =IF(C177=0,"",Journal!F177) ->  | I177: =IF(C177=0,"",Journal!G177) ->  | J177: =IF(C177=0,"",Journal!H177) ->  | K177: =IF(C177=0,"",Journal!I177) ->  | V177: =IF(C177=0,"",K177/Служебный!$N$17*Служебный!$O$17*2) ->  | AE177: =IF(C177=0,"",VLOOKUP(WEEKDAY(C177,2),Служебный!K$4:L$10,2)) ->  | AG177: =IF(C177=0,"",VLOOKUP(G177,Служебный!B:G,6,)) ->  | AH177: =IF(C177=0,"",VLOOKUP(G177,Служебный!B:G,3,FALSE)) ->  | AI177: =IF(C177=0,"",VLOOKUP(G177,Служебный!B:G,4,FALSE)) ->  | AM177: =IF(C177=0,"",IF(D177<Служебный!$P$3,"Раньше открытия",IF(D177>Служебный!$P$6,"Позже закрытия",IF(D177<Служебный!$P$4,Служебный!$N$4,IF(D177<Служебный!$P$5,Служебный!$N$5,Служебный!$N$6))))) ->  | AZ177: =IF(C177=0,"",IF(AX177="",AZ176,IF(SUMIF(C:C,C177,Z:Z)<0,IF(AZ176<0,AZ176-1,-1),IF(AZ176>0,AZ176+1,1)))) ->  | BA177: =IF(OR(C176=0,C177=0),"",IF(C177=C176,"",COUNTIF(C:C,C177))) ->  | BB177: =IF(OR(C176=0,C177=0),"",IF(C177=C176,"",COUNTIFS(C:C,C177,Y:Y,">0"))) ->  | BC177: =IF(OR(C176=0,C177=0),"",IF(C177=C176,"",COUNTIFS(C:C,C177,Y:Y,"<0"))) ->  | BD177: =IF(OR(C176=0,C177=0),"",IF(C177=C176,"",COUNTIFS(C:C,C177,Y:Y,"=0"))) -> 
D178: =IF(C178=0,"",Journal!C178) ->  | E178: =IF(C178=0,"",Journal!B178) ->  | F178: =IF(C178=0,"",Journal!D178) ->  | G178: =IF(C178=0,"",Journal!E178) ->  | H178: =IF(C178=0,"",Journal!F178) ->  | I178: =IF(C178=0,"",Journal!G178) ->  | J178: =IF(C178=0,"",Journal!H178) ->  | K178: =IF(C178=0,"",Journal!I178) ->  | V178: =IF(C178=0,"",K178/Служебный!$N$17*Служебный!$O$17*2) ->  | AE178: =IF(C178=0,"",VLOOKUP(WEEKDAY(C178,2),Служебный!K$4:L$10,2)) ->  | AG178: =IF(C178=0,"",VLOOKUP(G178,Служебный!B:G,6,)) ->  | AH178: =IF(C178=0,"",VLOOKUP(G178,Служебный!B:G,3,FALSE)) ->  | AI178: =IF(C178=0,"",VLOOKUP(G178,Служебный!B:G,4,FALSE)) ->  | AM178: =IF(C178=0,"",IF(D178<Служебный!$P$3,"Раньше открытия",IF(D178>Служебный!$P$6,"Позже закрытия",IF(D178<Служебный!$P$4,Служебный!$N$4,IF(D178<Служебный!$P$5,Служебный!$N$5,Служебный!$N$6))))) ->  | AZ178: =IF(C178=0,"",IF(AX178="",AZ177,IF(SUMIF(C:C,C178,Z:Z)<0,IF(AZ177<0,AZ177-1,-1),IF(AZ177>0,AZ177+1,1)))) ->  | BA178: =IF(OR(C177=0,C178=0),"",IF(C178=C177,"",COUNTIF(C:C,C178))) ->  | BB178: =IF(OR(C177=0,C178=0),"",IF(C178=C177,"",COUNTIFS(C:C,C178,Y:Y,">0"))) ->  | BC178: =IF(OR(C177=0,C178=0),"",IF(C178=C177,"",COUNTIFS(C:C,C178,Y:Y,"<0"))) ->  | BD178: =IF(OR(C177=0,C178=0),"",IF(C178=C177,"",COUNTIFS(C:C,C178,Y:Y,"=0"))) -> 
D179: =IF(C179=0,"",Journal!C179) ->  | E179: =IF(C179=0,"",Journal!B179) ->  | F179: =IF(C179=0,"",Journal!D179) ->  | G179: =IF(C179=0,"",Journal!E179) ->  | H179: =IF(C179=0,"",Journal!F179) ->  | I179: =IF(C179=0,"",Journal!G179) ->  | J179: =IF(C179=0,"",Journal!H179) ->  | K179: =IF(C179=0,"",Journal!I179) ->  | V179: =IF(C179=0,"",K179/Служебный!$N$17*Служебный!$O$17*2) ->  | AE179: =IF(C179=0,"",VLOOKUP(WEEKDAY(C179,2),Служебный!K$4:L$10,2)) ->  | AG179: =IF(C179=0,"",VLOOKUP(G179,Служебный!B:G,6,)) ->  | AH179: =IF(C179=0,"",VLOOKUP(G179,Служебный!B:G,3,FALSE)) ->  | AI179: =IF(C179=0,"",VLOOKUP(G179,Служебный!B:G,4,FALSE)) ->  | AM179: =IF(C179=0,"",IF(D179<Служебный!$P$3,"Раньше открытия",IF(D179>Служебный!$P$6,"Позже закрытия",IF(D179<Служебный!$P$4,Служебный!$N$4,IF(D179<Служебный!$P$5,Служебный!$N$5,Служебный!$N$6))))) ->  | AZ179: =IF(C179=0,"",IF(AX179="",AZ178,IF(SUMIF(C:C,C179,Z:Z)<0,IF(AZ178<0,AZ178-1,-1),IF(AZ178>0,AZ178+1,1)))) ->  | BA179: =IF(OR(C178=0,C179=0),"",IF(C179=C178,"",COUNTIF(C:C,C179))) ->  | BB179: =IF(OR(C178=0,C179=0),"",IF(C179=C178,"",COUNTIFS(C:C,C179,Y:Y,">0"))) ->  | BC179: =IF(OR(C178=0,C179=0),"",IF(C179=C178,"",COUNTIFS(C:C,C179,Y:Y,"<0"))) ->  | BD179: =IF(OR(C178=0,C179=0),"",IF(C179=C178,"",COUNTIFS(C:C,C179,Y:Y,"=0"))) -> 
D180: =IF(C180=0,"",Journal!C180) ->  | E180: =IF(C180=0,"",Journal!B180) ->  | F180: =IF(C180=0,"",Journal!D180) ->  | G180: =IF(C180=0,"",Journal!E180) ->  | H180: =IF(C180=0,"",Journal!F180) ->  | I180: =IF(C180=0,"",Journal!G180) ->  | J180: =IF(C180=0,"",Journal!H180) ->  | K180: =IF(C180=0,"",Journal!I180) ->  | V180: =IF(C180=0,"",K180/Служебный!$N$17*Служебный!$O$17*2) ->  | Y180: =IF(H180="Sell",ROUND(W180-X180,2),IF(H180="Buy",ROUND(X180-W180,2),"")) ->  | Z180: =IF(C180=0,"",Y180-V180) ->  | AE180: =IF(C180=0,"",VLOOKUP(WEEKDAY(C180,2),Служебный!K$4:L$10,2)) ->  | AG180: =IF(C180=0,"",VLOOKUP(G180,Служебный!B:G,6,)) ->  | AH180: =IF(C180=0,"",VLOOKUP(G180,Служебный!B:G,3,FALSE)) ->  | AI180: =IF(C180=0,"",VLOOKUP(G180,Служебный!B:G,4,FALSE)) ->  | AM180: =IF(C180=0,"",IF(D180<Служебный!$P$3,"Раньше открытия",IF(D180>Служебный!$P$6,"Позже закрытия",IF(D180<Служебный!$P$4,Служебный!$N$4,IF(D180<Служебный!$P$5,Служебный!$N$5,Служебный!$N$6))))) ->  | AZ180: =IF(C180=0,"",IF(AX180="",AZ179,IF(SUMIF(C:C,C180,Z:Z)<0,IF(AZ179<0,AZ179-1,-1),IF(AZ179>0,AZ179+1,1)))) ->  | BA180: =IF(OR(C179=0,C180=0),"",IF(C180=C179,"",COUNTIF(C:C,C180))) ->  | BB180: =IF(OR(C179=0,C180=0),"",IF(C180=C179,"",COUNTIFS(C:C,C180,Y:Y,">0"))) ->  | BC180: =IF(OR(C179=0,C180=0),"",IF(C180=C179,"",COUNTIFS(C:C,C180,Y:Y,"<0"))) ->  | BD180: =IF(OR(C179=0,C180=0),"",IF(C180=C179,"",COUNTIFS(C:C,C180,Y:Y,"=0"))) -> 
D181: =IF(C181=0,"",Journal!C181) ->  | E181: =IF(C181=0,"",Journal!B181) ->  | F181: =IF(C181=0,"",Journal!D181) ->  | G181: =IF(C181=0,"",Journal!E181) ->  | H181: =IF(C181=0,"",Journal!F181) ->  | I181: =IF(C181=0,"",Journal!G181) ->  | J181: =IF(C181=0,"",Journal!H181) ->  | K181: =IF(C181=0,"",Journal!I181) ->  | V181: =IF(C181=0,"",K181/Служебный!$N$17*Служебный!$O$17*2) ->  | AE181: =IF(C181=0,"",VLOOKUP(WEEKDAY(C181,2),Служебный!K$4:L$10,2)) ->  | AG181: =IF(C181=0,"",VLOOKUP(G181,Служебный!B:G,6,)) ->  | AH181: =IF(C181=0,"",VLOOKUP(G181,Служебный!B:G,3,FALSE)) ->  | AI181: =IF(C181=0,"",VLOOKUP(G181,Служебный!B:G,4,FALSE)) ->  | AM181: =IF(C181=0,"",IF(D181<Служебный!$P$3,"Раньше открытия",IF(D181>Служебный!$P$6,"Позже закрытия",IF(D181<Служебный!$P$4,Служебный!$N$4,IF(D181<Служебный!$P$5,Служебный!$N$5,Служебный!$N$6))))) ->  | AZ181: =IF(C181=0,"",IF(AX181="",AZ180,IF(SUMIF(C:C,C181,Z:Z)<0,IF(AZ180<0,AZ180-1,-1),IF(AZ180>0,AZ180+1,1)))) ->  | BA181: =IF(OR(C180=0,C181=0),"",IF(C181=C180,"",COUNTIF(C:C,C181))) ->  | BB181: =IF(OR(C180=0,C181=0),"",IF(C181=C180,"",COUNTIFS(C:C,C181,Y:Y,">0"))) ->  | BC181: =IF(OR(C180=0,C181=0),"",IF(C181=C180,"",COUNTIFS(C:C,C181,Y:Y,"<0"))) ->  | BD181: =IF(OR(C180=0,C181=0),"",IF(C181=C180,"",COUNTIFS(C:C,C181,Y:Y,"=0"))) -> 
D182: =IF(C182=0,"",Journal!C182) ->  | E182: =IF(C182=0,"",Journal!B182) ->  | F182: =IF(C182=0,"",Journal!D182) ->  | G182: =IF(C182=0,"",Journal!E182) ->  | H182: =IF(C182=0,"",Journal!F182) ->  | I182: =IF(C182=0,"",Journal!G182) ->  | J182: =IF(C182=0,"",Journal!H182) ->  | K182: =IF(C182=0,"",Journal!I182) ->  | V182: =IF(C182=0,"",K182/Служебный!$N$17*Служебный!$O$17*2) ->  | AE182: =IF(C182=0,"",VLOOKUP(WEEKDAY(C182,2),Служебный!K$4:L$10,2)) ->  | AG182: =IF(C182=0,"",VLOOKUP(G182,Служебный!B:G,6,)) ->  | AH182: =IF(C182=0,"",VLOOKUP(G182,Служебный!B:G,3,FALSE)) ->  | AI182: =IF(C182=0,"",VLOOKUP(G182,Служебный!B:G,4,FALSE)) ->  | AM182: =IF(C182=0,"",IF(D182<Служебный!$P$3,"Раньше открытия",IF(D182>Служебный!$P$6,"Позже закрытия",IF(D182<Служебный!$P$4,Служебный!$N$4,IF(D182<Служебный!$P$5,Служебный!$N$5,Служебный!$N$6))))) ->  | AZ182: =IF(C182=0,"",IF(AX182="",AZ181,IF(SUMIF(C:C,C182,Z:Z)<0,IF(AZ181<0,AZ181-1,-1),IF(AZ181>0,AZ181+1,1)))) ->  | BA182: =IF(OR(C181=0,C182=0),"",IF(C182=C181,"",COUNTIF(C:C,C182))) ->  | BB182: =IF(OR(C181=0,C182=0),"",IF(C182=C181,"",COUNTIFS(C:C,C182,Y:Y,">0"))) ->  | BC182: =IF(OR(C181=0,C182=0),"",IF(C182=C181,"",COUNTIFS(C:C,C182,Y:Y,"<0"))) ->  | BD182: =IF(OR(C181=0,C182=0),"",IF(C182=C181,"",COUNTIFS(C:C,C182,Y:Y,"=0"))) -> 
D183: =IF(C183=0,"",Journal!C183) ->  | E183: =IF(C183=0,"",Journal!B183) ->  | F183: =IF(C183=0,"",Journal!D183) ->  | G183: =IF(C183=0,"",Journal!E183) ->  | H183: =IF(C183=0,"",Journal!F183) ->  | I183: =IF(C183=0,"",Journal!G183) ->  | J183: =IF(C183=0,"",Journal!H183) ->  | K183: =IF(C183=0,"",Journal!I183) ->  | V183: =IF(C183=0,"",K183/Служебный!$N$17*Служебный!$O$17*2) ->  | AE183: =IF(C183=0,"",VLOOKUP(WEEKDAY(C183,2),Служебный!K$4:L$10,2)) ->  | AG183: =IF(C183=0,"",VLOOKUP(G183,Служебный!B:G,6,)) ->  | AH183: =IF(C183=0,"",VLOOKUP(G183,Служебный!B:G,3,FALSE)) ->  | AI183: =IF(C183=0,"",VLOOKUP(G183,Служебный!B:G,4,FALSE)) ->  | AM183: =IF(C183=0,"",IF(D183<Служебный!$P$3,"Раньше открытия",IF(D183>Служебный!$P$6,"Позже закрытия",IF(D183<Служебный!$P$4,Служебный!$N$4,IF(D183<Служебный!$P$5,Служебный!$N$5,Служебный!$N$6))))) ->  | AZ183: =IF(C183=0,"",IF(AX183="",AZ182,IF(SUMIF(C:C,C183,Z:Z)<0,IF(AZ182<0,AZ182-1,-1),IF(AZ182>0,AZ182+1,1)))) ->  | BA183: =IF(OR(C182=0,C183=0),"",IF(C183=C182,"",COUNTIF(C:C,C183))) ->  | BB183: =IF(OR(C182=0,C183=0),"",IF(C183=C182,"",COUNTIFS(C:C,C183,Y:Y,">0"))) ->  | BC183: =IF(OR(C182=0,C183=0),"",IF(C183=C182,"",COUNTIFS(C:C,C183,Y:Y,"<0"))) ->  | BD183: =IF(OR(C182=0,C183=0),"",IF(C183=C182,"",COUNTIFS(C:C,C183,Y:Y,"=0"))) -> 
D184: =IF(C184=0,"",Journal!C184) ->  | E184: =IF(C184=0,"",Journal!B184) ->  | F184: =IF(C184=0,"",Journal!D184) ->  | G184: =IF(C184=0,"",Journal!E184) ->  | H184: =IF(C184=0,"",Journal!F184) ->  | I184: =IF(C184=0,"",Journal!G184) ->  | J184: =IF(C184=0,"",Journal!H184) ->  | K184: =IF(C184=0,"",Journal!I184) ->  | V184: =IF(C184=0,"",K184/Служебный!$N$17*Служебный!$O$17*2) ->  | AE184: =IF(C184=0,"",VLOOKUP(WEEKDAY(C184,2),Служебный!K$4:L$10,2)) ->  | AG184: =IF(C184=0,"",VLOOKUP(G184,Служебный!B:G,6,)) ->  | AH184: =IF(C184=0,"",VLOOKUP(G184,Служебный!B:G,3,FALSE)) ->  | AI184: =IF(C184=0,"",VLOOKUP(G184,Служебный!B:G,4,FALSE)) ->  | AM184: =IF(C184=0,"",IF(D184<Служебный!$P$3,"Раньше открытия",IF(D184>Служебный!$P$6,"Позже закрытия",IF(D184<Служебный!$P$4,Служебный!$N$4,IF(D184<Служебный!$P$5,Служебный!$N$5,Служебный!$N$6))))) ->  | AT184: =IF(U184="","",AT183+T184) ->  | AU184: =IF(OR(U184="",AT184=""),"",IFERROR(100*(U184-AT184)/AT184,"Заполните депозит")) ->  | AV184: =IF(U184="","",IFERROR(100*(U184-U183-T184)/(U183+T184),"Заполните депозит")) ->  | AZ184: =IF(C184=0,"",IF(AX184="",AZ183,IF(SUMIF(C:C,C184,Z:Z)<0,IF(AZ183<0,AZ183-1,-1),IF(AZ183>0,AZ183+1,1)))) ->  | BA184: =IF(OR(C183=0,C184=0),"",IF(C184=C183,"",COUNTIF(C:C,C184))) ->  | BB184: =IF(OR(C183=0,C184=0),"",IF(C184=C183,"",COUNTIFS(C:C,C184,Y:Y,">0"))) ->  | BC184: =IF(OR(C183=0,C184=0),"",IF(C184=C183,"",COUNTIFS(C:C,C184,Y:Y,"<0"))) ->  | BD184: =IF(OR(C183=0,C184=0),"",IF(C184=C183,"",COUNTIFS(C:C,C184,Y:Y,"=0"))) -> 
D185: =IF(C185=0,"",Journal!C185) ->  | E185: =IF(C185=0,"",Journal!B185) ->  | F185: =IF(C185=0,"",Journal!D185) ->  | G185: =IF(C185=0,"",Journal!E185) ->  | H185: =IF(C185=0,"",Journal!F185) ->  | I185: =IF(C185=0,"",Journal!G185) ->  | J185: =IF(C185=0,"",Journal!H185) ->  | K185: =IF(C185=0,"",Journal!I185) ->  | V185: =IF(C185=0,"",K185/Служебный!$N$17*Служебный!$O$17*2) ->  | AE185: =IF(C185=0,"",VLOOKUP(WEEKDAY(C185,2),Служебный!K$4:L$10,2)) ->  | AG185: =IF(C185=0,"",VLOOKUP(G185,Служебный!B:G,6,)) ->  | AH185: =IF(C185=0,"",VLOOKUP(G185,Служебный!B:G,3,FALSE)) ->  | AI185: =IF(C185=0,"",VLOOKUP(G185,Служебный!B:G,4,FALSE)) ->  | AM185: =IF(C185=0,"",IF(D185<Служебный!$P$3,"Раньше открытия",IF(D185>Служебный!$P$6,"Позже закрытия",IF(D185<Служебный!$P$4,Служебный!$N$4,IF(D185<Служебный!$P$5,Служебный!$N$5,Служебный!$N$6))))) ->  | AZ185: =IF(C185=0,"",IF(AX185="",AZ184,IF(SUMIF(C:C,C185,Z:Z)<0,IF(AZ184<0,AZ184-1,-1),IF(AZ184>0,AZ184+1,1)))) ->  | BA185: =IF(OR(C184=0,C185=0),"",IF(C185=C184,"",COUNTIF(C:C,C185))) ->  | BB185: =IF(OR(C184=0,C185=0),"",IF(C185=C184,"",COUNTIFS(C:C,C185,Y:Y,">0"))) ->  | BC185: =IF(OR(C184=0,C185=0),"",IF(C185=C184,"",COUNTIFS(C:C,C185,Y:Y,"<0"))) ->  | BD185: =IF(OR(C184=0,C185=0),"",IF(C185=C184,"",COUNTIFS(C:C,C185,Y:Y,"=0"))) -> 
D186: =IF(C186=0,"",Journal!C186) ->  | E186: =IF(C186=0,"",Journal!B186) ->  | F186: =IF(C186=0,"",Journal!D186) ->  | G186: =IF(C186=0,"",Journal!E186) ->  | H186: =IF(C186=0,"",Journal!F186) ->  | I186: =IF(C186=0,"",Journal!G186) ->  | J186: =IF(C186=0,"",Journal!H186) ->  | K186: =IF(C186=0,"",Journal!I186) ->  | V186: =IF(C186=0,"",K186/Служебный!$N$17*Служебный!$O$17*2) ->  | AE186: =IF(C186=0,"",VLOOKUP(WEEKDAY(C186,2),Служебный!K$4:L$10,2)) ->  | AG186: =IF(C186=0,"",VLOOKUP(G186,Служебный!B:G,6,)) ->  | AH186: =IF(C186=0,"",VLOOKUP(G186,Служебный!B:G,3,FALSE)) ->  | AI186: =IF(C186=0,"",VLOOKUP(G186,Служебный!B:G,4,FALSE)) ->  | AM186: =IF(C186=0,"",IF(D186<Служебный!$P$3,"Раньше открытия",IF(D186>Служебный!$P$6,"Позже закрытия",IF(D186<Служебный!$P$4,Служебный!$N$4,IF(D186<Служебный!$P$5,Служебный!$N$5,Служебный!$N$6))))) ->  | AU186: =IF(OR(U186="",AT186=""),"",IFERROR(100*(U186-AT186)/AT186,"Заполните депозит")) ->  | AV186: =IF(U186="","",IFERROR(100*(U186-U185-T186)/(U185+T186),"Заполните депозит")) ->  | AZ186: =IF(C186=0,"",IF(AX186="",AZ185,IF(SUMIF(C:C,C186,Z:Z)<0,IF(AZ185<0,AZ185-1,-1),IF(AZ185>0,AZ185+1,1)))) ->  | BA186: =IF(OR(C185=0,C186=0),"",IF(C186=C185,"",COUNTIF(C:C,C186))) ->  | BB186: =IF(OR(C185=0,C186=0),"",IF(C186=C185,"",COUNTIFS(C:C,C186,Y:Y,">0"))) ->  | BC186: =IF(OR(C185=0,C186=0),"",IF(C186=C185,"",COUNTIFS(C:C,C186,Y:Y,"<0"))) ->  | BD186: =IF(OR(C185=0,C186=0),"",IF(C186=C185,"",COUNTIFS(C:C,C186,Y:Y,"=0"))) -> 
D187: =IF(C187=0,"",Journal!C187) ->  | E187: =IF(C187=0,"",Journal!B187) ->  | F187: =IF(C187=0,"",Journal!D187) ->  | G187: =IF(C187=0,"",Journal!E187) ->  | H187: =IF(C187=0,"",Journal!F187) ->  | I187: =IF(C187=0,"",Journal!G187) ->  | J187: =IF(C187=0,"",Journal!H187) ->  | K187: =IF(C187=0,"",Journal!I187) ->  | V187: =IF(C187=0,"",K187/Служебный!$N$17*Служебный!$O$17*2) ->  | AE187: =IF(C187=0,"",VLOOKUP(WEEKDAY(C187,2),Служебный!K$4:L$10,2)) ->  | AG187: =IF(C187=0,"",VLOOKUP(G187,Служебный!B:G,6,)) ->  | AH187: =IF(C187=0,"",VLOOKUP(G187,Служебный!B:G,3,FALSE)) ->  | AI187: =IF(C187=0,"",VLOOKUP(G187,Служебный!B:G,4,FALSE)) ->  | AM187: =IF(C187=0,"",IF(D187<Служебный!$P$3,"Раньше открытия",IF(D187>Служебный!$P$6,"Позже закрытия",IF(D187<Служебный!$P$4,Служебный!$N$4,IF(D187<Служебный!$P$5,Служебный!$N$5,Служебный!$N$6))))) ->  | AZ187: =IF(C187=0,"",IF(AX187="",AZ186,IF(SUMIF(C:C,C187,Z:Z)<0,IF(AZ186<0,AZ186-1,-1),IF(AZ186>0,AZ186+1,1)))) ->  | BA187: =IF(OR(C186=0,C187=0),"",IF(C187=C186,"",COUNTIF(C:C,C187))) ->  | BB187: =IF(OR(C186=0,C187=0),"",IF(C187=C186,"",COUNTIFS(C:C,C187,Y:Y,">0"))) ->  | BC187: =IF(OR(C186=0,C187=0),"",IF(C187=C186,"",COUNTIFS(C:C,C187,Y:Y,"<0"))) ->  | BD187: =IF(OR(C186=0,C187=0),"",IF(C187=C186,"",COUNTIFS(C:C,C187,Y:Y,"=0"))) -> 
D188: =IF(C188=0,"",Journal!C188) ->  | E188: =IF(C188=0,"",Journal!B188) ->  | F188: =IF(C188=0,"",Journal!D188) ->  | G188: =IF(C188=0,"",Journal!E188) ->  | H188: =IF(C188=0,"",Journal!F188) ->  | I188: =IF(C188=0,"",Journal!G188) ->  | J188: =IF(C188=0,"",Journal!H188) ->  | K188: =IF(C188=0,"",Journal!I188) ->  | V188: =IF(C188=0,"",K188/Служебный!$N$17*Служебный!$O$17*2) ->  | AE188: =IF(C188=0,"",VLOOKUP(WEEKDAY(C188,2),Служебный!K$4:L$10,2)) ->  | AG188: =IF(C188=0,"",VLOOKUP(G188,Служебный!B:G,6,)) ->  | AH188: =IF(C188=0,"",VLOOKUP(G188,Служебный!B:G,3,FALSE)) ->  | AI188: =IF(C188=0,"",VLOOKUP(G188,Служебный!B:G,4,FALSE)) ->  | AM188: =IF(C188=0,"",IF(D188<Служебный!$P$3,"Раньше открытия",IF(D188>Служебный!$P$6,"Позже закрытия",IF(D188<Служебный!$P$4,Служебный!$N$4,IF(D188<Служебный!$P$5,Служебный!$N$5,Служебный!$N$6))))) ->  | AT188: =IF(U188="","",AT187+T188) ->  | AZ188: =IF(C188=0,"",IF(AX188="",AZ187,IF(SUMIF(C:C,C188,Z:Z)<0,IF(AZ187<0,AZ187-1,-1),IF(AZ187>0,AZ187+1,1)))) ->  | BA188: =IF(OR(C187=0,C188=0),"",IF(C188=C187,"",COUNTIF(C:C,C188))) ->  | BB188: =IF(OR(C187=0,C188=0),"",IF(C188=C187,"",COUNTIFS(C:C,C188,Y:Y,">0"))) ->  | BC188: =IF(OR(C187=0,C188=0),"",IF(C188=C187,"",COUNTIFS(C:C,C188,Y:Y,"<0"))) ->  | BD188: =IF(OR(C187=0,C188=0),"",IF(C188=C187,"",COUNTIFS(C:C,C188,Y:Y,"=0"))) -> 
B189: =IF(C189=0,"",B188+1) ->  | D189: =IF(C189=0,"",Journal!C189) ->  | E189: =IF(C189=0,"",Journal!B189) ->  | F189: =IF(C189=0,"",Journal!D189) ->  | G189: =IF(C189=0,"",Journal!E189) ->  | H189: =IF(C189=0,"",Journal!F189) ->  | I189: =IF(C189=0,"",Journal!G189) ->  | J189: =IF(C189=0,"",Journal!H189) ->  | K189: =IF(C189=0,"",Journal!I189) ->  | V189: =IF(C189=0,"",K189/Служебный!$N$17*Служебный!$O$17*2) ->  | AE189: =IF(C189=0,"",VLOOKUP(WEEKDAY(C189,2),Служебный!K$4:L$10,2)) ->  | AG189: =IF(C189=0,"",VLOOKUP(G189,Служебный!B:G,6,)) ->  | AH189: =IF(C189=0,"",VLOOKUP(G189,Служебный!B:G,3,FALSE)) ->  | AI189: =IF(C189=0,"",VLOOKUP(G189,Служебный!B:G,4,FALSE)) ->  | AM189: =IF(C189=0,"",IF(D189<Служебный!$P$3,"Раньше открытия",IF(D189>Служебный!$P$6,"Позже закрытия",IF(D189<Служебный!$P$4,Служебный!$N$4,IF(D189<Служебный!$P$5,Служебный!$N$5,Служебный!$N$6))))) ->  | AZ189: =IF(C189=0,"",IF(AX189="",AZ188,IF(SUMIF(C:C,C189,Z:Z)<0,IF(AZ188<0,AZ188-1,-1),IF(AZ188>0,AZ188+1,1)))) ->  | BA189: =IF(OR(C188=0,C189=0),"",IF(C189=C188,"",COUNTIF(C:C,C189))) ->  | BB189: =IF(OR(C188=0,C189=0),"",IF(C189=C188,"",COUNTIFS(C:C,C189,Y:Y,">0"))) ->  | BC189: =IF(OR(C188=0,C189=0),"",IF(C189=C188,"",COUNTIFS(C:C,C189,Y:Y,"<0"))) ->  | BD189: =IF(OR(C188=0,C189=0),"",IF(C189=C188,"",COUNTIFS(C:C,C189,Y:Y,"=0"))) -> 
D190: =IF(C190=0,"",Journal!C190) ->  | E190: =IF(C190=0,"",Journal!B190) ->  | F190: =IF(C190=0,"",Journal!D190) ->  | G190: =IF(C190=0,"",Journal!E190) ->  | H190: =IF(C190=0,"",Journal!F190) ->  | I190: =IF(C190=0,"",Journal!G190) ->  | J190: =IF(C190=0,"",Journal!H190) ->  | K190: =IF(C190=0,"",Journal!I190) ->  | V190: =IF(C190=0,"",K190/Служебный!$N$17*Служебный!$O$17*2) ->  | AE190: =IF(C190=0,"",VLOOKUP(WEEKDAY(C190,2),Служебный!K$4:L$10,2)) ->  | AG190: =IF(C190=0,"",VLOOKUP(G190,Служебный!B:G,6,)) ->  | AH190: =IF(C190=0,"",VLOOKUP(G190,Служебный!B:G,3,FALSE)) ->  | AI190: =IF(C190=0,"",VLOOKUP(G190,Служебный!B:G,4,FALSE)) ->  | AM190: =IF(C190=0,"",IF(D190<Служебный!$P$3,"Раньше открытия",IF(D190>Служебный!$P$6,"Позже закрытия",IF(D190<Служебный!$P$4,Служебный!$N$4,IF(D190<Служебный!$P$5,Служебный!$N$5,Служебный!$N$6))))) ->  | AZ190: =IF(C190=0,"",IF(AX190="",AZ189,IF(SUMIF(C:C,C190,Z:Z)<0,IF(AZ189<0,AZ189-1,-1),IF(AZ189>0,AZ189+1,1)))) ->  | BA190: =IF(OR(C189=0,C190=0),"",IF(C190=C189,"",COUNTIF(C:C,C190))) ->  | BB190: =IF(OR(C189=0,C190=0),"",IF(C190=C189,"",COUNTIFS(C:C,C190,Y:Y,">0"))) ->  | BC190: =IF(OR(C189=0,C190=0),"",IF(C190=C189,"",COUNTIFS(C:C,C190,Y:Y,"<0"))) ->  | BD190: =IF(OR(C189=0,C190=0),"",IF(C190=C189,"",COUNTIFS(C:C,C190,Y:Y,"=0"))) -> 
D191: =IF(C191=0,"",Journal!C191) ->  | E191: =IF(C191=0,"",Journal!B191) ->  | F191: =IF(C191=0,"",Journal!D191) ->  | G191: =IF(C191=0,"",Journal!E191) ->  | H191: =IF(C191=0,"",Journal!F191) ->  | I191: =IF(C191=0,"",Journal!G191) ->  | J191: =IF(C191=0,"",Journal!H191) ->  | K191: =IF(C191=0,"",Journal!I191) ->  | V191: =IF(C191=0,"",K191/Служебный!$N$17*Служебный!$O$17*2) ->  | AE191: =IF(C191=0,"",VLOOKUP(WEEKDAY(C191,2),Служебный!K$4:L$10,2)) ->  | AG191: =IF(C191=0,"",VLOOKUP(G191,Служебный!B:G,6,)) ->  | AH191: =IF(C191=0,"",VLOOKUP(G191,Служебный!B:G,3,FALSE)) ->  | AI191: =IF(C191=0,"",VLOOKUP(G191,Служебный!B:G,4,FALSE)) ->  | AM191: =IF(C191=0,"",IF(D191<Служебный!$P$3,"Раньше открытия",IF(D191>Служебный!$P$6,"Позже закрытия",IF(D191<Служебный!$P$4,Служебный!$N$4,IF(D191<Служебный!$P$5,Служебный!$N$5,Служебный!$N$6))))) ->  | AZ191: =IF(C191=0,"",IF(AX191="",AZ190,IF(SUMIF(C:C,C191,Z:Z)<0,IF(AZ190<0,AZ190-1,-1),IF(AZ190>0,AZ190+1,1)))) ->  | BA191: =IF(OR(C190=0,C191=0),"",IF(C191=C190,"",COUNTIF(C:C,C191))) ->  | BB191: =IF(OR(C190=0,C191=0),"",IF(C191=C190,"",COUNTIFS(C:C,C191,Y:Y,">0"))) ->  | BC191: =IF(OR(C190=0,C191=0),"",IF(C191=C190,"",COUNTIFS(C:C,C191,Y:Y,"<0"))) ->  | BD191: =IF(OR(C190=0,C191=0),"",IF(C191=C190,"",COUNTIFS(C:C,C191,Y:Y,"=0"))) -> 
D192: =IF(C192=0,"",Journal!C192) ->  | E192: =IF(C192=0,"",Journal!B192) ->  | F192: =IF(C192=0,"",Journal!D192) ->  | G192: =IF(C192=0,"",Journal!E192) ->  | H192: =IF(C192=0,"",Journal!F192) ->  | I192: =IF(C192=0,"",Journal!G192) ->  | J192: =IF(C192=0,"",Journal!H192) ->  | K192: =IF(C192=0,"",Journal!I192) ->  | V192: =IF(C192=0,"",K192/Служебный!$N$17*Служебный!$O$17*2) ->  | AE192: =IF(C192=0,"",VLOOKUP(WEEKDAY(C192,2),Служебный!K$4:L$10,2)) ->  | AG192: =IF(C192=0,"",VLOOKUP(G192,Служебный!B:G,6,)) ->  | AH192: =IF(C192=0,"",VLOOKUP(G192,Служебный!B:G,3,FALSE)) ->  | AI192: =IF(C192=0,"",VLOOKUP(G192,Служебный!B:G,4,FALSE)) ->  | AM192: =IF(C192=0,"",IF(D192<Служебный!$P$3,"Раньше открытия",IF(D192>Служебный!$P$6,"Позже закрытия",IF(D192<Служебный!$P$4,Служебный!$N$4,IF(D192<Служебный!$P$5,Служебный!$N$5,Служебный!$N$6))))) ->  | AZ192: =IF(C192=0,"",IF(AX192="",AZ191,IF(SUMIF(C:C,C192,Z:Z)<0,IF(AZ191<0,AZ191-1,-1),IF(AZ191>0,AZ191+1,1)))) ->  | BA192: =IF(OR(C191=0,C192=0),"",IF(C192=C191,"",COUNTIF(C:C,C192))) ->  | BB192: =IF(OR(C191=0,C192=0),"",IF(C192=C191,"",COUNTIFS(C:C,C192,Y:Y,">0"))) ->  | BC192: =IF(OR(C191=0,C192=0),"",IF(C192=C191,"",COUNTIFS(C:C,C192,Y:Y,"<0"))) ->  | BD192: =IF(OR(C191=0,C192=0),"",IF(C192=C191,"",COUNTIFS(C:C,C192,Y:Y,"=0"))) -> 
D193: =IF(C193=0,"",Journal!C193) ->  | E193: =IF(C193=0,"",Journal!B193) ->  | F193: =IF(C193=0,"",Journal!D193) ->  | G193: =IF(C193=0,"",Journal!E193) ->  | H193: =IF(C193=0,"",Journal!F193) ->  | I193: =IF(C193=0,"",Journal!G193) ->  | J193: =IF(C193=0,"",Journal!H193) ->  | K193: =IF(C193=0,"",Journal!I193) ->  | V193: =IF(C193=0,"",K193/Служебный!$N$17*Служебный!$O$17*2) ->  | AE193: =IF(C193=0,"",VLOOKUP(WEEKDAY(C193,2),Служебный!K$4:L$10,2)) ->  | AG193: =IF(C193=0,"",VLOOKUP(G193,Служебный!B:G,6,)) ->  | AH193: =IF(C193=0,"",VLOOKUP(G193,Служебный!B:G,3,FALSE)) ->  | AI193: =IF(C193=0,"",VLOOKUP(G193,Служебный!B:G,4,FALSE)) ->  | AM193: =IF(C193=0,"",IF(D193<Служебный!$P$3,"Раньше открытия",IF(D193>Служебный!$P$6,"Позже закрытия",IF(D193<Служебный!$P$4,Служебный!$N$4,IF(D193<Служебный!$P$5,Служебный!$N$5,Служебный!$N$6))))) ->  | AZ193: =IF(C193=0,"",IF(AX193="",AZ192,IF(SUMIF(C:C,C193,Z:Z)<0,IF(AZ192<0,AZ192-1,-1),IF(AZ192>0,AZ192+1,1)))) ->  | BA193: =IF(OR(C192=0,C193=0),"",IF(C193=C192,"",COUNTIF(C:C,C193))) ->  | BB193: =IF(OR(C192=0,C193=0),"",IF(C193=C192,"",COUNTIFS(C:C,C193,Y:Y,">0"))) ->  | BC193: =IF(OR(C192=0,C193=0),"",IF(C193=C192,"",COUNTIFS(C:C,C193,Y:Y,"<0"))) ->  | BD193: =IF(OR(C192=0,C193=0),"",IF(C193=C192,"",COUNTIFS(C:C,C193,Y:Y,"=0"))) -> 
D194: =IF(C194=0,"",Journal!C194) ->  | E194: =IF(C194=0,"",Journal!B194) ->  | F194: =IF(C194=0,"",Journal!D194) ->  | G194: =IF(C194=0,"",Journal!E194) ->  | H194: =IF(C194=0,"",Journal!F194) ->  | I194: =IF(C194=0,"",Journal!G194) ->  | J194: =IF(C194=0,"",Journal!H194) ->  | K194: =IF(C194=0,"",Journal!I194) ->  | V194: =IF(C194=0,"",K194/Служебный!$N$17*Служебный!$O$17*2) ->  | W194: =IF(C194=0,"",(I194*K194)) ->  | X194: =IF(C194=0,"",(J194*K194)) ->  | AC194: =IF(C194=0,"",AA194+Y194) ->  | AD194: =IF(C194=0,"",AB194+Z194) ->  | AE194: =IF(C194=0,"",VLOOKUP(WEEKDAY(C194,2),Служебный!K$4:L$10,2)) ->  | AG194: =IF(C194=0,"",VLOOKUP(G194,Служебный!B:G,6,)) ->  | AH194: =IF(C194=0,"",VLOOKUP(G194,Служебный!B:G,3,FALSE)) ->  | AI194: =IF(C194=0,"",VLOOKUP(G194,Служебный!B:G,4,FALSE)) ->  | AK194: =IF(OR(E194=0,C194=0,AJ194=0),"",IF(E194>C194,"Среднесрок",FLOOR((AJ194/60),0.1))) ->  | AM194: =IF(C194=0,"",IF(D194<Служебный!$P$3,"Раньше открытия",IF(D194>Служебный!$P$6,"Позже закрытия",IF(D194<Служебный!$P$4,Служебный!$N$4,IF(D194<Служебный!$P$5,Служебный!$N$5,Служебный!$N$6))))) ->  | AW194: =IF(OR(C193=0,C194=0),"",IF(C194=C193,"",AB194)) ->  | AX194: =IF(OR(C193=0,C194=0),"",IF(C194=C195,"",AD194)) ->  | AZ194: =IF(C194=0,"",IF(AX194="",AZ193,IF(SUMIF(C:C,C194,Z:Z)<0,IF(AZ193<0,AZ193-1,-1),IF(AZ193>0,AZ193+1,1)))) ->  | BA194: =IF(OR(C193=0,C194=0),"",IF(C194=C193,"",COUNTIF(C:C,C194))) ->  | BB194: =IF(OR(C193=0,C194=0),"",IF(C194=C193,"",COUNTIFS(C:C,C194,Y:Y,">0"))) ->  | BC194: =IF(OR(C193=0,C194=0),"",IF(C194=C193,"",COUNTIFS(C:C,C194,Y:Y,"<0"))) ->  | BD194: =IF(OR(C193=0,C194=0),"",IF(C194=C193,"",COUNTIFS(C:C,C194,Y:Y,"=0"))) -> 
A195: =IF(C195=0,"",Z195) ->  | D195: =IF(C195=0,"",Journal!C195) ->  | E195: =IF(C195=0,"",Journal!B195) ->  | F195: =IF(C195=0,"",Journal!D195) ->  | G195: =IF(C195=0,"",Journal!E195) ->  | H195: =IF(C195=0,"",Journal!F195) ->  | I195: =IF(C195=0,"",Journal!G195) ->  | J195: =IF(C195=0,"",Journal!H195) ->  | K195: =IF(C195=0,"",Journal!I195) ->  | L195: =IF(C195=0,"",TEXT(C195,"ДД.ММ.ГГ")&" "&G195& " "&H195) ->  | V195: =IF(C195=0,"",K195/Служебный!$N$17*Служебный!$O$17*2) ->  | AA195: =IF(C195=0,"",AA194+Y194) ->  | AB195: =IF(C195=0,"",AB194+Z194) ->  | AE195: =IF(C195=0,"",VLOOKUP(WEEKDAY(C195,2),Служебный!K$4:L$10,2)) ->  | AG195: =IF(C195=0,"",VLOOKUP(G195,Служебный!B:G,6,)) ->  | AH195: =IF(C195=0,"",VLOOKUP(G195,Служебный!B:G,3,FALSE)) ->  | AI195: =IF(C195=0,"",VLOOKUP(G195,Служебный!B:G,4,FALSE)) ->  | AM195: =IF(C195=0,"",IF(D195<Служебный!$P$3,"Раньше открытия",IF(D195>Служебный!$P$6,"Позже закрытия",IF(D195<Служебный!$P$4,Служебный!$N$4,IF(D195<Служебный!$P$5,Служебный!$N$5,Служебный!$N$6))))) ->  | AZ195: =IF(C195=0,"",IF(AX195="",AZ194,IF(SUMIF(C:C,C195,Z:Z)<0,IF(AZ194<0,AZ194-1,-1),IF(AZ194>0,AZ194+1,1)))) ->  | BA195: =IF(OR(C194=0,C195=0),"",IF(C195=C194,"",COUNTIF(C:C,C195))) ->  | BB195: =IF(OR(C194=0,C195=0),"",IF(C195=C194,"",COUNTIFS(C:C,C195,Y:Y,">0"))) ->  | BC195: =IF(OR(C194=0,C195=0),"",IF(C195=C194,"",COUNTIFS(C:C,C195,Y:Y,"<0"))) ->  | BD195: =IF(OR(C194=0,C195=0),"",IF(C195=C194,"",COUNTIFS(C:C,C195,Y:Y,"=0"))) ->  | BE195: =K195 -> 
D196: =IF(C196=0,"",Journal!C196) ->  | E196: =IF(C196=0,"",Journal!B196) ->  | F196: =IF(C196=0,"",Journal!D196) ->  | G196: =IF(C196=0,"",Journal!E196) ->  | H196: =IF(C196=0,"",Journal!F196) ->  | I196: =IF(C196=0,"",Journal!G196) ->  | J196: =IF(C196=0,"",Journal!H196) ->  | K196: =IF(C196=0,"",Journal!I196) ->  | V196: =IF(C196=0,"",K196/Служебный!$N$17*Служебный!$O$17*2) ->  | AE196: =IF(C196=0,"",VLOOKUP(WEEKDAY(C196,2),Служебный!K$4:L$10,2)) ->  | AG196: =IF(C196=0,"",VLOOKUP(G196,Служебный!B:G,6,)) ->  | AH196: =IF(C196=0,"",VLOOKUP(G196,Служебный!B:G,3,FALSE)) ->  | AI196: =IF(C196=0,"",VLOOKUP(G196,Служебный!B:G,4,FALSE)) ->  | AM196: =IF(C196=0,"",IF(D196<Служебный!$P$3,"Раньше открытия",IF(D196>Служебный!$P$6,"Позже закрытия",IF(D196<Служебный!$P$4,Служебный!$N$4,IF(D196<Служебный!$P$5,Служебный!$N$5,Служебный!$N$6))))) ->  | AZ196: =IF(C196=0,"",IF(AX196="",AZ195,IF(SUMIF(C:C,C196,Z:Z)<0,IF(AZ195<0,AZ195-1,-1),IF(AZ195>0,AZ195+1,1)))) ->  | BA196: =IF(OR(C195=0,C196=0),"",IF(C196=C195,"",COUNTIF(C:C,C196))) ->  | BB196: =IF(OR(C195=0,C196=0),"",IF(C196=C195,"",COUNTIFS(C:C,C196,Y:Y,">0"))) ->  | BC196: =IF(OR(C195=0,C196=0),"",IF(C196=C195,"",COUNTIFS(C:C,C196,Y:Y,"<0"))) ->  | BD196: =IF(OR(C195=0,C196=0),"",IF(C196=C195,"",COUNTIFS(C:C,C196,Y:Y,"=0"))) -> 
D197: =IF(C197=0,"",Journal!C197) ->  | E197: =IF(C197=0,"",Journal!B197) ->  | F197: =IF(C197=0,"",Journal!D197) ->  | G197: =IF(C197=0,"",Journal!E197) ->  | H197: =IF(C197=0,"",Journal!F197) ->  | I197: =IF(C197=0,"",Journal!G197) ->  | J197: =IF(C197=0,"",Journal!H197) ->  | K197: =IF(C197=0,"",Journal!I197) ->  | V197: =IF(C197=0,"",K197/Служебный!$N$17*Служебный!$O$17*2) ->  | AE197: =IF(C197=0,"",VLOOKUP(WEEKDAY(C197,2),Служебный!K$4:L$10,2)) ->  | AG197: =IF(C197=0,"",VLOOKUP(G197,Служебный!B:G,6,)) ->  | AH197: =IF(C197=0,"",VLOOKUP(G197,Служебный!B:G,3,FALSE)) ->  | AI197: =IF(C197=0,"",VLOOKUP(G197,Служебный!B:G,4,FALSE)) ->  | AM197: =IF(C197=0,"",IF(D197<Служебный!$P$3,"Раньше открытия",IF(D197>Служебный!$P$6,"Позже закрытия",IF(D197<Служебный!$P$4,Служебный!$N$4,IF(D197<Служебный!$P$5,Служебный!$N$5,Служебный!$N$6))))) ->  | AZ197: =IF(C197=0,"",IF(AX197="",AZ196,IF(SUMIF(C:C,C197,Z:Z)<0,IF(AZ196<0,AZ196-1,-1),IF(AZ196>0,AZ196+1,1)))) ->  | BA197: =IF(OR(C196=0,C197=0),"",IF(C197=C196,"",COUNTIF(C:C,C197))) ->  | BB197: =IF(OR(C196=0,C197=0),"",IF(C197=C196,"",COUNTIFS(C:C,C197,Y:Y,">0"))) ->  | BC197: =IF(OR(C196=0,C197=0),"",IF(C197=C196,"",COUNTIFS(C:C,C197,Y:Y,"<0"))) ->  | BD197: =IF(OR(C196=0,C197=0),"",IF(C197=C196,"",COUNTIFS(C:C,C197,Y:Y,"=0"))) -> 
D198: =IF(C198=0,"",Journal!C198) ->  | E198: =IF(C198=0,"",Journal!B198) ->  | F198: =IF(C198=0,"",Journal!D198) ->  | G198: =IF(C198=0,"",Journal!E198) ->  | H198: =IF(C198=0,"",Journal!F198) ->  | I198: =IF(C198=0,"",Journal!G198) ->  | J198: =IF(C198=0,"",Journal!H198) ->  | K198: =IF(C198=0,"",Journal!I198) ->  | V198: =IF(C198=0,"",K198/Служебный!$N$17*Служебный!$O$17*2) ->  | AE198: =IF(C198=0,"",VLOOKUP(WEEKDAY(C198,2),Служебный!K$4:L$10,2)) ->  | AG198: =IF(C198=0,"",VLOOKUP(G198,Служебный!B:G,6,)) ->  | AH198: =IF(C198=0,"",VLOOKUP(G198,Служебный!B:G,3,FALSE)) ->  | AI198: =IF(C198=0,"",VLOOKUP(G198,Служебный!B:G,4,FALSE)) ->  | AM198: =IF(C198=0,"",IF(D198<Служебный!$P$3,"Раньше открытия",IF(D198>Служебный!$P$6,"Позже закрытия",IF(D198<Служебный!$P$4,Служебный!$N$4,IF(D198<Служебный!$P$5,Служебный!$N$5,Служебный!$N$6))))) ->  | AZ198: =IF(C198=0,"",IF(AX198="",AZ197,IF(SUMIF(C:C,C198,Z:Z)<0,IF(AZ197<0,AZ197-1,-1),IF(AZ197>0,AZ197+1,1)))) ->  | BA198: =IF(OR(C197=0,C198=0),"",IF(C198=C197,"",COUNTIF(C:C,C198))) ->  | BB198: =IF(OR(C197=0,C198=0),"",IF(C198=C197,"",COUNTIFS(C:C,C198,Y:Y,">0"))) ->  | BC198: =IF(OR(C197=0,C198=0),"",IF(C198=C197,"",COUNTIFS(C:C,C198,Y:Y,"<0"))) ->  | BD198: =IF(OR(C197=0,C198=0),"",IF(C198=C197,"",COUNTIFS(C:C,C198,Y:Y,"=0"))) -> 
D199: =IF(C199=0,"",Journal!C199) ->  | E199: =IF(C199=0,"",Journal!B199) ->  | F199: =IF(C199=0,"",Journal!D199) ->  | G199: =IF(C199=0,"",Journal!E199) ->  | H199: =IF(C199=0,"",Journal!F199) ->  | I199: =IF(C199=0,"",Journal!G199) ->  | J199: =IF(C199=0,"",Journal!H199) ->  | K199: =IF(C199=0,"",Journal!I199) ->  | V199: =IF(C199=0,"",K199/Служебный!$N$17*Служебный!$O$17*2) ->  | AE199: =IF(C199=0,"",VLOOKUP(WEEKDAY(C199,2),Служебный!K$4:L$10,2)) ->  | AG199: =IF(C199=0,"",VLOOKUP(G199,Служебный!B:G,6,)) ->  | AH199: =IF(C199=0,"",VLOOKUP(G199,Служебный!B:G,3,FALSE)) ->  | AI199: =IF(C199=0,"",VLOOKUP(G199,Служебный!B:G,4,FALSE)) ->  | AM199: =IF(C199=0,"",IF(D199<Служебный!$P$3,"Раньше открытия",IF(D199>Служебный!$P$6,"Позже закрытия",IF(D199<Служебный!$P$4,Служебный!$N$4,IF(D199<Служебный!$P$5,Служебный!$N$5,Служебный!$N$6))))) ->  | AZ199: =IF(C199=0,"",IF(AX199="",AZ198,IF(SUMIF(C:C,C199,Z:Z)<0,IF(AZ198<0,AZ198-1,-1),IF(AZ198>0,AZ198+1,1)))) ->  | BA199: =IF(OR(C198=0,C199=0),"",IF(C199=C198,"",COUNTIF(C:C,C199))) ->  | BB199: =IF(OR(C198=0,C199=0),"",IF(C199=C198,"",COUNTIFS(C:C,C199,Y:Y,">0"))) ->  | BC199: =IF(OR(C198=0,C199=0),"",IF(C199=C198,"",COUNTIFS(C:C,C199,Y:Y,"<0"))) ->  | BD199: =IF(OR(C198=0,C199=0),"",IF(C199=C198,"",COUNTIFS(C:C,C199,Y:Y,"=0"))) -> 
D200: =IF(C200=0,"",Journal!C200) ->  | E200: =IF(C200=0,"",Journal!B200) ->  | F200: =IF(C200=0,"",Journal!D200) ->  | G200: =IF(C200=0,"",Journal!E200) ->  | H200: =IF(C200=0,"",Journal!F200) ->  | I200: =IF(C200=0,"",Journal!G200) ->  | J200: =IF(C200=0,"",Journal!H200) ->  | K200: =IF(C200=0,"",Journal!I200) ->  | V200: =IF(C200=0,"",K200/Служебный!$N$17*Служебный!$O$17*2) ->  | AE200: =IF(C200=0,"",VLOOKUP(WEEKDAY(C200,2),Служебный!K$4:L$10,2)) ->  | AG200: =IF(C200=0,"",VLOOKUP(G200,Служебный!B:G,6,)) ->  | AH200: =IF(C200=0,"",VLOOKUP(G200,Служебный!B:G,3,FALSE)) ->  | AI200: =IF(C200=0,"",VLOOKUP(G200,Служебный!B:G,4,FALSE)) ->  | AM200: =IF(C200=0,"",IF(D200<Служебный!$P$3,"Раньше открытия",IF(D200>Служебный!$P$6,"Позже закрытия",IF(D200<Служебный!$P$4,Служебный!$N$4,IF(D200<Служебный!$P$5,Служебный!$N$5,Служебный!$N$6))))) ->  | AZ200: =IF(C200=0,"",IF(AX200="",AZ199,IF(SUMIF(C:C,C200,Z:Z)<0,IF(AZ199<0,AZ199-1,-1),IF(AZ199>0,AZ199+1,1)))) ->  | BA200: =IF(OR(C199=0,C200=0),"",IF(C200=C199,"",COUNTIF(C:C,C200))) ->  | BB200: =IF(OR(C199=0,C200=0),"",IF(C200=C199,"",COUNTIFS(C:C,C200,Y:Y,">0"))) ->  | BC200: =IF(OR(C199=0,C200=0),"",IF(C200=C199,"",COUNTIFS(C:C,C200,Y:Y,"<0"))) ->  | BD200: =IF(OR(C199=0,C200=0),"",IF(C200=C199,"",COUNTIFS(C:C,C200,Y:Y,"=0"))) -> 
... 980 more rows

Sheet Сводный
B2: СВОДНЫЕ ДАННЫЕ | I2: РЕЗУЛЬТАТЫ ПО ДНЯМ (диаграмма) | R2: NET-GROSS (диаграмма) | Z2: ИЗМЕНЕНИЕ ДЕПОЗИТА ПО ДНЯМ | AJ2: OHLC РЕЗУЛЬТАТОВ ПО ДНЯМ (диаграмма) | AT2: ЗАВИСИМОСТЬ РЕЗУЛЬТАТА ОТ КОЛИЧЕСТВА СДЕЛОК (диаграмма) | BC2: ЗАВИСИМОСТЬ РЕЗУЛЬТАТА ОТ ОБЪЕМА (диаграмма) | BK2: РЕЗУЛЬТАТ ПО ГОДАМ, МЕСЯЦАМ, НЕДЕЛЯМ (диаграмма)
B4: Депозит | I4: Год | J4: (Все) | R4: Год | S4: (Все) | Z4: Год | AA4: (Все) | AJ4: Год | AK4: (Все) | AT4: Год | AU4: (Все) | BC4: Год | BD4: (Все) | BK4: День недели | BL4: (Все) | BR4: РЕЗУЛЬТАТ ПО ТИПУ ВХОДА | BW4: РЕЗУЛЬТАТ ПО ТИПУ ВЫХОДА | CB4: РЕЗУЛЬТАТ ПО ТИПУ СТРАТЕГИИ | CG4: РЕЗУЛЬТАТ ПО ОШИБКАМ ВХОДА | CL4: РЕЗУЛЬТАТ ПО ОШИБКАМ ВЫХОДА
B5: Внесение средств на счет | C5: 500 | I5: Месяц | J5: (Все) | R5: Месяц | S5: (Все) | Z5: Месяц | AA5: (Все) | AJ5: Месяц | AK5: (Все) | AT5: Месяц | AU5: (Все) | BC5: Месяц | BD5: (Все) | BK5: Часы | BL5: (Все)
B6: Текущий остаток на счете | C6: =C5+C10 ->  | I6: Неделя | J6: (Все) | R6: Неделя | S6: (Все) | Z6: Неделя | AA6: (Все) | AJ6: Неделя | AK6: (Все) | AT6: Неделя | AU6: (Все) | BC6: Неделя | BD6: (Все) | BK6: Сектор | BL6: (Все) | BR6: Месяц | BS6: (Все) | BW6: Месяц | BX6: (Все) | CB6: Месяц | CC6: (Все) | CG6: Месяц | CH6: (Все) | CL6: Месяц | CM6: (Все)
B7: Общая доходность портфеля | C7: =(C6-C5)/C5 -> 
B8: Общая статистика | J8: Данные | R8: Сумма по полю Депозит по дням | AA8: Данные | AK8: Данные | AT8: Net | BC8: Результат | BN8: Данные | BS8: Значения | BX8: Значения | CC8: Значения | CH8: Значения | CM8: Значения
B9: Результат без комиссии (Gross) | C9: =SUM(Данные!Y:Y) -> 0 | I9: Дата откр. | J9: Gross | K9: Net | R9: Дата откр. | S9: Итог | Z9: Дата откр. | AA9: Депозит по дням | AB9: Доходность за день % | AC9: Общая доходность % | AJ9: Дата откр. | AK9: Open | AL9: Hi | AM9: Low | AN9: Close | AT9: TradeS | AU9: Итог | BC9: кол-во | BD9: Итог | BK9: Год | BL9: Месяц | BM9: Неделя | BN9: Gross | BO9: Net | BP9: Комиссия | BR9: Названия строк | BS9: Среднее NET | BT9: Число сделок | BU9: Сумма NET | BW9: Названия строк | BX9: Среднее Net | BY9: Число сделок | BZ9: Сумма Net | CB9: Названия строк | CC9: Среднее Net | CD9: Число сделок | CE9: Сумма Net | CG9: Названия строк | CH9: Среднее Net | CI9: Число сделок | CJ9: Сумма Net | CL9: Названия строк | CM9: Среднее Net | CN9: Число сделок | CO9: Сумма Net
B10: Результат общий (Net) | C10: =SUM(Данные!Z:Z)+SUM(Данные!T:T) ->  | I10: (пусто) | J10: 0 | K10: 0 | R10: (пусто) | S10: 0 | Z10: (пусто) | AA10: 0 | AB10: 0 | AC10: 0 | AJ10: (пусто) | AK10: 0 | AL10: 0 | AM10: 0 | AN10: 0 | BD10: 0 | BK10: (пусто) | BL10: (пусто) | BM10: (пусто) | BN10: 0 | BR10: (пусто) | BT10: 1054 | BU10: 0 | BW10: стоп лосс | BX10: -16.08 | BY10: 1 | BZ10: -16.08 | CB10: Отбой от уровня | CC10: -0.72 | CD10: 2 | CE10: -1.44 | CG10: Все правильно | CH10: 14.64 | CI10: 1 | CJ10: 14.64 | CL10: Все правильно | CM10: -16.08 | CN10: 1 | CO10: -16.08
B11: Проторговано акций | C11: =SUM(Данные!K:K)*2 -> 1200 | I11: 2013-06-12 | J11: 15 | K11: 14.64 | R11: 2013-06-12 | S11: 14.64 | Z11: 2013-06-12 | AA11: 14.64 | AB11: 0 | AC11: 0 | AJ11: 2013-06-12 | AK11: 0 | AL11: 14.64 | AM11: 14.64 | AN11: 14.64 | AT11: (пусто) | BC11: (пусто) | BD11: 0 | BN11: 0 | BO11: 0 | BP11: 0 | BR11: отбой от уровня | BS11: -0.72 | BT11: 2 | BU11: -1.44 | BW11: (пусто) | BY11: 1054 | BZ11: 0 | CB11: (пусто) | CD11: 1054 | CE11: 0 | CG11: Не соблюдал правила | CH11: -16.08 | CI11: 1 | CJ11: -16.08 | CL11: (пусто) | CN11: 1054 | CO11: 0
B12: Центов на акцию | C12: =C19/2 ->  | I12: 2013-07-09 | J12: -15 | K12: -16.08 | R12: 2013-07-09 | S12: -1.44 | Z12: 2013-07-09 | AA12: -1.44 | AB12: -109.8360656 | AC12: -109.8360656 | AJ12: 2013-07-09 | AK12: 14.64 | AL12: -1.44 | AM12: -1.44 | AN12: -1.44 | BC12: 100 | BD12: 14.64 | BK12: 2013 | BL12: Июнь | BM12: 24 | BN12: 15 | BO12: 14.64 | BP12: 0.36 | BR12: Общий итог | BS12: -0.72 | BT12: 1056 | BU12: -1.44 | BW12: Limit Close | BX12: 14.64 | BY12: 1 | BZ12: 14.64 | CB12: Общий итог | CC12: -0.72 | CD12: 1056 | CE12: -1.44 | CG12: (пусто) | CI12: 1054 | CJ12: 0 | CL12: Не пошла | CM12: 14.64 | CN12: 1 | CO12: 14.64
B13: Статистика по сделкам (NET) | I13: Общий итог | J13: 0 | K13: -1.44 | BC13: 300 | BD13: -16.08 | BL13: Июль | BM13: 28 | BN13: -15 | BO13: -16.08 | BP13: 1.08 | BW13: Общий итог | BX13: -0.72 | BY13: 1056 | BZ13: -1.44 | CG13: Общий итог | CH13: -0.72 | CI13: 1056 | CJ13: -1.44 | CL13: Общий итог | CM13: -0.72 | CN13: 1056 | CO13: -1.44
B14: Всего сделок | C14: =COUNT(Данные!I:I) -> 2 | BK14: Общий итог | BN14: 0 | BO14: -1.44 | BP14: 1.44
B15: ="Прибыльных сделок"&" ("&ROUND(COUNTIF(Данные!Z:Z,">0")/C14*100,0)&"%)" -> Прибыльных сделок (50%) | C15: =COUNTIF(Данные!Z:Z,">0") -> 1
B16: ="Убыточных сделок"&" ("&ROUND(COUNTIF(Данные!Z:Z,"<0")/C14*100,0)&"%)" -> Убыточных сделок (50%) | C16: =COUNTIF(Данные!Z:Z,"<0") -> 1
B17: Средняя прибыльная сделка | C17: =IF(C15=0,0,C22/C15) -> 14.64
B18: Средняя убыточная сделка | C18: =IF(C16=0,0,C23/C16) -> -16.08
B19: Средняя сделка | C19: =IF(C14=0,0,C10/C14) -> 
B20: Максимальная прибыльная сделка | C20: =MAX(Данные!Z:Z) -> 
B21: Максимальная убыточная сделка | C21: =MIN(Данные!Z:Z) -> 
B22: Сумма прибыльных сделок | C22: =SUMIF(Данные!Z:Z,">0",Данные!Z:Z) -> 14.64
B23: Сумма убыточных сделок | C23: =SUMIF(Данные!Z:Z,"<0",Данные!Z:Z) -> -16.08
B24: Статистика по дням
B25: Прибыльных дней | C25: =COUNTIF(K:K,">0")-1 -> 0
B26: Убыточных дней | C26: =COUNTIF(K:K,"<0") -> 2
B27: Всего дней | C27: =COUNT(K:K)-2 -> 2
B28: Макс кол-во прибыльных дней подряд | C28: =MAX(Данные!AZ:AZ) -> 
B29: Макс кол-во убыточных дней подряд | C29: =MIN(Данные!AZ:AZ)*-1 -> 
C31: =MAX(I:I) -> 2013-07-09
B32: Итоги дня
B33: Gross | C33: =VLOOKUP($C$31,$I:$L,2,0) -> -15
B34: Net | C34: =VLOOKUP($C$31,$I:$L,3,0) -> -16.08
B35: Trades | C35: =VLOOKUP($C$31,Данные!$C:$BD,51,0) -> 1
B36: Profit | C36: =VLOOKUP($C$31,Данные!$C:$BD,52,0) -> 0
B37: Loss | C37: =VLOOKUP($C$31,Данные!$C:$BD,53,0) -> 1
B38: Null | C38: =VLOOKUP($C$31,Данные!$C:$BD,54,0) -> 0

Sheet Gross
A1: 1 день | B1: 200 | C1: 2013-09-02 | D1: 2 день | E1: =IF(B15>B4,B1+100,IF(AND(B15>=0,B15<=B4),B1,IF(B15<0,B1," "))) -> 200 | F1: 2013-09-03 | G1: 3 день | H1: =IF(E15>E4,E1+100,IF(AND(E15>=0,E15<=E4),E1,IF(E15<0,$B$1," "))) -> 200 | I1: 2013-09-04 | J1: 4 день | K1: =IF(H15>H4,H1+$B$2,IF(AND(H15>=0,H15<=H4),H1,IF(H15<0,$B$1," "))) -> 200 | L1: 2013-09-05 | M1: 5 день | N1: =IF(K15>K4,K1+$B$2,IF(AND(K15>=0,K15<=K4),K1,IF(K15<0,$B$1," "))) -> 200 | O1: 2013-09-06 | P1: 6 день | Q1: =IF(N15>N4,N1+$B$2,IF(AND(N15>=0,N15<=N4),N1,IF(N15<0,$B$1," "))) -> 200 | R1: 2013-09-09 | S1: 7 день | T1: =IF(Q15>Q4,Q1+$B$2,IF(AND(Q15>=0,Q15<=Q4),Q1,IF(Q15<0,$B$1," "))) -> 200 | U1: 2013-09-10 | V1: 8 день | W1: =IF(T15>T4,T1+$B$2,IF(AND(T15>=0,T15<=T4),T1,IF(T15<0,$B$1," "))) -> 200 | X1: 2013-09-11 | Y1: 9 день | Z1: =IF(W15>W4,W1+$B$2,IF(AND(W15>=0,W15<=W4),W1,IF(W15<0,$B$1," "))) -> 200 | AA1: 2013-09-12 | AB1: 10 день | AC1: =IF(Z15>Z4,Z1+$B$2,IF(AND(Z15>=0,Z15<=Z4),Z1,IF(Z15<0,$B$1," "))) -> 200 | AD1: 2013-09-13 | AE1: 11 день | AF1: =IF(AC15>AC4,AC1+$B$2,IF(AND(AC15>=0,AC15<=AC4),AC1,IF(AC15<0,$B$1," "))) -> 200 | AG1: 2013-09-16 | AH1: 12 день | AI1: =IF(AF15>AF4,AF1+$B$2,IF(AND(AF15>=0,AF15<=AF4),AF1,IF(AF15<0,$B$1," "))) -> 200 | AJ1: 2013-09-17 | AK1: 13 день | AL1: =IF(AI15>AI4,AI1+$B$2,IF(AND(AI15>=0,AI15<=AI4),AI1,IF(AI15<0,$B$1," "))) -> 200 | AM1: 2013-09-18 | AN1: 14 день | AO1: =IF(AL15>AL4,AL1+$B$2,IF(AND(AL15>=0,AL15<=AL4),AL1,IF(AL15<0,$B$1," "))) -> 200 | AP1: 2013-09-19 | AQ1: 15 день | AR1: =IF(AO15>AO4,AO1+$B$2,IF(AND(AO15>=0,AO15<=AO4),AO1,IF(AO15<0,$B$1," "))) -> 200 | AS1: 2013-09-20 | AT1: 11 день | AU1: =IF(AR15>AR4,AR1+$B$2,IF(AND(AR15>=0,AR15<=AR4),AR1,IF(AR15<0,$B$1," "))) -> 200 | AV1: 2013-09-23 | AW1: 12 день | AX1: =IF(AU15>AU4,AU1+$B$2,IF(AND(AU15>=0,AU15<=AU4),AU1,IF(AU15<0,$B$1," "))) -> 200 | AY1: 2013-09-24 | AZ1: 13 день | BA1: =IF(AX15>AX4,AX1+$B$2,IF(AND(AX15>=0,AX15<=AX4),AX1,IF(AX15<0,$B$1," "))) -> 200 | BB1: 2013-09-25 | BC1: 14 день | BD1: =IF(BA15>BA4,BA1+$B$2,IF(AND(BA15>=0,BA15<=BA4),BA1,IF(BA15<0,$B$1," "))) -> 200 | BE1: 2013-09-26 | BF1: 20 день | BG1: =IF(BD15>BD4,BD1+$B$2,IF(AND(BD15>=0,BD15<=BD4),BD1,IF(BD15<0,$B$1," "))) -> 200 | BH1: 2013-09-27 | BI1: 21 день | BJ1: =IF(BG15>BG4,BG1+$B$2,IF(AND(BG15>=0,BG15<=BG4),BG1,IF(BG15<0,$B$1," "))) -> 200 | BK1: 2013-09-30 | BL1: 22 день | BM1: =IF(BJ15>BJ4,BJ1+$B$2,IF(AND(BJ15>=0,BJ15<=BJ4),BJ1,IF(BJ15<0,$B$1," "))) -> 200 | BO1: 23 день | BP1: =IF(BM15>BM4,BM1+$B$2,IF(AND(BM15>=0,BM15<=BM4),BM1,IF(BM15<0,$B$1," "))) -> 200
A2: SumRisk | B2: 100 | D2: SumRisk | E2: =IF(B15>B4,B3,IF(AND(B15>=0,B15<=B4),B2,IF(B15<0,0,"трям"))) -> 100 | G2: SumRisk | H2: =IF(E15>E4,E3,IF(AND(E15>=0,E15<=E4),E2,IF(E15<0,0,"трям"))) -> 100 | J2: SumRisk | K2: =IF(H15>H4,H3,IF(AND(H15>=0,H15<=H4),H2,IF(H15<0,0,"трям"))) -> 100 | M2: SumRisk | N2: =IF(K15>K4,K3,IF(AND(K15>=0,K15<=K4),K2,IF(K15<0,0,"трям"))) -> 100 | P2: SumRisk | Q2: =IF(N15>N4,N2+N3,IF(AND(N15>=0,N15<=N4),N2,IF(N15<0,0,"трям"))) -> 100 | S2: SumRisk | T2: =IF(Q15>Q4,Q2+Q3,IF(AND(Q15>=0,Q15<=Q4),Q2,IF(Q15<0,0,"трям"))) -> 100 | V2: SumRisk | W2: =IF(T15>T4,T2+T3,IF(AND(T15>=0,T15<=T4),T2,IF(T15<0,0,"трям"))) -> 100 | Y2: SumRisk | Z2: =IF(W15>W4,W2+W3,IF(AND(W15>=0,W15<=W4),W2,IF(W15<0,0,"трям"))) -> 100 | AB2: SumRisk | AC2: =IF(Z15>Z4,Z2+Z3,IF(AND(Z15>=0,Z15<=Z4),Z2,IF(Z15<0,0,"трям"))) -> 100 | AE2: SumRisk | AF2: =IF(AC15>AC4,AC2+AC3,IF(AND(AC15>=0,AC15<=AC4),AC2,IF(AC15<0,0,"трям"))) -> 100 | AH2: SumRisk | AI2: =IF(AF15>AF4,AF2+AF3,IF(AND(AF15>=0,AF15<=AF4),AF2,IF(AF15<0,0,"трям"))) -> 100 | AK2: SumRisk | AL2: =IF(AI15>AI4,AI2+AI3,IF(AND(AI15>=0,AI15<=AI4),AI2,IF(AI15<0,0,"трям"))) -> 100 | AN2: SumRisk | AO2: =IF(AL15>AL4,AL2+AL3,IF(AND(AL15>=0,AL15<=AL4),AL2,IF(AL15<0,0,"трям"))) -> 100 | AQ2: SumRisk | AR2: =IF(AO15>AO4,AO2+AO3,IF(AND(AO15>=0,AO15<=AO4),AO2,IF(AO15<0,0,"трям"))) -> 100 | AT2: SumRisk | AU2: =IF(AR15>AR4,AR2+AR3,IF(AND(AR15>=0,AR15<=AR4),AR2,IF(AR15<0,0,"трям"))) -> 100 | AW2: SumRisk | AX2: =IF(AU15>AU4,AU2+AU3,IF(AND(AU15>=0,AU15<=AU4),AU2,IF(AU15<0,0,"трям"))) -> 100 | AZ2: SumRisk | BA2: =IF(AX15>AX4,AX2+AX3,IF(AND(AX15>=0,AX15<=AX4),AX2,IF(AX15<0,0,"трям"))) -> 100 | BC2: SumRisk | BD2: =IF(BA15>BA4,BA2+BA3,IF(AND(BA15>=0,BA15<=BA4),BA2,IF(BA15<0,0,"трям"))) -> 100 | BF2: SumRisk | BG2: =IF(BD15>BD4,BD2+BD3,IF(AND(BD15>=0,BD15<=BD4),BD2,IF(BD15<0,0,"трям"))) -> 100 | BI2: SumRisk | BJ2: =IF(BG15>BG4,BG2+BG3,IF(AND(BG15>=0,BG15<=BG4),BG2,IF(BG15<0,0,"трям"))) -> 100 | BL2: SumRisk | BM2: =IF(BJ15>BJ4,BJ2+BJ3,IF(AND(BJ15>=0,BJ15<=BJ4),BJ2,IF(BJ15<0,0,"трям"))) -> 100 | BO2: SumRisk | BP2: =IF(BM15>BM4,BM2+BM3,IF(AND(BM15>=0,BM15<=BM4),BM2,IF(BM15<0,0,"трям"))) -> 100
A3: Risk | B3: =$D$26 -> -40 | D3: Risk | E3: =IF(B15>B4,B3+$D$26,IF(AND(B15>=0,B15<=B4),B3,IF(B15<0,$D$26,"трям"))) -> -40 | G3: Risk | H3: =IF(E15>E4,E3+$D$26,IF(AND(E15>=0,E15<=E4),E3,IF(E15<0,$D$26,"трям"))) -> -40 | J3: Risk | K3: =IF(H15>H4,H3+$D$26,IF(AND(H15>=0,H15<=H4),H3,IF(H15<0,$D$26,"трям"))) -> -40 | M3: Risk | N3: =IF(K15>K4,K3+$D$26,IF(AND(K15>=0,K15<=K4),K3,IF(K15<0,$D$26,"трям"))) -> -40 | P3: Risk | Q3: =IF(N15>N4,N3+$D$26,IF(AND(N15>=0,N15<=N4),N3,IF(N15<0,$D$26,"трям"))) -> -40 | S3: Risk | T3: =IF(Q15>Q4,Q3+$D$26,IF(AND(Q15>=0,Q15<=Q4),Q3,IF(Q15<0,$D$26,"трям"))) -> -40 | V3: Risk | W3: =IF(T15>T4,T3+$D$26,IF(AND(T15>=0,T15<=T4),T3,IF(T15<0,$D$26,"трям"))) -> -40 | Y3: Risk | Z3: =IF(W15>W4,W3+$D$26,IF(AND(W15>=0,W15<=W4),W3,IF(W15<0,$D$26,"трям"))) -> -40 | AB3: Risk | AC3: =IF(Z15>Z4,Z3+$D$26,IF(AND(Z15>=0,Z15<=Z4),Z3,IF(Z15<0,$D$26,"трям"))) -> -40 | AE3: Risk | AF3: =IF(AC15>AC4,AC3+$D$26,IF(AND(AC15>=0,AC15<=AC4),AC3,IF(AC15<0,$D$26,"трям"))) -> -40 | AH3: Risk | AI3: =IF(AF15>AF4,AF3+$D$26,IF(AND(AF15>=0,AF15<=AF4),AF3,IF(AF15<0,$D$26,"трям"))) -> -40 | AK3: Risk | AL3: =IF(AI15>AI4,AI3+$D$26,IF(AND(AI15>=0,AI15<=AI4),AI3,IF(AI15<0,$D$26,"трям"))) -> -40 | AN3: Risk | AO3: =IF(AL15>AL4,AL3+$D$26,IF(AND(AL15>=0,AL15<=AL4),AL3,IF(AL15<0,$D$26,"трям"))) -> -40 | AQ3: Risk | AR3: =IF(AO15>AO4,AO3+$D$26,IF(AND(AO15>=0,AO15<=AO4),AO3,IF(AO15<0,$D$26,"трям"))) -> -40 | AT3: Risk | AU3: =IF(AR15>AR4,AR3+$D$26,IF(AND(AR15>=0,AR15<=AR4),AR3,IF(AR15<0,$D$26,"трям"))) -> -40 | AW3: Risk | AX3: =IF(AU15>AU4,AU3+$D$26,IF(AND(AU15>=0,AU15<=AU4),AU3,IF(AU15<0,$D$26,"трям"))) -> -40 | AZ3: Risk | BA3: =IF(AX15>AX4,AX3+$D$26,IF(AND(AX15>=0,AX15<=AX4),AX3,IF(AX15<0,$D$26,"трям"))) -> -40 | BC3: Risk | BD3: =IF(BA15>BA4,BA3+$D$26,IF(AND(BA15>=0,BA15<=BA4),BA3,IF(BA15<0,$D$26,"трям"))) -> -40 | BF3: Risk | BG3: =IF(BD15>BD4,BD3+$D$26,IF(AND(BD15>=0,BD15<=BD4),BD3,IF(BD15<0,$D$26,"трям"))) -> -40 | BI3: Risk | BJ3: =IF(BG15>BG4,BG3+$D$26,IF(AND(BG15>=0,BG15<=BG4),BG3,IF(BG15<0,$D$26,"трям"))) -> -40 | BL3: Risk | BM3: =IF(BJ15>BJ4,BJ3+$D$26,IF(AND(BJ15>=0,BJ15<=BJ4),BJ3,IF(BJ15<0,$D$26,"трям"))) -> -40 | BO3: Risk | BP3: =IF(BM15>BM4,BM3+$D$26,IF(AND(BM15>=0,BM15<=BM4),BM3,IF(BM15<0,$D$26,"трям"))) -> -40
A4: Target | B4: =B3*-1 -> 40 | C4: =B3*3*-1 -> 120 | D4: Target | E4: =E3*-1 -> 40 | F4: =E3*3*-1 -> 120 | G4: Target | H4: =H3*-1 -> 40 | I4: =H3*3*-1 -> 120 | J4: Target | K4: =K3*-1 -> 40 | L4: =K3*3*-1 -> 120 | M4: Target | N4: =N3*-1 -> 40 | O4: =N3*3*-1 -> 120 | P4: Target | Q4: =Q3*-1 -> 40 | R4: =Q3*3*-1 -> 120 | S4: Target | T4: =T3*-1 -> 40 | U4: =T3*3*-1 -> 120 | V4: Target | W4: =W3*-1 -> 40 | X4: =W3*3*-1 -> 120 | Y4: Target | Z4: =Z3*-1 -> 40 | AA4: =Z3*3*-1 -> 120 | AB4: Target | AC4: =AC3*-1 -> 40 | AD4: =AC3*3*-1 -> 120 | AE4: Target | AF4: =AF3*-1 -> 40 | AG4: =AF3*3*-1 -> 120 | AH4: Target | AI4: =AI3*-1 -> 40 | AJ4: =AI3*3*-1 -> 120 | AK4: Target | AL4: =AL3*-1 -> 40 | AM4: =AL3*3*-1 -> 120 | AN4: Target | AO4: =AO3*-1 -> 40 | AP4: =AO3*3*-1 -> 120 | AQ4: Target | AR4: =AR3*-1 -> 40 | AS4: =AR3*3*-1 -> 120 | AT4: Target | AU4: =AU3*-1 -> 40 | AV4: =AU3*3*-1 -> 120 | AW4: Target | AX4: =AX3*-1 -> 40 | AY4: =AX3*3*-1 -> 120 | AZ4: Target | BA4: =BA3*-1 -> 40 | BB4: =BA3*3*-1 -> 120 | BC4: Target | BD4: =BD3*-1 -> 40 | BE4: =BD3*3*-1 -> 120 | BF4: Target | BG4: =BG3*-1 -> 40 | BH4: =BG3*3*-1 -> 120 | BI4: Target | BJ4: =BJ3*-1 -> 40 | BK4: =BJ3*3*-1 -> 120 | BL4: Target | BM4: 40 | BN4: =BM3*3*-1 -> 120 | BO4: Target | BP4: =BP3*-1 -> 40 | BQ4: =BP3*3*-1 -> 120
A5: 1 | D5: 1 | G5: 1 | J5: 1 | M5: 1 | P5: 1 | S5: 1 | V5: 1 | Y5: 1 | AB5: 1 | AE5: 1 | AH5: 1 | AK5: 1 | AN5: 1 | AQ5: 1 | AT5: 1 | AW5: 1 | AZ5: 1 | BC5: 1 | BF5: 1 | BI5: 1 | BL5: 1 | BO5: 1
A6: 2 | D6: 2 | G6: 2 | J6: 2 | M6: 2 | P6: 2 | S6: 2 | V6: 2 | Y6: 2 | AB6: 2 | AE6: 2 | AH6: 2 | AK6: 2 | AN6: 2 | AQ6: 2 | AT6: 2 | AW6: 2 | AZ6: 2 | BC6: 2 | BF6: 2 | BI6: 2 | BL6: 2 | BO6: 2
A7: 3 | D7: 3 | G7: 3 | J7: 3 | M7: 3 | P7: 3 | S7: 3 | V7: 3 | Y7: 3 | AB7: 3 | AE7: 3 | AH7: 3 | AK7: 3 | AN7: 3 | AQ7: 3 | AT7: 3 | AW7: 3 | AZ7: 3 | BC7: 3 | BF7: 3 | BI7: 3 | BL7: 3 | BO7: 3
A8: 4 | D8: 4 | G8: 4 | J8: 4 | M8: 4 | P8: 4 | S8: 4 | V8: 4 | Y8: 4 | AB8: 4 | AE8: 4 | AH8: 4 | AK8: 4 | AN8: 4 | AQ8: 4 | AT8: 4 | AW8: 4 | AZ8: 4 | BC8: 4 | BF8: 4 | BI8: 4 | BL8: 4 | BO8: 4
A9: 5 | D9: 5 | G9: 5 | J9: 5 | M9: 5 | P9: 5 | S9: 5 | V9: 5 | Y9: 5 | AB9: 5 | AE9: 5 | AH9: 5 | AK9: 5 | AN9: 5 | AQ9: 5 | AT9: 5 | AW9: 5 | AZ9: 5 | BC9: 5 | BF9: 5 | BI9: 5 | BL9: 5 | BO9: 5
A10: 6 | D10: 6 | G10: 6 | J10: 6 | M10: 6 | P10: 6 | S10: 6 | V10: 6 | Y10: 6 | AB10: 6 | AE10: 6 | AH10: 6 | AK10: 6 | AN10: 6 | AQ10: 6 | AT10: 6 | AW10: 6 | AZ10: 6 | BC10: 6 | BF10: 6 | BI10: 6 | BL10: 6 | BO10: 6
A11: 7 | D11: 7 | G11: 7 | J11: 7 | M11: 7 | P11: 7 | S11: 7 | V11: 7 | Y11: 7 | AB11: 7 | AE11: 7 | AH11: 7 | AK11: 7 | AN11: 7 | AQ11: 7 | AT11: 7 | AW11: 7 | AZ11: 7 | BC11: 7 | BF11: 7 | BI11: 7 | BL11: 7 | BO11: 7
A12: 8 | D12: 8 | G12: 8 | J12: 8 | M12: 8 | P12: 8 | S12: 8 | V12: 8 | Y12: 8 | AB12: 8 | AE12: 8 | AH12: 8 | AK12: 8 | AN12: 8 | AQ12: 8 | AT12: 8 | AW12: 8 | AZ12: 8 | BC12: 8 | BF12: 8 | BI12: 8 | BL12: 8 | BO12: 8
A13: 9 | D13: 9 | G13: 9 | J13: 9 | M13: 9 | P13: 9 | S13: 9 | V13: 9 | Y13: 9 | AB13: 9 | AE13: 9 | AH13: 9 | AK13: 9 | AN13: 9 | AQ13: 9 | AT13: 9 | AW13: 9 | AZ13: 9 | BC13: 9 | BF13: 9 | BI13: 9 | BL13: 9 | BO13: 9
A14: 10 | D14: 10 | G14: 10 | J14: 10 | M14: 10 | P14: 10 | S14: 10 | V14: 10 | Y14: 10 | AB14: 10 | AE14: 10 | AH14: 10 | AK14: 10 | AN14: 10 | AQ14: 10 | AT14: 10 | AW14: 10 | AZ14: 10 | BC14: 10 | BF14: 10 | BI14: 10 | BL14: 10 | BO14: 10
A15: Day | B15: =SUM(B5:B14) -> 0 | D15: Day | E15: =SUM(E5:E14) -> 0 | G15: Day | H15: =SUM(H5:H14) -> 0 | J15: Day | K15: =SUM(K5:K14) -> 0 | M15: Day | N15: =SUM(N5:N14) -> 0 | P15: Day | Q15: =SUM(Q5:Q14) -> 0 | S15: Day | T15: =SUM(T5:T14) -> 0 | V15: Day | W15: =SUM(W5:W14) -> 0 | Y15: Day | Z15: =SUM(Z5:Z14) -> 0 | AB15: Day | AC15: =SUM(AC5:AC14) -> 0 | AE15: Day | AF15: =SUM(AF5:AF14) -> 0 | AH15: Day | AI15: =SUM(AI5:AI14) -> 0 | AK15: Day | AL15: =SUM(AL5:AL14) -> 0 | AN15: Day | AO15: =SUM(AO5:AO14) -> 0 | AQ15: Day | AR15: =SUM(AR5:AR14) -> 0 | AT15: Day | AU15: =SUM(AU5:AU14) -> 0 | AW15: Day | AX15: =SUM(AX5:AX14) -> 0 | AZ15: Day | BA15: =SUM(BA5:BA14) -> 0 | BC15: Day | BD15: =SUM(BD5:BD14) -> 0 | BF15: Day | BG15: =SUM(BG5:BG14) -> 0 | BI15: Day | BJ15: =SUM(BJ5:BJ14) -> 0 | BL15: Day | BM15: 0 | BO15: Day | BP15: =SUM(BP5:BP14) -> 0
A16: SumLoss | B16: =SUMIF(B5:B14,"<0",B5:B14) -> 0 | D16: SumLoss | E16: =SUMIF(E5:E14,"<0",E5:E14) -> 0 | G16: SumLoss | H16: =SUMIF(H5:H14,"<0",H5:H14) -> 0 | J16: SumLoss | K16: =SUMIF(K5:K14,"<0",K5:K14) -> 0 | M16: SumLoss | N16: =SUMIF(N5:N14,"<0",N5:N14) -> 0 | P16: SumLoss | Q16: =SUMIF(Q5:Q14,"<0",Q5:Q14) -> 0 | S16: SumLoss | T16: =SUMIF(T5:T14,"<0",T5:T14) -> 0 | V16: SumLoss | W16: =SUMIF(W5:W14,"<0",W5:W14) -> 0 | Y16: SumLoss | Z16: =SUMIF(Z5:Z14,"<0",Z5:Z14) -> 0 | AB16: SumLoss | AC16: =SUMIF(AC5:AC14,"<0",AC5:AC14) -> 0 | AE16: SumLoss | AF16: =SUMIF(AF5:AF14,"<0",AF5:AF14) -> 0 | AH16: SumLoss | AI16: =SUMIF(AI5:AI14,"<0",AI5:AI14) -> 0 | AK16: SumLoss | AL16: =SUMIF(AL5:AL14,"<0",AL5:AL14) -> 0 | AN16: SumLoss | AO16: =SUMIF(AO5:AO14,"<0",AO5:AO14) -> 0 | AQ16: SumLoss | AR16: =SUMIF(AR5:AR14,"<0",AR5:AR14) -> 0 | AT16: SumLoss | AU16: =SUMIF(AU5:AU14,"<0",AU5:AU14) -> 0 | AW16: SumLoss | AX16: =SUMIF(AX5:AX14,"<0",AX5:AX14) -> 0 | AZ16: SumLoss | BA16: =SUMIF(BA5:BA14,"<0",BA5:BA14) -> 0 | BC16: SumLoss | BD16: =SUMIF(BD5:BD14,"<0",BD5:BD14) -> 0 | BF16: SumLoss | BG16: =SUMIF(BG5:BG14,"<0",BG5:BG14) -> 0 | BI16: SumLoss | BJ16: =SUMIF(BJ5:BJ14,"<0",BJ5:BJ14) -> 0 | BL16: SumLoss | BM16: 0 | BO16: SumLoss | BP16: 0
A18: Итог за месяц | E18: 80 | H18: =A19-F18 -> 0 | K18: Net | M18: =M23-M22 ->  | T18: Risk | U18: Внимание. До достижения риска осталось 20% | AD18: Дневной риск сбрасывается на минимальный, если итог дня отрицательный | AN18: 200 | AO18: 30000
A19: =SUM(A15:BQ15) -> 0 | E19: 97.9 | F19: =F18-E19 -> -97.9 | M19: =M20*O20 ->  | T19: Risk | U19: Риск достигнут или превышен. Остановить торговлю | AD19: Дневной риск не меняется, если плюс меньше или равен Target | AN19: 300 | AO19: 80000
B20: 100 | E20: 50 | F20: =F19 -> -97.9 | M20: =M18 ->  | O20: 32.9 | P20: <= Курс $ | T20: Target | U20: Цель достигнута. Можно остановиться | AD20: Дневной риск увеличивается, при превышении минимального Target
A21: MonthTarget | D21: 8450 | K21: ∑ = P\L Net | M21: =Данные!BI2 ->  | T21: Target | U21: Цель превышена. Не жадничать и остановить торговлю
A22: WorkDay | D22: 23 | K22: ∑ = Prop Net | M22: =Данные!BJ2 -> 2.928
A23: DayRisk,$ | D23: =D26 -> -40 | K23: ∑ = P&L Net Real | M23: =Данные!BK2-P25 -> 
K24: ∑ = Shers | M24: =Данные!BL2 -> 1200 | O24: 30000
K25: Осталось Shers | M25: =O24-M24 -> 28800 | N25: =M25/I32 -> 1371.428571
D26: -40 | E26: -685 | F26: =COUNT(C1,F1,I1,L1,O1,R1,U1,X1,AA1,AD1,AG1,AJ1,AM1,AP1,AS1,AV1,AY1,BB1,BE1,BH1,BK1,BN1,BQ1) -> 21
A27: Month | D27: P&L | E27: Prop % | G27: Кол-во дней торговли | H27: Не торговал дней | I27: Осталось дней
A28: May | D28: 0 | F28: =D28-E28 -> 0
A29: June | D29: 0 | F29: =D29-E29 -> 0
A30: July | D30: 0 | F30: 0
A31: August | D31: 0 | F31: 0
A32: September | D32: =M23 ->  | E32: =M22 -> 2.928 | F32: =D32-E32 ->  | G32: =COUNT(B5,E5,H5,K5,N5,Q5,T5,W5,Z5,AC5,AF5,AI5,AL5,AO5,AR5,AU5,AX5,BA5,BD5,BG5,BJ5,BM5,BP5) -> 0 | H32: =F26-G32 -> 21 | I32: =F26-'Net P&L'!G26 -> 21
A33: October | F33: =D33-$E$20 -> -50
A34: November | F34: -50
A35: December | F35: -50
A36: January | F36: -50
A37: February | F37: -50
A38: March | F38: -50
A39: April | F39: -50

Sheet Net P&L
A1: 1 день | B1: 200 | C1: 2013-09-02 | D1: 2 день | E1: =IF(B15>B4,B1+100,IF(AND(B15>=0,B15<=B4),B1,IF(B15<0,B1," "))) -> 200 | F1: 2013-09-03 | G1: 3 день | H1: =IF(E15>E4,E1+100,IF(AND(E15>=0,E15<=E4),E1,IF(E15<0,$B$1," "))) -> 200 | I1: 2013-09-04 | J1: 4 день | K1: =IF(H15>H4,H1+$B$2,IF(AND(H15>=0,H15<=H4),H1,IF(H15<0,$B$1," "))) -> 200 | L1: 2013-09-05 | M1: 5 день | N1: =IF(K15>K4,K1+$B$2,IF(AND(K15>=0,K15<=K4),K1,IF(K15<0,$B$1," "))) -> 200 | O1: 2013-09-06 | P1: 6 день | Q1: =IF(N15>N4,N1+$B$2,IF(AND(N15>=0,N15<=N4),N1,IF(N15<0,$B$1," "))) -> 200 | R1: 2013-09-09 | S1: 7 день | T1: =IF(Q15>Q4,Q1+$B$2,IF(AND(Q15>=0,Q15<=Q4),Q1,IF(Q15<0,$B$1," "))) -> 200 | U1: 2013-09-10 | V1: 8 день | W1: =IF(T15>T4,T1+$B$2,IF(AND(T15>=0,T15<=T4),T1,IF(T15<0,$B$1," "))) -> 200 | X1: 2013-09-11 | Y1: 9 день | Z1: =IF(W15>W4,W1+$B$2,IF(AND(W15>=0,W15<=W4),W1,IF(W15<0,$B$1," "))) -> 200 | AA1: 2013-09-12 | AB1: 10 день | AC1: =IF(Z15>Z4,Z1+$B$2,IF(AND(Z15>=0,Z15<=Z4),Z1,IF(Z15<0,$B$1," "))) -> 200 | AD1: 2013-09-13 | AE1: 11 день | AF1: =IF(AC15>AC4,AC1+$B$2,IF(AND(AC15>=0,AC15<=AC4),AC1,IF(AC15<0,$B$1," "))) -> 200 | AG1: 2013-09-16 | AH1: 12 день | AI1: =IF(AF15>AF4,AF1+$B$2,IF(AND(AF15>=0,AF15<=AF4),AF1,IF(AF15<0,$B$1," "))) -> 200 | AJ1: 2013-09-17 | AK1: 13 день | AL1: =IF(AI15>AI4,AI1+$B$2,IF(AND(AI15>=0,AI15<=AI4),AI1,IF(AI15<0,$B$1," "))) -> 200 | AM1: 2013-09-18 | AN1: 14 день | AO1: =IF(AL15>AL4,AL1+$B$2,IF(AND(AL15>=0,AL15<=AL4),AL1,IF(AL15<0,$B$1," "))) -> 200 | AP1: 2013-09-19 | AQ1: 15 день | AR1: =IF(AO15>AO4,AO1+$B$2,IF(AND(AO15>=0,AO15<=AO4),AO1,IF(AO15<0,$B$1," "))) -> 200 | AS1: 2013-09-20 | AT1: 11 день | AU1: =IF(AR15>AR4,AR1+$B$2,IF(AND(AR15>=0,AR15<=AR4),AR1,IF(AR15<0,$B$1," "))) -> 200 | AV1: 2013-09-23 | AW1: 12 день | AX1: =IF(AU15>AU4,AU1+$B$2,IF(AND(AU15>=0,AU15<=AU4),AU1,IF(AU15<0,$B$1," "))) -> 200 | AY1: 2013-09-24 | AZ1: 13 день | BA1: =IF(AX15>AX4,AX1+$B$2,IF(AND(AX15>=0,AX15<=AX4),AX1,IF(AX15<0,$B$1," "))) -> 200 | BB1: 2013-09-25 | BC1: 14 день | BD1: =IF(BA15>BA4,BA1+$B$2,IF(AND(BA15>=0,BA15<=BA4),BA1,IF(BA15<0,$B$1," "))) -> 200 | BE1: 2013-09-26 | BF1: 20 день | BG1: =IF(BD15>BD4,BD1+$B$2,IF(AND(BD15>=0,BD15<=BD4),BD1,IF(BD15<0,$B$1," "))) -> 200 | BH1: 2013-09-27 | BI1: 21 день | BJ1: =IF(BG15>BG4,BG1+$B$2,IF(AND(BG15>=0,BG15<=BG4),BG1,IF(BG15<0,$B$1," "))) -> 200 | BK1: 2013-09-30 | BL1: 22 день | BM1: =IF(BJ15>BJ4,BJ1+$B$2,IF(AND(BJ15>=0,BJ15<=BJ4),BJ1,IF(BJ15<0,$B$1," "))) -> 200 | BO1: 23 день | BP1: =IF(BM15>BM4,BM1+$B$2,IF(AND(BM15>=0,BM15<=BM4),BM1,IF(BM15<0,$B$1," "))) -> 200
A2: SumRisk | B2: 100 | D2: SumRisk | E2: =IF(B15>B4,B3,IF(AND(B15>=0,B15<=B4),B2,IF(B15<0,0,"трям"))) -> 100 | G2: SumRisk | H2: =IF(E15>E4,E3,IF(AND(E15>=0,E15<=E4),E2,IF(E15<0,0,"трям"))) -> 100 | J2: SumRisk | K2: =IF(H15>H4,H3,IF(AND(H15>=0,H15<=H4),H2,IF(H15<0,0,"трям"))) -> 100 | M2: SumRisk | N2: =IF(K15>K4,K3,IF(AND(K15>=0,K15<=K4),K2,IF(K15<0,0,"трям"))) -> 100 | P2: SumRisk | Q2: =IF(N15>N4,N2+N3,IF(AND(N15>=0,N15<=N4),N2,IF(N15<0,0,"трям"))) -> 100 | S2: SumRisk | T2: =IF(Q15>Q4,Q2+Q3,IF(AND(Q15>=0,Q15<=Q4),Q2,IF(Q15<0,0,"трям"))) -> 100 | V2: SumRisk | W2: =IF(T15>T4,T2+T3,IF(AND(T15>=0,T15<=T4),T2,IF(T15<0,0,"трям"))) -> 100 | Y2: SumRisk | Z2: =IF(W15>W4,W2+W3,IF(AND(W15>=0,W15<=W4),W2,IF(W15<0,0,"трям"))) -> 100 | AB2: SumRisk | AC2: =IF(Z15>Z4,Z2+Z3,IF(AND(Z15>=0,Z15<=Z4),Z2,IF(Z15<0,0,"трям"))) -> 100 | AE2: SumRisk | AF2: =IF(AC15>AC4,AC2+AC3,IF(AND(AC15>=0,AC15<=AC4),AC2,IF(AC15<0,0,"трям"))) -> 100 | AH2: SumRisk | AI2: =IF(AF15>AF4,AF2+AF3,IF(AND(AF15>=0,AF15<=AF4),AF2,IF(AF15<0,0,"трям"))) -> 100 | AK2: SumRisk | AL2: =IF(AI15>AI4,AI2+AI3,IF(AND(AI15>=0,AI15<=AI4),AI2,IF(AI15<0,0,"трям"))) -> 100 | AN2: SumRisk | AO2: =IF(AL15>AL4,AL2+AL3,IF(AND(AL15>=0,AL15<=AL4),AL2,IF(AL15<0,0,"трям"))) -> 100 | AQ2: SumRisk | AR2: =IF(AO15>AO4,AO2+AO3,IF(AND(AO15>=0,AO15<=AO4),AO2,IF(AO15<0,0,"трям"))) -> 100 | AT2: SumRisk | AU2: =IF(AR15>AR4,AR2+AR3,IF(AND(AR15>=0,AR15<=AR4),AR2,IF(AR15<0,0,"трям"))) -> 100 | AW2: SumRisk | AX2: =IF(AU15>AU4,AU2+AU3,IF(AND(AU15>=0,AU15<=AU4),AU2,IF(AU15<0,0,"трям"))) -> 100 | AZ2: SumRisk | BA2: =IF(AX15>AX4,AX2+AX3,IF(AND(AX15>=0,AX15<=AX4),AX2,IF(AX15<0,0,"трям"))) -> 100 | BC2: SumRisk | BD2: =IF(BA15>BA4,BA2+BA3,IF(AND(BA15>=0,BA15<=BA4),BA2,IF(BA15<0,0,"трям"))) -> 100 | BF2: SumRisk | BG2: =IF(BD15>BD4,BD2+BD3,IF(AND(BD15>=0,BD15<=BD4),BD2,IF(BD15<0,0,"трям"))) -> 100 | BI2: SumRisk | BJ2: =IF(BG15>BG4,BG2+BG3,IF(AND(BG15>=0,BG15<=BG4),BG2,IF(BG15<0,0,"трям"))) -> 100 | BL2: SumRisk | BM2: =IF(BJ15>BJ4,BJ2+BJ3,IF(AND(BJ15>=0,BJ15<=BJ4),BJ2,IF(BJ15<0,0,"трям"))) -> 100 | BO2: SumRisk | BP2: =IF(BM15>BM4,BM2+BM3,IF(AND(BM15>=0,BM15<=BM4),BM2,IF(BM15<0,0,"трям"))) -> 100
A3: Risk | B3: =$D$26 -> -40 | D3: Risk | E3: =IF(B15>B4,B3+$D$26,IF(AND(B15>=0,B15<=B4),B3,IF(B15<0,$D$26,"трям"))) -> -40 | G3: Risk | H3: =IF(E15>E4,E3+$D$26,IF(AND(E15>=0,E15<=E4),E3,IF(E15<0,$D$26,"трям"))) -> -40 | J3: Risk | K3: =IF(H15>H4,H3+$D$26,IF(AND(H15>=0,H15<=H4),H3,IF(H15<0,$D$26,"трям"))) -> -40 | M3: Risk | N3: =IF(K15>K4,K3+$D$26,IF(AND(K15>=0,K15<=K4),K3,IF(K15<0,$D$26,"трям"))) -> -40 | P3: Risk | Q3: =IF(N15>N4,N3+$D$26,IF(AND(N15>=0,N15<=N4),N3,IF(N15<0,$D$26,"трям"))) -> -40 | S3: Risk | T3: =IF(Q15>Q4,Q3+$D$26,IF(AND(Q15>=0,Q15<=Q4),Q3,IF(Q15<0,$D$26,"трям"))) -> -40 | V3: Risk | W3: =IF(T15>T4,T3+$D$26,IF(AND(T15>=0,T15<=T4),T3,IF(T15<0,$D$26,"трям"))) -> -40 | Y3: Risk | Z3: =IF(W15>W4,W3+$D$26,IF(AND(W15>=0,W15<=W4),W3,IF(W15<0,$D$26,"трям"))) -> -40 | AB3: Risk | AC3: =IF(Z15>Z4,Z3+$D$26,IF(AND(Z15>=0,Z15<=Z4),Z3,IF(Z15<0,$D$26,"трям"))) -> -40 | AE3: Risk | AF3: =IF(AC15>AC4,AC3+$D$26,IF(AND(AC15>=0,AC15<=AC4),AC3,IF(AC15<0,$D$26,"трям"))) -> -40 | AH3: Risk | AI3: =IF(AF15>AF4,AF3+$D$26,IF(AND(AF15>=0,AF15<=AF4),AF3,IF(AF15<0,$D$26,"трям"))) -> -40 | AK3: Risk | AL3: =IF(AI15>AI4,AI3+$D$26,IF(AND(AI15>=0,AI15<=AI4),AI3,IF(AI15<0,$D$26,"трям"))) -> -40 | AN3: Risk | AO3: =IF(AL15>AL4,AL3+$D$26,IF(AND(AL15>=0,AL15<=AL4),AL3,IF(AL15<0,$D$26,"трям"))) -> -40 | AQ3: Risk | AR3: =IF(AO15>AO4,AO3+$D$26,IF(AND(AO15>=0,AO15<=AO4),AO3,IF(AO15<0,$D$26,"трям"))) -> -40 | AT3: Risk | AU3: =IF(AR15>AR4,AR3+$D$26,IF(AND(AR15>=0,AR15<=AR4),AR3,IF(AR15<0,$D$26,"трям"))) -> -40 | AW3: Risk | AX3: =IF(AU15>AU4,AU3+$D$26,IF(AND(AU15>=0,AU15<=AU4),AU3,IF(AU15<0,$D$26,"трям"))) -> -40 | AZ3: Risk | BA3: =IF(AX15>AX4,AX3+$D$26,IF(AND(AX15>=0,AX15<=AX4),AX3,IF(AX15<0,$D$26,"трям"))) -> -40 | BC3: Risk | BD3: =IF(BA15>BA4,BA3+$D$26,IF(AND(BA15>=0,BA15<=BA4),BA3,IF(BA15<0,$D$26,"трям"))) -> -40 | BF3: Risk | BG3: =IF(BD15>BD4,BD3+$D$26,IF(AND(BD15>=0,BD15<=BD4),BD3,IF(BD15<0,$D$26,"трям"))) -> -40 | BI3: Risk | BJ3: =IF(BG15>BG4,BG3+$D$26,IF(AND(BG15>=0,BG15<=BG4),BG3,IF(BG15<0,$D$26,"трям"))) -> -40 | BL3: Risk | BM3: =IF(BJ15>BJ4,BJ3+$D$26,IF(AND(BJ15>=0,BJ15<=BJ4),BJ3,IF(BJ15<0,$D$26,"трям"))) -> -40 | BO3: Risk | BP3: =IF(BM15>BM4,BM3+$D$26,IF(AND(BM15>=0,BM15<=BM4),BM3,IF(BM15<0,$D$26,"трям"))) -> -40
A4: Target | B4: =B3*-1 -> 40 | C4: =B3*3*-1 -> 120 | D4: Target | E4: =E3*-1 -> 40 | F4: =E3*3*-1 -> 120 | G4: Target | H4: =H3*-1 -> 40 | I4: =H3*3*-1 -> 120 | J4: Target | K4: =K3*-1 -> 40 | L4: =K3*3*-1 -> 120 | M4: Target | N4: =N3*-1 -> 40 | O4: =N3*3*-1 -> 120 | P4: Target | Q4: =Q3*-1 -> 40 | R4: =Q3*3*-1 -> 120 | S4: Target | T4: =T3*-1 -> 40 | U4: =T3*3*-1 -> 120 | V4: Target | W4: =W3*-1 -> 40 | X4: =W3*3*-1 -> 120 | Y4: Target | Z4: =Z3*-1 -> 40 | AA4: =Z3*3*-1 -> 120 | AB4: Target | AC4: =AC3*-1 -> 40 | AD4: =AC3*3*-1 -> 120 | AE4: Target | AF4: =AF3*-1 -> 40 | AG4: =AF3*3*-1 -> 120 | AH4: Target | AI4: =AI3*-1 -> 40 | AJ4: =AI3*3*-1 -> 120 | AK4: Target | AL4: =AL3*-1 -> 40 | AM4: =AL3*3*-1 -> 120 | AN4: Target | AO4: =AO3*-1 -> 40 | AP4: =AO3*3*-1 -> 120 | AQ4: Target | AR4: =AR3*-1 -> 40 | AS4: =AR3*3*-1 -> 120 | AT4: Target | AU4: =AU3*-1 -> 40 | AV4: =AU3*3*-1 -> 120 | AW4: Target | AX4: =AX3*-1 -> 40 | AY4: =AX3*3*-1 -> 120 | AZ4: Target | BA4: =BA3*-1 -> 40 | BB4: =BA3*3*-1 -> 120 | BC4: Target | BD4: =BD3*-1 -> 40 | BE4: =BD3*3*-1 -> 120 | BF4: Target | BG4: =BG3*-1 -> 40 | BH4: =BG3*3*-1 -> 120 | BI4: Target | BJ4: =BJ3*-1 -> 40 | BK4: =BJ3*3*-1 -> 120 | BL4: Target | BM4: 40 | BN4: =BM3*3*-1 -> 120 | BO4: Target | BP4: =BP3*-1 -> 40 | BQ4: =BP3*3*-1 -> 120
A5: 1 | D5: 1 | G5: 1 | J5: 1 | M5: 1 | P5: 1 | S5: 1 | V5: 1 | Y5: 1 | AB5: 1 | AE5: 1 | AH5: 1 | AK5: 1 | AN5: 1 | AQ5: 1 | AT5: 1 | AW5: 1 | AZ5: 1 | BC5: 1 | BF5: 1 | BI5: 1 | BL5: 1 | BO5: 1
A6: 2 | D6: 2 | G6: 2 | J6: 2 | M6: 2 | P6: 2 | S6: 2 | V6: 2 | Y6: 2 | AB6: 2 | AE6: 2 | AH6: 2 | AK6: 2 | AN6: 2 | AQ6: 2 | AT6: 2 | AW6: 2 | AZ6: 2 | BC6: 2 | BF6: 2 | BI6: 2 | BL6: 2 | BO6: 2
A7: 3 | D7: 3 | G7: 3 | J7: 3 | M7: 3 | P7: 3 | S7: 3 | V7: 3 | Y7: 3 | AB7: 3 | AE7: 3 | AH7: 3 | AK7: 3 | AN7: 3 | AQ7: 3 | AT7: 3 | AW7: 3 | AZ7: 3 | BC7: 3 | BF7: 3 | BI7: 3 | BL7: 3 | BO7: 3
A8: 4 | D8: 4 | G8: 4 | J8: 4 | M8: 4 | P8: 4 | S8: 4 | V8: 4 | Y8: 4 | AB8: 4 | AE8: 4 | AH8: 4 | AK8: 4 | AN8: 4 | AQ8: 4 | AT8: 4 | AW8: 4 | AZ8: 4 | BC8: 4 | BF8: 4 | BI8: 4 | BL8: 4 | BO8: 4
A9: 5 | D9: 5 | G9: 5 | J9: 5 | M9: 5 | P9: 5 | S9: 5 | V9: 5 | Y9: 5 | AB9: 5 | AE9: 5 | AH9: 5 | AK9: 5 | AN9: 5 | AQ9: 5 | AT9: 5 | AW9: 5 | AZ9: 5 | BC9: 5 | BF9: 5 | BI9: 5 | BL9: 5 | BO9: 5
A10: 6 | D10: 6 | G10: 6 | J10: 6 | M10: 6 | P10: 6 | S10: 6 | V10: 6 | Y10: 6 | AB10: 6 | AE10: 6 | AH10: 6 | AK10: 6 | AN10: 6 | AQ10: 6 | AT10: 6 | AW10: 6 | AZ10: 6 | BC10: 6 | BF10: 6 | BI10: 6 | BL10: 6 | BO10: 6
A11: 7 | D11: 7 | G11: 7 | J11: 7 | M11: 7 | P11: 7 | S11: 7 | V11: 7 | Y11: 7 | AB11: 7 | AE11: 7 | AH11: 7 | AK11: 7 | AN11: 7 | AQ11: 7 | AT11: 7 | AW11: 7 | AZ11: 7 | BC11: 7 | BF11: 7 | BI11: 7 | BL11: 7 | BO11: 7
A12: 8 | D12: 8 | G12: 8 | J12: 8 | M12: 8 | P12: 8 | S12: 8 | V12: 8 | Y12: 8 | AB12: 8 | AE12: 8 | AH12: 8 | AK12: 8 | AN12: 8 | AQ12: 8 | AT12: 8 | AW12: 8 | AZ12: 8 | BC12: 8 | BF12: 8 | BI12: 8 | BL12: 8 | BO12: 8
A13: 9 | D13: 9 | G13: 9 | J13: 9 | M13: 9 | P13: 9 | S13: 9 | V13: 9 | Y13: 9 | AB13: 9 | AE13: 9 | AH13: 9 | AK13: 9 | AN13: 9 | AQ13: 9 | AT13: 9 | AW13: 9 | AZ13: 9 | BC13: 9 | BF13: 9 | BI13: 9 | BL13: 9 | BO13: 9
A14: 10 | D14: 10 | G14: 10 | J14: 10 | M14: 10 | P14: 10 | S14: 10 | V14: 10 | Y14: 10 | AB14: 10 | AE14: 10 | AH14: 10 | AK14: 10 | AN14: 10 | AQ14: 10 | AT14: 10 | AW14: 10 | AZ14: 10 | BC14: 10 | BF14: 10 | BI14: 10 | BL14: 10 | BO14: 10
A15: Day | B15: =SUM(B5:B14) -> 0 | D15: Day | E15: =SUM(E5:E14) -> 0 | G15: Day | H15: =SUM(H5:H14) -> 0 | J15: Day | K15: =SUM(K5:K14) -> 0 | M15: Day | N15: =SUM(N5:N14) -> 0 | P15: Day | Q15: =SUM(Q5:Q14) -> 0 | S15: Day | T15: =SUM(T5:T14) -> 0 | V15: Day | W15: =SUM(W5:W14) -> 0 | Y15: Day | Z15: =SUM(Z5:Z14) -> 0 | AB15: Day | AC15: =SUM(AC5:AC14) -> 0 | AE15: Day | AF15: =SUM(AF5:AF14) -> 0 | AH15: Day | AI15: =SUM(AI5:AI14) -> 0 | AK15: Day | AL15: =SUM(AL5:AL14) -> 0 | AN15: Day | AO15: =SUM(AO5:AO14) -> 0 | AQ15: Day | AR15: =SUM(AR5:AR14) -> 0 | AT15: Day | AU15: =SUM(AU5:AU14) -> 0 | AW15: Day | AX15: =SUM(AX5:AX14) -> 0 | AZ15: Day | BA15: =SUM(BA5:BA14) -> 0 | BC15: Day | BD15: =SUM(BD5:BD14) -> 0 | BF15: Day | BG15: =SUM(BG5:BG14) -> 0 | BI15: Day | BJ15: =SUM(BJ5:BJ14) -> 0 | BL15: Day | BM15: 0 | BO15: Day | BP15: =SUM(BP5:BP14) -> 0
A16: SumLoss | B16: =SUMIF(B5:B14,"<0",B5:B14) -> 0 | D16: SumLoss | E16: =SUMIF(E5:E14,"<0",E5:E14) -> 0 | G16: SumLoss | H16: =SUMIF(H5:H14,"<0",H5:H14) -> 0 | J16: SumLoss | K16: =SUMIF(K5:K14,"<0",K5:K14) -> 0 | M16: SumLoss | N16: =SUMIF(N5:N14,"<0",N5:N14) -> 0 | P16: SumLoss | Q16: =SUMIF(Q5:Q14,"<0",Q5:Q14) -> 0 | S16: SumLoss | T16: =SUMIF(T5:T14,"<0",T5:T14) -> 0 | V16: SumLoss | W16: =SUMIF(W5:W14,"<0",W5:W14) -> 0 | Y16: SumLoss | Z16: =SUMIF(Z5:Z14,"<0",Z5:Z14) -> 0 | AB16: SumLoss | AC16: =SUMIF(AC5:AC14,"<0",AC5:AC14) -> 0 | AE16: SumLoss | AF16: =SUMIF(AF5:AF14,"<0",AF5:AF14) -> 0 | AH16: SumLoss | AI16: =SUMIF(AI5:AI14,"<0",AI5:AI14) -> 0 | AK16: SumLoss | AL16: =SUMIF(AL5:AL14,"<0",AL5:AL14) -> 0 | AN16: SumLoss | AO16: =SUMIF(AO5:AO14,"<0",AO5:AO14) -> 0 | AQ16: SumLoss | AR16: =SUMIF(AR5:AR14,"<0",AR5:AR14) -> 0 | AT16: SumLoss | AU16: =SUMIF(AU5:AU14,"<0",AU5:AU14) -> 0 | AW16: SumLoss | AX16: =SUMIF(AX5:AX14,"<0",AX5:AX14) -> 0 | AZ16: SumLoss | BA16: =SUMIF(BA5:BA14,"<0",BA5:BA14) -> 0 | BC16: SumLoss | BD16: =SUMIF(BD5:BD14,"<0",BD5:BD14) -> 0 | BF16: SumLoss | BG16: =SUMIF(BG5:BG14,"<0",BG5:BG14) -> 0 | BI16: SumLoss | BJ16: =SUMIF(BJ5:BJ14,"<0",BJ5:BJ14) -> 0 | BL16: SumLoss | BM16: 0 | BO16: SumLoss | BP16: 0
A18: Итог за месяц | F18: =A19 -> 0 | H18: =A19-F18 -> 0
A19: =SUM(A15:BQ15) -> 0 | F19: =F18-E19 -> 0
B20: 100 | F20: =IF(E19=0,A19+D24,F19-E20+D24) -> 0 | G20: <= Прибыль.
A21: MonthTarget | D21: 1800
A22: WorkDay | D22: 23
A23: DayRisk,$ | D23: =D26 -> -40
A24: P&L July
D26: -40 | G26: =COUNT(B5,E5,H5,K5,N5,Q5,T5,W5,Z5,AC5,AF5,AI5,AL5,AO5,AR5,AU5,AX5,BA5,BD5,BG5,BJ5,BM5,BP5) -> 0
A28: Risk | B28: Внимание. До достижения риска осталось 20%
A29: Risk | B29: Риск достигнут или превышен. Остановить торговлю | J29: Дневной риск сбрасывается на минимальный, если итог дня отрицательный
A30: Target | B30: Цель достигнута. Можно остановиться | J30: Дневной риск не меняется, если плюс меньше или равен Target
A31: Target | B31: Цель превышена. Не жадничать и остановить торговлю | J31: Дневной риск увеличивается, при превышении минимального Target

Sheet Графики

Sheet Диаграммы

Sheet Таблицы по времени
B2: ЗАВИСИМОСТЬ РЕЗУЛЬТАТА ОТ ДНЯ НЕДЕЛИ И ВРЕМЕНИ ВХОДА В ПОЗИЦИЮ(диаграмма) | L2: ЗАВИСИМОСТЬ РЕЗУЛЬТАТА ОТ ДНЯ НЕДЕЛИ (диаграмма) | U2: ЗАВИСИМОСТЬ РЕЗУЛЬТАТА ОТ ВРЕМЕНИ ВХОДА (диаграмма) | AD2: ЗАВИСИМОСТЬ РЕЗУЛЬТАТА ОТ ДИАПАЗОНА ВРЕМЕНИ ВХОДА (диаграмма) | AM2: ЗАВИСИМОСТЬ РЕЗУЛЬТАТА ОТ ВРЕМЕНИ В СДЕЛКЕ (диаграмма) | AV2: СРЕДНИЙ РЕЗУЛЬТАТ ПРИ ОБЪЕМЕ
B4: Год | C4: (Все) | L4: Год | M4: (Все) | U4: Год | V4: (Все) | AD4: Год | AE4: (Все) | AM4: Год | AN4: (Все) | AV4: Год | AW4: (Все)
B5: Месяц | C5: (Все) | L5: Месяц | M5: (Все) | U5: Месяц | V5: (Все) | AD5: Месяц | AE5: (Все) | AM5: Месяц | AN5: (Все) | AV5: Месяц | AW5: (Все)
B6: Неделя | C6: (Все) | L6: Неделя | M6: (Все) | U6: Неделя | V6: (Все) | AD6: Неделя | AE6: (Все) | AM6: Неделя | AN6: (Все) | AV6: Неделя | AW6: (Все)
B8: Результат | C8: Диапазон входа | M8: Данные | V8: Данные | AE8: Данные | AN8: Данные | AW8: Данные
B9: День недели | D9: 13:00 - 16:00 | E9: Общий итог | L9: День недели | M9: Плюс | N9: Минус | O9: Общий | U9: Часы | V9: Плюс | W9: Минус | X9: Общий | AD9: Диапазон входа | AE9: Плюс | AF9: Минус | AG9: Общий | AM9: Минут в сделке (Интрадей) | AN9: Плюс | AO9: Минус | AP9: Общий | AV9: кол-во | AW9: Средний результат на сделку | AX9: Общий результат
C10: 0 | E10: 0 | M10: 0 | N10: 0 | O10: 0 | U10: (пусто) | AD10: (пусто) | AN10: 0 | AO10: 0 | AP10: 0 | AX10: 0
B11: ср | D11: 14.64 | E11: 14.64 | L11: ср | M11: 14.64 | N11: 0 | O11: 14.64 | V11: 0 | W11: 0 | X11: 0 | AE11: 0 | AF11: 0 | AG11: 0 | AM11: (пусто) | AV11: (пусто) | AX11: 0
B12: вт | D12: -16.08 | E12: -16.08 | L12: вт | M12: 0 | N12: -16.08 | O12: -16.08 | U12: 13-14 | V12: 14.64 | W12: -16.08 | X12: -1.44 | AD12: 13:00 - 16:00 | AE12: 14.64 | AF12: -16.08 | AG12: -1.44 | AM12: 45 | AN12: 14.64 | AO12: 0 | AP12: 14.64 | AV12: 100 | AW12: 14.64 | AX12: 14.64
B13: Общий итог | C13: 0 | D13: -1.44 | E13: -1.44 | L13: Общий итог | M13: 14.64 | N13: -16.08 | O13: -1.44 | AD13: Общий итог | AE13: 14.64 | AF13: -16.08 | AG13: -1.44 | AM13: 4 | AN13: 0 | AO13: -16.08 | AP13: -16.08 | AV13: 300 | AW13: -16.08 | AX13: -16.08
AM14: Общий итог | AN14: 14.64 | AO14: -16.08 | AP14: -1.44 | AV14: Общий итог | AW14: -0.72 | AX14: -1.44
L130: Сумма по полю P\L Net
L131: Среднесрок | M131: Итог
L132: 28737 | M132: 0
L133: 28739 | M133: 0
L134: 28740 | M134: 0
L135: 28741 | M135: 0
L136: 28742 | M136: 0
L137: 28743 | M137: 0
L138: 28744 | M138: 0
L139: 28762 | M139: 0
L140: 28796 | M140: 0
L141: Общий итог | M141: 0

Sheet Таблицы по акциям
B3: СВОДНЫЕ РЕЗУЛЬТАТЫ ПО АКЦИИ | O3: СВОДНЫЕ РЕЗУЛЬТАТЫ ПО АКЦИИ С РАЗБИВКОЙ ПО НАПРАВЛЕНИЮ СДЕЛКИ | Y3: РЕЗУЛЬТАТ ПО ДНЯМ С РАЗБИВКОЙ ПО НАПРАВЛЕНИЮ В СДЕЛКЕ | AL3: СВОДНЫЕ РЕЗУЛЬТАТЫ ПО БИРЖАМ | AU3: СВОДНЫЕ РЕЗУЛЬТАТЫ ПО ИНДУСТРИЯМ | BG3: ЗАВИСИМОСТЬ РЕЗУЛЬТАТА ОТ СПОСОБА ВХОДА В ПОЗИЦИЮ | BR3: ЗАВИСИМОСТЬ РЕЗУЛЬТАТА ОТ СПОСОБА ВЫХОДА ИЗ ПОЗИЦИИ | CC3: РЕЗУЛЬТАТЫ ПО ОЦЕНКАМ | CK3: ЗАВИСИМОСТЬ РЕЗУЛЬТАТА ОТ ДИАПАЗОНА ЦЕНЫ АКЦИИ (диаграмма) | CS3: ЗАВИСИМОСТЬ РЕЗУЛЬТАТА ОТ ВЫБРАННОЙ СТРАТЕГИИ (диаграмма)
B6: Год | C6: (Все) | O6: Год | P6: (Все) | Y6: Год | Z6: (Все) | AL6: Год | AM6: (Все) | AU6: Год | AV6: (Все) | BG6: Год | BH6: (Все) | BR6: Год | BS6: (Все) | CC6: Год | CD6: (Все) | CK6: Год | CL6: (Все) | CS6: Год | CT6: (Все)
B7: Месяц | C7: (Все) | O7: Месяц | P7: (Все) | Y7: Месяц | Z7: (Все) | AL7: Месяц | AM7: (Все) | AU7: Месяц | AV7: (Все) | BG7: Месяц | BH7: (Все) | BR7: Месяц | BS7: (Все) | CC7: Месяц | CD7: (Все) | CK7: Месяц | CL7: (Все) | CS7: Месяц | CT7: (Все)
B8: Неделя | C8: (Все) | O8: Неделя | P8: (Все) | Y8: Неделя | Z8: (Все) | AL8: Неделя | AM8: (Все) | AU8: Неделя | AV8: (Все) | BG8: Неделя | BH8: (Все) | BR8: Неделя | BS8: (Все) | CC8: Неделя | CD8: (Все) | CK8: Неделя | CL8: (Все) | CS8: Неделя | CT8: (Все)
C10: Данные | O10: Результат | P10: Направление сделки | Z10: Направление сделки | AA10: Данные | AL10: Результат | AM10: Биржа | AW10: Данные | BI10: Данные | BT10: Данные | CC10: Net | CL10: Данные | CT10: Значения
B11: Инструмент | C11: Результат по акции | D11: Ср. рез. на сделку | E11: Кол-во сделок | F11: MIN в сделке | G11: MAX в сделке | O11: Инструмент | Q11: Sell | R11: Общий итог | AB11: Sell | AD11: Итог Количество | AE11: Итог Сумма | AN11: NASDAQ | AO11: NYSE | AP11: Общий итог | AU11: Сектор | AV11: Инструмент | AW11: Количество сделок | AX11: Результат | BG11: Способ входа в позицию | BH11: Инструмент | BI11: Сделок | BJ11: результат | BK11: средняя сделка | BR11: Способ выхода из позиции | BS11: Инструмент | BT11: Количество | BU11: Сумма | BV11: Среднее | CC11: Оценка | CD11: Итог | CK11: Диапазон цены | CL11: - | CM11: + | CN11: Сумма | CS11: Названия строк | CT11: + | CU11: - | CV11: Сумма
B12: (пусто) | C12: 0 | E12: 170 | F12: 0 | G12: 0 | P12: 0 | R12: 0 | Y12: Дата откр. | Z12: Количество | AA12: Сумма | AB12: Количество | AC12: Сумма | AL12: Итог | AM12: 0 | AN12: 14.64 | AO12: -16.08 | AP12: -1.44 | AU12: Basic Materials | AV12: NEM | AW12: 1 | AX12: -16.08 | BG12: (пусто) | BH12: (пусто) | BI12: 170 | BJ12: 0 | BR12: (пусто) | BS12: (пусто) | BT12: 170 | BU12: 0 | CC12: (пусто) | CD12: 0 | CL12: 0 | CM12: 0 | CN12: 0 | CS12: (пусто) | CT12: 0 | CU12: 0 | CV12: 0
C13: 0 | E13: 884 | F13: 0 | G13: 0 | O13: MCRS | Q13: 14.64 | R13: 14.64 | Y13: (пусто) | Z13: 884 | AA13: 0 | AD13: 884 | AE13: 0 | AV13: (пусто) | AW13: 170 | AX13: 0 | BI13: 884 | BJ13: 0 | BT13: 884 | BU13: 0 | CC13: 5 | CD13: 14.64 | CK13: 45 | CL13: 0 | CM13: 14.64 | CN13: 14.64 | CS13: Отбой от уровня | CT13: 14.64 | CU13: -16.08 | CV13: -1.44
B14: MCRS | C14: 14.64 | D14: 14.64 | E14: 1 | F14: 14.64 | G14: 14.64 | O14: NEM | Q14: -16.08 | R14: -16.08 | Y14: 2013-06-12 | AB14: 1 | AC14: 14.64 | AD14: 1 | AE14: 14.64 | AW14: 884 | AX14: 0 | BG14: отбой от уровня | BH14: MCRS | BI14: 1 | BJ14: 14.64 | BK14: 14.64 | BR14: Limit Close | BS14: MCRS | BT14: 1 | BU14: 14.64 | BV14: 14.64 | CC14: 2 | CD14: -16.08 | CK14: 30 | CL14: -16.08 | CM14: 0 | CN14: -16.08 | CS14: Общий итог | CT14: 14.64 | CU14: -16.08 | CV14: -1.44
B15: NEM | C15: -16.08 | D15: -16.08 | E15: 1 | F15: -16.08 | G15: -16.08 | O15: Общий итог | P15: 0 | Q15: -1.44 | R15: -1.44 | Y15: 2013-07-09 | AB15: 1 | AC15: -16.08 | AD15: 1 | AE15: -16.08 | AU15: Technology | AV15: MCRS | AW15: 1 | AX15: 14.64 | BH15: NEM | BI15: 1 | BJ15: -16.08 | BK15: -16.08 | BR15: стоп лосс | BS15: NEM | BT15: 1 | BU15: -16.08 | BV15: -16.08 | CC15: Общий итог | CD15: -1.44 | CK15: Общий итог | CL15: -16.08 | CM15: 14.64 | CN15: -1.44
B16: Общий итог | C16: -1.44 | D16: -0.72 | E16: 1056 | F16: -16.08 | G16: 14.64 | Y16: Общий итог | Z16: 884 | AA16: 0 | AB16: 2 | AC16: -1.44 | AD16: 886 | AE16: -1.44 | AU16: Общий итог | AW16: 1056 | AX16: -1.44 | BG16: Общий итог | BI16: 1056 | BJ16: -1.44 | BK16: -0.72 | BR16: Общий итог | BT16: 1056 | BU16: -1.44 | BV16: -0.72

Sheet Служебный
A1: No. | B1: Ticker | C1: Company | D1: Sector | E1: Industry | F1: Country | G1: Exchange
A2: 1 | B2: A | C2: Agilent Technologies Inc. | D2: Technology | E2: Scientific & Technical Instruments | F2: USA | G2: NYSE | P2: периоды
A3: 2 | B3: AA | C3: Alcoa, Inc. | D3: Basic Materials | E3: Aluminum | F3: USA | G3: NYSE | K3: Дни недели | N3: Время | P3: 09:30:00 | R3: Месяц
A4: 3 | B4: AACC | C4: Asset Acceptance Capital Corp. | D4: Financial | E4: Credit Services | F4: USA | G4: NASDAQ | K4: 1 | L4: пн | N4: 09:30 - 11:00 | O4: 1 | P4: 11:00:00 | R4: 1 | S4: январь | U4: =TEXT(R4,"ММММ") -> Январь
A5: 4 | B5: AADR | C5: WCM/BNY Mellon Focused Growth ADR ETF | D5: Financial | E5: Exchange Traded Fund | F5: USA | G5: NYSE | K5: 2 | L5: вт | N5: 11:00 - 13:00 (обед) | O5: 2 | P5: 13:00:00 | R5: 2 | S5: февраль | U5: Январь
A6: 5 | B6: AAI | C6: AirTran Holdings Inc. | D6: Services | E6: Regional Airlines | F6: USA | G6: NYSE | K6: 3 | L6: ср | N6: 13:00 - 16:00 | O6: 3 | P6: 15:59:00 | R6: 3 | S6: март | U6: Январь
A7: 6 | B7: AAII | C7: Alabama Aircraft Industries, Inc | D7: Industrial Goods | E7: Aerospace/Defense Products & Services | F7: USA | G7: NASDAQ | K7: 4 | L7: чт | R7: 4 | S7: апрель | U7: Январь
A8: 7 | B8: AAME | C8: Atlantic American Corp. | D8: Financial | E8: Life Insurance | F8: USA | G8: NASDAQ | K8: 5 | L8: пт | R8: 5 | S8: май | U8: Январь
A9: 8 | B9: AAN | C9: Aaron's, Inc. | D9: Services | E9: Specialty Retail, Other | F9: USA | G9: NYSE | K9: 6 | L9: сб | R9: 6 | S9: июнь | U9: Январь
A10: 9 | B10: AAON | C10: AAON Inc. | D10: Industrial Goods | E10: General Building Materials | F10: USA | G10: NASDAQ | K10: 7 | L10: вс | R10: 7 | S10: июль | U10: Январь
A11: 10 | B11: AAP | C11: Advance Auto Parts Inc. | D11: Services | E11: Auto Parts Stores | F11: USA | G11: NYSE | M11: комиссии | R11: 8 | S11: август | U11: Январь
A12: 11 | B12: AAPL | C12: Apple Inc. | D12: Technology | E12: Personal Computers | F12: USA | G12: NASDAQ | R12: 9 | S12: сентябрь | U12: Январь
A13: 12 | B13: AATI | C13: Advanced Analogic Technologies, Inc. | D13: Technology | E13: Semiconductor - Specialized | F13: USA | G13: NASDAQ | R13: 10 | S13: октябрь | U13: Январь
A14: 13 | B14: AAU | C14: Almaden Minerals Ltd. | D14: Basic Materials | E14: Industrial Metals & Minerals | F14: Canada | G14: AMEX | R14: 11 | S14: ноябрь | U14: Январь
A15: 14 | B15: AAV | C15: Advantage Oil & Gas Ltd. | D15: Basic Materials | E15: Oil & Gas Drilling & Exploration | F15: Canada | G15: NYSE | R15: 12 | S15: декабрь | U15: =TEXT(R15,"ММММ") -> Январь
A16: 15 | B16: AAWW | C16: Atlas Air Worldwide Holdings Inc. | D16: Services | E16: Air Services, Other | F16: USA | G16: NASDAQ
A17: 16 | B17: AAXJ | C17: iShares MSCI All Country Asia ex Jpn Idx | D17: Financial | E17: Exchange Traded Fund | F17: USA | G17: NASDAQ | M17: всего | N17: 100 | O17: 0.18
A18: 17 | B18: AB | C18: AllianceBernstein Holding L.P. | D18: Financial | E18: Asset Management | F18: USA | G18: NYSE | O18: 0.32
A19: 18 | B19: ABAT | C19: Advanced Battery Technologies, Inc. | D19: Industrial Goods | E19: Industrial Electrical Equipment | F19: USA | G19: NASDAQ
A20: 19 | B20: ABAX | C20: Abaxis Inc. | D20: Healthcare | E20: Diagnostic Substances | F20: USA | G20: NASDAQ
A21: 20 | B21: ABB | C21: ABB Ltd. | D21: Industrial Goods | E21: Industrial Electrical Equipment | F21: Switzerland | G21: NYSE
A22: 21 | B22: ABBC | C22: Abington Bancorp Inc. | D22: Financial | E22: Savings & Loans | F22: USA | G22: NASDAQ
A23: 22 | B23: ABC | C23: AmerisourceBergen Corporation | D23: Services | E23: Drugs Wholesale | F23: USA | G23: NYSE
A24: 23 | B24: ABCB | C24: Ameris Bancorp | D24: Financial | E24: Regional - Mid-Atlantic Banks | F24: USA | G24: NASDAQ
A25: 24 | B25: ABCD | C25: Cambium Learning Group, Inc. | D25: Services | E25: Education & Training Services | F25: USA | G25: NASDAQ
A26: 25 | B26: ABCO | C26: Advisory Board Co. | D26: Services | E26: Business Services | F26: USA | G26: NASDAQ
A27: 26 | B27: ABCW | C27: Anchor BanCorp Wisconsin, Inc. | D27: Financial | E27: Savings & Loans | F27: USA | G27: NASDAQ
A28: 27 | B28: ABD | C28: ACCO Brands Corporation | D28: Consumer Goods | E28: Office Supplies | F28: USA | G28: NYSE
A29: 28 | B29: ABFS | C29: Arkansas Best Corporation | D29: Services | E29: Trucking | F29: USA | G29: NASDAQ
A30: 29 | B30: ABG | C30: Asbury Automotive Group, Inc. | D30: Services | E30: Auto Dealerships | F30: USA | G30: NYSE
A31: 30 | B31: ABIO | C31: ARCA biopharma, Inc. | D31: Healthcare | E31: Biotechnology | F31: USA | G31: NASDAQ
A32: 31 | B32: ABL | C32: American Biltrite Inc. | D32: Consumer Goods | E32: Rubber & Plastics | F32: USA | G32: AMEX
A33: 32 | B33: ABM | C33: ABM Industries Inc. | D33: Services | E33: Business Services | F33: USA | G33: NYSE
A34: 33 | B34: ABMC | C34: American Bio Medica Corp. | D34: Healthcare | E34: Diagnostic Substances | F34: USA | G34: NASDAQ
A35: 34 | B35: ABMD | C35: Abiomed Inc. | D35: Healthcare | E35: Medical Instruments & Supplies | F35: USA | G35: NASDAQ
A36: 35 | B36: ABR | C36: Arbor Realty Trust Inc. | D36: Financial | E36: REIT - Diversified | F36: USA | G36: NYSE
A37: 36 | B37: ABT | C37: Abbott Laboratories | D37: Healthcare | E37: Drug Manufacturers - Major | F37: USA | G37: NYSE
A38: 37 | B38: ABTL | C38: Autobytel Inc. | D38: Technology | E38: Internet Information Providers | F38: USA | G38: NASDAQ
A39: 38 | B39: ABV | C39: Companhia de Bebidas Das Americas (AMBEV) | D39: Consumer Goods | E39: Beverages - Brewers | F39: Brazil | G39: NYSE
A40: 39 | B40: ABVA | C40: Alliance Bankshares Corporation | D40: Financial | E40: Regional - Mid-Atlantic Banks | F40: USA | G40: NASDAQ
A41: 40 | B41: ABVT | C41: AboveNet, Inc. | D41: Technology | E41: Internet Service Providers | F41: USA | G41: NYSE
A42: 41 | B42: ABX | C42: Barrick Gold Corporation | D42: Basic Materials | E42: Gold | F42: Canada | G42: NYSE
A43: 42 | B43: ACAD | C43: ACADIA Pharmaceuticals, Inc. | D43: Healthcare | E43: Biotechnology | F43: USA | G43: NASDAQ
A44: 43 | B44: ACAS | C44: American Capital, Ltd. | D44: Financial | E44: Asset Management | F44: USA | G44: NASDAQ
A45: 44 | B45: ACAT | C45: Arctic Cat Inc. | D45: Consumer Goods | E45: Recreational Vehicles | F45: USA | G45: NASDAQ
A46: 45 | B46: ACC | C46: American Campus Communities Inc. | D46: Financial | E46: REIT - Residential | F46: USA | G46: NYSE
A47: 46 | B47: ACCL | C47: Accelrys Inc. | D47: Technology | E47: Information Technology Services | F47: USA | G47: NASDAQ
A48: 47 | B48: ACE | C48: ACE Limited | D48: Financial | E48: Property & Casualty Insurance | F48: Switzerland | G48: NYSE
A49: 48 | B49: ACEL | C49: Tamir Biotechnology, Inc. | D49: Healthcare | E49: Biotechnology | F49: USA | G49: NASDAQ
A50: 49 | B50: ACET | C50: Aceto Corp. | D50: Basic Materials | E50: Chemicals - Major Diversified | F50: USA | G50: NASDAQ
A51: 50 | B51: ACFC | C51: Atlantic Coast Federal Corporation | D51: Financial | E51: Regional - Southeast Banks | F51: USA | G51: NASDAQ
A52: 51 | B52: ACFN | C52: Acorn Energy, Inc. | D52: Technology | E52: Computer Peripherals | F52: USA | G52: NASDAQ
A53: 52 | B53: ACG | C53: AllianceBernstein Income Fund, Inc. | D53: Financial | E53: Closed-End Fund - Debt | F53: USA | G53: NYSE
A54: 53 | B54: ACGL | C54: Arch Capital Group Ltd. | D54: Financial | E54: Property & Casualty Insurance | F54: Bermuda | G54: NASDAQ
A55: 54 | B55: ACGY | C55: Acergy SA | D55: Basic Materials | E55: Oil & Gas Equipment & Services | F55: United Kingdom | G55: NASDAQ
A56: 55 | B56: ACH | C56: Aluminum Corporation Of China Limited | D56: Basic Materials | E56: Aluminum | F56: China | G56: NYSE
A57: 56 | B57: ACHN | C57: Achillion Pharmaceuticals, Inc. | D57: Healthcare | E57: Biotechnology | F57: USA | G57: NASDAQ
A58: 57 | B58: ACI | C58: Arch Coal Inc. | D58: Basic Materials | E58: Industrial Metals & Minerals | F58: USA | G58: NYSE
A59: 58 | B59: ACIW | C59: ACI Worldwide, Inc. | D59: Technology | E59: Technical & System Software | F59: USA | G59: NASDAQ
A60: 59 | B60: ACL | C60: Alcon Inc. | D60: Healthcare | E60: Medical Instruments & Supplies | F60: Switzerland | G60: NYSE
A61: 60 | B61: ACLS | C61: Axcelis Technologies Inc. | D61: Technology | E61: Semiconductor Equipment & Materials | F61: USA | G61: NASDAQ
A62: 61 | B62: ACM | C62: AECOM Technology Corporation | D62: Services | E62: Technical Services | F62: USA | G62: NYSE
A63: 62 | B63: ACMR | C63: AC Moore Arts & Crafts Inc. | D63: Services | E63: Specialty Retail, Other | F63: USA | G63: NASDAQ
A64: 63 | B64: ACN | C64: Accenture plc | D64: Services | E64: Management Services | F64: Ireland | G64: NYSE
A65: 64 | B65: ACNB | C65: ACNB Corp. | D65: Financial | E65: Regional - Southwest Banks | F65: USA | G65: NASDAQ
A66: 65 | B66: ACO | C66: Amcol International Corp. | D66: Industrial Goods | E66: General Building Materials | F66: USA | G66: NYSE
A67: 66 | B67: ACOM | C67: Ancestry.com Inc. | D67: Technology | E67: Internet Information Providers | F67: USA | G67: NASDAQ
A68: 67 | B68: ACOR | C68: Acorda Therapeutics, Inc. | D68: Healthcare | E68: Biotechnology | F68: USA | G68: NASDAQ
A69: 68 | B69: ACPW | C69: Active Power Inc. | D69: Utilities | E69: Electric Utilities | F69: USA | G69: NASDAQ
A70: 69 | B70: ACSEF | C70: ACS Motion Control Ltd | D70: Industrial Goods | E70: Industrial Electrical Equipment | F70: Israel | G70: NASDAQ
A71: 70 | B71: ACTG | C71: Acacia Research Corporation | D71: Services | E71: Research Services | F71: USA | G71: NASDAQ
A72: 71 | B72: ACTS | C72: Actions Semiconductor Co., Ltd. | D72: Technology | E72: Semiconductor - Specialized | F72: China | G72: NASDAQ
A73: 72 | B73: ACU | C73: Acme United Corp. | D73: Consumer Goods | E73: Office Supplies | F73: USA | G73: AMEX
A74: 73 | B74: ACUR | C74: Acura Pharmaceuticals Inc. | D74: Healthcare | E74: Drug Delivery | F74: USA | G74: NASDAQ
A75: 74 | B75: ACV | C75: Alberto-Culver Co. | D75: Consumer Goods | E75: Personal Products | F75: USA | G75: NYSE
A76: 75 | B76: ACW | C76: Accuride Corp. | D76: Consumer Goods | E76: Trucks & Other Vehicles | F76: USA | G76: NYSE
A77: 76 | B77: ACWI | C77: iShares MSCI ACWI Index | D77: Financial | E77: Exchange Traded Fund | F77: USA | G77: NASDAQ
A78: 77 | B78: ACWX | C78: iShares MSCI ACWI ex US Index | D78: Financial | E78: Exchange Traded Fund | F78: USA | G78: NASDAQ
A79: 78 | B79: ACXM | C79: Acxiom Corporation | D79: Technology | E79: Information Technology Services | F79: USA | G79: NASDAQ
A80: 79 | B80: ACY | C80: AeroCentury Corp. | D80: Services | E80: Rental & Leasing Services | F80: USA | G80: AMEX
A81: 80 | B81: ADAM | C81: ADAM Inc. | D81: Technology | E81: Internet Information Providers | F81: USA | G81: NASDAQ
A82: 81 | B82: ADAT | C82: Authentidate Holding Corp. | D82: Technology | E82: Internet Software & Services | F82: USA | G82: NASDAQ
A83: 82 | B83: ADBE | C83: Adobe Systems Inc. | D83: Technology | E83: Application Software | F83: USA | G83: NASDAQ
A84: 83 | B84: ADC | C84: Agree Realty Corp. | D84: Financial | E84: Property Management | F84: USA | G84: NYSE
A85: 84 | B85: ADEP | C85: Adept Technology Inc. | D85: Industrial Goods | E85: Diversified Machinery | F85: USA | G85: NASDAQ
A86: 85 | B86: ADES | C86: ADA-ES, Inc. | D86: Industrial Goods | E86: Pollution & Treatment Controls | F86: USA | G86: NASDAQ
A87: 86 | B87: ADGE | C87: American DG Energy, Inc. | D87: Utilities | E87: Electric Utilities | F87: USA | G87: AMEX
A88: 87 | B88: ADGF | C88: Adams Golf Inc. | D88: Consumer Goods | E88: Sporting Goods | F88: USA | G88: NASDAQ
A89: 88 | B89: ADI | C89: Analog Devices Inc. | D89: Technology | E89: Semiconductor - Integrated Circuits | F89: USA | G89: NYSE
A90: 89 | B90: ADK | C90: AdCare Health Systems Inc. | D90: Healthcare | E90: Long-Term Care Facilities | F90: USA | G90: AMEX
A91: 90 | B91: ADLR | C91: Adolor Corp. | D91: Healthcare | E91: Drug Manufacturers - Other | F91: USA | G91: NASDAQ
A92: 91 | B92: ADLS | C92: Advanced Life Sciences Holdings, Inc. | D92: Healthcare | E92: Biotechnology | F92: USA | G92: NASDAQ
A93: 92 | B93: ADM | C93: Archer Daniels Midland Company | D93: Consumer Goods | E93: Farm Products | F93: USA | G93: NYSE
A94: 93 | B94: ADP | C94: Automatic Data Processing, Inc. | D94: Technology | E94: Business Software & Services | F94: USA | G94: NASDAQ
A95: 94 | B95: ADPI | C95: American Dental Partners, Inc. | D95: Healthcare | E95: Health Care Plans | F95: USA | G95: NASDAQ
A96: 95 | B96: ADPT | C96: ADPT Corp | D96: Technology | E96: Computer Based Systems | F96: USA | G96: NASDAQ
A97: 96 | B97: ADRA | C97: BLDRS Asia 50 ADR Index | D97: Financial | E97: Exchange Traded Fund | F97: USA | G97: NASDAQ
A98: 97 | B98: ADRD | C98: BLDRS Developed Markets 100 ADR Index | D98: Financial | E98: Exchange Traded Fund | F98: USA | G98: NASDAQ
A99: 98 | B99: ADRE | C99: BLDRS Emerging Markets 50 ADR Index | D99: Financial | E99: Exchange Traded Fund | F99: USA | G99: NASDAQ
A100: 99 | B100: ADRU | C100: BLDRS Europe 100 ADR Index | D100: Financial | E100: Exchange Traded Fund | F100: USA | G100: NASDAQ
A101: 100 | B101: ADS | C101: Alliance Data Systems Corporation | D101: Financial | E101: Credit Services | F101: USA | G101: NYSE
A102: 101 | B102: ADSK | C102: Autodesk, Inc. | D102: Technology | E102: Technical & System Software | F102: USA | G102: NASDAQ
A103: 102 | B103: ADTN | C103: ADTRAN Inc. | D103: Technology | E103: Communication Equipment | F103: USA | G103: NASDAQ
A104: 103 | B104: ADUS | C104: Addus HomeCare Corp. | D104: Healthcare | E104: Home Health Care | F104: USA | G104: NASDAQ
A105: 104 | B105: ADVS | C105: Advent Software, Inc. | D105: Technology | E105: Application Software | F105: USA | G105: NASDAQ
A106: 105 | B106: ADX | C106: The Adams Express Company | D106: Financial | E106: Closed-End Fund - Equity | F106: USA | G106: NYSE
A107: 106 | B107: ADY | C107: American Dairy Inc. | D107: Consumer Goods | E107: Dairy Products | F107: China | G107: NYSE
A108: 107 | B108: ADZ | C108: PowerShares DB Agriculture Short ETN | D108: Financial | E108: Exchange Traded Fund | F108: USA | G108: NYSE
A109: 108 | B109: AE | C109: Adams Resources & Energy Inc. | D109: Services | E109: Basic Materials Wholesale | F109: USA | G109: AMEX
A110: 109 | B110: AEA | C110: Advance America, Cash Advance Centers Inc. | D110: Financial | E110: Credit Services | F110: USA | G110: NYSE
A111: 110 | B111: AEC | C111: Associated Estates Realty Corp. | D111: Financial | E111: REIT - Residential | F111: USA | G111: NYSE
A112: 111 | B112: AEE | C112: Ameren Corporation | D112: Utilities | E112: Diversified Utilities | F112: USA | G112: NYSE
A113: 112 | B113: AEG | C113: AEGON N.V. | D113: Financial | E113: Life Insurance | F113: Netherlands | G113: NYSE
A114: 113 | B114: AEGR | C114: Aegerion Pharmaceuticals, Inc. | D114: Healthcare | E114: Drug Manufacturers - Major | F114: USA | G114: NASDAQ
A115: 114 | B115: AEHR | C115: Aehr Test Systems | D115: Technology | E115: Semiconductor Equipment & Materials | F115: USA | G115: NASDAQ
A116: 115 | B116: AEIS | C116: Advanced Energy Industries, Inc. | D116: Technology | E116: Diversified Electronics | F116: USA | G116: NASDAQ
A117: 116 | B117: AEL | C117: American Equity Investment Life Holding Co. | D117: Financial | E117: Life Insurance | F117: USA | G117: NYSE
A118: 117 | B118: AEM | C118: Agnico-Eagle Mines Ltd. | D118: Basic Materials | E118: Gold | F118: Canada | G118: NYSE
A119: 118 | B119: AEN | C119: Adeona Pharmaceuticals, Inc. | D119: Healthcare | E119: Biotechnology | F119: USA | G119: AMEX
A120: 119 | B120: AEO | C120: American Eagle Outfitters, Inc. | D120: Services | E120: Apparel Stores | F120: USA | G120: NYSE
A121: 120 | B121: AEP | C121: American Electric Power Co., Inc. | D121: Utilities | E121: Electric Utilities | F121: USA | G121: NYSE
A122: 121 | B122: AEPI | C122: AEP Industries Inc. | D122: Consumer Goods | E122: Rubber & Plastics | F122: USA | G122: NASDAQ
A123: 122 | B123: AER | C123: AerCap Holdings N.V. | D123: Services | E123: Rental & Leasing Services | F123: Netherlands | G123: NYSE
A124: 123 | B124: AERG | C124: Applied Energetics, Inc. | D124: Technology | E124: Scientific & Technical Instruments | F124: USA | G124: NASDAQ
A125: 124 | B125: AERL | C125: Asia Entertainment & Resources Ltd. | D125: Services | E125: Gaming Activities | F125: Hong Kong | G125: NASDAQ
A126: 125 | B126: AERO | C126: Aerogrow International, Inc. | D126: Industrial Goods | E126: Small Tools & Accessories | F126: USA | G126: NASDAQ
A127: 126 | B127: AERT | C127: Advanced Environmental Recycling Technologies, Inc. | D127: Industrial Goods | E127: Lumber, Wood Production | F127: USA | G127: NASDAQ
A128: 127 | B128: AES | C128: The AES Corporation | D128: Utilities | E128: Electric Utilities | F128: USA | G128: NYSE
A129: 128 | B129: AET | C129: Aetna Inc. | D129: Healthcare | E129: Health Care Plans | F129: USA | G129: NYSE
A130: 129 | B130: AETI | C130: American Electric Technologies, Inc | D130: Industrial Goods | E130: Industrial Electrical Equipment | F130: USA | G130: NASDAQ
A131: 130 | B131: AEY | C131: ADDvantage Technologies Group Inc. | D131: Services | E131: Electronics Wholesale | F131: USA | G131: NASDAQ
A132: 131 | B132: AEZS | C132: AEterna Zentaris Inc. (USA) | D132: Healthcare | E132: Biotechnology | F132: Canada | G132: NASDAQ
A133: 132 | B133: AF | C133: Astoria Financial Corporation | D133: Financial | E133: Savings & Loans | F133: USA | G133: NYSE
A134: 133 | B134: AFAM | C134: Almost Family Inc. | D134: Healthcare | E134: Home Health Care | F134: USA | G134: NASDAQ
A135: 134 | B135: AFB | C135: AllianceBernstein National Municipal Income Fund, Inc | D135: Financial | E135: Closed-End Fund - Debt | F135: USA | G135: NYSE
A136: 135 | B136: AFCB | C136: Athens Bancshares Corporation | D136: Financial | E136: Regional - Southeast Banks | F136: USA | G136: NASDAQ
A137: 136 | B137: AFCE | C137: AFC Enterprises Inc. | D137: Services | E137: Restaurants | F137: USA | G137: NASDAQ
A138: 137 | B138: AFFM | C138: Affirmative Insurance Holdings Inc. | D138: Financial | E138: Property & Casualty Insurance | F138: USA | G138: NASDAQ
A139: 138 | B139: AFFX | C139: Affymetrix Inc. | D139: Technology | E139: Scientific & Technical Instruments | F139: USA | G139: NASDAQ
A140: 139 | B140: AFFY | C140: Affymax, Inc. | D140: Healthcare | E140: Biotechnology | F140: USA | G140: NASDAQ
A141: 140 | B141: AFG | C141: American Financial Group Inc. | D141: Financial | E141: Property & Casualty Insurance | F141: USA | G141: NYSE
A142: 141 | B142: AFK | C142: Market Vectors Africa Index ETF | D142: Financial | E142: Exchange Traded Fund | F142: USA | G142: NYSE
A143: 142 | B143: AFL | C143: AFLAC Inc. | D143: Financial | E143: Accident & Health Insurance | F143: USA | G143: NYSE
A144: 143 | B144: AFOP | C144: Alliance Fiber Optic Products Inc. | D144: Technology | E144: Communication Equipment | F144: USA | G144: NASDAQ
A145: 144 | B145: AFP | C145: United Capital Corp. | D145: Financial | E145: Real Estate Development | F145: USA | G145: AMEX
A146: 145 | B146: AFSI | C146: AmTrust Financial Services, Inc. | D146: Financial | E146: Property & Casualty Insurance | F146: USA | G146: NASDAQ
A147: 146 | B147: AG | C147: First Majestic Silver Corp. | D147: Basic Materials | E147: Silver | F147: Canada | G147: NYSE
A148: 147 | B148: AGA | C148: PowerShares DB Agriculture Dble Shrt ETN | D148: Financial | E148: Exchange Traded Fund | F148: USA | G148: NYSE
A149: 148 | B149: AGCO | C149: AGCO Corporation | D149: Industrial Goods | E149: Farm & Construction Machinery | F149: USA | G149: NYSE
A150: 149 | B150: AGD | C150: Alpine Global Dynamic Dividend Fund | D150: Financial | E150: Closed-End Fund - Foreign | F150: USA | G150: NYSE
A151: 150 | B151: AGEN | C151: Antigenics Inc. | D151: Healthcare | E151: Biotechnology | F151: USA | G151: NASDAQ
A152: 151 | B152: AGF | C152: PowerShares DB Agriculture Long ETN | D152: Financial | E152: Exchange Traded Fund | F152: USA | G152: NYSE
A153: 152 | B153: AGG | C153: iShares Barclays Aggregate Bond | D153: Financial | E153: Exchange Traded Fund | F153: USA | G153: NYSE
A154: 153 | B154: AGII | C154: Argo Group International Holdings, Ltd. | D154: Financial | E154: Property & Casualty Insurance | F154: Bermuda | G154: NASDAQ
A155: 154 | B155: AGL | C155: AGL Resources Inc. | D155: Utilities | E155: Gas Utilities | F155: USA | G155: NYSE
A156: 155 | B156: AGM | C156: Federal Agricultural Mortgage Corp. | D156: Financial | E156: Credit Services | F156: USA | G156: NYSE
A157: 156 | B157: AGN | C157: Allergan Inc. | D157: Healthcare | E157: Drug Manufacturers - Other | F157: USA | G157: NYSE
A158: 157 | B158: AGNC | C158: American Capital Agency Corp. | D158: Financial | E158: REIT - Residential | F158: USA | G158: NASDAQ
A159: 158 | B159: AGO | C159: Assured Guaranty Ltd. | D159: Financial | E159: Surety & Title Insurance | F159: Bermuda | G159: NYSE
A160: 159 | B160: AGP | C160: AMERIGROUP Corporation | D160: Healthcare | E160: Health Care Plans | F160: USA | G160: NYSE
A161: 160 | B161: AGQ | C161: ProShares Ultra Silver | D161: Financial | E161: Exchange Traded Fund | F161: USA | G161: NYSE
A162: 161 | B162: AGU | C162: Agrium Inc. | D162: Basic Materials | E162: Agricultural Chemicals | F162: Canada | G162: NYSE
A163: 162 | B163: AGX | C163: Argan, Inc. | D163: Industrial Goods | E163: Heavy Construction | F163: USA | G163: AMEX
A164: 163 | B164: AGYS | C164: Agilysys Inc. | D164: Technology | E164: Information Technology Services | F164: USA | G164: NASDAQ
A165: 164 | B165: AGZ | C165: iShares Barclays Agency Bond | D165: Financial | E165: Exchange Traded Fund | F165: USA | G165: NYSE
A166: 165 | B166: AH | C166: Accretive Health, Inc. | D166: Services | E166: Management Services | F166: USA | G166: NYSE
A167: 166 | B167: AHC | C167: A. H. Belo Corporation | D167: Services | E167: Publishing - Newspapers | F167: USA | G167: NYSE
A168: 167 | B168: AHCI | C168: Allied Healthcare International Inc. | D168: Healthcare | E168: Home Health Care | F168: USA | G168: NASDAQ
A169: 168 | B169: AHD | C169: Atlas Pipeline Holdings LP | D169: Utilities | E169: Gas Utilities | F169: USA | G169: NYSE
A170: 169 | B170: AHGP | C170: Alliance Holdings GP, L.P. | D170: Basic Materials | E170: Nonmetallic Mineral Mining | F170: USA | G170: NASDAQ
A171: 170 | B171: AHII | C171: Animal Health International, Inc. | D171: Services | E171: Medical Equipment Wholesale | F171: USA | G171: NASDAQ
A172: 171 | B172: AHL | C172: Aspen Insurance Holdings Ltd. | D172: Financial | E172: Property & Casualty Insurance | F172: Bermuda | G172: NYSE
A173: 172 | B173: AHPI | C173: Allied Healthcare Products Inc. | D173: Healthcare | E173: Medical Appliances & Equipment | F173: USA | G173: NASDAQ
A174: 173 | B174: AHS | C174: AMN Healthcare Services Inc. | D174: Services | E174: Staffing & Outsourcing Services | F174: USA | G174: NYSE
A175: 174 | B175: AHT | C175: Ashford Hospitality Trust Inc. | D175: Financial | E175: REIT - Hotel/Motel | F175: USA | G175: NYSE
A176: 175 | B176: AI | C176: Arlington Asset Investment Corp. | D176: Financial | E176: Investment Brokerage - Regional | F176: USA | G176: NYSE
A177: 176 | B177: AIA | C177: iShares S&P Asia 50 Index | D177: Financial | E177: Exchange Traded Fund | F177: USA | G177: NYSE
A178: 177 | B178: AIB | C178: Allied Irish Banks plc | D178: Financial | E178: Foreign Money Center Banks | F178: Ireland | G178: NYSE
A179: 178 | B179: AIG | C179: American International Group, Inc. | D179: Financial | E179: Property & Casualty Insurance | F179: USA | G179: NYSE
A180: 179 | B180: AIM | C180: Aerosonic Corp. | D180: Industrial Goods | E180: Aerospace/Defense Products & Services | F180: USA | G180: AMEX
A181: 180 | B181: AIMC | C181: Altra Holdings, Inc. | D181: Industrial Goods | E181: Industrial Electrical Equipment | F181: USA | G181: NASDAQ
A182: 181 | B182: AIN | C182: Albany International Corp. | D182: Industrial Goods | E182: Textile Industrial | F182: USA | G182: NYSE
A183: 182 | B183: AINV | C183: Apollo Investment Corporation | D183: Financial | E183: Diversified Investments | F183: USA | G183: NASDAQ
A184: 183 | B184: AIP | C184: Hadera Paper Ltd. | D184: Consumer Goods | E184: Paper & Paper Products | F184: Israel | G184: AMEX
A185: 184 | B185: AIQ | C185: Alliance Healthcare Services, Inc. | D185: Healthcare | E185: Medical Laboratories & Research | F185: USA | G185: NYSE
A186: 185 | B186: AIR | C186: AAR Corp. | D186: Industrial Goods | E186: Aerospace/Defense Products & Services | F186: USA | G186: NYSE
A187: 186 | B187: AIRM | C187: Air Methods Corp. | D187: Services | E187: Air Services, Other | F187: USA | G187: NASDAQ
A188: 187 | B188: AIRT | C188: Air T Inc. | D188: Services | E188: Air Delivery & Freight Services | F188: USA | G188: NASDAQ
A189: 188 | B189: AIS | C189: Antares Pharma Inc. | D189: Healthcare | E189: Medical Instruments & Supplies | F189: USA | G189: AMEX
A190: 189 | B190: AIT | C190: Applied Industrial Technologies, Inc. | D190: Services | E190: Industrial Equipment Wholesale | F190: USA | G190: NYSE
A191: 190 | B191: AIV | C191: Apartment Investment & Management Co. | D191: Financial | E191: REIT - Residential | F191: USA | G191: NYSE
A192: 191 | B192: AIXG | C192: Aixtron AG | D192: Industrial Goods | E192: Diversified Machinery | F192: Germany | G192: NASDAQ
A193: 192 | B193: AIZ | C193: Assurant Inc. | D193: Financial | E193: Accident & Health Insurance | F193: USA | G193: NYSE
A194: 193 | B194: AJG | C194: Arthur J Gallagher & Co. | D194: Financial | E194: Insurance Brokers | F194: USA | G194: NYSE
A195: 194 | B195: AKAM | C195: Akamai Technologies Inc. | D195: Technology | E195: Internet Information Providers | F195: USA | G195: NASDAQ
A196: 195 | B196: AKO-A | C196: Embotelladora Andina S.A. | D196: Consumer Goods | E196: Beverages - Soft Drinks | F196: Chile | G196: NYSE
A197: 196 | B197: AKP | C197: Alliance California Municipal Income Fund Inc. | D197: Financial | E197: Closed-End Fund - Debt | F197: USA | G197: NYSE
A198: 197 | B198: AKR | C198: Acadia Realty Trust | D198: Financial | E198: Property Management | F198: USA | G198: NYSE
A199: 198 | B199: AKRX | C199: Akorn Inc. | D199: Healthcare | E199: Drugs - Generic | F199: USA | G199: NASDAQ
A200: 199 | B200: AKS | C200: AK Steel Holding Corporation | D200: Basic Materials | E200: Steel & Iron | F200: USA | G200: NYSE
... 6585 more rows

Sheet Настройки
B2: Способы входа в позицию | D2: Способы выхода из позиции | F2: Ошибки входа | H2: Ошибки выхода | J2: Стратегия
B3: отбой от уровня+фигура+база | D3: стоп лосс | F3: Прыгнул в уходящий поезд | H3: Короткий стоп | J3: Отбой от уровня
B4: отбой от уровня+фигура | D4: трейлинг стоп | F4: Вход в разбор | H4: Длинный стоп | J4: Пробой уровня
B5: отбой от уровня+база | D5: маркетом | F5: Неправильно определил сетап | H5: Не пошла | J5: Прыгал в поезд
B6: отбой от уровня | D6: по цели | F6: Все правильно | H6: Все правильно | J6: От границ канала
B7: пробой уровня | D7: эмоции | F7: Не пошла | H7: Рано вышел | J7: Без правил
B8: от границы канала | D8: другое | F8: Плохая база | H8: Неадекватный стоп | J8: Pump & Dump
B9: прыгнул в поезд | D9: Выход на импульсе | F9: Отыгрывался | H9: Не соблюдал правила
B10: на эмоциях | D10: Глюк программы | F10: Не учел ближайшие уровни | H10: Неправильно передвинул стоп
B11: другое | D11: Вход в разбор | F11: Нет базы | H11: Глюк программы
D12: Limit Close | F12: Не соблюдал правила | H12: другое
F13: Не учел дневку | H13: Пройден АТР
F14: Глюк программы | H14: Против Рынка
F15: Прорущен вход | H15: Жадность
F16: Не круглый уровень | H16: Сквиз
F17: другое | H17: Сбор стопов
H18: Эмоции
A22: Размер картинки примечания
A23: 800 | B23: ширина
A24: 600 | B24: высота

Sheet Blotter
A1: Date | B1: Time | C1: Side | D1: Sym | E1: Price | F1: Shares | G1: Ammount | H1: Comm. | I1: Exch. | J1: Reg. | K1: Clr | L1: Lty

Sheet Settings
A1: Date exists | B1: Yes | D1: Yes | E1: DMY
A2: Time exists | B2: Yes | D2: No | E2: MDY
A3: Date order | B3: MDY | E3: YMD
A4: Первая конвертация | B4: Yes
A5: Date column index | B5: 1
A6: Time column index | B6: 2
A7: Ticker column index | B7: 4
A8: Side column index | B8: 3
A9: Price column index | B9: 5
A10: Shares column index | B10: 6
A12: Buy side | B12: B
A13: Cover side | B13: B
A14: Sell side | B14: S
A15: Short side | B15: S
A17: Trades merge (minutes) | B17: 2
A18: Time correction (hours) | B18: 0
